Workbook

Sheet Instructions
C1: Philmont 2024 Itineraries - 12 Day Treks
B4: Questions or suggestions regarding this spreadsheet may be e-mailed to the author Sid Covington at sid_c@swbell.net
B6: ="Updated "&getlastsavedate()&" - Revision " & getSpreadsheetProperty("Revision") -> Updated 2/11/2024 12:28PM - Revision 2024_2-1
B7: Revision History: | F7: Note: Use Ctrl-F1 to show/hide the Excel ribbon
C8: 2024_1-0 | D8: Original 2024 Update
C9: 2024_1-1 | D9: Correct Tables calculation (was off by 1)
C10: 2024_2-0 | D10: Correct Tables program number (only showed Archaeology)
C11: 2024_2-1 | D11: Correct Itinerary 35 to SS

Sheet Preferences
A1: Set Crew preferences below
A3: Philmont is divided into four areas. Is it important to you | E3: Altitude Factors:
A4: which area you go to? | B4: n | C4: =IF(UPPER(B4)="Y","",IF(UPPER(B4)="N","","ERROR-Must be Y or N")) ->  | E4: Altitude factors may be included or excluded from the calculations. There are three different factors in the calculation that relate to altitude.
A5: If it is important, rank your preference in 1, 2, 3, 4 order with
A6: 1 being the most preferred, 4 being least.
A7: South Country | B7: 3 | C7: =IF(B7<1,"ERROR-Must be in 1-4 range",IF(B7>4,"ERROR-Must be in 1-4 range","")) ->  | E7: Factor: | F7: Include?
A8: Central Country | B8: 4 | C8: =IF(B8<1,"ERROR-Must be in 1-4 range",IF(B8>4,"ERROR-Must be in 1-4 range","")) ->  | E8: Highest camp elevation: | F8: n | G8: =IF(UPPER(F8)="Y","",IF(UPPER(F8)="N","","ERROR-enter a 'y' or 'n'")) -> 
A9: North Country | B9: 1 | C9: =IF(B9<1,"ERROR-Must be in 1-4 range",IF(B9>4,"ERROR-Must be in 1-4 range","")) ->  | E9: Trek camp elevation change: | F9: n | G9: =IF(UPPER(F9)="Y","",IF(UPPER(F9)="N","","ERROR-enter a 'y' or 'n'")) -> 
A10: Valle Vidal | B10: 2 | C10: =IF(B10<1,"ERROR-Must be in 1-4 range",IF(B10>4,"ERROR-Must be in 1-4 range","")) ->  | E10: Average daily change: | F10: y | G10: =IF(UPPER(F10)="Y","",IF(UPPER(F10)="N","","ERROR-enter a 'y' or 'n'")) -> 
A11: =IF(LOWER(areaImportant)="y",(IF(validAreaRanking(),"","ERROR—rank preferences 1 to 4")),"") -> 
A13: Rate the capability of your crew on a scale of 1 to 10 with | E13: How much more important are programs than the other factors such as distance, country, altitude, Tooth of Time, etc. in your selection of an itinerary? Enter y if programs are more important, n if should be treated as lower priority than other factors.
A14: 1 indicating a young crew with little backpacking experience
A15: and 10 indicating an older crew with a lot of experience.
A17: Capability | B17: 3
A18: =IF(B17>0,IF(B17<11,"","ERROR-must be less than 10"),"ERROR-must be greater than 0") ->  | E18: Programs more important? | F18: y
A20: Many itineraries return to Base Camp via bus but some hike in (not necessarily over the Tooth of Time).
E21: Include Itineraries with an Itinerary Rating of:
A22: Is it important to hike into Base Camp? | G22: Include?
B23: n | E23: Challenging | F23: C | G23: y
E24: Rugged | F24: R | G24: y
A25: Most itineraries depart Base Camp to the trailhead by bus. There are some that hike out of Base Camp to the first camp. | E25: Strenuous | F25: S | G25: y
E26: Super Strenuous | F26: SS | G26: y
A27: Is it important to hike out of Base Camp?
B28: n
A30: A key part of a Philmont Trek is climbing peaks. Is it important to you to climb the following peaks?
A32: Baldy Peak | B32: y
A33: Mount Phillips | B33: y
A34: Tooth of Time | B34: y
A35: Trail Peak | B35: n
A36: Others (Mountaineering) | B36: n

Sheet Scores
A1: Program: | B1: Crewmember 1 | C1: Crewmember 2 | D1: Crewmember 3 | E1: Crewmember 4 | F1: Crewmember 5 | G1: Crewmember 6 | H1: Crewmember 7 | I1: Crewmember 8 | J1: Crewmember 9 | K1: Crewmember 10 | L1: Crewmember 11 | M1: Crewmember 12
A2: =INDEX(program_table,ROW()-1) -> Archaeology | B2: 15 | C2: 15 | D2: 15 | E2: 15 | F2: 15 | G2: 15 | H2: 15 | I2: 15 | J2: 15 | K2: 15 | L2: 2 | M2: 0
A3: =INDEX(program_table,ROW()-1) -> Archery - 3 Dimensional | B3: 20 | C3: 20 | D3: 20 | E3: 20 | F3: 20 | G3: 20 | H3: 20 | I3: 19 | J3: 18 | K3: 17 | L3: 16 | M3: 15
A4: =INDEX(program_table,ROW()-1) -> Astronomy | B4: 2 | C4: 13 | D4: 10 | E4: 2 | F4: 0 | G4: 7 | H4: 13 | I4: 10 | J4: 2 | K4: 0 | L4: 7 | M4: 10
A5: =INDEX(program_table,ROW()-1) -> Atlatl (Dart-throwing) | B5: 18 | C5: 18 | D5: 18 | E5: 18 | F5: 18 | G5: 18 | H5: 18 | I5: 18 | J5: 18 | K5: 18 | L5: 5 | M5: 3
A6: =INDEX(program_table,ROW()-1) -> Baldy Mountain | B6: 2 | C6: 0 | D6: 15 | E6: 0 | F6: 18 | G6: 20 | H6: 0 | I6: 15 | J6: 0 | K6: 18 | L6: 20 | M6: 0
A7: =INDEX(program_table,ROW()-1) -> Blacksmithing | B7: 2 | C7: 20 | D7: 0 | E7: 14 | F7: 6 | G7: 10 | H7: 20 | I7: 0 | J7: 14 | K7: 6 | L7: 10 | M7: 9
A8: =INDEX(program_table,ROW()-1) -> Bouldering | B8: 2 | C8: 20 | D8: 0 | E8: 14 | F8: 6 | G8: 10 | H8: 20 | I8: 0 | J8: 14 | K8: 6 | L8: 10 | M8: 9
A9: =INDEX(program_table,ROW()-1) -> Burro Packing | B9: 2 | C9: 5 | D9: 15 | E9: 0 | F9: 20 | G9: 7 | H9: 5 | I9: 15 | J9: 0 | K9: 0 | L9: 7 | M9: 8
A10: =INDEX(program_table,ROW()-1) -> Campfire (evening) | B10: 2 | C10: 19 | D10: 0 | E10: 0 | F10: 9 | G10: 9 | H10: 19 | I10: 0 | J10: 0 | K10: 9 | L10: 9 | M10: 11
A11: =INDEX(program_table,ROW()-1) -> Cantina | B11: 2 | C11: 10 | D11: 5 | E11: 0 | F11: 0 | G11: 7 | H11: 10 | I11: 5 | J11: 0 | L11: 7 | M11: 15
A12: =INDEX(program_table,ROW()-1) -> Challenge Events | B12: 2 | C12: 20 | D12: 5 | E12: 0 | F12: 0 | G12: 5 | H12: 20 | I12: 5 | J12: 0 | L12: 5 | M12: 11
A13: =INDEX(program_table,ROW()-1) -> Chuckwagon Dinner | B13: 2 | C13: 11 | E13: 13 | G13: 4 | H13: 10 | J13: 15 | K13: 0 | M13: 18
A14: =INDEX(program_table,ROW()-1) -> Cowboy Action Shooting | B14: 2 | C14: 10 | D14: 0 | E14: 13 | F14: 0 | G14: 4 | H14: 10 | I14: 0 | J14: 13 | K14: 0 | L14: 4 | M14: 18
A15: =INDEX(program_table,ROW()-1) -> Demonstration Forest | B15: 2 | C15: 13 | D15: 10 | E15: 2 | G15: 7 | H15: 13 | I15: 10 | J15: 2 | K15: 0 | L15: 7 | M15: 10
A16: =INDEX(program_table,ROW()-1) -> Fishing | B16: 2 | C16: 12 | D16: 5 | E16: 3 | G16: 10 | H16: 12 | I16: 5 | J16: 3 | K16: 0 | L16: 10 | M16: 20
A17: =INDEX(program_table,ROW()-1) -> Fly Tying | B17: 2 | C17: 8 | D17: 0 | E17: 16 | F17: 5 | G17: 8 | H17: 0 | I17: 8 | J17: 16 | K17: 8 | L17: 3 | M17: 10
A18: =INDEX(program_table,ROW()-1) -> Fur Trapper Rendezvous | B18: 2 | C18: 1 | D18: 1 | E18: 17 | F18: 6 | G18: 4 | H18: 1 | I18: 1 | J18: 17 | K18: 6 | L18: 4 | M18: 11
A19: =INDEX(program_table,ROW()-1) -> Gold Mining & Panning | B19: 2 | C19: 10 | D19: 6 | E19: 15 | F19: 10 | G19: 5 | H19: 10 | I19: 0 | K19: 1 | L19: 20 | M19: 18
A20: =INDEX(program_table,ROW()-1) -> High Ropes & Climbing Tower | B20: 2 | C20: 3 | D20: 5 | E20: 0 | F20: 0 | G20: 5 | H20: 20 | I20: 5 | J20: 0 | K20: 0 | L20: 7 | M20: 15
A21: =INDEX(program_table,ROW()-1) -> Historic Chase Ranch | B21: 2 | C21: 2 | D21: 15 | E21: 18 | F21: 0 | G21: 10 | H21: 2 | I21: 15 | J21: 18 | K21: 0 | L21: 10 | M21: 12
A22: =INDEX(program_table,ROW()-1) -> Homesteading | B22: 2 | C22: 19 | D22: 0 | E22: 6 | F22: 0 | G22: 12 | H22: 19 | I22: 0 | J22: 6 | K22: 0 | L22: 12 | M22: 0
A23: =INDEX(program_table,ROW()-1) -> Horse Rides | B23: 15 | C23: 2 | D23: 0 | E23: 12 | F23: 0 | G23: 12 | H23: 2 | I23: 10 | J23: 8 | K23: 0 | L23: 20 | M23: 5
A24: =INDEX(program_table,ROW()-1) -> Hunter Safety | B24: 2 | C24: 6 | D24: 5 | E24: 8 | F24: 9 | G24: 10 | H24: 7 | I24: 7 | J24: 3 | K24: 2 | L24: 1 | M24: 9
A25: =INDEX(program_table,ROW()-1) -> Inspiration Point Hike | B25: 2 | D25: 15 | F25: 18 | G25: 20 | H25: 0 | I25: 15 | J25: 0 | K25: 18 | L25: 20
A26: =INDEX(program_table,ROW()-1) -> Jicarilla Apache Life | B26: 2 | C26: 16 | D26: 10 | E26: 15 | F26: 0 | G26: 20 | H26: 16 | I26: 10 | J26: 15 | K26: 0 | L26: 20 | M26: 10
A27: =INDEX(program_table,ROW()-1) -> Kit Carson/Rayado Rancho | B27: 2 | D27: 10 | E27: 5 | F27: 10 | H27: 10 | I27: 20 | J27: 5 | K27: 15 | L27: 2 | M27: 18
A28: =INDEX(program_table,ROW()-1) -> Laser Shot Shooting Range | B28: 2 | C28: 0 | D28: 15 | F28: 17 | G28: 12 | H28: 0 | I28: 15 | J28: 0 | K28: 17 | L28: 12 | M28: 10
A29: =INDEX(program_table,ROW()-1) -> Lodge/Cabin Tours | B29: 15 | C29: 0 | D29: 15 | F29: 19 | G29: 12 | H29: 0 | I29: 15 | J29: 0 | K29: 19 | L29: 12 | M29: 10
A30: =INDEX(program_table,ROW()-1) -> Low Impact Camping | B30: 15 | C30: 0 | D30: 15 | F30: 12 | G30: 12 | H30: 0 | I30: 15 | K30: 12 | L30: 12 | M30: 10
A31: =INDEX(program_table,ROW()-1) -> Mexican Dinner | B31: 15 | C31: 0 | D31: 15 | F31: 11 | G31: 12 | H31: 10 | I31: 15 | J31: 15 | K31: 11 | L31: 12 | M31: 10
A32: =INDEX(program_table,ROW()-1) -> Mine Tour | B32: 18 | C32: 17 | D32: 6 | F32: 12 | G32: 13 | H32: 5 | I32: 16 | J32: 3 | K32: 13 | L32: 14 | M32: 18
A33: =INDEX(program_table,ROW()-1) -> Mount Phillips | B33: 10 | C33: 0 | D33: 5 | F33: 16 | G33: 9 | H33: 0 | I33: 5 | J33: 0 | K33: 16 | M33: 0
A34: =INDEX(program_table,ROW()-1) -> Mountain Biking | B34: 19 | C34: 20 | E34: 14 | F34: 7 | G34: 10 | H34: 20 | J34: 14 | K34: 7 | L34: 2 | M34: 8
A35: =INDEX(program_table,ROW()-1) -> Mountaineering | B35: 19 | C35: 20 | D35: 0 | E35: 14 | F35: 7 | G35: 10 | H35: 20 | I35: 18 | J35: 14 | K35: 7 | L35: 10 | M35: 8
A36: =INDEX(program_table,ROW()-1) -> Muzzle Loading Rifle | B36: 18 | C36: 5 | D36: 10 | E36: 5 | F36: 19 | G36: 20 | I36: 10 | J36: 15 | K36: 5 | L36: 14 | M36: 19
A37: =INDEX(program_table,ROW()-1) -> New Mexico Homestead | B37: 20 | C37: 5 | D37: 16 | E37: 20 | F37: 20 | G37: 1 | H37: 15 | I37: 15 | K37: 18 | L37: 20 | M37: 20
A38: =INDEX(program_table,ROW()-1) -> Petroglyph Tour | B38: 14 | C38: 15 | D38: 10 | E38: 17 | F38: 20 | G38: 4 | H38: 20 | I38: 15 | J38: 17 | L38: 5 | M38: 20
A39: =INDEX(program_table,ROW()-1) -> Post Civil War Encampment | B39: 19 | C39: 20 | E39: 14 | F39: 7 | G39: 10 | H39: 20 | J39: 14 | K39: 7 | L39: 10 | M39: 8
A40: =INDEX(program_table,ROW()-1) -> Railroading | B40: 8 | C40: 2 | D40: 10 | E40: 20 | F40: 0 | G40: 12 | H40: 2 | I40: 10 | J40: 15 | K40: 0 | L40: 12 | M40: 10
A41: =INDEX(program_table,ROW()-1) -> Rock Climbing & Rappelling | B41: 10 | C41: 5 | D41: 5 | E41: 7 | F41: 4 | G41: 12 | H41: 5 | I41: 5 | J41: 7 | K41: 4 | L41: 12 | M41: 15
A42: =INDEX(program_table,ROW()-1) -> Rocky Mountain Fur Co. | B42: 18 | C42: 17 | D42: 6 | F42: 12 | G42: 13 | H42: 5 | I42: 16 | J42: 3 | K42: 13 | L42: 14 | M42: 18
A43: =INDEX(program_table,ROW()-1) -> Search & Rescue/Wild. Medicine | B43: 15 | C43: 10 | D43: 20 | E43: 15 | F43: 12 | G43: 20 | H43: 10 | I43: 6 | J43: 10 | K43: 5 | M43: 15
A44: =INDEX(program_table,ROW()-1) -> Shooting/Reloading - .30-06 | B44: 15 | C44: 10 | D44: 20 | E44: 15 | F44: 12 | G44: 20 | H44: 10 | I44: 6 | J44: 10 | K44: 5 | M44: 15
A45: =INDEX(program_table,ROW()-1) -> Shotgun Shooting/Reloading - 12 Gauge | B45: 15 | C45: 10 | D45: 20 | E45: 15 | F45: 12 | G45: 20 | H45: 10 | I45: 6 | J45: 10 | K45: 5 | M45: 15
A46: =INDEX(program_table,ROW()-1) -> Spar Pole Climbing | B46: 10 | C46: 0 | D46: 5 | F46: 16 | G46: 9 | H46: 0 | I46: 5 | J46: 0 | K46: 16 | M46: 0
A47: =INDEX(program_table,ROW()-1) -> Tie Making & Crosscut Saws | B47: 11 | C47: 18 | D47: 20 | E47: 15 | G47: 10 | H47: 20 | J47: 15 | K47: 18 | L47: 10 | M47: 20
A48: =INDEX(program_table,ROW()-1) -> Tomahawk Throwing | B48: 11 | C48: 18 | E48: 0 | G48: 10 | H48: 20 | J48: 0 | L48: 10 | M48: 20
A49: =INDEX(program_table,ROW()-1) -> Tooth of Time | B49: 20 | C49: 14 | D49: 16 | E49: 20 | F49: 20 | H49: 15 | I49: 15 | J49: 12 | K49: 18 | L49: 20 | M49: 20
A50: =INDEX(program_table,ROW()-1) -> Trail Peak | B50: 11 | C50: 5 | G50: 10 | H50: 20 | K50: 0 | L50: 10 | M50: 20
A51: =INDEX(program_table,ROW()-1) -> Western Lore/Branding | B51: 15 | C51: 10 | E51: 10 | F51: 8 | G51: 5 | H51: 8 | J51: 14 | K51: 8 | L51: 5 | M51: 10

Sheet Results
A1: Philmont Trek Itinerary Selection
E2: Choice | I2: # X's | J2: Pgm Index | K2: Top Itinerary/Program Cross Reference
A3: Itinerary | B3: Classification | C3: Distance | D3: =IF(meanMedian="Mean","Average",meanMedian) & " Score" -> Median Score | G3: Program | H3: Value | K3: 12-34 | L3: 12-31 | M3: 12-17 | N3: 12-24 | O3: 12-22 | P3: 12-33
A4: 12-34 | B4: Strenuous | C4: 90 | D4: 12567.1 | E4: #1 | G4: Archery - 3 Dimensional | H4: 225 | I4: =COUNTIF(K4:P4,"X") -> 4 | J4: 2 | K4: =IF($G4=0,"",IF(INDEX(itineraryPrograms,numericItinerary(K$3),$J4)="y","X","")) ->  | L4: =IF($G4=0,"",IF(INDEX(itineraryPrograms,numericItinerary(L$3),$J4)="y","X","")) -> X | M4: =IF($G4=0,"",IF(INDEX(itineraryPrograms,numericItinerary(M$3),$J4)="y","X","")) -> X | N4: =IF($G4=0,"",IF(INDEX(itineraryPrograms,numericItinerary(N$3),$J4)="y","X","")) ->  | O4: =IF($G4=0,"",IF(INDEX(itineraryPrograms,numericItinerary(O$3),$J4)="y","X","")) -> X | P4: =IF($G4=0,"",IF(INDEX(itineraryPrograms,numericItinerary(P$3),$J4)="y","X","")) -> X
A5: 12-31 | B5: Super Strenuous | C5: 84 | D5: 12097.8 | E5: #2 | G5: Tomahawk Throwing | H5: 190 | I5: 3 | J5: 47 | K5: =IF($G5=0,"",IF(INDEX(itineraryPrograms,numericItinerary(K$3),$J5)="y","X","")) ->  | L5: =IF($G5=0,"",IF(INDEX(itineraryPrograms,numericItinerary(L$3),$J5)="y","X","")) ->  | M5: =IF($G5=0,"",IF(INDEX(itineraryPrograms,numericItinerary(M$3),$J5)="y","X","")) -> X | N5: =IF($G5=0,"",IF(INDEX(itineraryPrograms,numericItinerary(N$3),$J5)="y","X","")) -> X | O5: =IF($G5=0,"",IF(INDEX(itineraryPrograms,numericItinerary(O$3),$J5)="y","X","")) -> X | P5: =IF($G5=0,"",IF(INDEX(itineraryPrograms,numericItinerary(P$3),$J5)="y","X","")) -> 
A6: 12-17 | B6: Rugged | C6: 65 | D6: 11934.4 | E6: #3 | G6: Atlatl (Dart-throwing) | H6: 188 | I6: 0 | J6: 4 | K6: =IF($G6=0,"",IF(INDEX(itineraryPrograms,numericItinerary(K$3),$J6)="y","X","")) ->  | L6: =IF($G6=0,"",IF(INDEX(itineraryPrograms,numericItinerary(L$3),$J6)="y","X","")) ->  | M6: =IF($G6=0,"",IF(INDEX(itineraryPrograms,numericItinerary(M$3),$J6)="y","X","")) ->  | N6: =IF($G6=0,"",IF(INDEX(itineraryPrograms,numericItinerary(N$3),$J6)="y","X","")) ->  | O6: =IF($G6=0,"",IF(INDEX(itineraryPrograms,numericItinerary(O$3),$J6)="y","X","")) ->  | P6: =IF($G6=0,"",IF(INDEX(itineraryPrograms,numericItinerary(P$3),$J6)="y","X","")) -> 
A7: 12-24 | B7: Strenuous | C7: 70 | D7: 11626.6 | E7: #4 | G7: New Mexico Homestead | H7: 170 | I7: 2 | J7: 36 | K7: =IF($G7=0,"",IF(INDEX(itineraryPrograms,numericItinerary(K$3),$J7)="y","X","")) ->  | L7: =IF($G7=0,"",IF(INDEX(itineraryPrograms,numericItinerary(L$3),$J7)="y","X","")) ->  | M7: =IF($G7=0,"",IF(INDEX(itineraryPrograms,numericItinerary(M$3),$J7)="y","X","")) ->  | N7: =IF($G7=0,"",IF(INDEX(itineraryPrograms,numericItinerary(N$3),$J7)="y","X","")) -> X | O7: =IF($G7=0,"",IF(INDEX(itineraryPrograms,numericItinerary(O$3),$J7)="y","X","")) -> X | P7: =IF($G7=0,"",IF(INDEX(itineraryPrograms,numericItinerary(P$3),$J7)="y","X","")) -> 
A8: 12-22 | B8: Strenuous | C8: 68 | D8: 11513.6 | E8: #5 | G8: Spar Pole Climbing | H8: 157 | I8: 1 | J8: 45 | K8: =IF($G8=0,"",IF(INDEX(itineraryPrograms,numericItinerary(K$3),$J8)="y","X","")) ->  | L8: =IF($G8=0,"",IF(INDEX(itineraryPrograms,numericItinerary(L$3),$J8)="y","X","")) ->  | M8: =IF($G8=0,"",IF(INDEX(itineraryPrograms,numericItinerary(M$3),$J8)="y","X","")) -> X | N8: =IF($G8=0,"",IF(INDEX(itineraryPrograms,numericItinerary(N$3),$J8)="y","X","")) ->  | O8: =IF($G8=0,"",IF(INDEX(itineraryPrograms,numericItinerary(O$3),$J8)="y","X","")) ->  | P8: =IF($G8=0,"",IF(INDEX(itineraryPrograms,numericItinerary(P$3),$J8)="y","X","")) -> 
A9: 12-33 | B9: Super Strenuous | C9: 88 | D9: 11295 | E9: #6 | G9: Petroglyph Tour | H9: 157 | I9: 0 | J9: 37 | K9: =IF($G9=0,"",IF(INDEX(itineraryPrograms,numericItinerary(K$3),$J9)="y","X","")) ->  | L9: =IF($G9=0,"",IF(INDEX(itineraryPrograms,numericItinerary(L$3),$J9)="y","X","")) ->  | M9: =IF($G9=0,"",IF(INDEX(itineraryPrograms,numericItinerary(M$3),$J9)="y","X","")) ->  | N9: =IF($G9=0,"",IF(INDEX(itineraryPrograms,numericItinerary(N$3),$J9)="y","X","")) ->  | O9: =IF($G9=0,"",IF(INDEX(itineraryPrograms,numericItinerary(O$3),$J9)="y","X","")) ->  | P9: =IF($G9=0,"",IF(INDEX(itineraryPrograms,numericItinerary(P$3),$J9)="y","X","")) -> 
A10: 12-27 | B10: Strenuous | C10: 76 | D10: 11263.6 | G10: Archaeology | H10: 152 | I10: 0 | J10: 1 | K10: =IF($G10=0,"",IF(INDEX(itineraryPrograms,numericItinerary(K$3),$J10)="y","X","")) ->  | L10: =IF($G10=0,"",IF(INDEX(itineraryPrograms,numericItinerary(L$3),$J10)="y","X","")) ->  | M10: =IF($G10=0,"",IF(INDEX(itineraryPrograms,numericItinerary(M$3),$J10)="y","X","")) ->  | N10: =IF($G10=0,"",IF(INDEX(itineraryPrograms,numericItinerary(N$3),$J10)="y","X","")) ->  | O10: =IF($G10=0,"",IF(INDEX(itineraryPrograms,numericItinerary(O$3),$J10)="y","X","")) ->  | P10: =IF($G10=0,"",IF(INDEX(itineraryPrograms,numericItinerary(P$3),$J10)="y","X","")) -> 
A11: 12-9 | B11: Challenging | C11: 59 | D11: 11185.8 | G11: Mountaineering | H11: 147 | I11: 4 | J11: 34 | K11: =IF($G11=0,"",IF(INDEX(itineraryPrograms,numericItinerary(K$3),$J11)="y","X","")) ->  | L11: =IF($G11=0,"",IF(INDEX(itineraryPrograms,numericItinerary(L$3),$J11)="y","X","")) -> X | M11: =IF($G11=0,"",IF(INDEX(itineraryPrograms,numericItinerary(M$3),$J11)="y","X","")) -> X | N11: =IF($G11=0,"",IF(INDEX(itineraryPrograms,numericItinerary(N$3),$J11)="y","X","")) ->  | O11: =IF($G11=0,"",IF(INDEX(itineraryPrograms,numericItinerary(O$3),$J11)="y","X","")) -> X | P11: =IF($G11=0,"",IF(INDEX(itineraryPrograms,numericItinerary(P$3),$J11)="y","X","")) -> X
A12: 12-32 | B12: Super Strenuous | C12: 87 | D12: 11176 | G12: Muzzle Loading Rifle | H12: 140 | I12: 2 | J12: 35 | K12: =IF($G12=0,"",IF(INDEX(itineraryPrograms,numericItinerary(K$3),$J12)="y","X","")) ->  | L12: =IF($G12=0,"",IF(INDEX(itineraryPrograms,numericItinerary(L$3),$J12)="y","X","")) -> X | M12: =IF($G12=0,"",IF(INDEX(itineraryPrograms,numericItinerary(M$3),$J12)="y","X","")) ->  | N12: =IF($G12=0,"",IF(INDEX(itineraryPrograms,numericItinerary(N$3),$J12)="y","X","")) -> X | O12: =IF($G12=0,"",IF(INDEX(itineraryPrograms,numericItinerary(O$3),$J12)="y","X","")) ->  | P12: =IF($G12=0,"",IF(INDEX(itineraryPrograms,numericItinerary(P$3),$J12)="y","X","")) -> 
A13: 12-19 | B13: Strenuous | C13: 66 | D13: 11116.6 | G13: Shooting/Reloading - .30-06 | H13: 138 | I13: 4 | J13: 43 | K13: =IF($G13=0,"",IF(INDEX(itineraryPrograms,numericItinerary(K$3),$J13)="y","X","")) ->  | L13: =IF($G13=0,"",IF(INDEX(itineraryPrograms,numericItinerary(L$3),$J13)="y","X","")) -> X | M13: =IF($G13=0,"",IF(INDEX(itineraryPrograms,numericItinerary(M$3),$J13)="y","X","")) -> X | N13: =IF($G13=0,"",IF(INDEX(itineraryPrograms,numericItinerary(N$3),$J13)="y","X","")) ->  | O13: =IF($G13=0,"",IF(INDEX(itineraryPrograms,numericItinerary(O$3),$J13)="y","X","")) -> X | P13: =IF($G13=0,"",IF(INDEX(itineraryPrograms,numericItinerary(P$3),$J13)="y","X","")) -> X
A14: 12-8 | B14: Challenging | C14: 59 | D14: 11099.3 | G14: Rocky Mountain Fur Co. | H14: 138 | J14: 41
A15: 12-7 | B15: Challenging | C15: 59 | D15: 11082.8 | G15: Search & Rescue/Wild. Medicine | H15: 138 | J15: 42
A16: 12-16 | B16: Rugged | C16: 65 | D16: 11020.7 | G16: Mine Tour | H16: 135 | I16: 4 | J16: 31 | K16: =IF($G16=0,"",IF(INDEX(itineraryPrograms,numericItinerary(K$3),$J16)="y","X","")) -> X | L16: =IF($G16=0,"",IF(INDEX(itineraryPrograms,numericItinerary(L$3),$J16)="y","X","")) ->  | M16: =IF($G16=0,"",IF(INDEX(itineraryPrograms,numericItinerary(M$3),$J16)="y","X","")) -> X | N16: =IF($G16=0,"",IF(INDEX(itineraryPrograms,numericItinerary(N$3),$J16)="y","X","")) ->  | O16: =IF($G16=0,"",IF(INDEX(itineraryPrograms,numericItinerary(O$3),$J16)="y","X","")) -> X | P16: =IF($G16=0,"",IF(INDEX(itineraryPrograms,numericItinerary(P$3),$J16)="y","X","")) -> X
A17: 12-30 | B17: Super Strenuous | C17: 84 | D17: 11018.8 | E17: =meanMedian & " Score Selected" -> Median Score Selected | G17: Jicarilla Apache Life | H17: 134 | I17: 3 | J17: 25 | K17: =IF($G17=0,"",IF(INDEX(itineraryPrograms,numericItinerary(K$3),$J17)="y","X","")) ->  | L17: =IF($G17=0,"",IF(INDEX(itineraryPrograms,numericItinerary(L$3),$J17)="y","X","")) ->  | M17: =IF($G17=0,"",IF(INDEX(itineraryPrograms,numericItinerary(M$3),$J17)="y","X","")) -> X | N17: =IF($G17=0,"",IF(INDEX(itineraryPrograms,numericItinerary(N$3),$J17)="y","X","")) -> X | O17: =IF($G17=0,"",IF(INDEX(itineraryPrograms,numericItinerary(O$3),$J17)="y","X","")) -> X | P17: =IF($G17=0,"",IF(INDEX(itineraryPrograms,numericItinerary(P$3),$J17)="y","X","")) -> 
A18: 12-5 | B18: Challenging | C18: 56 | D18: 10923.3 | G18: Post Civil War Encampment | H18: 129 | I18: 1 | J18: 38 | K18: =IF($G18=0,"",IF(INDEX(itineraryPrograms,numericItinerary(K$3),$J18)="y","X","")) ->  | L18: =IF($G18=0,"",IF(INDEX(itineraryPrograms,numericItinerary(L$3),$J18)="y","X","")) ->  | M18: =IF($G18=0,"",IF(INDEX(itineraryPrograms,numericItinerary(M$3),$J18)="y","X","")) ->  | N18: =IF($G18=0,"",IF(INDEX(itineraryPrograms,numericItinerary(N$3),$J18)="y","X","")) -> X | O18: =IF($G18=0,"",IF(INDEX(itineraryPrograms,numericItinerary(O$3),$J18)="y","X","")) ->  | P18: =IF($G18=0,"",IF(INDEX(itineraryPrograms,numericItinerary(P$3),$J18)="y","X","")) -> 
A19: 12-29 | B19: Super Strenuous | C19: 83 | D19: 10917.5 | G19: Mexican Dinner | H19: 126 | I19: 1 | J19: 30 | K19: =IF($G19=0,"",IF(INDEX(itineraryPrograms,numericItinerary(K$3),$J19)="y","X","")) ->  | L19: =IF($G19=0,"",IF(INDEX(itineraryPrograms,numericItinerary(L$3),$J19)="y","X","")) ->  | M19: =IF($G19=0,"",IF(INDEX(itineraryPrograms,numericItinerary(M$3),$J19)="y","X","")) ->  | N19: =IF($G19=0,"",IF(INDEX(itineraryPrograms,numericItinerary(N$3),$J19)="y","X","")) ->  | O19: =IF($G19=0,"",IF(INDEX(itineraryPrograms,numericItinerary(O$3),$J19)="y","X","")) -> X | P19: =IF($G19=0,"",IF(INDEX(itineraryPrograms,numericItinerary(P$3),$J19)="y","X","")) -> 
A20: 12-26 | B20: Strenuous | C20: 75 | D20: 10909.3 | G20: Mountain Biking | H20: 121 | I20: 0 | J20: 33 | K20: =IF($G20=0,"",IF(INDEX(itineraryPrograms,numericItinerary(K$3),$J20)="y","X","")) ->  | L20: =IF($G20=0,"",IF(INDEX(itineraryPrograms,numericItinerary(L$3),$J20)="y","X","")) ->  | M20: =IF($G20=0,"",IF(INDEX(itineraryPrograms,numericItinerary(M$3),$J20)="y","X","")) ->  | N20: =IF($G20=0,"",IF(INDEX(itineraryPrograms,numericItinerary(N$3),$J20)="y","X","")) ->  | O20: =IF($G20=0,"",IF(INDEX(itineraryPrograms,numericItinerary(O$3),$J20)="y","X","")) ->  | P20: =IF($G20=0,"",IF(INDEX(itineraryPrograms,numericItinerary(P$3),$J20)="y","X","")) -> 
A21: 12-6 | B21: Challenging | C21: 56 | D21: 10860 | G21: Lodge/Cabin Tours | H21: 117 | I21: 4 | J21: 28 | K21: =IF($G21=0,"",IF(INDEX(itineraryPrograms,numericItinerary(K$3),$J21)="y","X","")) -> X | L21: =IF($G21=0,"",IF(INDEX(itineraryPrograms,numericItinerary(L$3),$J21)="y","X","")) ->  | M21: =IF($G21=0,"",IF(INDEX(itineraryPrograms,numericItinerary(M$3),$J21)="y","X","")) -> X | N21: =IF($G21=0,"",IF(INDEX(itineraryPrograms,numericItinerary(N$3),$J21)="y","X","")) ->  | O21: =IF($G21=0,"",IF(INDEX(itineraryPrograms,numericItinerary(O$3),$J21)="y","X","")) -> X | P21: =IF($G21=0,"",IF(INDEX(itineraryPrograms,numericItinerary(P$3),$J21)="y","X","")) -> X
A22: 12-14 | B22: Rugged | C22: 63 | D22: 10858.9 | G22: Bouldering | H22: 111 | I22: 0 | J22: 7 | K22: =IF($G22=0,"",IF(INDEX(itineraryPrograms,numericItinerary(K$3),$J22)="y","X","")) ->  | L22: =IF($G22=0,"",IF(INDEX(itineraryPrograms,numericItinerary(L$3),$J22)="y","X","")) ->  | M22: =IF($G22=0,"",IF(INDEX(itineraryPrograms,numericItinerary(M$3),$J22)="y","X","")) ->  | N22: =IF($G22=0,"",IF(INDEX(itineraryPrograms,numericItinerary(N$3),$J22)="y","X","")) ->  | O22: =IF($G22=0,"",IF(INDEX(itineraryPrograms,numericItinerary(O$3),$J22)="y","X","")) ->  | P22: =IF($G22=0,"",IF(INDEX(itineraryPrograms,numericItinerary(P$3),$J22)="y","X","")) -> 
A23: 12-28 | B23: Super Strenuous | C23: 80 | D23: 10844 | G23: Blacksmithing | H23: 111 | I23: 5 | J23: 6 | K23: =IF($G23=0,"",IF(INDEX(itineraryPrograms,numericItinerary(K$3),$J23)="y","X","")) -> X | L23: =IF($G23=0,"",IF(INDEX(itineraryPrograms,numericItinerary(L$3),$J23)="y","X","")) ->  | M23: =IF($G23=0,"",IF(INDEX(itineraryPrograms,numericItinerary(M$3),$J23)="y","X","")) -> X | N23: =IF($G23=0,"",IF(INDEX(itineraryPrograms,numericItinerary(N$3),$J23)="y","X","")) -> X | O23: =IF($G23=0,"",IF(INDEX(itineraryPrograms,numericItinerary(O$3),$J23)="y","X","")) -> X | P23: =IF($G23=0,"",IF(INDEX(itineraryPrograms,numericItinerary(P$3),$J23)="y","X","")) -> X
A24: 12-4 | B24: Challenging | C24: 55 | D24: 10831 | G24: Inspiration Point Hike | H24: 108 | I24: 2 | J24: 24 | K24: =IF($G24=0,"",IF(INDEX(itineraryPrograms,numericItinerary(K$3),$J24)="y","X","")) ->  | L24: =IF($G24=0,"",IF(INDEX(itineraryPrograms,numericItinerary(L$3),$J24)="y","X","")) ->  | M24: =IF($G24=0,"",IF(INDEX(itineraryPrograms,numericItinerary(M$3),$J24)="y","X","")) -> X | N24: =IF($G24=0,"",IF(INDEX(itineraryPrograms,numericItinerary(N$3),$J24)="y","X","")) -> X | O24: =IF($G24=0,"",IF(INDEX(itineraryPrograms,numericItinerary(O$3),$J24)="y","X","")) ->  | P24: =IF($G24=0,"",IF(INDEX(itineraryPrograms,numericItinerary(P$3),$J24)="y","X","")) -> 
A25: 12-15 | B25: Rugged | C25: 64 | D25: 10830.4 | G25: Baldy Mountain | H25: 108 | I25: 3 | J25: 5 | K25: =IF($G25=0,"",IF(INDEX(itineraryPrograms,numericItinerary(K$3),$J25)="y","X","")) -> X | L25: =IF($G25=0,"",IF(INDEX(itineraryPrograms,numericItinerary(L$3),$J25)="y","X","")) -> X | M25: =IF($G25=0,"",IF(INDEX(itineraryPrograms,numericItinerary(M$3),$J25)="y","X","")) ->  | N25: =IF($G25=0,"",IF(INDEX(itineraryPrograms,numericItinerary(N$3),$J25)="y","X","")) ->  | O25: =IF($G25=0,"",IF(INDEX(itineraryPrograms,numericItinerary(O$3),$J25)="y","X","")) ->  | P25: =IF($G25=0,"",IF(INDEX(itineraryPrograms,numericItinerary(P$3),$J25)="y","X","")) -> X
A26: 12-25 | B26: Strenuous | C26: 75 | D26: 10715.3 | G26: Historic Chase Ranch | H26: 104 | I26: 0 | J26: 20 | K26: =IF($G26=0,"",IF(INDEX(itineraryPrograms,numericItinerary(K$3),$J26)="y","X","")) ->  | L26: =IF($G26=0,"",IF(INDEX(itineraryPrograms,numericItinerary(L$3),$J26)="y","X","")) ->  | M26: =IF($G26=0,"",IF(INDEX(itineraryPrograms,numericItinerary(M$3),$J26)="y","X","")) ->  | N26: =IF($G26=0,"",IF(INDEX(itineraryPrograms,numericItinerary(N$3),$J26)="y","X","")) ->  | O26: =IF($G26=0,"",IF(INDEX(itineraryPrograms,numericItinerary(O$3),$J26)="y","X","")) ->  | P26: =IF($G26=0,"",IF(INDEX(itineraryPrograms,numericItinerary(P$3),$J26)="y","X","")) -> 
A27: 12-13 | B27: Rugged | C27: 63 | D27: 10681.4 | G27: Low Impact Camping | H27: 103 | I27: 2 | J27: 29 | K27: =IF($G27=0,"",IF(INDEX(itineraryPrograms,numericItinerary(K$3),$J27)="y","X","")) -> X | L27: =IF($G27=0,"",IF(INDEX(itineraryPrograms,numericItinerary(L$3),$J27)="y","X","")) ->  | M27: =IF($G27=0,"",IF(INDEX(itineraryPrograms,numericItinerary(M$3),$J27)="y","X","")) ->  | N27: =IF($G27=0,"",IF(INDEX(itineraryPrograms,numericItinerary(N$3),$J27)="y","X","")) ->  | O27: =IF($G27=0,"",IF(INDEX(itineraryPrograms,numericItinerary(O$3),$J27)="y","X","")) ->  | P27: =IF($G27=0,"",IF(INDEX(itineraryPrograms,numericItinerary(P$3),$J27)="y","X","")) -> X
A28: 12-3 | B28: Challenging | C28: 54 | D28: 10635 | G28: Railroading | H28: 101 | I28: 0 | J28: 39 | K28: =IF($G28=0,"",IF(INDEX(itineraryPrograms,numericItinerary(K$3),$J28)="y","X","")) ->  | L28: =IF($G28=0,"",IF(INDEX(itineraryPrograms,numericItinerary(L$3),$J28)="y","X","")) ->  | M28: =IF($G28=0,"",IF(INDEX(itineraryPrograms,numericItinerary(M$3),$J28)="y","X","")) ->  | N28: =IF($G28=0,"",IF(INDEX(itineraryPrograms,numericItinerary(N$3),$J28)="y","X","")) ->  | O28: =IF($G28=0,"",IF(INDEX(itineraryPrograms,numericItinerary(O$3),$J28)="y","X","")) ->  | P28: =IF($G28=0,"",IF(INDEX(itineraryPrograms,numericItinerary(P$3),$J28)="y","X","")) -> 
A29: 12-23 | B29: Strenuous | C29: 69 | D29: 10537.3 | G29: Laser Shot Shooting Range | H29: 100 | I29: 2 | J29: 27 | K29: =IF($G29=0,"",IF(INDEX(itineraryPrograms,numericItinerary(K$3),$J29)="y","X","")) ->  | L29: =IF($G29=0,"",IF(INDEX(itineraryPrograms,numericItinerary(L$3),$J29)="y","X","")) -> X | M29: =IF($G29=0,"",IF(INDEX(itineraryPrograms,numericItinerary(M$3),$J29)="y","X","")) ->  | N29: =IF($G29=0,"",IF(INDEX(itineraryPrograms,numericItinerary(N$3),$J29)="y","X","")) ->  | O29: =IF($G29=0,"",IF(INDEX(itineraryPrograms,numericItinerary(O$3),$J29)="y","X","")) ->  | P29: =IF($G29=0,"",IF(INDEX(itineraryPrograms,numericItinerary(P$3),$J29)="y","X","")) -> X
A30: 12-11 | B30: Rugged | C30: 60 | D30: 10454.9 | G30: Kit Carson/Rayado Rancho | H30: 97 | I30: 0 | J30: 26 | K30: =IF($G30=0,"",IF(INDEX(itineraryPrograms,numericItinerary(K$3),$J30)="y","X","")) ->  | L30: =IF($G30=0,"",IF(INDEX(itineraryPrograms,numericItinerary(L$3),$J30)="y","X","")) ->  | M30: =IF($G30=0,"",IF(INDEX(itineraryPrograms,numericItinerary(M$3),$J30)="y","X","")) ->  | N30: =IF($G30=0,"",IF(INDEX(itineraryPrograms,numericItinerary(N$3),$J30)="y","X","")) ->  | O30: =IF($G30=0,"",IF(INDEX(itineraryPrograms,numericItinerary(O$3),$J30)="y","X","")) ->  | P30: =IF($G30=0,"",IF(INDEX(itineraryPrograms,numericItinerary(P$3),$J30)="y","X","")) -> 
A31: 12-12 | B31: Rugged | C31: 60 | D31: 10441.7 | G31: Gold Mining & Panning | H31: 97 | I31: 5 | J31: 18 | K31: =IF($G31=0,"",IF(INDEX(itineraryPrograms,numericItinerary(K$3),$J31)="y","X","")) ->  | L31: =IF($G31=0,"",IF(INDEX(itineraryPrograms,numericItinerary(L$3),$J31)="y","X","")) -> X | M31: =IF($G31=0,"",IF(INDEX(itineraryPrograms,numericItinerary(M$3),$J31)="y","X","")) -> X | N31: =IF($G31=0,"",IF(INDEX(itineraryPrograms,numericItinerary(N$3),$J31)="y","X","")) -> X | O31: =IF($G31=0,"",IF(INDEX(itineraryPrograms,numericItinerary(O$3),$J31)="y","X","")) -> X | P31: =IF($G31=0,"",IF(INDEX(itineraryPrograms,numericItinerary(P$3),$J31)="y","X","")) -> X
A32: 12-2 | B32: Challenging | C32: 52 | D32: 10420.5 | G32: Rock Climbing & Rappelling | H32: 91 | I32: 5 | J32: 40 | K32: =IF($G32=0,"",IF(INDEX(itineraryPrograms,numericItinerary(K$3),$J32)="y","X","")) -> X | L32: =IF($G32=0,"",IF(INDEX(itineraryPrograms,numericItinerary(L$3),$J32)="y","X","")) ->  | M32: =IF($G32=0,"",IF(INDEX(itineraryPrograms,numericItinerary(M$3),$J32)="y","X","")) -> X | N32: =IF($G32=0,"",IF(INDEX(itineraryPrograms,numericItinerary(N$3),$J32)="y","X","")) -> X | O32: =IF($G32=0,"",IF(INDEX(itineraryPrograms,numericItinerary(O$3),$J32)="y","X","")) -> X | P32: =IF($G32=0,"",IF(INDEX(itineraryPrograms,numericItinerary(P$3),$J32)="y","X","")) -> X
A33: 12-21 | B33: Strenuous | C33: 68 | D33: 10358.1 | G33: Tie Making & Crosscut Saws | H33: 89 | I33: 4 | J33: 46 | K33: =IF($G33=0,"",IF(INDEX(itineraryPrograms,numericItinerary(K$3),$J33)="y","X","")) -> X | L33: =IF($G33=0,"",IF(INDEX(itineraryPrograms,numericItinerary(L$3),$J33)="y","X","")) ->  | M33: =IF($G33=0,"",IF(INDEX(itineraryPrograms,numericItinerary(M$3),$J33)="y","X","")) -> X | N33: =IF($G33=0,"",IF(INDEX(itineraryPrograms,numericItinerary(N$3),$J33)="y","X","")) -> X | O33: =IF($G33=0,"",IF(INDEX(itineraryPrograms,numericItinerary(O$3),$J33)="y","X","")) ->  | P33: =IF($G33=0,"",IF(INDEX(itineraryPrograms,numericItinerary(P$3),$J33)="y","X","")) -> X
A34: 12-10 | B34: Rugged | C34: 60 | D34: 10281.4 | G34: Campfire (evening) | H34: 87 | I34: 6 | J34: 9 | K34: =IF($G34=0,"",IF(INDEX(itineraryPrograms,numericItinerary(K$3),$J34)="y","X","")) -> X | L34: =IF($G34=0,"",IF(INDEX(itineraryPrograms,numericItinerary(L$3),$J34)="y","X","")) -> X | M34: =IF($G34=0,"",IF(INDEX(itineraryPrograms,numericItinerary(M$3),$J34)="y","X","")) -> X | N34: =IF($G34=0,"",IF(INDEX(itineraryPrograms,numericItinerary(N$3),$J34)="y","X","")) -> X | O34: =IF($G34=0,"",IF(INDEX(itineraryPrograms,numericItinerary(O$3),$J34)="y","X","")) -> X | P34: =IF($G34=0,"",IF(INDEX(itineraryPrograms,numericItinerary(P$3),$J34)="y","X","")) -> X
A35: 12-20 | B35: Strenuous | C35: 66 | D35: 10072.6 | G35: Horse Rides | H35: 86 | I35: 6 | J35: 22 | K35: =IF($G35=0,"",IF(INDEX(itineraryPrograms,numericItinerary(K$3),$J35)="y","X","")) -> X | L35: =IF($G35=0,"",IF(INDEX(itineraryPrograms,numericItinerary(L$3),$J35)="y","X","")) -> X | M35: =IF($G35=0,"",IF(INDEX(itineraryPrograms,numericItinerary(M$3),$J35)="y","X","")) -> X | N35: =IF($G35=0,"",IF(INDEX(itineraryPrograms,numericItinerary(N$3),$J35)="y","X","")) -> X | O35: =IF($G35=0,"",IF(INDEX(itineraryPrograms,numericItinerary(O$3),$J35)="y","X","")) -> X | P35: =IF($G35=0,"",IF(INDEX(itineraryPrograms,numericItinerary(P$3),$J35)="y","X","")) -> X
A36: 12-18 | B36: Strenuous | C36: 66 | D36: 10026.8 | G36: Fly Tying | H36: 84 | J36: 16 | K36: =IF($G36=0,"",IF(INDEX(itineraryPrograms,numericItinerary(K$3),$J36)="y","X","")) ->  | L36: =IF($G36=0,"",IF(INDEX(itineraryPrograms,numericItinerary(L$3),$J36)="y","X","")) ->  | M36: =IF($G36=0,"",IF(INDEX(itineraryPrograms,numericItinerary(M$3),$J36)="y","X","")) -> X | N36: =IF($G36=0,"",IF(INDEX(itineraryPrograms,numericItinerary(N$3),$J36)="y","X","")) ->  | O36: =IF($G36=0,"",IF(INDEX(itineraryPrograms,numericItinerary(O$3),$J36)="y","X","")) -> X | P36: =IF($G36=0,"",IF(INDEX(itineraryPrograms,numericItinerary(P$3),$J36)="y","X","")) -> 
A37: 12-1 | B37: Challenging | C37: 50 | D37: 10012 | G37: Burro Packing | H37: 84 | J37: 8 | K37: =IF($G37=0,"",IF(INDEX(itineraryPrograms,numericItinerary(K$3),$J37)="y","X","")) ->  | L37: =IF($G37=0,"",IF(INDEX(itineraryPrograms,numericItinerary(L$3),$J37)="y","X","")) ->  | M37: =IF($G37=0,"",IF(INDEX(itineraryPrograms,numericItinerary(M$3),$J37)="y","X","")) ->  | N37: =IF($G37=0,"",IF(INDEX(itineraryPrograms,numericItinerary(N$3),$J37)="y","X","")) ->  | O37: =IF($G37=0,"",IF(INDEX(itineraryPrograms,numericItinerary(O$3),$J37)="y","X","")) ->  | P37: =IF($G37=0,"",IF(INDEX(itineraryPrograms,numericItinerary(P$3),$J37)="y","X","")) -> 
A38: PREFERENCES: | G38: Fishing | H38: 82 | J38: 15 | K38: =IF($G38=0,"",IF(INDEX(itineraryPrograms,numericItinerary(K$3),$J38)="y","X","")) ->  | L38: =IF($G38=0,"",IF(INDEX(itineraryPrograms,numericItinerary(L$3),$J38)="y","X","")) ->  | M38: =IF($G38=0,"",IF(INDEX(itineraryPrograms,numericItinerary(M$3),$J38)="y","X","")) -> X | N38: =IF($G38=0,"",IF(INDEX(itineraryPrograms,numericItinerary(N$3),$J38)="y","X","")) ->  | O38: =IF($G38=0,"",IF(INDEX(itineraryPrograms,numericItinerary(O$3),$J38)="y","X","")) -> X | P38: =IF($G38=0,"",IF(INDEX(itineraryPrograms,numericItinerary(P$3),$J38)="y","X","")) -> 
A39: Area Important? | B39: =UPPER(areaImportant) -> N | G39: Homesteading | H39: 76 | J39: 21 | K39: =IF($G39=0,"",IF(INDEX(itineraryPrograms,numericItinerary(K$3),$J39)="y","X","")) -> X | L39: =IF($G39=0,"",IF(INDEX(itineraryPrograms,numericItinerary(L$3),$J39)="y","X","")) ->  | M39: =IF($G39=0,"",IF(INDEX(itineraryPrograms,numericItinerary(M$3),$J39)="y","X","")) -> X | N39: =IF($G39=0,"",IF(INDEX(itineraryPrograms,numericItinerary(N$3),$J39)="y","X","")) -> X | O39: =IF($G39=0,"",IF(INDEX(itineraryPrograms,numericItinerary(O$3),$J39)="y","X","")) -> X | P39: =IF($G39=0,"",IF(INDEX(itineraryPrograms,numericItinerary(P$3),$J39)="y","X","")) -> X
A40: South: | B40: =IF(UPPER(areaImportant)="Y",Preferences!B7,"") ->  | G40: Astronomy | H40: 76 | J40: 3 | K40: =IF($G40=0,"",IF(INDEX(itineraryPrograms,numericItinerary(K$3),$J40)="y","X","")) ->  | L40: =IF($G40=0,"",IF(INDEX(itineraryPrograms,numericItinerary(L$3),$J40)="y","X","")) ->  | M40: =IF($G40=0,"",IF(INDEX(itineraryPrograms,numericItinerary(M$3),$J40)="y","X","")) ->  | N40: =IF($G40=0,"",IF(INDEX(itineraryPrograms,numericItinerary(N$3),$J40)="y","X","")) ->  | O40: =IF($G40=0,"",IF(INDEX(itineraryPrograms,numericItinerary(O$3),$J40)="y","X","")) ->  | P40: =IF($G40=0,"",IF(INDEX(itineraryPrograms,numericItinerary(P$3),$J40)="y","X","")) -> 
A41: Central: | B41: =IF(UPPER(areaImportant)="Y",Preferences!B8,"") ->  | G41: Demonstration Forest | H41: 76 | J41: 14 | K41: =IF($G41=0,"",IF(INDEX(itineraryPrograms,numericItinerary(K$3),$J41)="y","X","")) -> X | L41: =IF($G41=0,"",IF(INDEX(itineraryPrograms,numericItinerary(L$3),$J41)="y","X","")) ->  | M41: =IF($G41=0,"",IF(INDEX(itineraryPrograms,numericItinerary(M$3),$J41)="y","X","")) -> X | N41: =IF($G41=0,"",IF(INDEX(itineraryPrograms,numericItinerary(N$3),$J41)="y","X","")) -> X | O41: =IF($G41=0,"",IF(INDEX(itineraryPrograms,numericItinerary(O$3),$J41)="y","X","")) -> X | P41: =IF($G41=0,"",IF(INDEX(itineraryPrograms,numericItinerary(P$3),$J41)="y","X","")) -> X
A42: North: | B42: =IF(UPPER(areaImportant)="Y",Preferences!B9,"") ->  | G42: Tooth of Time | H42: 76 | J42: 48
A43: Valle Vidal: | B43: =IF(UPPER(areaImportant)="Y",Preferences!B10,"") ->  | G43: Cowboy Action Shooting | H43: 74 | J43: 13
A44: Capability: | B44: =skillLevel -> 3 | G44: Chuckwagon Dinner | H44: 73 | J44: 12 | K44: =IF($G44=0,"",IF(INDEX(itineraryPrograms,numericItinerary(K$3),$J44)="y","X","")) -> X | L44: =IF($G44=0,"",IF(INDEX(itineraryPrograms,numericItinerary(L$3),$J44)="y","X","")) -> X | M44: =IF($G44=0,"",IF(INDEX(itineraryPrograms,numericItinerary(M$3),$J44)="y","X","")) -> X | N44: =IF($G44=0,"",IF(INDEX(itineraryPrograms,numericItinerary(N$3),$J44)="y","X","")) -> X | O44: =IF($G44=0,"",IF(INDEX(itineraryPrograms,numericItinerary(O$3),$J44)="y","X","")) -> X | P44: =IF($G44=0,"",IF(INDEX(itineraryPrograms,numericItinerary(P$3),$J44)="y","X","")) -> 
A45: Hike Out? | B45: =UPPER(hikeOut) -> N | G45: Challenge Events | H45: 73 | J45: 11 | K45: =IF($G45=0,"",IF(INDEX(itineraryPrograms,numericItinerary(K$3),$J45)="y","X","")) -> X | L45: =IF($G45=0,"",IF(INDEX(itineraryPrograms,numericItinerary(L$3),$J45)="y","X","")) -> X | M45: =IF($G45=0,"",IF(INDEX(itineraryPrograms,numericItinerary(M$3),$J45)="y","X","")) -> X | N45: =IF($G45=0,"",IF(INDEX(itineraryPrograms,numericItinerary(N$3),$J45)="y","X","")) -> X | O45: =IF($G45=0,"",IF(INDEX(itineraryPrograms,numericItinerary(O$3),$J45)="y","X","")) -> X | P45: =IF($G45=0,"",IF(INDEX(itineraryPrograms,numericItinerary(P$3),$J45)="y","X","")) -> X
A46: Hike In/Tooth? | B46: =UPPER(hikeIn) -> N | G46: Fur Trapper Rendezvous | H46: 71 | J46: 17 | K46: =IF($G46=0,"",IF(INDEX(itineraryPrograms,numericItinerary(K$3),$J46)="y","X","")) ->  | L46: =IF($G46=0,"",IF(INDEX(itineraryPrograms,numericItinerary(L$3),$J46)="y","X","")) ->  | M46: =IF($G46=0,"",IF(INDEX(itineraryPrograms,numericItinerary(M$3),$J46)="y","X","")) ->  | N46: =IF($G46=0,"",IF(INDEX(itineraryPrograms,numericItinerary(N$3),$J46)="y","X","")) ->  | O46: =IF($G46=0,"",IF(INDEX(itineraryPrograms,numericItinerary(O$3),$J46)="y","X","")) ->  | P46: =IF($G46=0,"",IF(INDEX(itineraryPrograms,numericItinerary(P$3),$J46)="y","X","")) -> X
A47: Max Altitude? | B47: =UPPER(altitudeMax) -> N | G47: Hunter Safety | H47: 69 | J47: 23 | K47: =IF($G47=0,"",IF(INDEX(itineraryPrograms,numericItinerary(K$3),$J47)="y","X","")) ->  | L47: =IF($G47=0,"",IF(INDEX(itineraryPrograms,numericItinerary(L$3),$J47)="y","X","")) -> X | M47: =IF($G47=0,"",IF(INDEX(itineraryPrograms,numericItinerary(M$3),$J47)="y","X","")) ->  | N47: =IF($G47=0,"",IF(INDEX(itineraryPrograms,numericItinerary(N$3),$J47)="y","X","")) ->  | O47: =IF($G47=0,"",IF(INDEX(itineraryPrograms,numericItinerary(O$3),$J47)="y","X","")) ->  | P47: =IF($G47=0,"",IF(INDEX(itineraryPrograms,numericItinerary(P$3),$J47)="y","X","")) -> 
A48: Total elevation? | B48: =UPPER(altitudeChange) -> N | G48: High Ropes & Climbing Tower | H48: 62 | J48: 19 | K48: =IF($G48=0,"",IF(INDEX(itineraryPrograms,numericItinerary(K$3),$J48)="y","X","")) ->  | L48: =IF($G48=0,"",IF(INDEX(itineraryPrograms,numericItinerary(L$3),$J48)="y","X","")) ->  | M48: =IF($G48=0,"",IF(INDEX(itineraryPrograms,numericItinerary(M$3),$J48)="y","X","")) ->  | N48: =IF($G48=0,"",IF(INDEX(itineraryPrograms,numericItinerary(N$3),$J48)="y","X","")) ->  | O48: =IF($G48=0,"",IF(INDEX(itineraryPrograms,numericItinerary(O$3),$J48)="y","X","")) ->  | P48: =IF($G48=0,"",IF(INDEX(itineraryPrograms,numericItinerary(P$3),$J48)="y","X","")) -> 
A49: Daily change? | B49: =UPPER(altitudeDaily) -> Y | G49: Cantina | H49: 61 | J49: 10 | K49: =IF($G49=0,"",IF(INDEX(itineraryPrograms,numericItinerary(K$3),$J49)="y","X","")) ->  | L49: =IF($G49=0,"",IF(INDEX(itineraryPrograms,numericItinerary(L$3),$J49)="y","X","")) ->  | M49: =IF($G49=0,"",IF(INDEX(itineraryPrograms,numericItinerary(M$3),$J49)="y","X","")) ->  | N49: =IF($G49=0,"",IF(INDEX(itineraryPrograms,numericItinerary(N$3),$J49)="y","X","")) -> X | O49: =IF($G49=0,"",IF(INDEX(itineraryPrograms,numericItinerary(O$3),$J49)="y","X","")) -> X | P49: =IF($G49=0,"",IF(INDEX(itineraryPrograms,numericItinerary(P$3),$J49)="y","X","")) -> 
A50: Programs? | B50: =UPPER(programsImportant) -> Y | G50: Shotgun Shooting/Reloading - 12 Gauge | H50: 61 | I50: =COUNTIF(K50:P50,"X") -> 1 | J50: 44 | K50: =IF($G50=0,"",IF(INDEX(itineraryPrograms,numericItinerary(K$3),$J50)="y","X","")) -> X | L50: =IF($G50=0,"",IF(INDEX(itineraryPrograms,numericItinerary(L$3),$J50)="y","X","")) ->  | M50: =IF($G50=0,"",IF(INDEX(itineraryPrograms,numericItinerary(M$3),$J50)="y","X","")) ->  | N50: =IF($G50=0,"",IF(INDEX(itineraryPrograms,numericItinerary(N$3),$J50)="y","X","")) ->  | O50: =IF($G50=0,"",IF(INDEX(itineraryPrograms,numericItinerary(O$3),$J50)="y","X","")) ->  | P50: =IF($G50=0,"",IF(INDEX(itineraryPrograms,numericItinerary(P$3),$J50)="y","X","")) -> 
G51: Mount Phillips | H51: 61 | I51: =COUNTIF(K51:P51,"X") -> 3 | J51: 32 | K51: =IF($G51=0,"",IF(INDEX(itineraryPrograms,numericItinerary(K$3),$J51)="y","X","")) ->  | L51: =IF($G51=0,"",IF(INDEX(itineraryPrograms,numericItinerary(L$3),$J51)="y","X","")) ->  | M51: =IF($G51=0,"",IF(INDEX(itineraryPrograms,numericItinerary(M$3),$J51)="y","X","")) -> X | N51: =IF($G51=0,"",IF(INDEX(itineraryPrograms,numericItinerary(N$3),$J51)="y","X","")) -> X | O51: =IF($G51=0,"",IF(INDEX(itineraryPrograms,numericItinerary(O$3),$J51)="y","X","")) -> X | P51: =IF($G51=0,"",IF(INDEX(itineraryPrograms,numericItinerary(P$3),$J51)="y","X","")) -> 
G52: Trail Peak | H52: 93 | J52: 49 | K52: =COUNTIF(K3:K50,"X") -> 14 | L52: 12 | M52: 21 | N52: 17 | O52: 21 | P52: 18
D53: =MIN(rankedScore) -> 10012 | G53: Western Lore/Branding | H53: 0 | J53: 50 | K53: =K3 -> 12-34 | L53: 12-31 | M53: 12-17 | N53: 12-24 | O53: 12-22 | P53: 12-33
D54: =MAX(rankedScore) -> 12567.1 | H54: =MIN(H4:H51) -> 61 | I54: Min
H55: =MAX(H4:H51) -> 225 | I55: Max

Sheet Itinerary Details
A1: Itinerary Information
A2: Itinerary Number: | C2: 12-1
A3: Expedition Number: | C3: 608-A
A5: Classification: | C5: =VLOOKUP(INDEX(classification,numericItinerary(itineraryNumber)),difficultyTable,2) -> Challenging | E5: Staffed Camps: | G5: =getNcamps("Staff",itineraryNumber) -> 5 | J5: Area(s): | K5: =getCountry(numericItinerary(itineraryNumber)) -> South, Central | N5: Starting: | O5: =AA28 -> Zastrow Trailhead
A6: Distance: | C6: =INDEX(distance,numericItinerary(itineraryNumber)) -> 50 | E6: Trail Camps: | G6: =getNcamps("Trail",itineraryNumber) -> 5 | J6: Map(s): | K6: =getMaps(numericItinerary(itineraryNumber)) -> South | N6: Ending: | O6: =AB28 -> Hike In
A7: Initial/Max Days Food: | C7: =getFoodDays(itineraryNumber) -> 3/3 | E7: Layovers: | G7: =getNcamps("Layover",itineraryNumber) -> 0
A8: Return via Tooth: | C8: =IF(INDEX(viaTooth,numericItinerary(itineraryNumber))="y","Yes","No") -> No | E8: Dry Camps | G8: =getNcamps("Dry",itineraryNumber) -> 2 | J8: Peaks: | K8: =getPeakS(numericItinerary(itineraryNumber)) -> Mt. Phillips, Trail Peak, Others
A9: Min/Max Altitude: | C9: =getAltitude("Min",itineraryNumber) & "/" & getAltitude("Max",itineraryNumber) -> 7,519/10,509 | E9: Showers | G9: =COUNTIF(nShowers,"y") -> 2
A10: Total Altitude Change: | C10: =getAltitude("Chg",itineraryNumber) -> 2,990 | D10: Elevation information shown here is based on beginning/ending campsite altitudes, not any peaks or side hikes.
A11: Daily Altitude Change: | C11: =getAltitude("Avg",itineraryNumber) -> 576
A12: Description: | B12: =INDEX(descriptions,numericItinerary(itineraryNumber)) -> This peaks filled trek will give you and your crew the opportunity to conquer 5 different peaks in one journey! Start this South Country traverse with a night at scenic Toothache Springs to train with your Ranger. Head to Urraca where you will participate in challenge events that will help your crew work together for the duration of your trek. Get an early start the next morning to enjoy the sunrise at Inspiration Point, then make your way to the High Ropes Course & Climbing Tower at Rocky Mountain Scout Camp for some high COPE program. You will then make your way to Stockade Ridge Camp to prepare for your first two summits. You’ll top the Tooth of Time and Shaefers Peak on the way to Miners Park Camp. The next morning take the beautiful hike up the North Fork Urraca Creek to Black Mountain's Post Civil War encampment. Work in the forge and shoot muzzle loading rifles while you are there. Visit the cowboys at Beaubien for a little branding and enjoy the Chuckwagon Dinner and Cowboy Campfire to top off the day. The next day you are waking up for horse rides and a quick hike for resupply at Phillips Junction and resting up at Porcupine for the night. The next day, make your way down to visit the homesteaders at Crooked Creek. Help them tend the chickens, goats, and cows, then check out their rustic cabin, then make your way to your next peak: Big Red. You’ll camp at Divide for the night to prepare to knock out two more peaks the next day. Enjoy the sweeping views from Comanche Peak and Mt. Phillips and then stay the night with the Rocky Mountain Fur Co. at Clear Creek. Participate in a friendly tomahawk throwing competition while you are there. Your next day will take you through part of the historic CS Ranch before hiking out the Colin Neblett Wildlife Area to the Tolby Trailhead. Next stop… Base Camp!
A13: Programs: | B13: =getPrograms(numericItinerary(itineraryNumber)) -> Blacksmithing, Campfire (evening), Challenge Events, Chuckwagon Dinner, High Ropes & Climbing Tower, Homesteading, Horse Rides, Inspiration Point Hike, Mount Phillips, Mountaineering, Muzzle Loading Rifle, Post Civil War Encampment, Rocky Mountain Fur Co., Tomahawk Throwing, Tooth of Time, Western Lore/Branding
K14: UTM Coordinates
B15: Date: | D15: Day | E15: Campsite | K15: Elevation | L15: Easting | M15: Northing | O15: Food Pickup | P15: Cross US-64 | X15: Elevation | Y15: Change | Z15: Date | AA15: Day | AB15: CAMP | AC15: Type | AD15: Dry | AE15: Showers | AF15: Commissary | AG15: Trading Post | AH15: Map
B16: =AA16 & " (" & TEXT(Z16,"m/d/yyyy") & ")" -> Saturday (6/8/2024) | D16: 1 | E16: Camping HQ | K16: =TEXT(INDEX(campLocation,MATCH(AB16,camps,0),5),"##,##0") -> 6,696 | L16: =INDEX(campInfo,MATCH(AB16,camps),3) -> 503848 | M16: =INDEX(campInfo,MATCH(AB16,camps),4) -> 4034364 | P16: =getUS64crossingdirection(itineraryNumber,D16) ->  | X16: =INT(K16) -> 6696 | Y16: 0 | Z16: =expeditionStartDate(itinExpeditionNo) -> 2024-06-08 | AA16: =INDEX({"Sunday","Monday","Tuesday","Wednesday","Thursday","Friday","Saturday"},WEEKDAY(Z16)) -> Saturday | AB16: Camping HQ | AD16: =INDEX(campInfo,MATCH($AB16,camps),10) ->  | AE16: =INDEX(campInfo,MATCH($AB16,camps),11) ->  | AF16: =INDEX(campInfo,MATCH($AB16,camps),6) ->  | AG16: =INDEX(campInfo,MATCH($AB16,camps),7) ->  | AH16: =VLOOKUP($AB16,campInfo,12) -> South
B17: =AA17 & " (" & TEXT(Z17,"m/d/yyyy") & ")" -> Sunday (6/9/2024) | D17: =D16+1 -> 2 | E17: =getCampWithInfo(AB17,AC17,AD17,AE17,AF17,AG17) -> Lovers Leap | K17: 7,469 | L17: 498474 | M17: 4030533 | O17: =INDEX(foodPickups,numericItinerary(itineraryNumber),D17-1) -> Camping HQ | P17: =getUS64crossingdirection(itineraryNumber,D17) ->  | X17: 7469 | Y17: =X17-X16 -> 773 | Z17: =Z16+1 -> 2024-06-09 | AA17: =INDEX({"Sunday","Monday","Tuesday","Wednesday","Thursday","Friday","Saturday"},WEEKDAY(Z17)) -> Sunday | AB17: Lovers Leap | AC17: =IF(VLOOKUP($AB17,campInfo,8)="Y","Staff","Trail") -> Trail | AD17: =VLOOKUP($AB17,campInfo,10) ->  | AE17: =VLOOKUP($AB17,campInfo,11) ->  | AF17: =VLOOKUP($AB17,campInfo,6) ->  | AG17: =VLOOKUP($AB17,campInfo,7) ->  | AH17: South
B18: =AA18 & " (" & TEXT(Z18,"m/d/yyyy") & ")" -> Monday (6/10/2024) | D18: =D17+1 -> 3 | E18: =getCampWithInfo(AB18,AC18,AD18,AE18,AF18,AG18) -> URRACA | K18: =TEXT(INDEX(campLocation,MATCH(AB18,camps,0),5),"##,##0") -> 7,968 | L18: 500851 | M18: 4029314 | O18: =INDEX(foodPickups,numericItinerary(itineraryNumber),D18-1) -> 0 | P18: =getUS64crossingdirection(itineraryNumber,D18) ->  | X18: =INT(K18) -> 7968 | Y18: =X18-X17 -> 499 | Z18: =Z17+1 -> 2024-06-10 | AA18: =INDEX({"Sunday","Monday","Tuesday","Wednesday","Thursday","Friday","Saturday"},WEEKDAY(Z18)) -> Monday | AB18: Urraca | AC18: Staff | AH18: South
B19: =AA19 & " (" & TEXT(Z19,"m/d/yyyy") & ")" -> Tuesday (6/11/2024) | D19: 4 | E19: =getCampWithInfo(AB19,AC19,AD19,AE19,AF19,AG19) -> ABREU (Showers) | K19: =TEXT(INDEX(campLocation,MATCH(AB19,camps,0),5),"##,##0") -> 7,217 | L19: 498586 | M19: 4025999 | O19: =INDEX(foodPickups,numericItinerary(itineraryNumber),D19-1) -> 0 | P19: =getUS64crossingdirection(itineraryNumber,D19) ->  | X19: =INT(K19) -> 7217 | Y19: -751 | Z19: 2024-06-11 | AA19: =INDEX({"Sunday","Monday","Tuesday","Wednesday","Thursday","Friday","Saturday"},WEEKDAY(Z19)) -> Tuesday | AB19: Abreu | AC19: Staff | AE19: Y | AH19: South
B20: =AA20 & " (" & TEXT(Z20,"m/d/yyyy") & ")" -> Wednesday (6/12/2024) | D20: 5 | E20: =getCampWithInfo(AB20,AC20,AD20,AE20,AF20,AG20) -> Lower Bonito | K20: =TEXT(INDEX(campLocation,MATCH(AB20,camps,0),5),"##,##0") -> 8,962 | L20: 493583 | M20: 4027520 | O20: =INDEX(foodPickups,numericItinerary(itineraryNumber),D20-1) -> Miners Park | P20: =getUS64crossingdirection(itineraryNumber,D20) ->  | X20: =INT(K20) -> 8962 | Y20: 1745 | Z20: 2024-06-12 | AA20: =INDEX({"Sunday","Monday","Tuesday","Wednesday","Thursday","Friday","Saturday"},WEEKDAY(Z20)) -> Wednesday | AB20: Lower Bonito | AC20: Trail | AH20: South
B21: =AA21 & " (" & TEXT(Z21,"m/d/yyyy") & ")" -> Thursday (6/13/2024) | D21: 6 | E21: =getCampWithInfo(AB21,AC21,AD21,AE21,AF21,AG21) -> PHILLIPS JUNCTION (Showers, Commissary, Trading Post) | K21: =TEXT(INDEX(campLocation,MATCH(AB21,camps,0),5),"##,##0") -> 8,921 | L21: 489389 | M21: 4030051 | O21: =INDEX(foodPickups,numericItinerary(itineraryNumber),D21-1) -> 0 | P21: =getUS64crossingdirection(itineraryNumber,D21) ->  | X21: =INT(K21) -> 8921 | Y21: -41 | Z21: 2024-06-13 | AA21: =INDEX({"Sunday","Monday","Tuesday","Wednesday","Thursday","Friday","Saturday"},WEEKDAY(Z21)) -> Thursday | AB21: Phillips Junction | AC21: Staff | AE21: Y | AF21: Y | AG21: Y | AH21: South
B22: =AA22 & " (" & TEXT(Z22,"m/d/yyyy") & ")" -> Friday (6/14/2024) | D22: 7 | E22: =getCampWithInfo(AB22,AC22,AD22,AE22,AF22,AG22) -> Bear Creek | K22: =TEXT(INDEX(campLocation,MATCH(AB22,camps,0),5),"##,##0") -> 9,288 | L22: 487881 | M22: 4028169 | O22: =INDEX(foodPickups,numericItinerary(itineraryNumber),D22-1) -> 0 | P22: =getUS64crossingdirection(itineraryNumber,D22) ->  | X22: =INT(K22) -> 9288 | Y22: 367 | Z22: 2024-06-14 | AA22: =INDEX({"Sunday","Monday","Tuesday","Wednesday","Thursday","Friday","Saturday"},WEEKDAY(Z22)) -> Friday | AB22: Bear Creek | AC22: Trail | AH22: South
B23: Saturday (6/15/2024) | D23: 8 | E23: =getCampWithInfo(AB23,AC23,AD23,AE23,AF23,AG23) -> CROOKED CREEK | K23: 9,360 | L23: 486794 | M23: 4031067 | O23: =INDEX(foodPickups,numericItinerary(itineraryNumber),D23-1) -> Phillips Junction | P23: =getUS64crossingdirection(itineraryNumber,D23) ->  | X23: 9360 | Y23: 72 | Z23: 2024-06-15 | AA23: =INDEX({"Sunday","Monday","Tuesday","Wednesday","Thursday","Friday","Saturday"},WEEKDAY(Z23)) -> Saturday | AB23: Crooked Creek | AC23: Staff | AH23: South
B24: Sunday (6/16/2024) | D24: 9 | E24: =getCampWithInfo(AB24,AC24,AD24,AE24,AF24,AG24) -> CLEAR CREEK | K24: 10,240 | L24: 483477 | M24: 4036332 | O24: =INDEX(foodPickups,numericItinerary(itineraryNumber),D24-1) -> 0 | P24: =getUS64crossingdirection(itineraryNumber,D24) ->  | X24: 10240 | Y24: 880 | Z24: 2024-06-16 | AA24: =INDEX({"Sunday","Monday","Tuesday","Wednesday","Thursday","Friday","Saturday"},WEEKDAY(Z24)) -> Sunday | AB24: Clear Creek | AC24: Staff | AH24: South
B25: Monday (6/17/2024) | D25: 10 | E25: =getCampWithInfo(AB25,AC25,AD25,AE25,AF25,AG25) -> Comanche Peak (Dry) | K25: 11,070 | L25: 487608 | M25: 4037237 | O25: =INDEX(foodPickups,numericItinerary(itineraryNumber),D25-1) -> 0 | P25: =getUS64crossingdirection(itineraryNumber,D25) ->  | X25: 11070 | Y25: 830 | Z25: 2024-06-17 | AA25: =INDEX({"Sunday","Monday","Tuesday","Wednesday","Thursday","Friday","Saturday"},WEEKDAY(Z25)) -> Monday | AB25: Comanche Peak | AC25: Trail | AD25: Y | AH25: South
B26: Tuesday (6/18/2024) | D26: 11 | E26: =getCampWithInfo(AB26,AC26,AD26,AE26,AF26,AG26) -> Hunting Lodge | K26: 7,776 | L26: 494338 | M26: 4037841 | O26: =INDEX(foodPickups,numericItinerary(itineraryNumber),D26-1) -> 0 | P26: =getUS64crossingdirection(itineraryNumber,D26) ->  | X26: 7776 | Y26: -3294 | Z26: 2024-06-18 | AA26: =INDEX({"Sunday","Monday","Tuesday","Wednesday","Thursday","Friday","Saturday"},WEEKDAY(Z26)) -> Tuesday | AB26: Hunting Lodge | AC26: Trail | AH26: South
B27: Wednesday (6/19/2024) | D27: 12 | E27: Camping HQ | K27: 6,696 | L27: 503848 | M27: 4034364 | P27: =getUS64crossingdirection(itineraryNumber,D27) ->  | X27: 6696 | Y27: -1080 | Z27: 2024-06-19 | AA27: =INDEX({"Sunday","Monday","Tuesday","Wednesday","Thursday","Friday","Saturday"},WEEKDAY(Z27)) -> Wednesday | AB27: Camping HQ | AD27: =INDEX(campInfo,MATCH($AB27,camps),10) ->  | AE27: =INDEX(campInfo,MATCH($AB27,camps),11) ->  | AF27: =INDEX(campInfo,MATCH($AB27,camps),6) ->  | AG27: =INDEX(campInfo,MATCH($AB27,camps),7) ->  | AH27: South
L28: NAD 3/Zone 13 * Estimated coordinates | AA28: =getstartendinfo("S",itineraryNumber) -> Zastrow Trailhead | AB28: Hike In
AB29: BASE

Sheet Itinerary Xref Chart
A1: ITINERARY NUMBERS: | B1: # times in Itineraries | C1: =INDEX(itineraryNumbers,COLUMN()-2) -> 12-1 | D1: =INDEX(itineraryNumbers,COLUMN()-2) -> 12-2 | E1: =INDEX(itineraryNumbers,COLUMN()-2) -> 12-3 | F1: =INDEX(itineraryNumbers,COLUMN()-2) -> 12-4 | G1: =INDEX(itineraryNumbers,COLUMN()-2) -> 12-5 | H1: =INDEX(itineraryNumbers,COLUMN()-2) -> 12-6 | I1: =INDEX(itineraryNumbers,COLUMN()-2) -> 12-7 | J1: =INDEX(itineraryNumbers,COLUMN()-2) -> 12-8 | K1: =INDEX(itineraryNumbers,COLUMN()-2) -> 12-9 | L1: =INDEX(itineraryNumbers,COLUMN()-2) -> 12-10 | M1: =INDEX(itineraryNumbers,COLUMN()-2) -> 12-11 | N1: =INDEX(itineraryNumbers,COLUMN()-2) -> 12-12 | O1: =INDEX(itineraryNumbers,COLUMN()-2) -> 12-13 | P1: =INDEX(itineraryNumbers,COLUMN()-2) -> 12-14 | Q1: =INDEX(itineraryNumbers,COLUMN()-2) -> 12-15 | R1: =INDEX(itineraryNumbers,COLUMN()-2) -> 12-16 | S1: =INDEX(itineraryNumbers,COLUMN()-2) -> 12-17 | T1: =INDEX(itineraryNumbers,COLUMN()-2) -> 12-18 | U1: =INDEX(itineraryNumbers,COLUMN()-2) -> 12-19 | V1: =INDEX(itineraryNumbers,COLUMN()-2) -> 12-20 | W1: =INDEX(itineraryNumbers,COLUMN()-2) -> 12-21 | X1: =INDEX(itineraryNumbers,COLUMN()-2) -> 12-22 | Y1: =INDEX(itineraryNumbers,COLUMN()-2) -> 12-23 | Z1: =INDEX(itineraryNumbers,COLUMN()-2) -> 12-24 | AA1: =INDEX(itineraryNumbers,COLUMN()-2) -> 12-25 | AB1: =INDEX(itineraryNumbers,COLUMN()-2) -> 12-26 | AC1: =INDEX(itineraryNumbers,COLUMN()-2) -> 12-27 | AD1: =INDEX(itineraryNumbers,COLUMN()-2) -> 12-28 | AE1: =INDEX(itineraryNumbers,COLUMN()-2) -> 12-29 | AF1: =INDEX(itineraryNumbers,COLUMN()-2) -> 12-30 | AG1: =INDEX(itineraryNumbers,COLUMN()-2) -> 12-31 | AH1: =INDEX(itineraryNumbers,COLUMN()-2) -> 12-32 | AI1: =INDEX(itineraryNumbers,COLUMN()-2) -> 12-33 | AJ1: =INDEX(itineraryNumbers,COLUMN()-2) -> 12-34 | AL1: Check
A2: Hiking Difficulty | C2: =INDEX(classification,numericItinerary(C1)) -> C | D2: =INDEX(classification,numericItinerary(D1)) -> C | E2: =INDEX(classification,numericItinerary(E1)) -> C | F2: =INDEX(classification,numericItinerary(F1)) -> C | G2: =INDEX(classification,numericItinerary(G1)) -> C | H2: =INDEX(classification,numericItinerary(H1)) -> C | I2: =INDEX(classification,numericItinerary(I1)) -> C | J2: =INDEX(classification,numericItinerary(J1)) -> C | K2: =INDEX(classification,numericItinerary(K1)) -> C | L2: =INDEX(classification,numericItinerary(L1)) -> R | M2: =INDEX(classification,numericItinerary(M1)) -> R | N2: =INDEX(classification,numericItinerary(N1)) -> R | O2: =INDEX(classification,numericItinerary(O1)) -> R | P2: =INDEX(classification,numericItinerary(P1)) -> R | Q2: =INDEX(classification,numericItinerary(Q1)) -> R | R2: =INDEX(classification,numericItinerary(R1)) -> R | S2: =INDEX(classification,numericItinerary(S1)) -> R | T2: =INDEX(classification,numericItinerary(T1)) -> S | U2: =INDEX(classification,numericItinerary(U1)) -> S | V2: =INDEX(classification,numericItinerary(V1)) -> S | W2: =INDEX(classification,numericItinerary(W1)) -> S | X2: =INDEX(classification,numericItinerary(X1)) -> S | Y2: =INDEX(classification,numericItinerary(Y1)) -> S | Z2: =INDEX(classification,numericItinerary(Z1)) -> S | AA2: =INDEX(classification,numericItinerary(AA1)) -> S | AB2: =INDEX(classification,numericItinerary(AB1)) -> S | AC2: =INDEX(classification,numericItinerary(AC1)) -> S | AD2: =INDEX(classification,numericItinerary(AD1)) -> SS | AE2: =INDEX(classification,numericItinerary(AE1)) -> SS | AF2: =INDEX(classification,numericItinerary(AF1)) -> SS | AG2: =INDEX(classification,numericItinerary(AG1)) -> SS | AH2: =INDEX(classification,numericItinerary(AH1)) -> SS | AI2: =INDEX(classification,numericItinerary(AI1)) -> SS | AJ2: =INDEX(classification,numericItinerary(AJ1)) -> SS
A3: Distance (Approximately) | C3: =INDEX(distance,numericItinerary(C1)) -> 50 | D3: =INDEX(distance,numericItinerary(D1)) -> 52 | E3: =INDEX(distance,numericItinerary(E1)) -> 54 | F3: =INDEX(distance,numericItinerary(F1)) -> 55 | G3: =INDEX(distance,numericItinerary(G1)) -> 56 | H3: =INDEX(distance,numericItinerary(H1)) -> 56 | I3: =INDEX(distance,numericItinerary(I1)) -> 59 | J3: =INDEX(distance,numericItinerary(J1)) -> 59 | K3: =INDEX(distance,numericItinerary(K1)) -> 59 | L3: =INDEX(distance,numericItinerary(L1)) -> 60 | M3: =INDEX(distance,numericItinerary(M1)) -> 60 | N3: =INDEX(distance,numericItinerary(N1)) -> 60 | O3: =INDEX(distance,numericItinerary(O1)) -> 63 | P3: =INDEX(distance,numericItinerary(P1)) -> 63 | Q3: =INDEX(distance,numericItinerary(Q1)) -> 64 | R3: =INDEX(distance,numericItinerary(R1)) -> 65 | S3: =INDEX(distance,numericItinerary(S1)) -> 65 | T3: =INDEX(distance,numericItinerary(T1)) -> 66 | U3: =INDEX(distance,numericItinerary(U1)) -> 66 | V3: =INDEX(distance,numericItinerary(V1)) -> 66 | W3: =INDEX(distance,numericItinerary(W1)) -> 68 | X3: =INDEX(distance,numericItinerary(X1)) -> 68 | Y3: =INDEX(distance,numericItinerary(Y1)) -> 69 | Z3: =INDEX(distance,numericItinerary(Z1)) -> 70 | AA3: =INDEX(distance,numericItinerary(AA1)) -> 75 | AB3: =INDEX(distance,numericItinerary(AB1)) -> 75 | AC3: =INDEX(distance,numericItinerary(AC1)) -> 76 | AD3: =INDEX(distance,numericItinerary(AD1)) -> 80 | AE3: =INDEX(distance,numericItinerary(AE1)) -> 83 | AF3: =INDEX(distance,numericItinerary(AF1)) -> 84 | AG3: =INDEX(distance,numericItinerary(AG1)) -> 84 | AH3: =INDEX(distance,numericItinerary(AH1)) -> 87 | AI3: =INDEX(distance,numericItinerary(AI1)) -> 88 | AJ3: =INDEX(distance,numericItinerary(AJ1)) -> 90 | AL3: =SUM(C3:AJ3) -> 2295
A4: Trail Camps | C4: =countcamps(itineraryTrail,numericItinerary(C$1)) -> 5 | D4: =countcamps(itineraryTrail,numericItinerary(D$1)) -> 6 | E4: =countcamps(itineraryTrail,numericItinerary(E$1)) -> 4 | F4: =countcamps(itineraryTrail,numericItinerary(F$1)) -> 4 | G4: =countcamps(itineraryTrail,numericItinerary(G$1)) -> 5 | H4: =countcamps(itineraryTrail,numericItinerary(H$1)) -> 5 | I4: =countcamps(itineraryTrail,numericItinerary(I$1)) -> 6 | J4: =countcamps(itineraryTrail,numericItinerary(J$1)) -> 5 | K4: =countcamps(itineraryTrail,numericItinerary(K$1)) -> 6 | L4: =countcamps(itineraryTrail,numericItinerary(L$1)) -> 5 | M4: =countcamps(itineraryTrail,numericItinerary(M$1)) -> 5 | N4: =countcamps(itineraryTrail,numericItinerary(N$1)) -> 5 | O4: =countcamps(itineraryTrail,numericItinerary(O$1)) -> 6 | P4: =countcamps(itineraryTrail,numericItinerary(P$1)) -> 4 | Q4: =countcamps(itineraryTrail,numericItinerary(Q$1)) -> 4 | R4: =countcamps(itineraryTrail,numericItinerary(R$1)) -> 4 | S4: =countcamps(itineraryTrail,numericItinerary(S$1)) -> 5 | T4: =countcamps(itineraryTrail,numericItinerary(T$1)) -> 6 | U4: =countcamps(itineraryTrail,numericItinerary(U$1)) -> 6 | V4: =countcamps(itineraryTrail,numericItinerary(V$1)) -> 6 | W4: =countcamps(itineraryTrail,numericItinerary(W$1)) -> 5 | X4: =countcamps(itineraryTrail,numericItinerary(X$1)) -> 5 | Y4: =countcamps(itineraryTrail,numericItinerary(Y$1)) -> 5 | Z4: =countcamps(itineraryTrail,numericItinerary(Z$1)) -> 5 | AA4: =countcamps(itineraryTrail,numericItinerary(AA$1)) -> 5 | AB4: =countcamps(itineraryTrail,numericItinerary(AB$1)) -> 6 | AC4: =countcamps(itineraryTrail,numericItinerary(AC$1)) -> 6 | AD4: =countcamps(itineraryTrail,numericItinerary(AD$1)) -> 5 | AE4: =countcamps(itineraryTrail,numericItinerary(AE$1)) -> 6 | AF4: =countcamps(itineraryTrail,numericItinerary(AF$1)) -> 6 | AG4: =countcamps(itineraryTrail,numericItinerary(AG$1)) -> 6 | AH4: =countcamps(itineraryTrail,numericItinerary(AH$1)) -> 7 | AI4: =countcamps(itineraryTrail,numericItinerary(AI$1)) -> 6 | AJ4: =countcamps(itineraryTrail,numericItinerary(AJ$1)) -> 4 | AL4: =SUM(C4:AJ4) -> 179
A5: Dry Camps | C5: =countcamps(itineraryStaff,numericItinerary(C$1)) -> 5 | D5: =countcamps(itineraryStaff,numericItinerary(D$1)) -> 4 | E5: =countcamps(itineraryStaff,numericItinerary(E$1)) -> 6 | F5: =countcamps(itineraryStaff,numericItinerary(F$1)) -> 6 | G5: =countcamps(itineraryStaff,numericItinerary(G$1)) -> 5 | H5: =countcamps(itineraryStaff,numericItinerary(H$1)) -> 5 | I5: =countcamps(itineraryStaff,numericItinerary(I$1)) -> 4 | J5: =countcamps(itineraryStaff,numericItinerary(J$1)) -> 5 | K5: =countcamps(itineraryStaff,numericItinerary(K$1)) -> 4 | L5: =countcamps(itineraryStaff,numericItinerary(L$1)) -> 5 | M5: =countcamps(itineraryStaff,numericItinerary(M$1)) -> 5 | N5: =countcamps(itineraryStaff,numericItinerary(N$1)) -> 5 | O5: =countcamps(itineraryStaff,numericItinerary(O$1)) -> 4 | P5: =countcamps(itineraryStaff,numericItinerary(P$1)) -> 6 | Q5: =countcamps(itineraryStaff,numericItinerary(Q$1)) -> 6 | R5: =countcamps(itineraryStaff,numericItinerary(R$1)) -> 6 | S5: =countcamps(itineraryStaff,numericItinerary(S$1)) -> 5 | T5: =countcamps(itineraryStaff,numericItinerary(T$1)) -> 4 | U5: =countcamps(itineraryStaff,numericItinerary(U$1)) -> 4 | V5: =countcamps(itineraryStaff,numericItinerary(V$1)) -> 4 | W5: =countcamps(itineraryStaff,numericItinerary(W$1)) -> 5 | X5: =countcamps(itineraryStaff,numericItinerary(X$1)) -> 5 | Y5: =countcamps(itineraryStaff,numericItinerary(Y$1)) -> 5 | Z5: =countcamps(itineraryStaff,numericItinerary(Z$1)) -> 5 | AA5: =countcamps(itineraryStaff,numericItinerary(AA$1)) -> 5 | AB5: =countcamps(itineraryStaff,numericItinerary(AB$1)) -> 4 | AC5: =countcamps(itineraryStaff,numericItinerary(AC$1)) -> 4 | AD5: =countcamps(itineraryStaff,numericItinerary(AD$1)) -> 5 | AE5: =countcamps(itineraryStaff,numericItinerary(AE$1)) -> 4 | AF5: =countcamps(itineraryStaff,numericItinerary(AF$1)) -> 4 | AG5: =countcamps(itineraryStaff,numericItinerary(AG$1)) -> 4 | AH5: =countcamps(itineraryStaff,numericItinerary(AH$1)) -> 3 | AI5: =countcamps(itineraryStaff,numericItinerary(AI$1)) -> 4 | AJ5: =countcamps(itineraryStaff,numericItinerary(AJ$1)) -> 6 | AL5: =SUM(C5:AJ5) -> 161
A6: =INDEX(program_table,ROW()-5) -> Archaeology | B6: =COUNTIF(C6:AJ6,"X") -> 8 | C6: =getProgramXref($A6,numericItinerary(C$1)) ->  | D6: =getProgramXref($A6,numericItinerary(D$1)) ->  | E6: =getProgramXref($A6,numericItinerary(E$1)) ->  | F6: =getProgramXref($A6,numericItinerary(F$1)) ->  | G6: =getProgramXref($A6,numericItinerary(G$1)) -> x | H6: =getProgramXref($A6,numericItinerary(H$1)) ->  | I6: =getProgramXref($A6,numericItinerary(I$1)) ->  | J6: =getProgramXref($A6,numericItinerary(J$1)) ->  | K6: =getProgramXref($A6,numericItinerary(K$1)) ->  | L6: =getProgramXref($A6,numericItinerary(L$1)) -> x | M6: =getProgramXref($A6,numericItinerary(M$1)) ->  | N6: =getProgramXref($A6,numericItinerary(N$1)) ->  | O6: =getProgramXref($A6,numericItinerary(O$1)) ->  | P6: =getProgramXref($A6,numericItinerary(P$1)) ->  | Q6: =getProgramXref($A6,numericItinerary(Q$1)) ->  | R6: =getProgramXref($A6,numericItinerary(R$1)) -> x | S6: =getProgramXref($A6,numericItinerary(S$1)) ->  | T6: =getProgramXref($A6,numericItinerary(T$1)) -> x | U6: =getProgramXref($A6,numericItinerary(U$1)) ->  | V6: =getProgramXref($A6,numericItinerary(V$1)) ->  | W6: =getProgramXref($A6,numericItinerary(W$1)) ->  | X6: =getProgramXref($A6,numericItinerary(X$1)) ->  | Y6: =getProgramXref($A6,numericItinerary(Y$1)) -> x | Z6: =getProgramXref($A6,numericItinerary(Z$1)) ->  | AA6: =getProgramXref($A6,numericItinerary(AA$1)) ->  | AB6: =getProgramXref($A6,numericItinerary(AB$1)) ->  | AC6: =getProgramXref($A6,numericItinerary(AC$1)) -> x | AD6: =getProgramXref($A6,numericItinerary(AD$1)) -> x | AE6: =getProgramXref($A6,numericItinerary(AE$1)) ->  | AF6: =getProgramXref($A6,numericItinerary(AF$1)) -> x | AG6: =getProgramXref($A6,numericItinerary(AG$1)) ->  | AH6: =getProgramXref($A6,numericItinerary(AH$1)) ->  | AI6: =getProgramXref($A6,numericItinerary(AI$1)) ->  | AJ6: =getProgramXref($A6,numericItinerary(AJ$1)) ->  | AL6: =COUNTIF(C6:AJ6,"X") -> 8
A7: =INDEX(program_table,ROW()-5) -> Archery - 3 Dimensional | B7: 17 | C7: =getProgramXref($A7,numericItinerary(C$1)) ->  | D7: =getProgramXref($A7,numericItinerary(D$1)) -> x | E7: =getProgramXref($A7,numericItinerary(E$1)) ->  | F7: =getProgramXref($A7,numericItinerary(F$1)) ->  | G7: =getProgramXref($A7,numericItinerary(G$1)) -> x | H7: =getProgramXref($A7,numericItinerary(H$1)) -> x | I7: =getProgramXref($A7,numericItinerary(I$1)) -> x | J7: =getProgramXref($A7,numericItinerary(J$1)) ->  | K7: =getProgramXref($A7,numericItinerary(K$1)) -> x | L7: =getProgramXref($A7,numericItinerary(L$1)) ->  | M7: =getProgramXref($A7,numericItinerary(M$1)) ->  | N7: =getProgramXref($A7,numericItinerary(N$1)) -> x | O7: =getProgramXref($A7,numericItinerary(O$1)) -> x | P7: =getProgramXref($A7,numericItinerary(P$1)) -> x | Q7: =getProgramXref($A7,numericItinerary(Q$1)) -> x | R7: =getProgramXref($A7,numericItinerary(R$1)) ->  | S7: =getProgramXref($A7,numericItinerary(S$1)) -> x | T7: =getProgramXref($A7,numericItinerary(T$1)) ->  | U7: =getProgramXref($A7,numericItinerary(U$1)) -> x | V7: =getProgramXref($A7,numericItinerary(V$1)) -> x | W7: =getProgramXref($A7,numericItinerary(W$1)) -> x | X7: =getProgramXref($A7,numericItinerary(X$1)) -> x | Y7: =getProgramXref($A7,numericItinerary(Y$1)) ->  | Z7: =getProgramXref($A7,numericItinerary(Z$1)) ->  | AA7: =getProgramXref($A7,numericItinerary(AA$1)) ->  | AB7: =getProgramXref($A7,numericItinerary(AB$1)) ->  | AC7: =getProgramXref($A7,numericItinerary(AC$1)) ->  | AD7: =getProgramXref($A7,numericItinerary(AD$1)) ->  | AE7: =getProgramXref($A7,numericItinerary(AE$1)) -> x | AF7: =getProgramXref($A7,numericItinerary(AF$1)) ->  | AG7: =getProgramXref($A7,numericItinerary(AG$1)) -> x | AH7: =getProgramXref($A7,numericItinerary(AH$1)) ->  | AI7: =getProgramXref($A7,numericItinerary(AI$1)) -> x | AJ7: =getProgramXref($A7,numericItinerary(AJ$1)) ->  | AL7: 17
A8: =INDEX(program_table,ROW()-5) -> Astronomy | B8: 7 | C8: =getProgramXref($A8,numericItinerary(C$1)) ->  | D8: =getProgramXref($A8,numericItinerary(D$1)) ->  | E8: =getProgramXref($A8,numericItinerary(E$1)) ->  | F8: =getProgramXref($A8,numericItinerary(F$1)) ->  | G8: =getProgramXref($A8,numericItinerary(G$1)) ->  | H8: =getProgramXref($A8,numericItinerary(H$1)) ->  | I8: =getProgramXref($A8,numericItinerary(I$1)) ->  | J8: =getProgramXref($A8,numericItinerary(J$1)) ->  | K8: =getProgramXref($A8,numericItinerary(K$1)) ->  | L8: =getProgramXref($A8,numericItinerary(L$1)) ->  | M8: =getProgramXref($A8,numericItinerary(M$1)) ->  | N8: =getProgramXref($A8,numericItinerary(N$1)) ->  | O8: =getProgramXref($A8,numericItinerary(O$1)) ->  | P8: =getProgramXref($A8,numericItinerary(P$1)) ->  | Q8: =getProgramXref($A8,numericItinerary(Q$1)) ->  | R8: =getProgramXref($A8,numericItinerary(R$1)) -> x | S8: =getProgramXref($A8,numericItinerary(S$1)) ->  | T8: =getProgramXref($A8,numericItinerary(T$1)) -> x | U8: =getProgramXref($A8,numericItinerary(U$1)) ->  | V8: =getProgramXref($A8,numericItinerary(V$1)) ->  | W8: =getProgramXref($A8,numericItinerary(W$1)) ->  | X8: =getProgramXref($A8,numericItinerary(X$1)) ->  | Y8: =getProgramXref($A8,numericItinerary(Y$1)) -> x | Z8: =getProgramXref($A8,numericItinerary(Z$1)) ->  | AA8: =getProgramXref($A8,numericItinerary(AA$1)) -> x | AB8: =getProgramXref($A8,numericItinerary(AB$1)) -> x | AC8: =getProgramXref($A8,numericItinerary(AC$1)) -> x | AD8: =getProgramXref($A8,numericItinerary(AD$1)) ->  | AE8: =getProgramXref($A8,numericItinerary(AE$1)) ->  | AF8: =getProgramXref($A8,numericItinerary(AF$1)) -> x | AG8: =getProgramXref($A8,numericItinerary(AG$1)) ->  | AH8: =getProgramXref($A8,numericItinerary(AH$1)) ->  | AI8: =getProgramXref($A8,numericItinerary(AI$1)) ->  | AJ8: =getProgramXref($A8,numericItinerary(AJ$1)) ->  | AL8: 7
A9: =INDEX(program_table,ROW()-5) -> Atlatl (Dart-throwing) | B9: 6 | C9: =getProgramXref($A9,numericItinerary(C$1)) ->  | D9: =getProgramXref($A9,numericItinerary(D$1)) ->  | E9: =getProgramXref($A9,numericItinerary(E$1)) ->  | F9: =getProgramXref($A9,numericItinerary(F$1)) ->  | G9: =getProgramXref($A9,numericItinerary(G$1)) -> x | H9: =getProgramXref($A9,numericItinerary(H$1)) ->  | I9: =getProgramXref($A9,numericItinerary(I$1)) ->  | J9: =getProgramXref($A9,numericItinerary(J$1)) ->  | K9: =getProgramXref($A9,numericItinerary(K$1)) ->  | L9: =getProgramXref($A9,numericItinerary(L$1)) -> x | M9: =getProgramXref($A9,numericItinerary(M$1)) ->  | N9: =getProgramXref($A9,numericItinerary(N$1)) ->  | O9: =getProgramXref($A9,numericItinerary(O$1)) ->  | P9: =getProgramXref($A9,numericItinerary(P$1)) ->  | Q9: =getProgramXref($A9,numericItinerary(Q$1)) ->  | R9: =getProgramXref($A9,numericItinerary(R$1)) ->  | S9: =getProgramXref($A9,numericItinerary(S$1)) ->  | T9: =getProgramXref($A9,numericItinerary(T$1)) -> x | U9: =getProgramXref($A9,numericItinerary(U$1)) ->  | V9: =getProgramXref($A9,numericItinerary(V$1)) ->  | W9: =getProgramXref($A9,numericItinerary(W$1)) ->  | X9: =getProgramXref($A9,numericItinerary(X$1)) ->  | Y9: =getProgramXref($A9,numericItinerary(Y$1)) -> x | Z9: =getProgramXref($A9,numericItinerary(Z$1)) ->  | AA9: =getProgramXref($A9,numericItinerary(AA$1)) ->  | AB9: =getProgramXref($A9,numericItinerary(AB$1)) ->  | AC9: =getProgramXref($A9,numericItinerary(AC$1)) -> x | AD9: =getProgramXref($A9,numericItinerary(AD$1)) -> x | AE9: =getProgramXref($A9,numericItinerary(AE$1)) ->  | AF9: =getProgramXref($A9,numericItinerary(AF$1)) ->  | AG9: =getProgramXref($A9,numericItinerary(AG$1)) ->  | AH9: =getProgramXref($A9,numericItinerary(AH$1)) ->  | AI9: =getProgramXref($A9,numericItinerary(AI$1)) ->  | AJ9: =getProgramXref($A9,numericItinerary(AJ$1)) ->  | AL9: 6
A10: =INDEX(program_table,ROW()-5) -> Baldy Mountain | B10: 15 | C10: =getProgramXref($A10,numericItinerary(C$1)) ->  | D10: =getProgramXref($A10,numericItinerary(D$1)) ->  | E10: =getProgramXref($A10,numericItinerary(E$1)) ->  | F10: =getProgramXref($A10,numericItinerary(F$1)) ->  | G10: =getProgramXref($A10,numericItinerary(G$1)) -> x | H10: =getProgramXref($A10,numericItinerary(H$1)) ->  | I10: =getProgramXref($A10,numericItinerary(I$1)) ->  | J10: =getProgramXref($A10,numericItinerary(J$1)) ->  | K10: =getProgramXref($A10,numericItinerary(K$1)) -> x | L10: =getProgramXref($A10,numericItinerary(L$1)) -> x | M10: =getProgramXref($A10,numericItinerary(M$1)) ->  | N10: =getProgramXref($A10,numericItinerary(N$1)) ->  | O10: =getProgramXref($A10,numericItinerary(O$1)) ->  | P10: =getProgramXref($A10,numericItinerary(P$1)) ->  | Q10: =getProgramXref($A10,numericItinerary(Q$1)) ->  | R10: =getProgramXref($A10,numericItinerary(R$1)) -> x | S10: =getProgramXref($A10,numericItinerary(S$1)) ->  | T10: =getProgramXref($A10,numericItinerary(T$1)) -> x | U10: =getProgramXref($A10,numericItinerary(U$1)) ->  | V10: =getProgramXref($A10,numericItinerary(V$1)) -> x | W10: =getProgramXref($A10,numericItinerary(W$1)) ->  | X10: =getProgramXref($A10,numericItinerary(X$1)) ->  | Y10: =getProgramXref($A10,numericItinerary(Y$1)) -> x | Z10: =getProgramXref($A10,numericItinerary(Z$1)) ->  | AA10: =getProgramXref($A10,numericItinerary(AA$1)) ->  | AB10: =getProgramXref($A10,numericItinerary(AB$1)) -> x | AC10: =getProgramXref($A10,numericItinerary(AC$1)) -> x | AD10: =getProgramXref($A10,numericItinerary(AD$1)) ->  | AE10: =getProgramXref($A10,numericItinerary(AE$1)) -> x | AF10: =getProgramXref($A10,numericItinerary(AF$1)) -> x | AG10: =getProgramXref($A10,numericItinerary(AG$1)) -> x | AH10: =getProgramXref($A10,numericItinerary(AH$1)) -> x | AI10: =getProgramXref($A10,numericItinerary(AI$1)) -> x | AJ10: =getProgramXref($A10,numericItinerary(AJ$1)) -> x | AL10: 15
A11: =INDEX(program_table,ROW()-5) -> Blacksmithing | B11: 26 | C11: =getProgramXref($A11,numericItinerary(C$1)) -> x | D11: =getProgramXref($A11,numericItinerary(D$1)) -> x | E11: =getProgramXref($A11,numericItinerary(E$1)) -> x | F11: =getProgramXref($A11,numericItinerary(F$1)) -> x | G11: =getProgramXref($A11,numericItinerary(G$1)) -> x | H11: =getProgramXref($A11,numericItinerary(H$1)) ->  | I11: =getProgramXref($A11,numericItinerary(I$1)) ->  | J11: =getProgramXref($A11,numericItinerary(J$1)) ->  | K11: =getProgramXref($A11,numericItinerary(K$1)) -> x | L11: =getProgramXref($A11,numericItinerary(L$1)) -> x | M11: =getProgramXref($A11,numericItinerary(M$1)) -> x | N11: =getProgramXref($A11,numericItinerary(N$1)) ->  | O11: =getProgramXref($A11,numericItinerary(O$1)) -> x | P11: =getProgramXref($A11,numericItinerary(P$1)) -> x | Q11: =getProgramXref($A11,numericItinerary(Q$1)) -> x | R11: =getProgramXref($A11,numericItinerary(R$1)) -> x | S11: =getProgramXref($A11,numericItinerary(S$1)) -> x | T11: =getProgramXref($A11,numericItinerary(T$1)) -> x | U11: =getProgramXref($A11,numericItinerary(U$1)) -> x | V11: =getProgramXref($A11,numericItinerary(V$1)) -> x | W11: =getProgramXref($A11,numericItinerary(W$1)) -> x | X11: =getProgramXref($A11,numericItinerary(X$1)) -> x | Y11: =getProgramXref($A11,numericItinerary(Y$1)) -> x | Z11: =getProgramXref($A11,numericItinerary(Z$1)) -> x | AA11: =getProgramXref($A11,numericItinerary(AA$1)) -> x | AB11: =getProgramXref($A11,numericItinerary(AB$1)) ->  | AC11: =getProgramXref($A11,numericItinerary(AC$1)) ->  | AD11: =getProgramXref($A11,numericItinerary(AD$1)) ->  | AE11: =getProgramXref($A11,numericItinerary(AE$1)) -> x | AF11: =getProgramXref($A11,numericItinerary(AF$1)) -> x | AG11: =getProgramXref($A11,numericItinerary(AG$1)) ->  | AH11: =getProgramXref($A11,numericItinerary(AH$1)) -> x | AI11: =getProgramXref($A11,numericItinerary(AI$1)) -> x | AJ11: =getProgramXref($A11,numericItinerary(AJ$1)) -> x | AL11: 26
A12: =INDEX(program_table,ROW()-5) -> Bouldering | B12: 7 | C12: =getProgramXref($A12,numericItinerary(C$1)) ->  | D12: =getProgramXref($A12,numericItinerary(D$1)) ->  | E12: =getProgramXref($A12,numericItinerary(E$1)) ->  | F12: =getProgramXref($A12,numericItinerary(F$1)) ->  | G12: =getProgramXref($A12,numericItinerary(G$1)) ->  | H12: =getProgramXref($A12,numericItinerary(H$1)) ->  | I12: =getProgramXref($A12,numericItinerary(I$1)) ->  | J12: =getProgramXref($A12,numericItinerary(J$1)) ->  | K12: =getProgramXref($A12,numericItinerary(K$1)) ->  | L12: =getProgramXref($A12,numericItinerary(L$1)) -> x | M12: =getProgramXref($A12,numericItinerary(M$1)) ->  | N12: =getProgramXref($A12,numericItinerary(N$1)) ->  | O12: =getProgramXref($A12,numericItinerary(O$1)) ->  | P12: =getProgramXref($A12,numericItinerary(P$1)) ->  | Q12: =getProgramXref($A12,numericItinerary(Q$1)) ->  | R12: =getProgramXref($A12,numericItinerary(R$1)) ->  | S12: =getProgramXref($A12,numericItinerary(S$1)) ->  | T12: =getProgramXref($A12,numericItinerary(T$1)) -> x | U12: =getProgramXref($A12,numericItinerary(U$1)) ->  | V12: =getProgramXref($A12,numericItinerary(V$1)) ->  | W12: =getProgramXref($A12,numericItinerary(W$1)) ->  | X12: =getProgramXref($A12,numericItinerary(X$1)) ->  | Y12: =getProgramXref($A12,numericItinerary(Y$1)) -> x | Z12: =getProgramXref($A12,numericItinerary(Z$1)) ->  | AA12: =getProgramXref($A12,numericItinerary(AA$1)) -> x | AB12: =getProgramXref($A12,numericItinerary(AB$1)) ->  | AC12: =getProgramXref($A12,numericItinerary(AC$1)) -> x | AD12: =getProgramXref($A12,numericItinerary(AD$1)) -> x | AE12: =getProgramXref($A12,numericItinerary(AE$1)) ->  | AF12: =getProgramXref($A12,numericItinerary(AF$1)) -> x | AG12: =getProgramXref($A12,numericItinerary(AG$1)) ->  | AH12: =getProgramXref($A12,numericItinerary(AH$1)) ->  | AI12: =getProgramXref($A12,numericItinerary(AI$1)) ->  | AJ12: =getProgramXref($A12,numericItinerary(AJ$1)) ->  | AL12: 7
A13: =INDEX(program_table,ROW()-5) -> Burro Packing | B13: 4 | C13: =getProgramXref($A13,numericItinerary(C$1)) ->  | D13: =getProgramXref($A13,numericItinerary(D$1)) ->  | E13: =getProgramXref($A13,numericItinerary(E$1)) ->  | F13: =getProgramXref($A13,numericItinerary(F$1)) ->  | G13: =getProgramXref($A13,numericItinerary(G$1)) -> x | H13: =getProgramXref($A13,numericItinerary(H$1)) ->  | I13: =getProgramXref($A13,numericItinerary(I$1)) ->  | J13: =getProgramXref($A13,numericItinerary(J$1)) ->  | K13: =getProgramXref($A13,numericItinerary(K$1)) ->  | L13: =getProgramXref($A13,numericItinerary(L$1)) ->  | M13: =getProgramXref($A13,numericItinerary(M$1)) ->  | N13: =getProgramXref($A13,numericItinerary(N$1)) ->  | O13: =getProgramXref($A13,numericItinerary(O$1)) ->  | P13: =getProgramXref($A13,numericItinerary(P$1)) ->  | Q13: =getProgramXref($A13,numericItinerary(Q$1)) ->  | R13: =getProgramXref($A13,numericItinerary(R$1)) -> x | S13: =getProgramXref($A13,numericItinerary(S$1)) ->  | T13: =getProgramXref($A13,numericItinerary(T$1)) ->  | U13: =getProgramXref($A13,numericItinerary(U$1)) ->  | V13: =getProgramXref($A13,numericItinerary(V$1)) ->  | W13: =getProgramXref($A13,numericItinerary(W$1)) ->  | X13: =getProgramXref($A13,numericItinerary(X$1)) ->  | Y13: =getProgramXref($A13,numericItinerary(Y$1)) ->  | Z13: =getProgramXref($A13,numericItinerary(Z$1)) ->  | AA13: =getProgramXref($A13,numericItinerary(AA$1)) ->  | AB13: =getProgramXref($A13,numericItinerary(AB$1)) ->  | AC13: =getProgramXref($A13,numericItinerary(AC$1)) -> x | AD13: =getProgramXref($A13,numericItinerary(AD$1)) ->  | AE13: =getProgramXref($A13,numericItinerary(AE$1)) ->  | AF13: =getProgramXref($A13,numericItinerary(AF$1)) ->  | AG13: =getProgramXref($A13,numericItinerary(AG$1)) ->  | AH13: =getProgramXref($A13,numericItinerary(AH$1)) -> x | AI13: =getProgramXref($A13,numericItinerary(AI$1)) ->  | AJ13: =getProgramXref($A13,numericItinerary(AJ$1)) ->  | AL13: 4
A14: =INDEX(program_table,ROW()-5) -> Campfire (evening) | B14: 34 | C14: =getProgramXref($A14,numericItinerary(C$1)) -> x | D14: =getProgramXref($A14,numericItinerary(D$1)) -> x | E14: =getProgramXref($A14,numericItinerary(E$1)) -> x | F14: =getProgramXref($A14,numericItinerary(F$1)) -> x | G14: =getProgramXref($A14,numericItinerary(G$1)) -> x | H14: =getProgramXref($A14,numericItinerary(H$1)) -> x | I14: =getProgramXref($A14,numericItinerary(I$1)) -> x | J14: =getProgramXref($A14,numericItinerary(J$1)) -> x | K14: =getProgramXref($A14,numericItinerary(K$1)) -> x | L14: =getProgramXref($A14,numericItinerary(L$1)) -> x | M14: =getProgramXref($A14,numericItinerary(M$1)) -> x | N14: =getProgramXref($A14,numericItinerary(N$1)) -> x | O14: =getProgramXref($A14,numericItinerary(O$1)) -> x | P14: =getProgramXref($A14,numericItinerary(P$1)) -> x | Q14: =getProgramXref($A14,numericItinerary(Q$1)) -> x | R14: =getProgramXref($A14,numericItinerary(R$1)) -> x | S14: =getProgramXref($A14,numericItinerary(S$1)) -> x | T14: =getProgramXref($A14,numericItinerary(T$1)) -> x | U14: =getProgramXref($A14,numericItinerary(U$1)) -> x | V14: =getProgramXref($A14,numericItinerary(V$1)) -> x | W14: =getProgramXref($A14,numericItinerary(W$1)) -> x | X14: =getProgramXref($A14,numericItinerary(X$1)) -> x | Y14: =getProgramXref($A14,numericItinerary(Y$1)) -> x | Z14: =getProgramXref($A14,numericItinerary(Z$1)) -> x | AA14: =getProgramXref($A14,numericItinerary(AA$1)) -> x | AB14: =getProgramXref($A14,numericItinerary(AB$1)) -> x | AC14: =getProgramXref($A14,numericItinerary(AC$1)) -> x | AD14: =getProgramXref($A14,numericItinerary(AD$1)) -> x | AE14: =getProgramXref($A14,numericItinerary(AE$1)) -> x | AF14: =getProgramXref($A14,numericItinerary(AF$1)) -> x | AG14: =getProgramXref($A14,numericItinerary(AG$1)) -> x | AH14: =getProgramXref($A14,numericItinerary(AH$1)) -> x | AI14: =getProgramXref($A14,numericItinerary(AI$1)) -> x | AJ14: =getProgramXref($A14,numericItinerary(AJ$1)) -> x | AL14: 34
A15: =INDEX(program_table,ROW()-5) -> Cantina | B15: 20 | C15: =getProgramXref($A15,numericItinerary(C$1)) ->  | D15: =getProgramXref($A15,numericItinerary(D$1)) ->  | E15: =getProgramXref($A15,numericItinerary(E$1)) ->  | F15: =getProgramXref($A15,numericItinerary(F$1)) ->  | G15: =getProgramXref($A15,numericItinerary(G$1)) -> x | H15: =getProgramXref($A15,numericItinerary(H$1)) -> x | I15: =getProgramXref($A15,numericItinerary(I$1)) -> x | J15: =getProgramXref($A15,numericItinerary(J$1)) ->  | K15: =getProgramXref($A15,numericItinerary(K$1)) -> x | L15: =getProgramXref($A15,numericItinerary(L$1)) -> x | M15: =getProgramXref($A15,numericItinerary(M$1)) -> x | N15: =getProgramXref($A15,numericItinerary(N$1)) -> x | O15: =getProgramXref($A15,numericItinerary(O$1)) -> x | P15: =getProgramXref($A15,numericItinerary(P$1)) -> x | Q15: =getProgramXref($A15,numericItinerary(Q$1)) ->  | R15: =getProgramXref($A15,numericItinerary(R$1)) -> x | S15: =getProgramXref($A15,numericItinerary(S$1)) ->  | T15: =getProgramXref($A15,numericItinerary(T$1)) ->  | U15: =getProgramXref($A15,numericItinerary(U$1)) -> x | V15: =getProgramXref($A15,numericItinerary(V$1)) -> x | W15: =getProgramXref($A15,numericItinerary(W$1)) -> x | X15: =getProgramXref($A15,numericItinerary(X$1)) -> x | Y15: =getProgramXref($A15,numericItinerary(Y$1)) ->  | Z15: =getProgramXref($A15,numericItinerary(Z$1)) -> x | AA15: =getProgramXref($A15,numericItinerary(AA$1)) ->  | AB15: =getProgramXref($A15,numericItinerary(AB$1)) -> x | AC15: =getProgramXref($A15,numericItinerary(AC$1)) -> x | AD15: =getProgramXref($A15,numericItinerary(AD$1)) -> x | AE15: =getProgramXref($A15,numericItinerary(AE$1)) -> x | AF15: =getProgramXref($A15,numericItinerary(AF$1)) ->  | AG15: =getProgramXref($A15,numericItinerary(AG$1)) ->  | AH15: =getProgramXref($A15,numericItinerary(AH$1)) -> x | AI15: =getProgramXref($A15,numericItinerary(AI$1)) ->  | AJ15: =getProgramXref($A15,numericItinerary(AJ$1)) ->  | AL15: 20
A16: =INDEX(program_table,ROW()-5) -> Challenge Events | B16: 22 | C16: =getProgramXref($A16,numericItinerary(C$1)) -> x | D16: =getProgramXref($A16,numericItinerary(D$1)) ->  | E16: =getProgramXref($A16,numericItinerary(E$1)) -> x | F16: =getProgramXref($A16,numericItinerary(F$1)) ->  | G16: =getProgramXref($A16,numericItinerary(G$1)) -> x | H16: =getProgramXref($A16,numericItinerary(H$1)) ->  | I16: =getProgramXref($A16,numericItinerary(I$1)) ->  | J16: =getProgramXref($A16,numericItinerary(J$1)) -> x | K16: =getProgramXref($A16,numericItinerary(K$1)) -> x | L16: =getProgramXref($A16,numericItinerary(L$1)) -> x | M16: =getProgramXref($A16,numericItinerary(M$1)) ->  | N16: =getProgramXref($A16,numericItinerary(N$1)) ->  | O16: =getProgramXref($A16,numericItinerary(O$1)) ->  | P16: =getProgramXref($A16,numericItinerary(P$1)) ->  | Q16: =getProgramXref($A16,numericItinerary(Q$1)) ->  | R16: =getProgramXref($A16,numericItinerary(R$1)) -> x | S16: =getProgramXref($A16,numericItinerary(S$1)) -> x | T16: =getProgramXref($A16,numericItinerary(T$1)) -> x | U16: =getProgramXref($A16,numericItinerary(U$1)) -> x | V16: =getProgramXref($A16,numericItinerary(V$1)) -> x | W16: =getProgramXref($A16,numericItinerary(W$1)) ->  | X16: =getProgramXref($A16,numericItinerary(X$1)) -> x | Y16: =getProgramXref($A16,numericItinerary(Y$1)) -> x | Z16: =getProgramXref($A16,numericItinerary(Z$1)) -> x | AA16: =getProgramXref($A16,numericItinerary(AA$1)) -> x | AB16: =getProgramXref($A16,numericItinerary(AB$1)) ->  | AC16: =getProgramXref($A16,numericItinerary(AC$1)) -> x | AD16: =getProgramXref($A16,numericItinerary(AD$1)) ->  | AE16: =getProgramXref($A16,numericItinerary(AE$1)) -> x | AF16: =getProgramXref($A16,numericItinerary(AF$1)) -> x | AG16: =getProgramXref($A16,numericItinerary(AG$1)) -> x | AH16: =getProgramXref($A16,numericItinerary(AH$1)) -> x | AI16: =getProgramXref($A16,numericItinerary(AI$1)) -> x | AJ16: =getProgramXref($A16,numericItinerary(AJ$1)) -> x | AL16: 22
A17: =INDEX(program_table,ROW()-5) -> Chuckwagon Dinner | B17: 26 | C17: =getProgramXref($A17,numericItinerary(C$1)) -> x | D17: =getProgramXref($A17,numericItinerary(D$1)) -> x | E17: =getProgramXref($A17,numericItinerary(E$1)) ->  | F17: =getProgramXref($A17,numericItinerary(F$1)) -> x | G17: =getProgramXref($A17,numericItinerary(G$1)) -> x | H17: =getProgramXref($A17,numericItinerary(H$1)) -> x | I17: =getProgramXref($A17,numericItinerary(I$1)) -> x | J17: =getProgramXref($A17,numericItinerary(J$1)) -> x | K17: =getProgramXref($A17,numericItinerary(K$1)) -> x | L17: =getProgramXref($A17,numericItinerary(L$1)) -> x | M17: =getProgramXref($A17,numericItinerary(M$1)) -> x | N17: =getProgramXref($A17,numericItinerary(N$1)) -> x | O17: =getProgramXref($A17,numericItinerary(O$1)) -> x | P17: =getProgramXref($A17,numericItinerary(P$1)) -> x | Q17: =getProgramXref($A17,numericItinerary(Q$1)) -> x | R17: =getProgramXref($A17,numericItinerary(R$1)) -> x | S17: =getProgramXref($A17,numericItinerary(S$1)) -> x | T17: =getProgramXref($A17,numericItinerary(T$1)) ->  | U17: =getProgramXref($A17,numericItinerary(U$1)) ->  | V17: =getProgramXref($A17,numericItinerary(V$1)) -> x | W17: =getProgramXref($A17,numericItinerary(W$1)) ->  | X17: =getProgramXref($A17,numericItinerary(X$1)) -> x | Y17: =getProgramXref($A17,numericItinerary(Y$1)) ->  | Z17: =getProgramXref($A17,numericItinerary(Z$1)) -> x | AA17: =getProgramXref($A17,numericItinerary(AA$1)) ->  | AB17: =getProgramXref($A17,numericItinerary(AB$1)) -> x | AC17: =getProgramXref($A17,numericItinerary(AC$1)) -> x | AD17: =getProgramXref($A17,numericItinerary(AD$1)) -> x | AE17: =getProgramXref($A17,numericItinerary(AE$1)) -> x | AF17: =getProgramXref($A17,numericItinerary(AF$1)) ->  | AG17: =getProgramXref($A17,numericItinerary(AG$1)) -> x | AH17: =getProgramXref($A17,numericItinerary(AH$1)) -> x | AI17: =getProgramXref($A17,numericItinerary(AI$1)) ->  | AJ17: =getProgramXref($A17,numericItinerary(AJ$1)) -> x | AL17: 26
A18: =INDEX(program_table,ROW()-5) -> Cowboy Action Shooting | B18: 4 | C18: =getProgramXref($A18,numericItinerary(C$1)) ->  | D18: =getProgramXref($A18,numericItinerary(D$1)) ->  | E18: =getProgramXref($A18,numericItinerary(E$1)) ->  | F18: =getProgramXref($A18,numericItinerary(F$1)) ->  | G18: =getProgramXref($A18,numericItinerary(G$1)) ->  | H18: =getProgramXref($A18,numericItinerary(H$1)) ->  | I18: =getProgramXref($A18,numericItinerary(I$1)) ->  | J18: =getProgramXref($A18,numericItinerary(J$1)) ->  | K18: =getProgramXref($A18,numericItinerary(K$1)) -> x | L18: =getProgramXref($A18,numericItinerary(L$1)) -> x | M18: =getProgramXref($A18,numericItinerary(M$1)) ->  | N18: =getProgramXref($A18,numericItinerary(N$1)) ->  | O18: =getProgramXref($A18,numericItinerary(O$1)) ->  | P18: =getProgramXref($A18,numericItinerary(P$1)) ->  | Q18: =getProgramXref($A18,numericItinerary(Q$1)) ->  | R18: =getProgramXref($A18,numericItinerary(R$1)) -> x | S18: =getProgramXref($A18,numericItinerary(S$1)) ->  | T18: =getProgramXref($A18,numericItinerary(T$1)) ->  | U18: =getProgramXref($A18,numericItinerary(U$1)) ->  | V18: =getProgramXref($A18,numericItinerary(V$1)) ->  | W18: =getProgramXref($A18,numericItinerary(W$1)) ->  | X18: =getProgramXref($A18,numericItinerary(X$1)) ->  | Y18: =getProgramXref($A18,numericItinerary(Y$1)) ->  | Z18: =getProgramXref($A18,numericItinerary(Z$1)) ->  | AA18: =getProgramXref($A18,numericItinerary(AA$1)) ->  | AB18: =getProgramXref($A18,numericItinerary(AB$1)) -> x | AC18: =getProgramXref($A18,numericItinerary(AC$1)) ->  | AD18: =getProgramXref($A18,numericItinerary(AD$1)) ->  | AE18: =getProgramXref($A18,numericItinerary(AE$1)) ->  | AF18: =getProgramXref($A18,numericItinerary(AF$1)) ->  | AG18: =getProgramXref($A18,numericItinerary(AG$1)) ->  | AH18: =getProgramXref($A18,numericItinerary(AH$1)) ->  | AI18: =getProgramXref($A18,numericItinerary(AI$1)) ->  | AJ18: =getProgramXref($A18,numericItinerary(AJ$1)) ->  | AL18: 4
A19: =INDEX(program_table,ROW()-5) -> Demonstration Forest | B19: 16 | C19: =getProgramXref($A19,numericItinerary(C$1)) ->  | D19: =getProgramXref($A19,numericItinerary(D$1)) -> x | E19: =getProgramXref($A19,numericItinerary(E$1)) -> x | F19: =getProgramXref($A19,numericItinerary(F$1)) -> x | G19: =getProgramXref($A19,numericItinerary(G$1)) ->  | H19: =getProgramXref($A19,numericItinerary(H$1)) ->  | I19: =getProgramXref($A19,numericItinerary(I$1)) ->  | J19: =getProgramXref($A19,numericItinerary(J$1)) -> x | K19: =getProgramXref($A19,numericItinerary(K$1)) ->  | L19: =getProgramXref($A19,numericItinerary(L$1)) ->  | M19: =getProgramXref($A19,numericItinerary(M$1)) -> x | N19: =getProgramXref($A19,numericItinerary(N$1)) ->  | O19: =getProgramXref($A19,numericItinerary(O$1)) ->  | P19: =getProgramXref($A19,numericItinerary(P$1)) -> x | Q19: =getProgramXref($A19,numericItinerary(Q$1)) -> x | R19: =getProgramXref($A19,numericItinerary(R$1)) ->  | S19: =getProgramXref($A19,numericItinerary(S$1)) -> x | T19: =getProgramXref($A19,numericItinerary(T$1)) ->  | U19: =getProgramXref($A19,numericItinerary(U$1)) -> x | V19: =getProgramXref($A19,numericItinerary(V$1)) ->  | W19: =getProgramXref($A19,numericItinerary(W$1)) -> x | X19: =getProgramXref($A19,numericItinerary(X$1)) -> x | Y19: =getProgramXref($A19,numericItinerary(Y$1)) ->  | Z19: =getProgramXref($A19,numericItinerary(Z$1)) -> x | AA19: =getProgramXref($A19,numericItinerary(AA$1)) ->  | AB19: =getProgramXref($A19,numericItinerary(AB$1)) ->  | AC19: =getProgramXref($A19,numericItinerary(AC$1)) ->  | AD19: =getProgramXref($A19,numericItinerary(AD$1)) -> x | AE19: =getProgramXref($A19,numericItinerary(AE$1)) ->  | AF19: =getProgramXref($A19,numericItinerary(AF$1)) ->  | AG19: =getProgramXref($A19,numericItinerary(AG$1)) ->  | AH19: =getProgramXref($A19,numericItinerary(AH$1)) -> x | AI19: =getProgramXref($A19,numericItinerary(AI$1)) -> x | AJ19: =getProgramXref($A19,numericItinerary(AJ$1)) -> x | AL19: 16
A20: =INDEX(program_table,ROW()-5) -> Fishing | B20: 6 | C20: =getProgramXref($A20,numericItinerary(C$1)) ->  | D20: =getProgramXref($A20,numericItinerary(D$1)) ->  | E20: =getProgramXref($A20,numericItinerary(E$1)) ->  | F20: =getProgramXref($A20,numericItinerary(F$1)) ->  | G20: =getProgramXref($A20,numericItinerary(G$1)) ->  | H20: =getProgramXref($A20,numericItinerary(H$1)) -> x | I20: =getProgramXref($A20,numericItinerary(I$1)) ->  | J20: =getProgramXref($A20,numericItinerary(J$1)) ->  | K20: =getProgramXref($A20,numericItinerary(K$1)) ->  | L20: =getProgramXref($A20,numericItinerary(L$1)) ->  | M20: =getProgramXref($A20,numericItinerary(M$1)) ->  | N20: =getProgramXref($A20,numericItinerary(N$1)) -> x | O20: =getProgramXref($A20,numericItinerary(O$1)) ->  | P20: =getProgramXref($A20,numericItinerary(P$1)) ->  | Q20: =getProgramXref($A20,numericItinerary(Q$1)) -> x | R20: =getProgramXref($A20,numericItinerary(R$1)) ->  | S20: =getProgramXref($A20,numericItinerary(S$1)) -> x | T20: =getProgramXref($A20,numericItinerary(T$1)) ->  | U20: =getProgramXref($A20,numericItinerary(U$1)) ->  | V20: =getProgramXref($A20,numericItinerary(V$1)) ->  | W20: =getProgramXref($A20,numericItinerary(W$1)) -> x | X20: =getProgramXref($A20,numericItinerary(X$1)) -> x | Y20: =getProgramXref($A20,numericItinerary(Y$1)) ->  | Z20: =getProgramXref($A20,numericItinerary(Z$1)) ->  | AA20: =getProgramXref($A20,numericItinerary(AA$1)) ->  | AB20: =getProgramXref($A20,numericItinerary(AB$1)) ->  | AC20: =getProgramXref($A20,numericItinerary(AC$1)) ->  | AD20: =getProgramXref($A20,numericItinerary(AD$1)) ->  | AE20: =getProgramXref($A20,numericItinerary(AE$1)) ->  | AF20: =getProgramXref($A20,numericItinerary(AF$1)) ->  | AG20: =getProgramXref($A20,numericItinerary(AG$1)) ->  | AH20: =getProgramXref($A20,numericItinerary(AH$1)) ->  | AI20: =getProgramXref($A20,numericItinerary(AI$1)) ->  | AJ20: =getProgramXref($A20,numericItinerary(AJ$1)) ->  | AL20: 6
A21: =INDEX(program_table,ROW()-5) -> Fly Tying | B21: 4 | C21: =getProgramXref($A21,numericItinerary(C$1)) ->  | D21: =getProgramXref($A21,numericItinerary(D$1)) ->  | E21: =getProgramXref($A21,numericItinerary(E$1)) ->  | F21: =getProgramXref($A21,numericItinerary(F$1)) ->  | G21: =getProgramXref($A21,numericItinerary(G$1)) ->  | H21: =getProgramXref($A21,numericItinerary(H$1)) -> x | I21: =getProgramXref($A21,numericItinerary(I$1)) ->  | J21: =getProgramXref($A21,numericItinerary(J$1)) ->  | K21: =getProgramXref($A21,numericItinerary(K$1)) ->  | L21: =getProgramXref($A21,numericItinerary(L$1)) ->  | M21: =getProgramXref($A21,numericItinerary(M$1)) ->  | N21: =getProgramXref($A21,numericItinerary(N$1)) -> x | O21: =getProgramXref($A21,numericItinerary(O$1)) ->  | P21: =getProgramXref($A21,numericItinerary(P$1)) ->  | Q21: =getProgramXref($A21,numericItinerary(Q$1)) ->  | R21: =getProgramXref($A21,numericItinerary(R$1)) ->  | S21: =getProgramXref($A21,numericItinerary(S$1)) -> x | T21: =getProgramXref($A21,numericItinerary(T$1)) ->  | U21: =getProgramXref($A21,numericItinerary(U$1)) ->  | V21: =getProgramXref($A21,numericItinerary(V$1)) ->  | W21: =getProgramXref($A21,numericItinerary(W$1)) ->  | X21: =getProgramXref($A21,numericItinerary(X$1)) -> x | Y21: =getProgramXref($A21,numericItinerary(Y$1)) ->  | Z21: =getProgramXref($A21,numericItinerary(Z$1)) ->  | AA21: =getProgramXref($A21,numericItinerary(AA$1)) ->  | AB21: =getProgramXref($A21,numericItinerary(AB$1)) ->  | AC21: =getProgramXref($A21,numericItinerary(AC$1)) ->  | AD21: =getProgramXref($A21,numericItinerary(AD$1)) ->  | AE21: =getProgramXref($A21,numericItinerary(AE$1)) ->  | AF21: =getProgramXref($A21,numericItinerary(AF$1)) ->  | AG21: =getProgramXref($A21,numericItinerary(AG$1)) ->  | AH21: =getProgramXref($A21,numericItinerary(AH$1)) ->  | AI21: =getProgramXref($A21,numericItinerary(AI$1)) ->  | AJ21: =getProgramXref($A21,numericItinerary(AJ$1)) ->  | AL21: 4
A22: =INDEX(program_table,ROW()-5) -> Fur Trapper Rendezvous | B22: 10 | C22: =getProgramXref($A22,numericItinerary(C$1)) ->  | D22: =getProgramXref($A22,numericItinerary(D$1)) ->  | E22: =getProgramXref($A22,numericItinerary(E$1)) ->  | F22: =getProgramXref($A22,numericItinerary(F$1)) ->  | G22: =getProgramXref($A22,numericItinerary(G$1)) -> x | H22: =getProgramXref($A22,numericItinerary(H$1)) ->  | I22: =getProgramXref($A22,numericItinerary(I$1)) ->  | J22: =getProgramXref($A22,numericItinerary(J$1)) ->  | K22: =getProgramXref($A22,numericItinerary(K$1)) -> x | L22: =getProgramXref($A22,numericItinerary(L$1)) -> x | M22: =getProgramXref($A22,numericItinerary(M$1)) ->  | N22: =getProgramXref($A22,numericItinerary(N$1)) ->  | O22: =getProgramXref($A22,numericItinerary(O$1)) ->  | P22: =getProgramXref($A22,numericItinerary(P$1)) ->  | Q22: =getProgramXref($A22,numericItinerary(Q$1)) ->  | R22: =getProgramXref($A22,numericItinerary(R$1)) -> x | S22: =getProgramXref($A22,numericItinerary(S$1)) ->  | T22: =getProgramXref($A22,numericItinerary(T$1)) -> x | U22: =getProgramXref($A22,numericItinerary(U$1)) ->  | V22: =getProgramXref($A22,numericItinerary(V$1)) -> x | W22: =getProgramXref($A22,numericItinerary(W$1)) ->  | X22: =getProgramXref($A22,numericItinerary(X$1)) ->  | Y22: =getProgramXref($A22,numericItinerary(Y$1)) -> x | Z22: =getProgramXref($A22,numericItinerary(Z$1)) ->  | AA22: =getProgramXref($A22,numericItinerary(AA$1)) ->  | AB22: =getProgramXref($A22,numericItinerary(AB$1)) ->  | AC22: =getProgramXref($A22,numericItinerary(AC$1)) -> x | AD22: =getProgramXref($A22,numericItinerary(AD$1)) ->  | AE22: =getProgramXref($A22,numericItinerary(AE$1)) ->  | AF22: =getProgramXref($A22,numericItinerary(AF$1)) ->  | AG22: =getProgramXref($A22,numericItinerary(AG$1)) ->  | AH22: =getProgramXref($A22,numericItinerary(AH$1)) -> x | AI22: =getProgramXref($A22,numericItinerary(AI$1)) -> x | AJ22: =getProgramXref($A22,numericItinerary(AJ$1)) ->  | AL22: 10
A23: =INDEX(program_table,ROW()-5) -> Gold Mining & Panning | B23: 27 | C23: =getProgramXref($A23,numericItinerary(C$1)) ->  | D23: =getProgramXref($A23,numericItinerary(D$1)) -> x | E23: =getProgramXref($A23,numericItinerary(E$1)) -> x | F23: =getProgramXref($A23,numericItinerary(F$1)) -> x | G23: =getProgramXref($A23,numericItinerary(G$1)) -> x | H23: =getProgramXref($A23,numericItinerary(H$1)) ->  | I23: =getProgramXref($A23,numericItinerary(I$1)) ->  | J23: =getProgramXref($A23,numericItinerary(J$1)) -> x | K23: =getProgramXref($A23,numericItinerary(K$1)) -> x | L23: =getProgramXref($A23,numericItinerary(L$1)) -> x | M23: =getProgramXref($A23,numericItinerary(M$1)) -> x | N23: =getProgramXref($A23,numericItinerary(N$1)) ->  | O23: =getProgramXref($A23,numericItinerary(O$1)) ->  | P23: =getProgramXref($A23,numericItinerary(P$1)) -> x | Q23: =getProgramXref($A23,numericItinerary(Q$1)) -> x | R23: =getProgramXref($A23,numericItinerary(R$1)) -> x | S23: =getProgramXref($A23,numericItinerary(S$1)) -> x | T23: =getProgramXref($A23,numericItinerary(T$1)) -> x | U23: =getProgramXref($A23,numericItinerary(U$1)) -> x | V23: =getProgramXref($A23,numericItinerary(V$1)) -> x | W23: =getProgramXref($A23,numericItinerary(W$1)) -> x | X23: =getProgramXref($A23,numericItinerary(X$1)) -> x | Y23: =getProgramXref($A23,numericItinerary(Y$1)) -> x | Z23: =getProgramXref($A23,numericItinerary(Z$1)) -> x | AA23: =getProgramXref($A23,numericItinerary(AA$1)) ->  | AB23: =getProgramXref($A23,numericItinerary(AB$1)) -> x | AC23: =getProgramXref($A23,numericItinerary(AC$1)) -> x | AD23: =getProgramXref($A23,numericItinerary(AD$1)) -> x | AE23: =getProgramXref($A23,numericItinerary(AE$1)) -> x | AF23: =getProgramXref($A23,numericItinerary(AF$1)) -> x | AG23: =getProgramXref($A23,numericItinerary(AG$1)) -> x | AH23: =getProgramXref($A23,numericItinerary(AH$1)) -> x | AI23: =getProgramXref($A23,numericItinerary(AI$1)) -> x | AJ23: =getProgramXref($A23,numericItinerary(AJ$1)) ->  | AL23: 27
A24: =INDEX(program_table,ROW()-5) -> High Ropes & Climbing Tower | B24: 4 | C24: =getProgramXref($A24,numericItinerary(C$1)) -> x | D24: =getProgramXref($A24,numericItinerary(D$1)) ->  | E24: =getProgramXref($A24,numericItinerary(E$1)) -> x | F24: =getProgramXref($A24,numericItinerary(F$1)) ->  | G24: =getProgramXref($A24,numericItinerary(G$1)) ->  | H24: =getProgramXref($A24,numericItinerary(H$1)) ->  | I24: =getProgramXref($A24,numericItinerary(I$1)) ->  | J24: =getProgramXref($A24,numericItinerary(J$1)) ->  | K24: =getProgramXref($A24,numericItinerary(K$1)) ->  | L24: =getProgramXref($A24,numericItinerary(L$1)) ->  | M24: =getProgramXref($A24,numericItinerary(M$1)) ->  | N24: =getProgramXref($A24,numericItinerary(N$1)) ->  | O24: =getProgramXref($A24,numericItinerary(O$1)) -> x | P24: =getProgramXref($A24,numericItinerary(P$1)) ->  | Q24: =getProgramXref($A24,numericItinerary(Q$1)) ->  | R24: =getProgramXref($A24,numericItinerary(R$1)) ->  | S24: =getProgramXref($A24,numericItinerary(S$1)) ->  | T24: =getProgramXref($A24,numericItinerary(T$1)) ->  | U24: =getProgramXref($A24,numericItinerary(U$1)) -> x | V24: =getProgramXref($A24,numericItinerary(V$1)) ->  | W24: =getProgramXref($A24,numericItinerary(W$1)) ->  | X24: =getProgramXref($A24,numericItinerary(X$1)) ->  | Y24: =getProgramXref($A24,numericItinerary(Y$1)) ->  | Z24: =getProgramXref($A24,numericItinerary(Z$1)) ->  | AA24: =getProgramXref($A24,numericItinerary(AA$1)) ->  | AB24: =getProgramXref($A24,numericItinerary(AB$1)) ->  | AC24: =getProgramXref($A24,numericItinerary(AC$1)) ->  | AD24: =getProgramXref($A24,numericItinerary(AD$1)) ->  | AE24: =getProgramXref($A24,numericItinerary(AE$1)) ->  | AF24: =getProgramXref($A24,numericItinerary(AF$1)) ->  | AG24: =getProgramXref($A24,numericItinerary(AG$1)) ->  | AH24: =getProgramXref($A24,numericItinerary(AH$1)) ->  | AI24: =getProgramXref($A24,numericItinerary(AI$1)) ->  | AJ24: =getProgramXref($A24,numericItinerary(AJ$1)) ->  | AL24: 4
A25: =INDEX(program_table,ROW()-5) -> Historic Chase Ranch | B25: 6 | C25: =getProgramXref($A25,numericItinerary(C$1)) ->  | D25: =getProgramXref($A25,numericItinerary(D$1)) ->  | E25: =getProgramXref($A25,numericItinerary(E$1)) ->  | F25: =getProgramXref($A25,numericItinerary(F$1)) ->  | G25: =getProgramXref($A25,numericItinerary(G$1)) ->  | H25: =getProgramXref($A25,numericItinerary(H$1)) ->  | I25: =getProgramXref($A25,numericItinerary(I$1)) ->  | J25: =getProgramXref($A25,numericItinerary(J$1)) ->  | K25: =getProgramXref($A25,numericItinerary(K$1)) ->  | L25: =getProgramXref($A25,numericItinerary(L$1)) -> x | M25: =getProgramXref($A25,numericItinerary(M$1)) ->  | N25: =getProgramXref($A25,numericItinerary(N$1)) ->  | O25: =getProgramXref($A25,numericItinerary(O$1)) ->  | P25: =getProgramXref($A25,numericItinerary(P$1)) ->  | Q25: =getProgramXref($A25,numericItinerary(Q$1)) ->  | R25: =getProgramXref($A25,numericItinerary(R$1)) ->  | S25: =getProgramXref($A25,numericItinerary(S$1)) ->  | T25: =getProgramXref($A25,numericItinerary(T$1)) ->  | U25: =getProgramXref($A25,numericItinerary(U$1)) ->  | V25: =getProgramXref($A25,numericItinerary(V$1)) ->  | W25: =getProgramXref($A25,numericItinerary(W$1)) ->  | X25: =getProgramXref($A25,numericItinerary(X$1)) ->  | Y25: =getProgramXref($A25,numericItinerary(Y$1)) -> x | Z25: =getProgramXref($A25,numericItinerary(Z$1)) ->  | AA25: =getProgramXref($A25,numericItinerary(AA$1)) -> x | AB25: =getProgramXref($A25,numericItinerary(AB$1)) ->  | AC25: =getProgramXref($A25,numericItinerary(AC$1)) -> x | AD25: =getProgramXref($A25,numericItinerary(AD$1)) -> x | AE25: =getProgramXref($A25,numericItinerary(AE$1)) ->  | AF25: =getProgramXref($A25,numericItinerary(AF$1)) -> x | AG25: =getProgramXref($A25,numericItinerary(AG$1)) ->  | AH25: =getProgramXref($A25,numericItinerary(AH$1)) ->  | AI25: =getProgramXref($A25,numericItinerary(AI$1)) ->  | AJ25: =getProgramXref($A25,numericItinerary(AJ$1)) ->  | AL25: 6
A26: =INDEX(program_table,ROW()-5) -> Homesteading | B26: 21 | C26: =getProgramXref($A26,numericItinerary(C$1)) -> x | D26: =getProgramXref($A26,numericItinerary(D$1)) -> x | E26: =getProgramXref($A26,numericItinerary(E$1)) ->  | F26: =getProgramXref($A26,numericItinerary(F$1)) -> x | G26: =getProgramXref($A26,numericItinerary(G$1)) ->  | H26: =getProgramXref($A26,numericItinerary(H$1)) -> x | I26: =getProgramXref($A26,numericItinerary(I$1)) ->  | J26: =getProgramXref($A26,numericItinerary(J$1)) -> x | K26: =getProgramXref($A26,numericItinerary(K$1)) -> x | L26: =getProgramXref($A26,numericItinerary(L$1)) ->  | M26: =getProgramXref($A26,numericItinerary(M$1)) ->  | N26: =getProgramXref($A26,numericItinerary(N$1)) -> x | O26: =getProgramXref($A26,numericItinerary(O$1)) -> x | P26: =getProgramXref($A26,numericItinerary(P$1)) -> x | Q26: =getProgramXref($A26,numericItinerary(Q$1)) -> x | R26: =getProgramXref($A26,numericItinerary(R$1)) ->  | S26: =getProgramXref($A26,numericItinerary(S$1)) -> x | T26: =getProgramXref($A26,numericItinerary(T$1)) -> x | U26: =getProgramXref($A26,numericItinerary(U$1)) -> x | V26: =getProgramXref($A26,numericItinerary(V$1)) ->  | W26: =getProgramXref($A26,numericItinerary(W$1)) -> x | X26: =getProgramXref($A26,numericItinerary(X$1)) -> x | Y26: =getProgramXref($A26,numericItinerary(Y$1)) -> x | Z26: =getProgramXref($A26,numericItinerary(Z$1)) -> x | AA26: =getProgramXref($A26,numericItinerary(AA$1)) -> x | AB26: =getProgramXref($A26,numericItinerary(AB$1)) -> x | AC26: =getProgramXref($A26,numericItinerary(AC$1)) ->  | AD26: =getProgramXref($A26,numericItinerary(AD$1)) ->  | AE26: =getProgramXref($A26,numericItinerary(AE$1)) ->  | AF26: =getProgramXref($A26,numericItinerary(AF$1)) ->  | AG26: =getProgramXref($A26,numericItinerary(AG$1)) ->  | AH26: =getProgramXref($A26,numericItinerary(AH$1)) ->  | AI26: =getProgramXref($A26,numericItinerary(AI$1)) -> x | AJ26: =getProgramXref($A26,numericItinerary(AJ$1)) -> x | AL26: 21
A27: =INDEX(program_table,ROW()-5) -> Horse Rides | B27: 20 | C27: =getProgramXref($A27,numericItinerary(C$1)) -> x | D27: =getProgramXref($A27,numericItinerary(D$1)) ->  | E27: =getProgramXref($A27,numericItinerary(E$1)) ->  | F27: =getProgramXref($A27,numericItinerary(F$1)) -> x | G27: =getProgramXref($A27,numericItinerary(G$1)) -> x | H27: =getProgramXref($A27,numericItinerary(H$1)) -> x | I27: =getProgramXref($A27,numericItinerary(I$1)) -> x | J27: =getProgramXref($A27,numericItinerary(J$1)) -> x | K27: =getProgramXref($A27,numericItinerary(K$1)) -> x | L27: =getProgramXref($A27,numericItinerary(L$1)) ->  | M27: =getProgramXref($A27,numericItinerary(M$1)) ->  | N27: =getProgramXref($A27,numericItinerary(N$1)) -> x | O27: =getProgramXref($A27,numericItinerary(O$1)) ->  | P27: =getProgramXref($A27,numericItinerary(P$1)) -> x | Q27: =getProgramXref($A27,numericItinerary(Q$1)) -> x | R27: =getProgramXref($A27,numericItinerary(R$1)) ->  | S27: =getProgramXref($A27,numericItinerary(S$1)) -> x | T27: =getProgramXref($A27,numericItinerary(T$1)) ->  | U27: =getProgramXref($A27,numericItinerary(U$1)) ->  | V27: =getProgramXref($A27,numericItinerary(V$1)) -> x | W27: =getProgramXref($A27,numericItinerary(W$1)) ->  | X27: =getProgramXref($A27,numericItinerary(X$1)) -> x | Y27: =getProgramXref($A27,numericItinerary(Y$1)) ->  | Z27: =getProgramXref($A27,numericItinerary(Z$1)) -> x | AA27: =getProgramXref($A27,numericItinerary(AA$1)) ->  | AB27: =getProgramXref($A27,numericItinerary(AB$1)) ->  | AC27: =getProgramXref($A27,numericItinerary(AC$1)) -> x | AD27: =getProgramXref($A27,numericItinerary(AD$1)) -> x | AE27: =getProgramXref($A27,numericItinerary(AE$1)) ->  | AF27: =getProgramXref($A27,numericItinerary(AF$1)) ->  | AG27: =getProgramXref($A27,numericItinerary(AG$1)) -> x | AH27: =getProgramXref($A27,numericItinerary(AH$1)) -> x | AI27: =getProgramXref($A27,numericItinerary(AI$1)) -> x | AJ27: =getProgramXref($A27,numericItinerary(AJ$1)) -> x | AL27: 20
A28: =INDEX(program_table,ROW()-5) -> Hunter Safety | B28: 3 | C28: =getProgramXref($A28,numericItinerary(C$1)) ->  | D28: =getProgramXref($A28,numericItinerary(D$1)) ->  | E28: =getProgramXref($A28,numericItinerary(E$1)) ->  | F28: =getProgramXref($A28,numericItinerary(F$1)) ->  | G28: =getProgramXref($A28,numericItinerary(G$1)) -> x | H28: =getProgramXref($A28,numericItinerary(H$1)) ->  | I28: =getProgramXref($A28,numericItinerary(I$1)) ->  | J28: =getProgramXref($A28,numericItinerary(J$1)) ->  | K28: =getProgramXref($A28,numericItinerary(K$1)) ->  | L28: =getProgramXref($A28,numericItinerary(L$1)) ->  | M28: =getProgramXref($A28,numericItinerary(M$1)) ->  | N28: =getProgramXref($A28,numericItinerary(N$1)) ->  | O28: =getProgramXref($A28,numericItinerary(O$1)) ->  | P28: =getProgramXref($A28,numericItinerary(P$1)) ->  | Q28: =getProgramXref($A28,numericItinerary(Q$1)) ->  | R28: =getProgramXref($A28,numericItinerary(R$1)) ->  | S28: =getProgramXref($A28,numericItinerary(S$1)) ->  | T28: =getProgramXref($A28,numericItinerary(T$1)) ->  | U28: =getProgramXref($A28,numericItinerary(U$1)) ->  | V28: =getProgramXref($A28,numericItinerary(V$1)) ->  | W28: =getProgramXref($A28,numericItinerary(W$1)) ->  | X28: =getProgramXref($A28,numericItinerary(X$1)) ->  | Y28: =getProgramXref($A28,numericItinerary(Y$1)) ->  | Z28: =getProgramXref($A28,numericItinerary(Z$1)) ->  | AA28: =getProgramXref($A28,numericItinerary(AA$1)) ->  | AB28: =getProgramXref($A28,numericItinerary(AB$1)) ->  | AC28: =getProgramXref($A28,numericItinerary(AC$1)) ->  | AD28: =getProgramXref($A28,numericItinerary(AD$1)) ->  | AE28: =getProgramXref($A28,numericItinerary(AE$1)) -> x | AF28: =getProgramXref($A28,numericItinerary(AF$1)) ->  | AG28: =getProgramXref($A28,numericItinerary(AG$1)) -> x | AH28: =getProgramXref($A28,numericItinerary(AH$1)) ->  | AI28: =getProgramXref($A28,numericItinerary(AI$1)) ->  | AJ28: =getProgramXref($A28,numericItinerary(AJ$1)) ->  | AL28: 3
A29: =INDEX(program_table,ROW()-5) -> Inspiration Point Hike | B29: 5 | C29: =getProgramXref($A29,numericItinerary(C$1)) -> x | D29: =getProgramXref($A29,numericItinerary(D$1)) ->  | E29: =getProgramXref($A29,numericItinerary(E$1)) -> x | F29: =getProgramXref($A29,numericItinerary(F$1)) ->  | G29: =getProgramXref($A29,numericItinerary(G$1)) ->  | H29: =getProgramXref($A29,numericItinerary(H$1)) ->  | I29: =getProgramXref($A29,numericItinerary(I$1)) ->  | J29: =getProgramXref($A29,numericItinerary(J$1)) -> x | K29: =getProgramXref($A29,numericItinerary(K$1)) ->  | L29: =getProgramXref($A29,numericItinerary(L$1)) ->  | M29: =getProgramXref($A29,numericItinerary(M$1)) ->  | N29: =getProgramXref($A29,numericItinerary(N$1)) ->  | O29: =getProgramXref($A29,numericItinerary(O$1)) ->  | P29: =getProgramXref($A29,numericItinerary(P$1)) ->  | Q29: =getProgramXref($A29,numericItinerary(Q$1)) ->  | R29: =getProgramXref($A29,numericItinerary(R$1)) ->  | S29: =getProgramXref($A29,numericItinerary(S$1)) -> x | T29: =getProgramXref($A29,numericItinerary(T$1)) ->  | U29: =getProgramXref($A29,numericItinerary(U$1)) ->  | V29: =getProgramXref($A29,numericItinerary(V$1)) ->  | W29: =getProgramXref($A29,numericItinerary(W$1)) ->  | X29: =getProgramXref($A29,numericItinerary(X$1)) ->  | Y29: =getProgramXref($A29,numericItinerary(Y$1)) ->  | Z29: =getProgramXref($A29,numericItinerary(Z$1)) -> x | AA29: =getProgramXref($A29,numericItinerary(AA$1)) ->  | AB29: =getProgramXref($A29,numericItinerary(AB$1)) ->  | AC29: =getProgramXref($A29,numericItinerary(AC$1)) ->  | AD29: =getProgramXref($A29,numericItinerary(AD$1)) ->  | AE29: =getProgramXref($A29,numericItinerary(AE$1)) ->  | AF29: =getProgramXref($A29,numericItinerary(AF$1)) ->  | AG29: =getProgramXref($A29,numericItinerary(AG$1)) ->  | AH29: =getProgramXref($A29,numericItinerary(AH$1)) ->  | AI29: =getProgramXref($A29,numericItinerary(AI$1)) ->  | AJ29: =getProgramXref($A29,numericItinerary(AJ$1)) ->  | AL29: 5
A30: =INDEX(program_table,ROW()-5) -> Jicarilla Apache Life | B30: 12 | C30: =getProgramXref($A30,numericItinerary(C$1)) ->  | D30: =getProgramXref($A30,numericItinerary(D$1)) -> x | E30: =getProgramXref($A30,numericItinerary(E$1)) ->  | F30: =getProgramXref($A30,numericItinerary(F$1)) ->  | G30: =getProgramXref($A30,numericItinerary(G$1)) ->  | H30: =getProgramXref($A30,numericItinerary(H$1)) -> x | I30: =getProgramXref($A30,numericItinerary(I$1)) -> x | J30: =getProgramXref($A30,numericItinerary(J$1)) ->  | K30: =getProgramXref($A30,numericItinerary(K$1)) ->  | L30: =getProgramXref($A30,numericItinerary(L$1)) ->  | M30: =getProgramXref($A30,numericItinerary(M$1)) ->  | N30: =getProgramXref($A30,numericItinerary(N$1)) -> x | O30: =getProgramXref($A30,numericItinerary(O$1)) -> x | P30: =getProgramXref($A30,numericItinerary(P$1)) -> x | Q30: =getProgramXref($A30,numericItinerary(Q$1)) -> x | R30: =getProgramXref($A30,numericItinerary(R$1)) ->  | S30: =getProgramXref($A30,numericItinerary(S$1)) -> x | T30: =getProgramXref($A30,numericItinerary(T$1)) ->  | U30: =getProgramXref($A30,numericItinerary(U$1)) -> x | V30: =getProgramXref($A30,numericItinerary(V$1)) ->  | W30: =getProgramXref($A30,numericItinerary(W$1)) -> x | X30: =getProgramXref($A30,numericItinerary(X$1)) -> x | Y30: =getProgramXref($A30,numericItinerary(Y$1)) ->  | Z30: =getProgramXref($A30,numericItinerary(Z$1)) -> x | AA30: =getProgramXref($A30,numericItinerary(AA$1)) ->  | AB30: =getProgramXref($A30,numericItinerary(AB$1)) ->  | AC30: =getProgramXref($A30,numericItinerary(AC$1)) ->  | AD30: =getProgramXref($A30,numericItinerary(AD$1)) ->  | AE30: =getProgramXref($A30,numericItinerary(AE$1)) ->  | AF30: =getProgramXref($A30,numericItinerary(AF$1)) ->  | AG30: =getProgramXref($A30,numericItinerary(AG$1)) ->  | AH30: =getProgramXref($A30,numericItinerary(AH$1)) ->  | AI30: =getProgramXref($A30,numericItinerary(AI$1)) ->  | AJ30: =getProgramXref($A30,numericItinerary(AJ$1)) ->  | AL30: 12
A31: =INDEX(program_table,ROW()-5) -> Kit Carson/Rayado Rancho | B31: 0 | C31: =getProgramXref($A31,numericItinerary(C$1)) ->  | D31: =getProgramXref($A31,numericItinerary(D$1)) ->  | E31: =getProgramXref($A31,numericItinerary(E$1)) ->  | F31: =getProgramXref($A31,numericItinerary(F$1)) ->  | G31: =getProgramXref($A31,numericItinerary(G$1)) ->  | H31: =getProgramXref($A31,numericItinerary(H$1)) ->  | I31: =getProgramXref($A31,numericItinerary(I$1)) ->  | J31: =getProgramXref($A31,numericItinerary(J$1)) ->  | K31: =getProgramXref($A31,numericItinerary(K$1)) ->  | L31: =getProgramXref($A31,numericItinerary(L$1)) ->  | M31: =getProgramXref($A31,numericItinerary(M$1)) ->  | N31: =getProgramXref($A31,numericItinerary(N$1)) ->  | O31: =getProgramXref($A31,numericItinerary(O$1)) ->  | P31: =getProgramXref($A31,numericItinerary(P$1)) ->  | Q31: =getProgramXref($A31,numericItinerary(Q$1)) ->  | R31: =getProgramXref($A31,numericItinerary(R$1)) ->  | S31: =getProgramXref($A31,numericItinerary(S$1)) ->  | T31: =getProgramXref($A31,numericItinerary(T$1)) ->  | U31: =getProgramXref($A31,numericItinerary(U$1)) ->  | V31: =getProgramXref($A31,numericItinerary(V$1)) ->  | W31: =getProgramXref($A31,numericItinerary(W$1)) ->  | X31: =getProgramXref($A31,numericItinerary(X$1)) ->  | Y31: =getProgramXref($A31,numericItinerary(Y$1)) ->  | Z31: =getProgramXref($A31,numericItinerary(Z$1)) ->  | AA31: =getProgramXref($A31,numericItinerary(AA$1)) ->  | AB31: =getProgramXref($A31,numericItinerary(AB$1)) ->  | AC31: =getProgramXref($A31,numericItinerary(AC$1)) ->  | AD31: =getProgramXref($A31,numericItinerary(AD$1)) ->  | AE31: =getProgramXref($A31,numericItinerary(AE$1)) ->  | AF31: =getProgramXref($A31,numericItinerary(AF$1)) ->  | AG31: =getProgramXref($A31,numericItinerary(AG$1)) ->  | AH31: =getProgramXref($A31,numericItinerary(AH$1)) ->  | AI31: =getProgramXref($A31,numericItinerary(AI$1)) ->  | AJ31: =getProgramXref($A31,numericItinerary(AJ$1)) ->  | AL31: 0
A32: =INDEX(program_table,ROW()-5) -> Laser Shot Shooting Range | B32: 6 | C32: =getProgramXref($A32,numericItinerary(C$1)) ->  | D32: =getProgramXref($A32,numericItinerary(D$1)) ->  | E32: =getProgramXref($A32,numericItinerary(E$1)) ->  | F32: =getProgramXref($A32,numericItinerary(F$1)) ->  | G32: =getProgramXref($A32,numericItinerary(G$1)) -> x | H32: =getProgramXref($A32,numericItinerary(H$1)) ->  | I32: =getProgramXref($A32,numericItinerary(I$1)) ->  | J32: =getProgramXref($A32,numericItinerary(J$1)) ->  | K32: =getProgramXref($A32,numericItinerary(K$1)) -> x | L32: =getProgramXref($A32,numericItinerary(L$1)) ->  | M32: =getProgramXref($A32,numericItinerary(M$1)) ->  | N32: =getProgramXref($A32,numericItinerary(N$1)) ->  | O32: =getProgramXref($A32,numericItinerary(O$1)) ->  | P32: =getProgramXref($A32,numericItinerary(P$1)) ->  | Q32: =getProgramXref($A32,numericItinerary(Q$1)) ->  | R32: =getProgramXref($A32,numericItinerary(R$1)) ->  | S32: =getProgramXref($A32,numericItinerary(S$1)) ->  | T32: =getProgramXref($A32,numericItinerary(T$1)) ->  | U32: =getProgramXref($A32,numericItinerary(U$1)) ->  | V32: =getProgramXref($A32,numericItinerary(V$1)) -> x | W32: =getProgramXref($A32,numericItinerary(W$1)) ->  | X32: =getProgramXref($A32,numericItinerary(X$1)) ->  | Y32: =getProgramXref($A32,numericItinerary(Y$1)) ->  | Z32: =getProgramXref($A32,numericItinerary(Z$1)) ->  | AA32: =getProgramXref($A32,numericItinerary(AA$1)) ->  | AB32: =getProgramXref($A32,numericItinerary(AB$1)) ->  | AC32: =getProgramXref($A32,numericItinerary(AC$1)) ->  | AD32: =getProgramXref($A32,numericItinerary(AD$1)) ->  | AE32: =getProgramXref($A32,numericItinerary(AE$1)) -> x | AF32: =getProgramXref($A32,numericItinerary(AF$1)) ->  | AG32: =getProgramXref($A32,numericItinerary(AG$1)) -> x | AH32: =getProgramXref($A32,numericItinerary(AH$1)) ->  | AI32: =getProgramXref($A32,numericItinerary(AI$1)) -> x | AJ32: =getProgramXref($A32,numericItinerary(AJ$1)) ->  | AL32: 6
A33: =INDEX(program_table,ROW()-5) -> Lodge/Cabin Tours | B33: 21 | C33: =getProgramXref($A33,numericItinerary(C$1)) ->  | D33: =getProgramXref($A33,numericItinerary(D$1)) -> x | E33: =getProgramXref($A33,numericItinerary(E$1)) ->  | F33: =getProgramXref($A33,numericItinerary(F$1)) -> x | G33: =getProgramXref($A33,numericItinerary(G$1)) ->  | H33: =getProgramXref($A33,numericItinerary(H$1)) -> x | I33: =getProgramXref($A33,numericItinerary(I$1)) -> x | J33: =getProgramXref($A33,numericItinerary(J$1)) ->  | K33: =getProgramXref($A33,numericItinerary(K$1)) ->  | L33: =getProgramXref($A33,numericItinerary(L$1)) -> x | M33: =getProgramXref($A33,numericItinerary(M$1)) ->  | N33: =getProgramXref($A33,numericItinerary(N$1)) -> x | O33: =getProgramXref($A33,numericItinerary(O$1)) -> x | P33: =getProgramXref($A33,numericItinerary(P$1)) -> x | Q33: =getProgramXref($A33,numericItinerary(Q$1)) -> x | R33: =getProgramXref($A33,numericItinerary(R$1)) ->  | S33: =getProgramXref($A33,numericItinerary(S$1)) -> x | T33: =getProgramXref($A33,numericItinerary(T$1)) -> x | U33: =getProgramXref($A33,numericItinerary(U$1)) -> x | V33: =getProgramXref($A33,numericItinerary(V$1)) ->  | W33: =getProgramXref($A33,numericItinerary(W$1)) -> x | X33: =getProgramXref($A33,numericItinerary(X$1)) -> x | Y33: =getProgramXref($A33,numericItinerary(Y$1)) -> x | Z33: =getProgramXref($A33,numericItinerary(Z$1)) ->  | AA33: =getProgramXref($A33,numericItinerary(AA$1)) -> x | AB33: =getProgramXref($A33,numericItinerary(AB$1)) ->  | AC33: =getProgramXref($A33,numericItinerary(AC$1)) -> x | AD33: =getProgramXref($A33,numericItinerary(AD$1)) -> x | AE33: =getProgramXref($A33,numericItinerary(AE$1)) ->  | AF33: =getProgramXref($A33,numericItinerary(AF$1)) -> x | AG33: =getProgramXref($A33,numericItinerary(AG$1)) ->  | AH33: =getProgramXref($A33,numericItinerary(AH$1)) ->  | AI33: =getProgramXref($A33,numericItinerary(AI$1)) -> x | AJ33: =getProgramXref($A33,numericItinerary(AJ$1)) -> x | AL33: 21
A34: =INDEX(program_table,ROW()-5) -> Low Impact Camping | B34: 10 | C34: =getProgramXref($A34,numericItinerary(C$1)) ->  | D34: =getProgramXref($A34,numericItinerary(D$1)) ->  | E34: =getProgramXref($A34,numericItinerary(E$1)) ->  | F34: =getProgramXref($A34,numericItinerary(F$1)) ->  | G34: =getProgramXref($A34,numericItinerary(G$1)) ->  | H34: =getProgramXref($A34,numericItinerary(H$1)) ->  | I34: =getProgramXref($A34,numericItinerary(I$1)) ->  | J34: =getProgramXref($A34,numericItinerary(J$1)) ->  | K34: =getProgramXref($A34,numericItinerary(K$1)) ->  | L34: =getProgramXref($A34,numericItinerary(L$1)) ->  | M34: =getProgramXref($A34,numericItinerary(M$1)) ->  | N34: =getProgramXref($A34,numericItinerary(N$1)) ->  | O34: =getProgramXref($A34,numericItinerary(O$1)) ->  | P34: =getProgramXref($A34,numericItinerary(P$1)) ->  | Q34: =getProgramXref($A34,numericItinerary(Q$1)) -> x | R34: =getProgramXref($A34,numericItinerary(R$1)) -> x | S34: =getProgramXref($A34,numericItinerary(S$1)) ->  | T34: =getProgramXref($A34,numericItinerary(T$1)) -> x | U34: =getProgramXref($A34,numericItinerary(U$1)) ->  | V34: =getProgramXref($A34,numericItinerary(V$1)) ->  | W34: =getProgramXref($A34,numericItinerary(W$1)) ->  | X34: =getProgramXref($A34,numericItinerary(X$1)) ->  | Y34: =getProgramXref($A34,numericItinerary(Y$1)) -> x | Z34: =getProgramXref($A34,numericItinerary(Z$1)) ->  | AA34: =getProgramXref($A34,numericItinerary(AA$1)) -> x | AB34: =getProgramXref($A34,numericItinerary(AB$1)) -> x | AC34: =getProgramXref($A34,numericItinerary(AC$1)) -> x | AD34: =getProgramXref($A34,numericItinerary(AD$1)) ->  | AE34: =getProgramXref($A34,numericItinerary(AE$1)) ->  | AF34: =getProgramXref($A34,numericItinerary(AF$1)) -> x | AG34: =getProgramXref($A34,numericItinerary(AG$1)) ->  | AH34: =getProgramXref($A34,numericItinerary(AH$1)) ->  | AI34: =getProgramXref($A34,numericItinerary(AI$1)) -> x | AJ34: =getProgramXref($A34,numericItinerary(AJ$1)) -> x | AL34: 10
A35: =INDEX(program_table,ROW()-5) -> Mexican Dinner | B35: 3 | C35: =getProgramXref($A35,numericItinerary(C$1)) ->  | D35: =getProgramXref($A35,numericItinerary(D$1)) ->  | E35: =getProgramXref($A35,numericItinerary(E$1)) ->  | F35: =getProgramXref($A35,numericItinerary(F$1)) ->  | G35: =getProgramXref($A35,numericItinerary(G$1)) ->  | H35: =getProgramXref($A35,numericItinerary(H$1)) ->  | I35: =getProgramXref($A35,numericItinerary(I$1)) ->  | J35: =getProgramXref($A35,numericItinerary(J$1)) ->  | K35: =getProgramXref($A35,numericItinerary(K$1)) ->  | L35: =getProgramXref($A35,numericItinerary(L$1)) ->  | M35: =getProgramXref($A35,numericItinerary(M$1)) -> x | N35: =getProgramXref($A35,numericItinerary(N$1)) ->  | O35: =getProgramXref($A35,numericItinerary(O$1)) ->  | P35: =getProgramXref($A35,numericItinerary(P$1)) ->  | Q35: =getProgramXref($A35,numericItinerary(Q$1)) ->  | R35: =getProgramXref($A35,numericItinerary(R$1)) ->  | S35: =getProgramXref($A35,numericItinerary(S$1)) ->  | T35: =getProgramXref($A35,numericItinerary(T$1)) ->  | U35: =getProgramXref($A35,numericItinerary(U$1)) ->  | V35: =getProgramXref($A35,numericItinerary(V$1)) ->  | W35: =getProgramXref($A35,numericItinerary(W$1)) -> x | X35: =getProgramXref($A35,numericItinerary(X$1)) -> x | Y35: =getProgramXref($A35,numericItinerary(Y$1)) ->  | Z35: =getProgramXref($A35,numericItinerary(Z$1)) ->  | AA35: =getProgramXref($A35,numericItinerary(AA$1)) ->  | AB35: =getProgramXref($A35,numericItinerary(AB$1)) ->  | AC35: =getProgramXref($A35,numericItinerary(AC$1)) ->  | AD35: =getProgramXref($A35,numericItinerary(AD$1)) ->  | AE35: =getProgramXref($A35,numericItinerary(AE$1)) ->  | AF35: =getProgramXref($A35,numericItinerary(AF$1)) ->  | AG35: =getProgramXref($A35,numericItinerary(AG$1)) ->  | AH35: =getProgramXref($A35,numericItinerary(AH$1)) ->  | AI35: =getProgramXref($A35,numericItinerary(AI$1)) ->  | AJ35: =getProgramXref($A35,numericItinerary(AJ$1)) ->  | AL35: 3
A36: =INDEX(program_table,ROW()-5) -> Mine Tour | B36: 19 | C36: =getProgramXref($A36,numericItinerary(C$1)) ->  | D36: =getProgramXref($A36,numericItinerary(D$1)) -> x | E36: =getProgramXref($A36,numericItinerary(E$1)) ->  | F36: =getProgramXref($A36,numericItinerary(F$1)) -> x | G36: =getProgramXref($A36,numericItinerary(G$1)) -> x | H36: =getProgramXref($A36,numericItinerary(H$1)) ->  | I36: =getProgramXref($A36,numericItinerary(I$1)) ->  | J36: =getProgramXref($A36,numericItinerary(J$1)) -> x | K36: =getProgramXref($A36,numericItinerary(K$1)) ->  | L36: =getProgramXref($A36,numericItinerary(L$1)) -> x | M36: =getProgramXref($A36,numericItinerary(M$1)) -> x | N36: =getProgramXref($A36,numericItinerary(N$1)) ->  | O36: =getProgramXref($A36,numericItinerary(O$1)) ->  | P36: =getProgramXref($A36,numericItinerary(P$1)) ->  | Q36: =getProgramXref($A36,numericItinerary(Q$1)) -> x | R36: =getProgramXref($A36,numericItinerary(R$1)) -> x | S36: =getProgramXref($A36,numericItinerary(S$1)) -> x | T36: =getProgramXref($A36,numericItinerary(T$1)) ->  | U36: =getProgramXref($A36,numericItinerary(U$1)) -> x | V36: =getProgramXref($A36,numericItinerary(V$1)) -> x | W36: =getProgramXref($A36,numericItinerary(W$1)) -> x | X36: =getProgramXref($A36,numericItinerary(X$1)) -> x | Y36: =getProgramXref($A36,numericItinerary(Y$1)) -> x | Z36: =getProgramXref($A36,numericItinerary(Z$1)) ->  | AA36: =getProgramXref($A36,numericItinerary(AA$1)) ->  | AB36: =getProgramXref($A36,numericItinerary(AB$1)) ->  | AC36: =getProgramXref($A36,numericItinerary(AC$1)) ->  | AD36: =getProgramXref($A36,numericItinerary(AD$1)) -> x | AE36: =getProgramXref($A36,numericItinerary(AE$1)) -> x | AF36: =getProgramXref($A36,numericItinerary(AF$1)) -> x | AG36: =getProgramXref($A36,numericItinerary(AG$1)) ->  | AH36: =getProgramXref($A36,numericItinerary(AH$1)) ->  | AI36: =getProgramXref($A36,numericItinerary(AI$1)) -> x | AJ36: =getProgramXref($A36,numericItinerary(AJ$1)) -> x | AL36: 19
A37: =INDEX(program_table,ROW()-5) -> Mount Phillips | B37: 17 | C37: =getProgramXref($A37,numericItinerary(C$1)) -> x | D37: =getProgramXref($A37,numericItinerary(D$1)) -> x | E37: =getProgramXref($A37,numericItinerary(E$1)) -> x | F37: =getProgramXref($A37,numericItinerary(F$1)) -> x | G37: =getProgramXref($A37,numericItinerary(G$1)) ->  | H37: =getProgramXref($A37,numericItinerary(H$1)) -> x | I37: =getProgramXref($A37,numericItinerary(I$1)) ->  | J37: =getProgramXref($A37,numericItinerary(J$1)) -> x | K37: =getProgramXref($A37,numericItinerary(K$1)) ->  | L37: =getProgramXref($A37,numericItinerary(L$1)) ->  | M37: =getProgramXref($A37,numericItinerary(M$1)) -> x | N37: =getProgramXref($A37,numericItinerary(N$1)) -> x | O37: =getProgramXref($A37,numericItinerary(O$1)) -> x | P37: =getProgramXref($A37,numericItinerary(P$1)) -> x | Q37: =getProgramXref($A37,numericItinerary(Q$1)) -> x | R37: =getProgramXref($A37,numericItinerary(R$1)) ->  | S37: =getProgramXref($A37,numericItinerary(S$1)) -> x | T37: =getProgramXref($A37,numericItinerary(T$1)) ->  | U37: =getProgramXref($A37,numericItinerary(U$1)) -> x | V37: =getProgramXref($A37,numericItinerary(V$1)) ->  | W37: =getProgramXref($A37,numericItinerary(W$1)) -> x | X37: =getProgramXref($A37,numericItinerary(X$1)) -> x | Y37: =getProgramXref($A37,numericItinerary(Y$1)) ->  | Z37: =getProgramXref($A37,numericItinerary(Z$1)) -> x | AA37: =getProgramXref($A37,numericItinerary(AA$1)) ->  | AB37: =getProgramXref($A37,numericItinerary(AB$1)) ->  | AC37: =getProgramXref($A37,numericItinerary(AC$1)) ->  | AD37: =getProgramXref($A37,numericItinerary(AD$1)) ->  | AE37: =getProgramXref($A37,numericItinerary(AE$1)) -> x | AF37: =getProgramXref($A37,numericItinerary(AF$1)) ->  | AG37: =getProgramXref($A37,numericItinerary(AG$1)) ->  | AH37: =getProgramXref($A37,numericItinerary(AH$1)) ->  | AI37: =getProgramXref($A37,numericItinerary(AI$1)) ->  | AJ37: =getProgramXref($A37,numericItinerary(AJ$1)) ->  | AL37: 17
A38: =INDEX(program_table,ROW()-5) -> Mountain Biking | B38: 7 | C38: =getProgramXref($A38,numericItinerary(C$1)) ->  | D38: =getProgramXref($A38,numericItinerary(D$1)) ->  | E38: =getProgramXref($A38,numericItinerary(E$1)) ->  | F38: =getProgramXref($A38,numericItinerary(F$1)) ->  | G38: =getProgramXref($A38,numericItinerary(G$1)) ->  | H38: =getProgramXref($A38,numericItinerary(H$1)) ->  | I38: =getProgramXref($A38,numericItinerary(I$1)) ->  | J38: =getProgramXref($A38,numericItinerary(J$1)) ->  | K38: =getProgramXref($A38,numericItinerary(K$1)) ->  | L38: =getProgramXref($A38,numericItinerary(L$1)) -> x | M38: =getProgramXref($A38,numericItinerary(M$1)) ->  | N38: =getProgramXref($A38,numericItinerary(N$1)) ->  | O38: =getProgramXref($A38,numericItinerary(O$1)) ->  | P38: =getProgramXref($A38,numericItinerary(P$1)) ->  | Q38: =getProgramXref($A38,numericItinerary(Q$1)) ->  | R38: =getProgramXref($A38,numericItinerary(R$1)) ->  | S38: =getProgramXref($A38,numericItinerary(S$1)) ->  | T38: =getProgramXref($A38,numericItinerary(T$1)) -> x | U38: =getProgramXref($A38,numericItinerary(U$1)) ->  | V38: =getProgramXref($A38,numericItinerary(V$1)) ->  | W38: =getProgramXref($A38,numericItinerary(W$1)) ->  | X38: =getProgramXref($A38,numericItinerary(X$1)) ->  | Y38: =getProgramXref($A38,numericItinerary(Y$1)) -> x | Z38: =getProgramXref($A38,numericItinerary(Z$1)) ->  | AA38: =getProgramXref($A38,numericItinerary(AA$1)) -> x | AB38: =getProgramXref($A38,numericItinerary(AB$1)) -> x | AC38: =getProgramXref($A38,numericItinerary(AC$1)) -> x | AD38: =getProgramXref($A38,numericItinerary(AD$1)) ->  | AE38: =getProgramXref($A38,numericItinerary(AE$1)) ->  | AF38: =getProgramXref($A38,numericItinerary(AF$1)) -> x | AG38: =getProgramXref($A38,numericItinerary(AG$1)) ->  | AH38: =getProgramXref($A38,numericItinerary(AH$1)) ->  | AI38: =getProgramXref($A38,numericItinerary(AI$1)) ->  | AJ38: =getProgramXref($A38,numericItinerary(AJ$1)) ->  | AL38: 7
A39: =INDEX(program_table,ROW()-5) -> Mountaineering | B39: 21 | C39: =getProgramXref($A39,numericItinerary(C$1)) -> x | D39: =getProgramXref($A39,numericItinerary(D$1)) -> x | E39: =getProgramXref($A39,numericItinerary(E$1)) -> x | F39: =getProgramXref($A39,numericItinerary(F$1)) -> x | G39: =getProgramXref($A39,numericItinerary(G$1)) ->  | H39: =getProgramXref($A39,numericItinerary(H$1)) -> x | I39: =getProgramXref($A39,numericItinerary(I$1)) ->  | J39: =getProgramXref($A39,numericItinerary(J$1)) ->  | K39: =getProgramXref($A39,numericItinerary(K$1)) ->  | L39: =getProgramXref($A39,numericItinerary(L$1)) -> x | M39: =getProgramXref($A39,numericItinerary(M$1)) -> x | N39: =getProgramXref($A39,numericItinerary(N$1)) -> x | O39: =getProgramXref($A39,numericItinerary(O$1)) -> x | P39: =getProgramXref($A39,numericItinerary(P$1)) -> x | Q39: =getProgramXref($A39,numericItinerary(Q$1)) -> x | R39: =getProgramXref($A39,numericItinerary(R$1)) ->  | S39: =getProgramXref($A39,numericItinerary(S$1)) -> x | T39: =getProgramXref($A39,numericItinerary(T$1)) ->  | U39: =getProgramXref($A39,numericItinerary(U$1)) ->  | V39: =getProgramXref($A39,numericItinerary(V$1)) ->  | W39: =getProgramXref($A39,numericItinerary(W$1)) -> x | X39: =getProgramXref($A39,numericItinerary(X$1)) -> x | Y39: =getProgramXref($A39,numericItinerary(Y$1)) ->  | Z39: =getProgramXref($A39,numericItinerary(Z$1)) ->  | AA39: =getProgramXref($A39,numericItinerary(AA$1)) -> x | AB39: =getProgramXref($A39,numericItinerary(AB$1)) ->  | AC39: =getProgramXref($A39,numericItinerary(AC$1)) ->  | AD39: =getProgramXref($A39,numericItinerary(AD$1)) -> x | AE39: =getProgramXref($A39,numericItinerary(AE$1)) -> x | AF39: =getProgramXref($A39,numericItinerary(AF$1)) -> x | AG39: =getProgramXref($A39,numericItinerary(AG$1)) -> x | AH39: =getProgramXref($A39,numericItinerary(AH$1)) -> x | AI39: =getProgramXref($A39,numericItinerary(AI$1)) -> x | AJ39: =getProgramXref($A39,numericItinerary(AJ$1)) ->  | AL39: 21
A40: =INDEX(program_table,ROW()-5) -> Muzzle Loading Rifle | B40: 16 | C40: =getProgramXref($A40,numericItinerary(C$1)) -> x | D40: =getProgramXref($A40,numericItinerary(D$1)) ->  | E40: =getProgramXref($A40,numericItinerary(E$1)) -> x | F40: =getProgramXref($A40,numericItinerary(F$1)) -> x | G40: =getProgramXref($A40,numericItinerary(G$1)) ->  | H40: =getProgramXref($A40,numericItinerary(H$1)) ->  | I40: =getProgramXref($A40,numericItinerary(I$1)) ->  | J40: =getProgramXref($A40,numericItinerary(J$1)) -> x | K40: =getProgramXref($A40,numericItinerary(K$1)) -> x | L40: =getProgramXref($A40,numericItinerary(L$1)) ->  | M40: =getProgramXref($A40,numericItinerary(M$1)) -> x | N40: =getProgramXref($A40,numericItinerary(N$1)) ->  | O40: =getProgramXref($A40,numericItinerary(O$1)) -> x | P40: =getProgramXref($A40,numericItinerary(P$1)) ->  | Q40: =getProgramXref($A40,numericItinerary(Q$1)) ->  | R40: =getProgramXref($A40,numericItinerary(R$1)) -> x | S40: =getProgramXref($A40,numericItinerary(S$1)) ->  | T40: =getProgramXref($A40,numericItinerary(T$1)) -> x | U40: =getProgramXref($A40,numericItinerary(U$1)) -> x | V40: =getProgramXref($A40,numericItinerary(V$1)) ->  | W40: =getProgramXref($A40,numericItinerary(W$1)) ->  | X40: =getProgramXref($A40,numericItinerary(X$1)) ->  | Y40: =getProgramXref($A40,numericItinerary(Y$1)) -> x | Z40: =getProgramXref($A40,numericItinerary(Z$1)) -> x | AA40: =getProgramXref($A40,numericItinerary(AA$1)) ->  | AB40: =getProgramXref($A40,numericItinerary(AB$1)) ->  | AC40: =getProgramXref($A40,numericItinerary(AC$1)) -> x | AD40: =getProgramXref($A40,numericItinerary(AD$1)) -> x | AE40: =getProgramXref($A40,numericItinerary(AE$1)) ->  | AF40: =getProgramXref($A40,numericItinerary(AF$1)) ->  | AG40: =getProgramXref($A40,numericItinerary(AG$1)) -> x | AH40: =getProgramXref($A40,numericItinerary(AH$1)) -> x | AI40: =getProgramXref($A40,numericItinerary(AI$1)) ->  | AJ40: =getProgramXref($A40,numericItinerary(AJ$1)) ->  | AL40: 16
A41: =INDEX(program_table,ROW()-5) -> New Mexico Homestead | B41: 10 | C41: =getProgramXref($A41,numericItinerary(C$1)) ->  | D41: =getProgramXref($A41,numericItinerary(D$1)) ->  | E41: =getProgramXref($A41,numericItinerary(E$1)) ->  | F41: =getProgramXref($A41,numericItinerary(F$1)) ->  | G41: =getProgramXref($A41,numericItinerary(G$1)) ->  | H41: =getProgramXref($A41,numericItinerary(H$1)) -> x | I41: =getProgramXref($A41,numericItinerary(I$1)) -> x | J41: =getProgramXref($A41,numericItinerary(J$1)) ->  | K41: =getProgramXref($A41,numericItinerary(K$1)) ->  | L41: =getProgramXref($A41,numericItinerary(L$1)) ->  | M41: =getProgramXref($A41,numericItinerary(M$1)) -> x | N41: =getProgramXref($A41,numericItinerary(N$1)) -> x | O41: =getProgramXref($A41,numericItinerary(O$1)) -> x | P41: =getProgramXref($A41,numericItinerary(P$1)) -> x | Q41: =getProgramXref($A41,numericItinerary(Q$1)) ->  | R41: =getProgramXref($A41,numericItinerary(R$1)) ->  | S41: =getProgramXref($A41,numericItinerary(S$1)) ->  | T41: =getProgramXref($A41,numericItinerary(T$1)) ->  | U41: =getProgramXref($A41,numericItinerary(U$1)) -> x | V41: =getProgramXref($A41,numericItinerary(V$1)) ->  | W41: =getProgramXref($A41,numericItinerary(W$1)) -> x | X41: =getProgramXref($A41,numericItinerary(X$1)) -> x | Y41: =getProgramXref($A41,numericItinerary(Y$1)) ->  | Z41: =getProgramXref($A41,numericItinerary(Z$1)) -> x | AA41: =getProgramXref($A41,numericItinerary(AA$1)) ->  | AB41: =getProgramXref($A41,numericItinerary(AB$1)) ->  | AC41: =getProgramXref($A41,numericItinerary(AC$1)) ->  | AD41: =getProgramXref($A41,numericItinerary(AD$1)) ->  | AE41: =getProgramXref($A41,numericItinerary(AE$1)) ->  | AF41: =getProgramXref($A41,numericItinerary(AF$1)) ->  | AG41: =getProgramXref($A41,numericItinerary(AG$1)) ->  | AH41: =getProgramXref($A41,numericItinerary(AH$1)) ->  | AI41: =getProgramXref($A41,numericItinerary(AI$1)) ->  | AJ41: =getProgramXref($A41,numericItinerary(AJ$1)) ->  | AL41: 10
A42: =INDEX(program_table,ROW()-5) -> Petroglyph Tour | B42: =COUNTIF(C42:AJ42,"X") -> 10 | C42: =getProgramXref($A42,numericItinerary(C$1)) ->  | D42: =getProgramXref($A42,numericItinerary(D$1)) ->  | E42: =getProgramXref($A42,numericItinerary(E$1)) ->  | F42: =getProgramXref($A42,numericItinerary(F$1)) ->  | G42: =getProgramXref($A42,numericItinerary(G$1)) -> x | H42: =getProgramXref($A42,numericItinerary(H$1)) ->  | I42: =getProgramXref($A42,numericItinerary(I$1)) ->  | J42: =getProgramXref($A42,numericItinerary(J$1)) ->  | K42: =getProgramXref($A42,numericItinerary(K$1)) ->  | L42: =getProgramXref($A42,numericItinerary(L$1)) -> x | M42: =getProgramXref($A42,numericItinerary(M$1)) ->  | N42: =getProgramXref($A42,numericItinerary(N$1)) ->  | O42: =getProgramXref($A42,numericItinerary(O$1)) ->  | P42: =getProgramXref($A42,numericItinerary(P$1)) ->  | Q42: =getProgramXref($A42,numericItinerary(Q$1)) ->  | R42: =getProgramXref($A42,numericItinerary(R$1)) -> x | S42: =getProgramXref($A42,numericItinerary(S$1)) ->  | T42: =getProgramXref($A42,numericItinerary(T$1)) -> x | U42: =getProgramXref($A42,numericItinerary(U$1)) ->  | V42: =getProgramXref($A42,numericItinerary(V$1)) ->  | W42: =getProgramXref($A42,numericItinerary(W$1)) ->  | X42: =getProgramXref($A42,numericItinerary(X$1)) ->  | Y42: =getProgramXref($A42,numericItinerary(Y$1)) -> x | Z42: =getProgramXref($A42,numericItinerary(Z$1)) ->  | AA42: =getProgramXref($A42,numericItinerary(AA$1)) -> x | AB42: =getProgramXref($A42,numericItinerary(AB$1)) ->  | AC42: =getProgramXref($A42,numericItinerary(AC$1)) -> x | AD42: =getProgramXref($A42,numericItinerary(AD$1)) -> x | AE42: =getProgramXref($A42,numericItinerary(AE$1)) ->  | AF42: =getProgramXref($A42,numericItinerary(AF$1)) -> x | AG42: =getProgramXref($A42,numericItinerary(AG$1)) ->  | AH42: =getProgramXref($A42,numericItinerary(AH$1)) -> x | AI42: =getProgramXref($A42,numericItinerary(AI$1)) ->  | AJ42: =getProgramXref($A42,numericItinerary(AJ$1)) ->  | AL42: =COUNTIF(C42:AJ42,"X") -> 10
A43: =INDEX(program_table,ROW()-5) -> Post Civil War Encampment | B43: 6 | C43: =getProgramXref($A43,numericItinerary(C$1)) -> x | D43: =getProgramXref($A43,numericItinerary(D$1)) ->  | E43: =getProgramXref($A43,numericItinerary(E$1)) -> x | F43: =getProgramXref($A43,numericItinerary(F$1)) -> x | G43: =getProgramXref($A43,numericItinerary(G$1)) ->  | H43: =getProgramXref($A43,numericItinerary(H$1)) ->  | I43: =getProgramXref($A43,numericItinerary(I$1)) ->  | J43: =getProgramXref($A43,numericItinerary(J$1)) ->  | K43: =getProgramXref($A43,numericItinerary(K$1)) ->  | L43: =getProgramXref($A43,numericItinerary(L$1)) ->  | M43: =getProgramXref($A43,numericItinerary(M$1)) ->  | N43: =getProgramXref($A43,numericItinerary(N$1)) ->  | O43: =getProgramXref($A43,numericItinerary(O$1)) -> x | P43: =getProgramXref($A43,numericItinerary(P$1)) ->  | Q43: =getProgramXref($A43,numericItinerary(Q$1)) ->  | R43: =getProgramXref($A43,numericItinerary(R$1)) ->  | S43: =getProgramXref($A43,numericItinerary(S$1)) ->  | T43: =getProgramXref($A43,numericItinerary(T$1)) ->  | U43: =getProgramXref($A43,numericItinerary(U$1)) ->  | V43: =getProgramXref($A43,numericItinerary(V$1)) ->  | W43: =getProgramXref($A43,numericItinerary(W$1)) ->  | X43: =getProgramXref($A43,numericItinerary(X$1)) ->  | Y43: =getProgramXref($A43,numericItinerary(Y$1)) ->  | Z43: =getProgramXref($A43,numericItinerary(Z$1)) -> x | AA43: =getProgramXref($A43,numericItinerary(AA$1)) ->  | AB43: =getProgramXref($A43,numericItinerary(AB$1)) ->  | AC43: =getProgramXref($A43,numericItinerary(AC$1)) ->  | AD43: =getProgramXref($A43,numericItinerary(AD$1)) ->  | AE43: =getProgramXref($A43,numericItinerary(AE$1)) -> x | AF43: =getProgramXref($A43,numericItinerary(AF$1)) ->  | AG43: =getProgramXref($A43,numericItinerary(AG$1)) ->  | AH43: =getProgramXref($A43,numericItinerary(AH$1)) ->  | AI43: =getProgramXref($A43,numericItinerary(AI$1)) ->  | AJ43: =getProgramXref($A43,numericItinerary(AJ$1)) ->  | AL43: 6
A44: =INDEX(program_table,ROW()-5) -> Railroading | B44: 9 | C44: =getProgramXref($A44,numericItinerary(C$1)) ->  | D44: =getProgramXref($A44,numericItinerary(D$1)) ->  | E44: =getProgramXref($A44,numericItinerary(E$1)) ->  | F44: =getProgramXref($A44,numericItinerary(F$1)) ->  | G44: =getProgramXref($A44,numericItinerary(G$1)) -> x | H44: =getProgramXref($A44,numericItinerary(H$1)) ->  | I44: =getProgramXref($A44,numericItinerary(I$1)) ->  | J44: =getProgramXref($A44,numericItinerary(J$1)) ->  | K44: =getProgramXref($A44,numericItinerary(K$1)) -> x | L44: =getProgramXref($A44,numericItinerary(L$1)) ->  | M44: =getProgramXref($A44,numericItinerary(M$1)) ->  | N44: =getProgramXref($A44,numericItinerary(N$1)) ->  | O44: =getProgramXref($A44,numericItinerary(O$1)) ->  | P44: =getProgramXref($A44,numericItinerary(P$1)) ->  | Q44: =getProgramXref($A44,numericItinerary(Q$1)) ->  | R44: =getProgramXref($A44,numericItinerary(R$1)) -> x | S44: =getProgramXref($A44,numericItinerary(S$1)) ->  | T44: =getProgramXref($A44,numericItinerary(T$1)) -> x | U44: =getProgramXref($A44,numericItinerary(U$1)) ->  | V44: =getProgramXref($A44,numericItinerary(V$1)) ->  | W44: =getProgramXref($A44,numericItinerary(W$1)) ->  | X44: =getProgramXref($A44,numericItinerary(X$1)) ->  | Y44: =getProgramXref($A44,numericItinerary(Y$1)) -> x | Z44: =getProgramXref($A44,numericItinerary(Z$1)) ->  | AA44: =getProgramXref($A44,numericItinerary(AA$1)) -> x | AB44: =getProgramXref($A44,numericItinerary(AB$1)) ->  | AC44: =getProgramXref($A44,numericItinerary(AC$1)) -> x | AD44: =getProgramXref($A44,numericItinerary(AD$1)) ->  | AE44: =getProgramXref($A44,numericItinerary(AE$1)) ->  | AF44: =getProgramXref($A44,numericItinerary(AF$1)) -> x | AG44: =getProgramXref($A44,numericItinerary(AG$1)) ->  | AH44: =getProgramXref($A44,numericItinerary(AH$1)) -> x | AI44: =getProgramXref($A44,numericItinerary(AI$1)) ->  | AJ44: =getProgramXref($A44,numericItinerary(AJ$1)) ->  | AL44: 9
A45: =INDEX(program_table,ROW()-5) -> Rock Climbing & Rappelling | B45: 24 | C45: =getProgramXref($A45,numericItinerary(C$1)) ->  | D45: =getProgramXref($A45,numericItinerary(D$1)) -> x | E45: =getProgramXref($A45,numericItinerary(E$1)) -> x | F45: =getProgramXref($A45,numericItinerary(F$1)) -> x | G45: =getProgramXref($A45,numericItinerary(G$1)) ->  | H45: =getProgramXref($A45,numericItinerary(H$1)) -> x | I45: =getProgramXref($A45,numericItinerary(I$1)) -> x | J45: =getProgramXref($A45,numericItinerary(J$1)) -> x | K45: =getProgramXref($A45,numericItinerary(K$1)) ->  | L45: =getProgramXref($A45,numericItinerary(L$1)) -> x | M45: =getProgramXref($A45,numericItinerary(M$1)) -> x | N45: =getProgramXref($A45,numericItinerary(N$1)) -> x | O45: =getProgramXref($A45,numericItinerary(O$1)) -> x | P45: =getProgramXref($A45,numericItinerary(P$1)) -> x | Q45: =getProgramXref($A45,numericItinerary(Q$1)) ->  | R45: =getProgramXref($A45,numericItinerary(R$1)) ->  | S45: =getProgramXref($A45,numericItinerary(S$1)) -> x | T45: =getProgramXref($A45,numericItinerary(T$1)) -> x | U45: =getProgramXref($A45,numericItinerary(U$1)) -> x | V45: =getProgramXref($A45,numericItinerary(V$1)) -> x | W45: =getProgramXref($A45,numericItinerary(W$1)) -> x | X45: =getProgramXref($A45,numericItinerary(X$1)) -> x | Y45: =getProgramXref($A45,numericItinerary(Y$1)) ->  | Z45: =getProgramXref($A45,numericItinerary(Z$1)) -> x | AA45: =getProgramXref($A45,numericItinerary(AA$1)) -> x | AB45: =getProgramXref($A45,numericItinerary(AB$1)) ->  | AC45: =getProgramXref($A45,numericItinerary(AC$1)) -> x | AD45: =getProgramXref($A45,numericItinerary(AD$1)) ->  | AE45: =getProgramXref($A45,numericItinerary(AE$1)) ->  | AF45: =getProgramXref($A45,numericItinerary(AF$1)) -> x | AG45: =getProgramXref($A45,numericItinerary(AG$1)) ->  | AH45: =getProgramXref($A45,numericItinerary(AH$1)) -> x | AI45: =getProgramXref($A45,numericItinerary(AI$1)) -> x | AJ45: =getProgramXref($A45,numericItinerary(AJ$1)) -> x | AL45: 24
A46: =INDEX(program_table,ROW()-5) -> Rocky Mountain Fur Co. | B46: 15 | C46: =getProgramXref($A46,numericItinerary(C$1)) -> x | D46: =getProgramXref($A46,numericItinerary(D$1)) -> x | E46: =getProgramXref($A46,numericItinerary(E$1)) ->  | F46: =getProgramXref($A46,numericItinerary(F$1)) -> x | G46: =getProgramXref($A46,numericItinerary(G$1)) ->  | H46: =getProgramXref($A46,numericItinerary(H$1)) -> x | I46: =getProgramXref($A46,numericItinerary(I$1)) -> x | J46: =getProgramXref($A46,numericItinerary(J$1)) -> x | K46: =getProgramXref($A46,numericItinerary(K$1)) ->  | L46: =getProgramXref($A46,numericItinerary(L$1)) ->  | M46: =getProgramXref($A46,numericItinerary(M$1)) -> x | N46: =getProgramXref($A46,numericItinerary(N$1)) -> x | O46: =getProgramXref($A46,numericItinerary(O$1)) ->  | P46: =getProgramXref($A46,numericItinerary(P$1)) -> x | Q46: =getProgramXref($A46,numericItinerary(Q$1)) -> x | R46: =getProgramXref($A46,numericItinerary(R$1)) ->  | S46: =getProgramXref($A46,numericItinerary(S$1)) -> x | T46: =getProgramXref($A46,numericItinerary(T$1)) ->  | U46: =getProgramXref($A46,numericItinerary(U$1)) -> x | V46: =getProgramXref($A46,numericItinerary(V$1)) ->  | W46: =getProgramXref($A46,numericItinerary(W$1)) -> x | X46: =getProgramXref($A46,numericItinerary(X$1)) -> x | Y46: =getProgramXref($A46,numericItinerary(Y$1)) ->  | Z46: =getProgramXref($A46,numericItinerary(Z$1)) -> x | AA46: =getProgramXref($A46,numericItinerary(AA$1)) ->  | AB46: =getProgramXref($A46,numericItinerary(AB$1)) ->  | AC46: =getProgramXref($A46,numericItinerary(AC$1)) ->  | AD46: =getProgramXref($A46,numericItinerary(AD$1)) ->  | AE46: =getProgramXref($A46,numericItinerary(AE$1)) ->  | AF46: =getProgramXref($A46,numericItinerary(AF$1)) ->  | AG46: =getProgramXref($A46,numericItinerary(AG$1)) ->  | AH46: =getProgramXref($A46,numericItinerary(AH$1)) ->  | AI46: =getProgramXref($A46,numericItinerary(AI$1)) ->  | AJ46: =getProgramXref($A46,numericItinerary(AJ$1)) ->  | AL46: 15
A47: =INDEX(program_table,ROW()-5) -> Search & Rescue/Wild. Medicine | B47: 1 | C47: =getProgramXref($A47,numericItinerary(C$1)) ->  | D47: =getProgramXref($A47,numericItinerary(D$1)) ->  | E47: =getProgramXref($A47,numericItinerary(E$1)) ->  | F47: =getProgramXref($A47,numericItinerary(F$1)) ->  | G47: =getProgramXref($A47,numericItinerary(G$1)) ->  | H47: =getProgramXref($A47,numericItinerary(H$1)) ->  | I47: =getProgramXref($A47,numericItinerary(I$1)) -> x | J47: =getProgramXref($A47,numericItinerary(J$1)) ->  | K47: =getProgramXref($A47,numericItinerary(K$1)) ->  | L47: =getProgramXref($A47,numericItinerary(L$1)) ->  | M47: =getProgramXref($A47,numericItinerary(M$1)) ->  | N47: =getProgramXref($A47,numericItinerary(N$1)) ->  | O47: =getProgramXref($A47,numericItinerary(O$1)) ->  | P47: =getProgramXref($A47,numericItinerary(P$1)) ->  | Q47: =getProgramXref($A47,numericItinerary(Q$1)) ->  | R47: =getProgramXref($A47,numericItinerary(R$1)) ->  | S47: =getProgramXref($A47,numericItinerary(S$1)) ->  | T47: =getProgramXref($A47,numericItinerary(T$1)) ->  | U47: =getProgramXref($A47,numericItinerary(U$1)) ->  | V47: =getProgramXref($A47,numericItinerary(V$1)) ->  | W47: =getProgramXref($A47,numericItinerary(W$1)) ->  | X47: =getProgramXref($A47,numericItinerary(X$1)) ->  | Y47: =getProgramXref($A47,numericItinerary(Y$1)) ->  | Z47: =getProgramXref($A47,numericItinerary(Z$1)) ->  | AA47: =getProgramXref($A47,numericItinerary(AA$1)) ->  | AB47: =getProgramXref($A47,numericItinerary(AB$1)) ->  | AC47: =getProgramXref($A47,numericItinerary(AC$1)) ->  | AD47: =getProgramXref($A47,numericItinerary(AD$1)) ->  | AE47: =getProgramXref($A47,numericItinerary(AE$1)) ->  | AF47: =getProgramXref($A47,numericItinerary(AF$1)) ->  | AG47: =getProgramXref($A47,numericItinerary(AG$1)) ->  | AH47: =getProgramXref($A47,numericItinerary(AH$1)) ->  | AI47: =getProgramXref($A47,numericItinerary(AI$1)) ->  | AJ47: =getProgramXref($A47,numericItinerary(AJ$1)) ->  | AL47: 1
A48: =INDEX(program_table,ROW()-5) -> Shooting/Reloading - .30-06 | B48: 8 | C48: =getProgramXref($A48,numericItinerary(C$1)) ->  | D48: =getProgramXref($A48,numericItinerary(D$1)) ->  | E48: =getProgramXref($A48,numericItinerary(E$1)) -> x | F48: =getProgramXref($A48,numericItinerary(F$1)) -> x | G48: =getProgramXref($A48,numericItinerary(G$1)) ->  | H48: =getProgramXref($A48,numericItinerary(H$1)) ->  | I48: =getProgramXref($A48,numericItinerary(I$1)) ->  | J48: =getProgramXref($A48,numericItinerary(J$1)) ->  | K48: =getProgramXref($A48,numericItinerary(K$1)) ->  | L48: =getProgramXref($A48,numericItinerary(L$1)) ->  | M48: =getProgramXref($A48,numericItinerary(M$1)) ->  | N48: =getProgramXref($A48,numericItinerary(N$1)) ->  | O48: =getProgramXref($A48,numericItinerary(O$1)) ->  | P48: =getProgramXref($A48,numericItinerary(P$1)) ->  | Q48: =getProgramXref($A48,numericItinerary(Q$1)) ->  | R48: =getProgramXref($A48,numericItinerary(R$1)) ->  | S48: =getProgramXref($A48,numericItinerary(S$1)) -> x | T48: =getProgramXref($A48,numericItinerary(T$1)) ->  | U48: =getProgramXref($A48,numericItinerary(U$1)) ->  | V48: =getProgramXref($A48,numericItinerary(V$1)) ->  | W48: =getProgramXref($A48,numericItinerary(W$1)) ->  | X48: =getProgramXref($A48,numericItinerary(X$1)) -> x | Y48: =getProgramXref($A48,numericItinerary(Y$1)) ->  | Z48: =getProgramXref($A48,numericItinerary(Z$1)) ->  | AA48: =getProgramXref($A48,numericItinerary(AA$1)) ->  | AB48: =getProgramXref($A48,numericItinerary(AB$1)) ->  | AC48: =getProgramXref($A48,numericItinerary(AC$1)) ->  | AD48: =getProgramXref($A48,numericItinerary(AD$1)) -> x | AE48: =getProgramXref($A48,numericItinerary(AE$1)) -> x | AF48: =getProgramXref($A48,numericItinerary(AF$1)) ->  | AG48: =getProgramXref($A48,numericItinerary(AG$1)) -> x | AH48: =getProgramXref($A48,numericItinerary(AH$1)) ->  | AI48: =getProgramXref($A48,numericItinerary(AI$1)) -> x | AJ48: =getProgramXref($A48,numericItinerary(AJ$1)) ->  | AL48: 8
A49: =INDEX(program_table,ROW()-5) -> Shotgun Shooting/Reloading - 12 Gauge | B49: =COUNTIF(C49:AJ49,"X") -> 4 | C49: =getProgramXref($A49,numericItinerary(C$1)) ->  | D49: =getProgramXref($A49,numericItinerary(D$1)) ->  | E49: =getProgramXref($A49,numericItinerary(E$1)) ->  | F49: =getProgramXref($A49,numericItinerary(F$1)) ->  | G49: =getProgramXref($A49,numericItinerary(G$1)) ->  | H49: =getProgramXref($A49,numericItinerary(H$1)) ->  | I49: =getProgramXref($A49,numericItinerary(I$1)) ->  | J49: =getProgramXref($A49,numericItinerary(J$1)) ->  | K49: =getProgramXref($A49,numericItinerary(K$1)) ->  | L49: =getProgramXref($A49,numericItinerary(L$1)) ->  | M49: =getProgramXref($A49,numericItinerary(M$1)) ->  | N49: =getProgramXref($A49,numericItinerary(N$1)) ->  | O49: =getProgramXref($A49,numericItinerary(O$1)) ->  | P49: =getProgramXref($A49,numericItinerary(P$1)) ->  | Q49: =getProgramXref($A49,numericItinerary(Q$1)) ->  | R49: =getProgramXref($A49,numericItinerary(R$1)) ->  | S49: =getProgramXref($A49,numericItinerary(S$1)) ->  | T49: =getProgramXref($A49,numericItinerary(T$1)) ->  | U49: =getProgramXref($A49,numericItinerary(U$1)) ->  | V49: =getProgramXref($A49,numericItinerary(V$1)) -> x | W49: =getProgramXref($A49,numericItinerary(W$1)) ->  | X49: =getProgramXref($A49,numericItinerary(X$1)) ->  | Y49: =getProgramXref($A49,numericItinerary(Y$1)) ->  | Z49: =getProgramXref($A49,numericItinerary(Z$1)) ->  | AA49: =getProgramXref($A49,numericItinerary(AA$1)) ->  | AB49: =getProgramXref($A49,numericItinerary(AB$1)) ->  | AC49: =getProgramXref($A49,numericItinerary(AC$1)) ->  | AD49: =getProgramXref($A49,numericItinerary(AD$1)) -> x | AE49: =getProgramXref($A49,numericItinerary(AE$1)) ->  | AF49: =getProgramXref($A49,numericItinerary(AF$1)) ->  | AG49: =getProgramXref($A49,numericItinerary(AG$1)) ->  | AH49: =getProgramXref($A49,numericItinerary(AH$1)) -> x | AI49: =getProgramXref($A49,numericItinerary(AI$1)) ->  | AJ49: =getProgramXref($A49,numericItinerary(AJ$1)) -> x
A50: =INDEX(program_table,ROW()-5) -> Spar Pole Climbing | B50: 11 | C50: =getProgramXref($A50,numericItinerary(C$1)) ->  | D50: =getProgramXref($A50,numericItinerary(D$1)) ->  | E50: =getProgramXref($A50,numericItinerary(E$1)) ->  | F50: =getProgramXref($A50,numericItinerary(F$1)) ->  | G50: =getProgramXref($A50,numericItinerary(G$1)) -> x | H50: =getProgramXref($A50,numericItinerary(H$1)) ->  | I50: =getProgramXref($A50,numericItinerary(I$1)) ->  | J50: =getProgramXref($A50,numericItinerary(J$1)) ->  | K50: =getProgramXref($A50,numericItinerary(K$1)) ->  | L50: =getProgramXref($A50,numericItinerary(L$1)) -> x | M50: =getProgramXref($A50,numericItinerary(M$1)) -> x | N50: =getProgramXref($A50,numericItinerary(N$1)) ->  | O50: =getProgramXref($A50,numericItinerary(O$1)) ->  | P50: =getProgramXref($A50,numericItinerary(P$1)) -> x | Q50: =getProgramXref($A50,numericItinerary(Q$1)) -> x | R50: =getProgramXref($A50,numericItinerary(R$1)) ->  | S50: =getProgramXref($A50,numericItinerary(S$1)) -> x | T50: =getProgramXref($A50,numericItinerary(T$1)) ->  | U50: =getProgramXref($A50,numericItinerary(U$1)) ->  | V50: =getProgramXref($A50,numericItinerary(V$1)) ->  | W50: =getProgramXref($A50,numericItinerary(W$1)) ->  | X50: =getProgramXref($A50,numericItinerary(X$1)) ->  | Y50: =getProgramXref($A50,numericItinerary(Y$1)) ->  | Z50: =getProgramXref($A50,numericItinerary(Z$1)) ->  | AA50: =getProgramXref($A50,numericItinerary(AA$1)) -> x | AB50: =getProgramXref($A50,numericItinerary(AB$1)) -> x | AC50: =getProgramXref($A50,numericItinerary(AC$1)) -> x | AD50: =getProgramXref($A50,numericItinerary(AD$1)) ->  | AE50: =getProgramXref($A50,numericItinerary(AE$1)) ->  | AF50: =getProgramXref($A50,numericItinerary(AF$1)) -> x | AG50: =getProgramXref($A50,numericItinerary(AG$1)) ->  | AH50: =getProgramXref($A50,numericItinerary(AH$1)) -> x | AI50: =getProgramXref($A50,numericItinerary(AI$1)) ->  | AJ50: =getProgramXref($A50,numericItinerary(AJ$1)) ->  | AL50: 11
A51: =INDEX(program_table,ROW()-5) -> Tie Making & Crosscut Saws | B51: 25 | C51: =getProgramXref($A51,numericItinerary(C$1)) ->  | D51: =getProgramXref($A51,numericItinerary(D$1)) -> x | E51: =getProgramXref($A51,numericItinerary(E$1)) ->  | F51: =getProgramXref($A51,numericItinerary(F$1)) ->  | G51: =getProgramXref($A51,numericItinerary(G$1)) -> x | H51: =getProgramXref($A51,numericItinerary(H$1)) -> x | I51: =getProgramXref($A51,numericItinerary(I$1)) -> x | J51: =getProgramXref($A51,numericItinerary(J$1)) -> x | K51: =getProgramXref($A51,numericItinerary(K$1)) -> x | L51: =getProgramXref($A51,numericItinerary(L$1)) -> x | M51: =getProgramXref($A51,numericItinerary(M$1)) -> x | N51: =getProgramXref($A51,numericItinerary(N$1)) -> x | O51: =getProgramXref($A51,numericItinerary(O$1)) ->  | P51: =getProgramXref($A51,numericItinerary(P$1)) -> x | Q51: =getProgramXref($A51,numericItinerary(Q$1)) -> x | R51: =getProgramXref($A51,numericItinerary(R$1)) -> x | S51: =getProgramXref($A51,numericItinerary(S$1)) -> x | T51: =getProgramXref($A51,numericItinerary(T$1)) -> x | U51: =getProgramXref($A51,numericItinerary(U$1)) ->  | V51: =getProgramXref($A51,numericItinerary(V$1)) -> x | W51: =getProgramXref($A51,numericItinerary(W$1)) -> x | X51: =getProgramXref($A51,numericItinerary(X$1)) ->  | Y51: =getProgramXref($A51,numericItinerary(Y$1)) -> x | Z51: =getProgramXref($A51,numericItinerary(Z$1)) -> x | AA51: =getProgramXref($A51,numericItinerary(AA$1)) -> x | AB51: =getProgramXref($A51,numericItinerary(AB$1)) -> x | AC51: =getProgramXref($A51,numericItinerary(AC$1)) -> x | AD51: =getProgramXref($A51,numericItinerary(AD$1)) ->  | AE51: =getProgramXref($A51,numericItinerary(AE$1)) -> x | AF51: =getProgramXref($A51,numericItinerary(AF$1)) ->  | AG51: =getProgramXref($A51,numericItinerary(AG$1)) ->  | AH51: =getProgramXref($A51,numericItinerary(AH$1)) -> x | AI51: =getProgramXref($A51,numericItinerary(AI$1)) -> x | AJ51: =getProgramXref($A51,numericItinerary(AJ$1)) -> x | AL51: =COUNTIF(C51:AJ51,"X") -> 25
A52: =INDEX(program_table,ROW()-5) -> Tomahawk Throwing | B52: 24 | C52: =getProgramXref($A52,numericItinerary(C$1)) -> x | D52: =getProgramXref($A52,numericItinerary(D$1)) -> x | E52: =getProgramXref($A52,numericItinerary(E$1)) -> x | F52: =getProgramXref($A52,numericItinerary(F$1)) -> x | G52: =getProgramXref($A52,numericItinerary(G$1)) ->  | H52: =getProgramXref($A52,numericItinerary(H$1)) -> x | I52: =getProgramXref($A52,numericItinerary(I$1)) -> x | J52: =getProgramXref($A52,numericItinerary(J$1)) -> x | K52: =getProgramXref($A52,numericItinerary(K$1)) -> x | L52: =getProgramXref($A52,numericItinerary(L$1)) -> x | M52: =getProgramXref($A52,numericItinerary(M$1)) -> x | N52: =getProgramXref($A52,numericItinerary(N$1)) -> x | O52: =getProgramXref($A52,numericItinerary(O$1)) ->  | P52: =getProgramXref($A52,numericItinerary(P$1)) -> x | Q52: =getProgramXref($A52,numericItinerary(Q$1)) -> x | R52: =getProgramXref($A52,numericItinerary(R$1)) -> x | S52: =getProgramXref($A52,numericItinerary(S$1)) -> x | T52: =getProgramXref($A52,numericItinerary(T$1)) -> x | U52: =getProgramXref($A52,numericItinerary(U$1)) -> x | V52: =getProgramXref($A52,numericItinerary(V$1)) -> x | W52: =getProgramXref($A52,numericItinerary(W$1)) -> x | X52: =getProgramXref($A52,numericItinerary(X$1)) -> x | Y52: =getProgramXref($A52,numericItinerary(Y$1)) -> x | Z52: =getProgramXref($A52,numericItinerary(Z$1)) -> x | AA52: =getProgramXref($A52,numericItinerary(AA$1)) ->  | AB52: =getProgramXref($A52,numericItinerary(AB$1)) ->  | AC52: =getProgramXref($A52,numericItinerary(AC$1)) -> x | AD52: =getProgramXref($A52,numericItinerary(AD$1)) ->  | AE52: =getProgramXref($A52,numericItinerary(AE$1)) ->  | AF52: =getProgramXref($A52,numericItinerary(AF$1)) ->  | AG52: =getProgramXref($A52,numericItinerary(AG$1)) ->  | AH52: =getProgramXref($A52,numericItinerary(AH$1)) -> x | AI52: =getProgramXref($A52,numericItinerary(AI$1)) ->  | AJ52: =getProgramXref($A52,numericItinerary(AJ$1)) ->  | AL52: 24
A53: =INDEX(program_table,ROW()-5) -> Tooth of Time | B53: 23 | C53: =getProgramXref($A53,numericItinerary(C$1)) -> x | D53: =getProgramXref($A53,numericItinerary(D$1)) -> x | E53: =getProgramXref($A53,numericItinerary(E$1)) -> x | F53: =getProgramXref($A53,numericItinerary(F$1)) -> x | G53: =getProgramXref($A53,numericItinerary(G$1)) ->  | H53: =getProgramXref($A53,numericItinerary(H$1)) -> x | I53: =getProgramXref($A53,numericItinerary(I$1)) -> x | J53: =getProgramXref($A53,numericItinerary(J$1)) -> x | K53: =getProgramXref($A53,numericItinerary(K$1)) ->  | L53: =getProgramXref($A53,numericItinerary(L$1)) ->  | M53: =getProgramXref($A53,numericItinerary(M$1)) -> x | N53: =getProgramXref($A53,numericItinerary(N$1)) -> x | O53: =getProgramXref($A53,numericItinerary(O$1)) -> x | P53: =getProgramXref($A53,numericItinerary(P$1)) -> x | Q53: =getProgramXref($A53,numericItinerary(Q$1)) -> x | R53: =getProgramXref($A53,numericItinerary(R$1)) ->  | S53: =getProgramXref($A53,numericItinerary(S$1)) -> x | T53: =getProgramXref($A53,numericItinerary(T$1)) ->  | U53: =getProgramXref($A53,numericItinerary(U$1)) -> x | V53: =getProgramXref($A53,numericItinerary(V$1)) ->  | W53: =getProgramXref($A53,numericItinerary(W$1)) -> x | X53: =getProgramXref($A53,numericItinerary(X$1)) -> x | Y53: =getProgramXref($A53,numericItinerary(Y$1)) ->  | Z53: =getProgramXref($A53,numericItinerary(Z$1)) -> x | AA53: =getProgramXref($A53,numericItinerary(AA$1)) ->  | AB53: =getProgramXref($A53,numericItinerary(AB$1)) ->  | AC53: =getProgramXref($A53,numericItinerary(AC$1)) ->  | AD53: =getProgramXref($A53,numericItinerary(AD$1)) -> x | AE53: =getProgramXref($A53,numericItinerary(AE$1)) -> x | AF53: =getProgramXref($A53,numericItinerary(AF$1)) ->  | AG53: =getProgramXref($A53,numericItinerary(AG$1)) -> x | AH53: =getProgramXref($A53,numericItinerary(AH$1)) -> x | AI53: =getProgramXref($A53,numericItinerary(AI$1)) -> x | AJ53: =getProgramXref($A53,numericItinerary(AJ$1)) -> x | AL53: 23
A54: =INDEX(program_table,ROW()-5) -> Trail Peak | B54: 4 | C54: =getProgramXref($A54,numericItinerary(C$1)) ->  | D54: =getProgramXref($A54,numericItinerary(D$1)) ->  | E54: =getProgramXref($A54,numericItinerary(E$1)) ->  | F54: =getProgramXref($A54,numericItinerary(F$1)) ->  | G54: =getProgramXref($A54,numericItinerary(G$1)) ->  | H54: =getProgramXref($A54,numericItinerary(H$1)) ->  | I54: =getProgramXref($A54,numericItinerary(I$1)) ->  | J54: =getProgramXref($A54,numericItinerary(J$1)) -> x | K54: =getProgramXref($A54,numericItinerary(K$1)) ->  | L54: =getProgramXref($A54,numericItinerary(L$1)) ->  | M54: =getProgramXref($A54,numericItinerary(M$1)) -> x | N54: =getProgramXref($A54,numericItinerary(N$1)) ->  | O54: =getProgramXref($A54,numericItinerary(O$1)) ->  | P54: =getProgramXref($A54,numericItinerary(P$1)) -> x | Q54: =getProgramXref($A54,numericItinerary(Q$1)) -> x | R54: =getProgramXref($A54,numericItinerary(R$1)) ->  | S54: =getProgramXref($A54,numericItinerary(S$1)) ->  | T54: =getProgramXref($A54,numericItinerary(T$1)) ->  | U54: =getProgramXref($A54,numericItinerary(U$1)) ->  | V54: =getProgramXref($A54,numericItinerary(V$1)) ->  | W54: =getProgramXref($A54,numericItinerary(W$1)) ->  | X54: =getProgramXref($A54,numericItinerary(X$1)) ->  | Y54: =getProgramXref($A54,numericItinerary(Y$1)) ->  | Z54: =getProgramXref($A54,numericItinerary(Z$1)) ->  | AA54: =getProgramXref($A54,numericItinerary(AA$1)) ->  | AB54: =getProgramXref($A54,numericItinerary(AB$1)) ->  | AC54: =getProgramXref($A54,numericItinerary(AC$1)) ->  | AD54: =getProgramXref($A54,numericItinerary(AD$1)) ->  | AE54: =getProgramXref($A54,numericItinerary(AE$1)) ->  | AF54: =getProgramXref($A54,numericItinerary(AF$1)) ->  | AG54: =getProgramXref($A54,numericItinerary(AG$1)) ->  | AH54: =getProgramXref($A54,numericItinerary(AH$1)) ->  | AI54: =getProgramXref($A54,numericItinerary(AI$1)) ->  | AJ54: =getProgramXref($A54,numericItinerary(AJ$1)) ->  | AL54: 4
A55: =INDEX(program_table,ROW()-5) -> Western Lore/Branding | B55: 29 | C55: =getProgramXref($A55,numericItinerary(C$1)) -> x | D55: =getProgramXref($A55,numericItinerary(D$1)) -> x | E55: =getProgramXref($A55,numericItinerary(E$1)) ->  | F55: =getProgramXref($A55,numericItinerary(F$1)) -> x | G55: =getProgramXref($A55,numericItinerary(G$1)) -> x | H55: =getProgramXref($A55,numericItinerary(H$1)) -> x | I55: =getProgramXref($A55,numericItinerary(I$1)) -> x | J55: =getProgramXref($A55,numericItinerary(J$1)) -> x | K55: =getProgramXref($A55,numericItinerary(K$1)) -> x | L55: =getProgramXref($A55,numericItinerary(L$1)) -> x | M55: =getProgramXref($A55,numericItinerary(M$1)) -> x | N55: =getProgramXref($A55,numericItinerary(N$1)) -> x | O55: =getProgramXref($A55,numericItinerary(O$1)) -> x | P55: =getProgramXref($A55,numericItinerary(P$1)) -> x | Q55: =getProgramXref($A55,numericItinerary(Q$1)) -> x | R55: =getProgramXref($A55,numericItinerary(R$1)) -> x | S55: =getProgramXref($A55,numericItinerary(S$1)) -> x | T55: =getProgramXref($A55,numericItinerary(T$1)) ->  | U55: =getProgramXref($A55,numericItinerary(U$1)) -> x | V55: =getProgramXref($A55,numericItinerary(V$1)) -> x | W55: =getProgramXref($A55,numericItinerary(W$1)) -> x | X55: =getProgramXref($A55,numericItinerary(X$1)) -> x | Y55: =getProgramXref($A55,numericItinerary(Y$1)) ->  | Z55: =getProgramXref($A55,numericItinerary(Z$1)) -> x | AA55: =getProgramXref($A55,numericItinerary(AA$1)) ->  | AB55: =getProgramXref($A55,numericItinerary(AB$1)) -> x | AC55: =getProgramXref($A55,numericItinerary(AC$1)) -> x | AD55: =getProgramXref($A55,numericItinerary(AD$1)) -> x | AE55: =getProgramXref($A55,numericItinerary(AE$1)) -> x | AF55: =getProgramXref($A55,numericItinerary(AF$1)) ->  | AG55: =getProgramXref($A55,numericItinerary(AG$1)) -> x | AH55: =getProgramXref($A55,numericItinerary(AH$1)) -> x | AI55: =getProgramXref($A55,numericItinerary(AI$1)) -> x | AJ55: =getProgramXref($A55,numericItinerary(AJ$1)) -> x | AL55: 29
A56: # programs in itinerary: | C56: =COUNTIF(C6:C55,"X") -> 16 | D56: 18 | E56: 15 | F56: 19 | G56: 21 | H56: 19 | I56: 15 | J56: 18 | K56: 18 | L56: 23 | M56: 20 | N56: 19 | O56: 17 | P56: 22 | Q56: 22 | R56: 20 | S56: 25 | T56: 20 | U56: 20 | V56: 17 | W56: 21 | X56: 25 | Y56: 21 | Z56: 21 | AA56: 16 | AB56: 13 | AC56: 25 | AD56: =COUNTIF(AD6:AD55,"X") -> 19 | AE56: 18 | AF56: 18 | AG56: 14 | AH56: 22 | AI56: 20 | AJ56: 16 | AL56: =COUNTIF(#REF!,"X") -> 
AL57: =COUNTIF(#REF!,"X") -> 
AL58: =COUNTIF(#REF!,"X") -> 
AL59: =COUNTIF(#REF!,"X") -> 

Sheet Tables
A1: Row | B1: Category | C1: Code | D1: Value | F1: Median | G1: Score Selected | K1: n | L1: Index
B2: programFactor | C2: Multiply X Activity score for value to use | D2: 1.5 | E2: This is applied to each score in the calculation. Use to make activities more/less important. | L2: These are the results of the "Scores" worksheet — from the scores entered from the Preference Survey worksheets. | M2: Total | N2: Average | O2: Median | P2: Mode
A3: =ROW()-2 -> 1 | B3: Program | C3: =INDEX(program_table,A3,1) -> Archaeology | D3: =SUM(Scores!B2:M2) -> 152 | K3: 1 | M3: =SUM(Scores!$B2:M2)*programFactor -> 228 | N3: =IF(COUNT(Scores!$B2:M2)>0,AVERAGE(Scores!$B2:M2)*programFactor,0) -> 19 | O3: =IF(COUNT(Scores!$B2:M2)>0,MEDIAN(Scores!$B2:M2)*programFactor,0) -> 22.5 | P3: =IF(getmode(Scores!$B2:M2)="","",getmode(Scores!$B2:M2)*programFactor) -> 22.5
A4: =ROW()-2 -> 2 | B4: Program | C4: =INDEX(program_table,A4,1) -> Archery - 3 Dimensional | D4: =SUM(Scores!B3:M3) -> 225 | K4: 2 | M4: =SUM(Scores!$B3:M3)*programFactor -> 337.5 | N4: =IF(COUNT(Scores!$B3:M3)>0,AVERAGE(Scores!$B3:M3)*programFactor,0) -> 28.125 | O4: =IF(COUNT(Scores!$B3:M3)>0,MEDIAN(Scores!$B3:M3)*programFactor,0) -> 30 | P4: =IF(getmode(Scores!$B3:M3)="","",getmode(Scores!$B3:M3)*programFactor) -> 30
A5: 3 | B5: Program | C5: =INDEX(program_table,A5,1) -> Astronomy | D5: =SUM(Scores!B4:M4) -> 76 | K5: 3 | M5: =SUM(Scores!$B4:M4)*programFactor -> 114 | N5: =IF(COUNT(Scores!$B4:M4)>0,AVERAGE(Scores!$B4:M4)*programFactor,0) -> 9.5 | O5: =IF(COUNT(Scores!$B4:M4)>0,MEDIAN(Scores!$B4:M4)*programFactor,0) -> 10.5 | P5: =IF(getmode(Scores!$B4:M4)="","",getmode(Scores!$B4:M4)*programFactor) -> 3
A6: 4 | B6: Program | C6: =INDEX(program_table,A6,1) -> Atlatl (Dart-throwing) | D6: =SUM(Scores!B5:M5) -> 188 | K6: 4 | M6: =SUM(Scores!$B5:M5)*programFactor -> 282 | N6: =IF(COUNT(Scores!$B5:M5)>0,AVERAGE(Scores!$B5:M5)*programFactor,0) -> 23.5 | O6: =IF(COUNT(Scores!$B5:M5)>0,MEDIAN(Scores!$B5:M5)*programFactor,0) -> 27 | P6: =IF(getmode(Scores!$B5:M5)="","",getmode(Scores!$B5:M5)*programFactor) -> 27
A7: 5 | B7: Program | C7: =INDEX(program_table,A7,1) -> Baldy Mountain | D7: =SUM(Scores!B6:M6) -> 108 | K7: 5 | M7: =SUM(Scores!$B6:M6)*programFactor -> 162 | N7: =IF(COUNT(Scores!$B6:M6)>0,AVERAGE(Scores!$B6:M6)*programFactor,0) -> 13.5 | O7: =IF(COUNT(Scores!$B6:M6)>0,MEDIAN(Scores!$B6:M6)*programFactor,0) -> 12.75 | P7: =IF(getmode(Scores!$B6:M6)="","",getmode(Scores!$B6:M6)*programFactor) -> 0
A8: 6 | B8: Program | C8: =INDEX(program_table,A8,1) -> Blacksmithing | D8: =SUM(Scores!B7:M7) -> 111 | K8: 6 | M8: =SUM(Scores!$B7:M7)*programFactor -> 166.5 | N8: =IF(COUNT(Scores!$B7:M7)>0,AVERAGE(Scores!$B7:M7)*programFactor,0) -> 13.875 | O8: =IF(COUNT(Scores!$B7:M7)>0,MEDIAN(Scores!$B7:M7)*programFactor,0) -> 14.25 | P8: =IF(getmode(Scores!$B7:M7)="","",getmode(Scores!$B7:M7)*programFactor) -> 0
A9: 7 | B9: Program | C9: =INDEX(program_table,A9,1) -> Bouldering | D9: =SUM(Scores!B8:M8) -> 111 | K9: 7 | M9: =SUM(Scores!$B8:M8)*programFactor -> 166.5 | N9: =IF(COUNT(Scores!$B8:M8)>0,AVERAGE(Scores!$B8:M8)*programFactor,0) -> 13.875 | O9: =IF(COUNT(Scores!$B8:M8)>0,MEDIAN(Scores!$B8:M8)*programFactor,0) -> 14.25 | P9: =IF(getmode(Scores!$B8:M8)="","",getmode(Scores!$B8:M8)*programFactor) -> 0
A10: 8 | B10: Program | C10: =INDEX(program_table,A10,1) -> Burro Packing | D10: =SUM(Scores!B9:M9) -> 84 | K10: 8 | M10: =SUM(Scores!$B9:M9)*programFactor -> 126 | N10: =IF(COUNT(Scores!$B9:M9)>0,AVERAGE(Scores!$B9:M9)*programFactor,0) -> 10.5 | O10: =IF(COUNT(Scores!$B9:M9)>0,MEDIAN(Scores!$B9:M9)*programFactor,0) -> 9 | P10: =IF(getmode(Scores!$B9:M9)="","",getmode(Scores!$B9:M9)*programFactor) -> 0
A11: 9 | B11: Program | C11: =INDEX(program_table,A11,1) -> Campfire (evening) | D11: =SUM(Scores!B10:M10) -> 87 | K11: 9 | M11: =SUM(Scores!$B10:M10)*programFactor -> 130.5 | N11: =IF(COUNT(Scores!$B10:M10)>0,AVERAGE(Scores!$B10:M10)*programFactor,0) -> 10.875 | O11: =IF(COUNT(Scores!$B10:M10)>0,MEDIAN(Scores!$B10:M10)*programFactor,0) -> 13.5 | P11: =IF(getmode(Scores!$B10:M10)="","",getmode(Scores!$B10:M10)*programFactor) -> 0
A12: 10 | B12: Program | C12: =INDEX(program_table,A12,1) -> Cantina | D12: =SUM(Scores!B11:M11) -> 61 | K12: 10 | M12: =SUM(Scores!$B11:M11)*programFactor -> 91.5 | N12: =IF(COUNT(Scores!$B11:M11)>0,AVERAGE(Scores!$B11:M11)*programFactor,0) -> 8.318181818 | O12: =IF(COUNT(Scores!$B11:M11)>0,MEDIAN(Scores!$B11:M11)*programFactor,0) -> 7.5 | P12: =IF(getmode(Scores!$B11:M11)="","",getmode(Scores!$B11:M11)*programFactor) -> 0
A13: 11 | B13: Program | C13: =INDEX(program_table,A13,1) -> Challenge Events | D13: =SUM(Scores!B12:M12) -> 73 | K13: 11 | M13: =SUM(Scores!$B12:M12)*programFactor -> 109.5 | N13: =IF(COUNT(Scores!$B12:M12)>0,AVERAGE(Scores!$B12:M12)*programFactor,0) -> 9.954545455 | O13: =IF(COUNT(Scores!$B12:M12)>0,MEDIAN(Scores!$B12:M12)*programFactor,0) -> 7.5 | P13: =IF(getmode(Scores!$B12:M12)="","",getmode(Scores!$B12:M12)*programFactor) -> 7.5
A14: 12 | B14: Program | C14: =INDEX(program_table,A14,1) -> Chuckwagon Dinner | D14: =SUM(Scores!B13:M13) -> 73 | K14: 12 | M14: =SUM(Scores!$B13:M13)*programFactor -> 109.5 | N14: =IF(COUNT(Scores!$B13:M13)>0,AVERAGE(Scores!$B13:M13)*programFactor,0) -> 13.6875 | O14: =IF(COUNT(Scores!$B13:M13)>0,MEDIAN(Scores!$B13:M13)*programFactor,0) -> 15.75 | P14: =IF(getmode(Scores!$B13:M13)="","",getmode(Scores!$B13:M13)*programFactor) -> 0
A15: 13 | B15: Program | C15: =INDEX(program_table,A15,1) -> Cowboy Action Shooting | D15: =SUM(Scores!B14:M14) -> 74 | K15: 13 | M15: =SUM(Scores!$B14:M14)*programFactor -> 111 | N15: =IF(COUNT(Scores!$B14:M14)>0,AVERAGE(Scores!$B14:M14)*programFactor,0) -> 9.25 | O15: =IF(COUNT(Scores!$B14:M14)>0,MEDIAN(Scores!$B14:M14)*programFactor,0) -> 6 | P15: =IF(getmode(Scores!$B14:M14)="","",getmode(Scores!$B14:M14)*programFactor) -> 0
A16: 14 | B16: Program | C16: =INDEX(program_table,A16,1) -> Demonstration Forest | D16: =SUM(Scores!B15:M15) -> 76 | K16: 14 | M16: =SUM(Scores!$B15:M15)*programFactor -> 114 | N16: =IF(COUNT(Scores!$B15:M15)>0,AVERAGE(Scores!$B15:M15)*programFactor,0) -> 10.36363636 | O16: =IF(COUNT(Scores!$B15:M15)>0,MEDIAN(Scores!$B15:M15)*programFactor,0) -> 10.5 | P16: =IF(getmode(Scores!$B15:M15)="","",getmode(Scores!$B15:M15)*programFactor) -> 3
A17: 15 | B17: Program | C17: =INDEX(program_table,A17,1) -> Fishing | D17: =SUM(Scores!B16:M16) -> 82 | K17: 15 | M17: =SUM(Scores!$B16:M16)*programFactor -> 123 | N17: =IF(COUNT(Scores!$B16:M16)>0,AVERAGE(Scores!$B16:M16)*programFactor,0) -> 11.18181818 | O17: =IF(COUNT(Scores!$B16:M16)>0,MEDIAN(Scores!$B16:M16)*programFactor,0) -> 7.5 | P17: =IF(getmode(Scores!$B16:M16)="","",getmode(Scores!$B16:M16)*programFactor) -> 4.5
A18: 16 | B18: Program | C18: =INDEX(program_table,A18,1) -> Fly Tying | D18: =SUM(Scores!B17:M17) -> 84 | K18: 16 | M18: =SUM(Scores!$B17:M17)*programFactor -> 126 | N18: =IF(COUNT(Scores!$B17:M17)>0,AVERAGE(Scores!$B17:M17)*programFactor,0) -> 10.5 | O18: =IF(COUNT(Scores!$B17:M17)>0,MEDIAN(Scores!$B17:M17)*programFactor,0) -> 12 | P18: =IF(getmode(Scores!$B17:M17)="","",getmode(Scores!$B17:M17)*programFactor) -> 12
A19: 17 | B19: Program | C19: =INDEX(program_table,A19,1) -> Fur Trapper Rendezvous | D19: =SUM(Scores!B18:M18) -> 71 | K19: 17 | M19: =SUM(Scores!$B18:M18)*programFactor -> 106.5 | N19: =IF(COUNT(Scores!$B18:M18)>0,AVERAGE(Scores!$B18:M18)*programFactor,0) -> 8.875 | O19: =IF(COUNT(Scores!$B18:M18)>0,MEDIAN(Scores!$B18:M18)*programFactor,0) -> 6 | P19: =IF(getmode(Scores!$B18:M18)="","",getmode(Scores!$B18:M18)*programFactor) -> 1.5
A20: 18 | B20: Program | C20: =INDEX(program_table,A20,1) -> Gold Mining & Panning | D20: =SUM(Scores!B19:M19) -> 97 | K20: 18 | M20: =SUM(Scores!$B19:M19)*programFactor -> 145.5 | N20: =IF(COUNT(Scores!$B19:M19)>0,AVERAGE(Scores!$B19:M19)*programFactor,0) -> 13.22727273 | O20: =IF(COUNT(Scores!$B19:M19)>0,MEDIAN(Scores!$B19:M19)*programFactor,0) -> 15 | P20: =IF(getmode(Scores!$B19:M19)="","",getmode(Scores!$B19:M19)*programFactor) -> 15
A21: 19 | B21: Program | C21: =INDEX(program_table,A21,1) -> High Ropes & Climbing Tower | D21: =SUM(Scores!B20:M20) -> 62 | K21: 19 | M21: =SUM(Scores!$B20:M20)*programFactor -> 93 | N21: =IF(COUNT(Scores!$B20:M20)>0,AVERAGE(Scores!$B20:M20)*programFactor,0) -> 7.75 | O21: =IF(COUNT(Scores!$B20:M20)>0,MEDIAN(Scores!$B20:M20)*programFactor,0) -> 6 | P21: =IF(getmode(Scores!$B20:M20)="","",getmode(Scores!$B20:M20)*programFactor) -> 0
A22: 20 | B22: Program | C22: =INDEX(program_table,A22,1) -> Historic Chase Ranch | D22: =SUM(Scores!B21:M21) -> 104 | K22: 20 | M22: =SUM(Scores!$B21:M21)*programFactor -> 156 | N22: =IF(COUNT(Scores!$B21:M21)>0,AVERAGE(Scores!$B21:M21)*programFactor,0) -> 13 | O22: =IF(COUNT(Scores!$B21:M21)>0,MEDIAN(Scores!$B21:M21)*programFactor,0) -> 15 | P22: =IF(getmode(Scores!$B21:M21)="","",getmode(Scores!$B21:M21)*programFactor) -> 3
A23: 21 | B23: Program | C23: =INDEX(program_table,A23,1) -> Homesteading | D23: =SUM(Scores!B22:M22) -> 76 | K23: 21 | M23: =SUM(Scores!$B22:M22)*programFactor -> 114 | N23: =IF(COUNT(Scores!$B22:M22)>0,AVERAGE(Scores!$B22:M22)*programFactor,0) -> 9.5 | O23: =IF(COUNT(Scores!$B22:M22)>0,MEDIAN(Scores!$B22:M22)*programFactor,0) -> 6 | P23: =IF(getmode(Scores!$B22:M22)="","",getmode(Scores!$B22:M22)*programFactor) -> 0
A24: 22 | B24: Program | C24: =INDEX(program_table,A24,1) -> Horse Rides | D24: =SUM(Scores!B23:M23) -> 86 | K24: 22 | M24: =SUM(Scores!$B23:M23)*programFactor -> 129 | N24: =IF(COUNT(Scores!$B23:M23)>0,AVERAGE(Scores!$B23:M23)*programFactor,0) -> 10.75 | O24: =IF(COUNT(Scores!$B23:M23)>0,MEDIAN(Scores!$B23:M23)*programFactor,0) -> 9.75 | P24: =IF(getmode(Scores!$B23:M23)="","",getmode(Scores!$B23:M23)*programFactor) -> 0
A25: 23 | B25: Program | C25: =INDEX(program_table,A25,1) -> Hunter Safety | D25: =SUM(Scores!B24:M24) -> 69 | K25: 23 | M25: =SUM(Scores!$B24:M24)*programFactor -> 103.5 | N25: =IF(COUNT(Scores!$B24:M24)>0,AVERAGE(Scores!$B24:M24)*programFactor,0) -> 8.625 | O25: =IF(COUNT(Scores!$B24:M24)>0,MEDIAN(Scores!$B24:M24)*programFactor,0) -> 9.75 | P25: =IF(getmode(Scores!$B24:M24)="","",getmode(Scores!$B24:M24)*programFactor) -> 3
A26: 24 | B26: Program | C26: =INDEX(program_table,A26,1) -> Inspiration Point Hike | D26: =SUM(Scores!B25:M25) -> 108 | K26: 24 | M26: =SUM(Scores!$B25:M25)*programFactor -> 162 | N26: =IF(COUNT(Scores!$B25:M25)>0,AVERAGE(Scores!$B25:M25)*programFactor,0) -> 18 | O26: =IF(COUNT(Scores!$B25:M25)>0,MEDIAN(Scores!$B25:M25)*programFactor,0) -> 22.5 | P26: =IF(getmode(Scores!$B25:M25)="","",getmode(Scores!$B25:M25)*programFactor) -> 0
A27: 25 | B27: Program | C27: =INDEX(program_table,A27,1) -> Jicarilla Apache Life | D27: =SUM(Scores!B26:M26) -> 134 | K27: 25 | M27: =SUM(Scores!$B26:M26)*programFactor -> 201 | N27: =IF(COUNT(Scores!$B26:M26)>0,AVERAGE(Scores!$B26:M26)*programFactor,0) -> 16.75 | O27: =IF(COUNT(Scores!$B26:M26)>0,MEDIAN(Scores!$B26:M26)*programFactor,0) -> 18.75 | P27: =IF(getmode(Scores!$B26:M26)="","",getmode(Scores!$B26:M26)*programFactor) -> 15
A28: 26 | B28: Program | C28: =INDEX(program_table,A28,1) -> Kit Carson/Rayado Rancho | D28: =SUM(Scores!B27:M27) -> 97 | K28: 26 | M28: =SUM(Scores!$B27:M27)*programFactor -> 145.5 | N28: =IF(COUNT(Scores!$B27:M27)>0,AVERAGE(Scores!$B27:M27)*programFactor,0) -> 14.55 | O28: =IF(COUNT(Scores!$B27:M27)>0,MEDIAN(Scores!$B27:M27)*programFactor,0) -> 15 | P28: =IF(getmode(Scores!$B27:M27)="","",getmode(Scores!$B27:M27)*programFactor) -> 15
A29: 27 | B29: Program | C29: =INDEX(program_table,A29,1) -> Laser Shot Shooting Range | D29: =SUM(Scores!B28:M28) -> 100 | K29: 26 | M29: =SUM(Scores!$B28:M28)*programFactor -> 150 | N29: =IF(COUNT(Scores!$B28:M28)>0,AVERAGE(Scores!$B28:M28)*programFactor,0) -> 13.63636364 | O29: =IF(COUNT(Scores!$B28:M28)>0,MEDIAN(Scores!$B28:M28)*programFactor,0) -> 18 | P29: =IF(getmode(Scores!$B28:M28)="","",getmode(Scores!$B28:M28)*programFactor) -> 0
A30: 28 | B30: Program | C30: =INDEX(program_table,A30,1) -> Lodge/Cabin Tours | D30: =SUM(Scores!B29:M29) -> 117 | K30: 27 | M30: =SUM(Scores!$B29:M29)*programFactor -> 175.5 | N30: =IF(COUNT(Scores!$B29:M29)>0,AVERAGE(Scores!$B29:M29)*programFactor,0) -> 15.95454545 | O30: =IF(COUNT(Scores!$B29:M29)>0,MEDIAN(Scores!$B29:M29)*programFactor,0) -> 18 | P30: =IF(getmode(Scores!$B29:M29)="","",getmode(Scores!$B29:M29)*programFactor) -> 0
A31: 29 | B31: Program | C31: =INDEX(program_table,A31,1) -> Low Impact Camping | D31: =SUM(Scores!B30:M30) -> 103 | K31: 28 | M31: =SUM(Scores!$B30:M30)*programFactor -> 154.5 | N31: =IF(COUNT(Scores!$B30:M30)>0,AVERAGE(Scores!$B30:M30)*programFactor,0) -> 15.45 | O31: =IF(COUNT(Scores!$B30:M30)>0,MEDIAN(Scores!$B30:M30)*programFactor,0) -> 18 | P31: =IF(getmode(Scores!$B30:M30)="","",getmode(Scores!$B30:M30)*programFactor) -> 18
A32: 30 | B32: Program | C32: =INDEX(program_table,A32,1) -> Mexican Dinner | D32: =SUM(Scores!B31:M31) -> 126 | M32: =SUM(Scores!$B31:M31)*programFactor -> 189 | N32: =IF(COUNT(Scores!$B31:M31)>0,AVERAGE(Scores!$B31:M31)*programFactor,0) -> 17.18181818 | O32: =IF(COUNT(Scores!$B31:M31)>0,MEDIAN(Scores!$B31:M31)*programFactor,0) -> 18 | P32: =IF(getmode(Scores!$B31:M31)="","",getmode(Scores!$B31:M31)*programFactor) -> 22.5
A33: 31 | B33: Program | C33: =INDEX(program_table,A33,1) -> Mine Tour | D33: =SUM(Scores!B32:M32) -> 135 | M33: =SUM(Scores!$B32:M32)*programFactor -> 202.5 | N33: =IF(COUNT(Scores!$B32:M32)>0,AVERAGE(Scores!$B32:M32)*programFactor,0) -> 18.40909091 | O33: =IF(COUNT(Scores!$B32:M32)>0,MEDIAN(Scores!$B32:M32)*programFactor,0) -> 19.5 | P33: =IF(getmode(Scores!$B32:M32)="","",getmode(Scores!$B32:M32)*programFactor) -> 19.5
A34: 32 | B34: Program | C34: =INDEX(program_table,A34,1) -> Mount Phillips | D34: =SUM(Scores!B33:M33) -> 61 | M34: =SUM(Scores!$B33:M33)*programFactor -> 91.5 | N34: =IF(COUNT(Scores!$B33:M33)>0,AVERAGE(Scores!$B33:M33)*programFactor,0) -> 9.15 | O34: =IF(COUNT(Scores!$B33:M33)>0,MEDIAN(Scores!$B33:M33)*programFactor,0) -> 7.5 | P34: =IF(getmode(Scores!$B33:M33)="","",getmode(Scores!$B33:M33)*programFactor) -> 0
A35: 33 | B35: Program | C35: =INDEX(program_table,A35,1) -> Mountain Biking | D35: =SUM(Scores!B34:M34) -> 121 | M35: =SUM(Scores!$B34:M34)*programFactor -> 181.5 | N35: =IF(COUNT(Scores!$B34:M34)>0,AVERAGE(Scores!$B34:M34)*programFactor,0) -> 18.15 | O35: =IF(COUNT(Scores!$B34:M34)>0,MEDIAN(Scores!$B34:M34)*programFactor,0) -> 18 | P35: =IF(getmode(Scores!$B34:M34)="","",getmode(Scores!$B34:M34)*programFactor) -> 10.5
A36: 34 | B36: Program | C36: =INDEX(program_table,A36,1) -> Mountaineering | D36: =SUM(Scores!B35:M35) -> 147 | M36: =SUM(Scores!$B35:M35)*programFactor -> 220.5 | N36: =IF(COUNT(Scores!$B35:M35)>0,AVERAGE(Scores!$B35:M35)*programFactor,0) -> 18.375 | O36: =IF(COUNT(Scores!$B35:M35)>0,MEDIAN(Scores!$B35:M35)*programFactor,0) -> 18 | P36: =IF(getmode(Scores!$B35:M35)="","",getmode(Scores!$B35:M35)*programFactor) -> 10.5
A37: 35 | B37: Program | C37: =INDEX(program_table,A37,1) -> Muzzle Loading Rifle | D37: =SUM(Scores!B36:M36) -> 140 | M37: =SUM(Scores!$B36:M36)*programFactor -> 210 | N37: =IF(COUNT(Scores!$B36:M36)>0,AVERAGE(Scores!$B36:M36)*programFactor,0) -> 19.09090909 | O37: =IF(COUNT(Scores!$B36:M36)>0,MEDIAN(Scores!$B36:M36)*programFactor,0) -> 21 | P37: =IF(getmode(Scores!$B36:M36)="","",getmode(Scores!$B36:M36)*programFactor) -> 7.5
A38: 36 | B38: Program | C38: =INDEX(program_table,A38,1) -> New Mexico Homestead | D38: =SUM(Scores!B37:M37) -> 170 | M38: =SUM(Scores!$B37:M37)*programFactor -> 255 | N38: =IF(COUNT(Scores!$B37:M37)>0,AVERAGE(Scores!$B37:M37)*programFactor,0) -> 23.18181818 | O38: =IF(COUNT(Scores!$B37:M37)>0,MEDIAN(Scores!$B37:M37)*programFactor,0) -> 27 | P38: =IF(getmode(Scores!$B37:M37)="","",getmode(Scores!$B37:M37)*programFactor) -> 30
A39: 37 | B39: Program | C39: =INDEX(program_table,A39,1) -> Petroglyph Tour | D39: =SUM(Scores!B38:M38) -> 157 | M39: =SUM(Scores!$B38:M38)*programFactor -> 235.5 | N39: =IF(COUNT(Scores!$B38:M38)>0,AVERAGE(Scores!$B38:M38)*programFactor,0) -> 21.40909091 | O39: =IF(COUNT(Scores!$B38:M38)>0,MEDIAN(Scores!$B38:M38)*programFactor,0) -> 22.5 | P39: =IF(getmode(Scores!$B38:M38)="","",getmode(Scores!$B38:M38)*programFactor) -> 30
A40: 38 | B40: Program | C40: =INDEX(program_table,A40,1) -> Post Civil War Encampment | D40: =SUM(Scores!B39:M39) -> 129 | M40: =SUM(Scores!$B39:M39)*programFactor -> 193.5 | N40: =IF(COUNT(Scores!$B39:M39)>0,AVERAGE(Scores!$B39:M39)*programFactor,0) -> 19.35 | O40: =IF(COUNT(Scores!$B39:M39)>0,MEDIAN(Scores!$B39:M39)*programFactor,0) -> 18 | P40: =IF(getmode(Scores!$B39:M39)="","",getmode(Scores!$B39:M39)*programFactor) -> 10.5
A41: 39 | B41: Program | C41: =INDEX(program_table,A41,1) -> Railroading | D41: =SUM(Scores!B40:M40) -> 101 | M41: =SUM(Scores!$B40:M40)*programFactor -> 151.5 | N41: =IF(COUNT(Scores!$B40:M40)>0,AVERAGE(Scores!$B40:M40)*programFactor,0) -> 12.625 | O41: =IF(COUNT(Scores!$B40:M40)>0,MEDIAN(Scores!$B40:M40)*programFactor,0) -> 15 | P41: =IF(getmode(Scores!$B40:M40)="","",getmode(Scores!$B40:M40)*programFactor) -> 15
A42: 40 | B42: Program | C42: =INDEX(program_table,A42,1) -> Rock Climbing & Rappelling | D42: =SUM(Scores!B41:M41) -> 91 | M42: =SUM(Scores!$B41:M41)*programFactor -> 136.5 | N42: =IF(COUNT(Scores!$B41:M41)>0,AVERAGE(Scores!$B41:M41)*programFactor,0) -> 11.375 | O42: =IF(COUNT(Scores!$B41:M41)>0,MEDIAN(Scores!$B41:M41)*programFactor,0) -> 9 | P42: =IF(getmode(Scores!$B41:M41)="","",getmode(Scores!$B41:M41)*programFactor) -> 7.5
A43: 41 | B43: Program | C43: =INDEX(program_table,A43,1) -> Rocky Mountain Fur Co. | D43: =SUM(Scores!B42:M42) -> 135 | M43: =SUM(Scores!$B42:M42)*programFactor -> 202.5 | N43: =IF(COUNT(Scores!$B42:M42)>0,AVERAGE(Scores!$B42:M42)*programFactor,0) -> 18.40909091 | O43: =IF(COUNT(Scores!$B42:M42)>0,MEDIAN(Scores!$B42:M42)*programFactor,0) -> 19.5 | P43: =IF(getmode(Scores!$B42:M42)="","",getmode(Scores!$B42:M42)*programFactor) -> 19.5
A44: 42 | B44: Program | C44: =INDEX(program_table,A44,1) -> Search & Rescue/Wild. Medicine | D44: =SUM(Scores!B43:M43) -> 138 | M44: =SUM(Scores!$B43:M43)*programFactor -> 207 | N44: =IF(COUNT(Scores!$B43:M43)>0,AVERAGE(Scores!$B43:M43)*programFactor,0) -> 18.81818182 | O44: =IF(COUNT(Scores!$B43:M43)>0,MEDIAN(Scores!$B43:M43)*programFactor,0) -> 18 | P44: =IF(getmode(Scores!$B43:M43)="","",getmode(Scores!$B43:M43)*programFactor) -> 15
A45: 43 | B45: Program | C45: =INDEX(program_table,A45,1) -> Shooting/Reloading - .30-06 | D45: =SUM(Scores!B44:M44) -> 138 | M45: =SUM(Scores!$B44:M44)*programFactor -> 207 | N45: =IF(COUNT(Scores!$B44:M44)>0,AVERAGE(Scores!$B44:M44)*programFactor,0) -> 18.81818182 | O45: =IF(COUNT(Scores!$B44:M44)>0,MEDIAN(Scores!$B44:M44)*programFactor,0) -> 18 | P45: =IF(getmode(Scores!$B44:M44)="","",getmode(Scores!$B44:M44)*programFactor) -> 15
A46: 44 | B46: Program | C46: =INDEX(program_table,A46,1) -> Shotgun Shooting/Reloading - 12 Gauge | D46: =SUM(Scores!B45:M45) -> 138 | M46: =SUM(Scores!$B45:M45)*programFactor -> 207 | N46: =IF(COUNT(Scores!$B45:M45)>0,AVERAGE(Scores!$B45:M45)*programFactor,0) -> 18.81818182 | O46: =IF(COUNT(Scores!$B45:M45)>0,MEDIAN(Scores!$B45:M45)*programFactor,0) -> 18 | P46: =IF(getmode(Scores!$B45:M45)="","",getmode(Scores!$B45:M45)*programFactor) -> 15
A47: 45 | B47: Program | C47: =INDEX(program_table,A47,1) -> Spar Pole Climbing | D47: =SUM(Scores!B46:M46) -> 61 | M47: =SUM(Scores!$B46:M46)*programFactor -> 91.5 | N47: =IF(COUNT(Scores!$B46:M46)>0,AVERAGE(Scores!$B46:M46)*programFactor,0) -> 9.15 | O47: =IF(COUNT(Scores!$B46:M46)>0,MEDIAN(Scores!$B46:M46)*programFactor,0) -> 7.5 | P47: =IF(getmode(Scores!$B46:M46)="","",getmode(Scores!$B46:M46)*programFactor) -> 0
A48: 46 | B48: Program | C48: =INDEX(program_table,A48,1) -> Tie Making & Crosscut Saws | D48: =SUM(Scores!B47:M47) -> 157 | K48: 31 | M48: =SUM(Scores!$B47:M47)*programFactor -> 235.5 | N48: =IF(COUNT(Scores!$B47:M47)>0,AVERAGE(Scores!$B47:M47)*programFactor,0) -> 23.55 | O48: =IF(COUNT(Scores!$B47:M47)>0,MEDIAN(Scores!$B47:M47)*programFactor,0) -> 24.75 | P48: =IF(getmode(Scores!$B47:M47)="","",getmode(Scores!$B47:M47)*programFactor) -> 30
A49: 47 | B49: Program | C49: =INDEX(program_table,A49,1) -> Tomahawk Throwing | D49: =SUM(Scores!B48:M48) -> 89 | M49: =SUM(Scores!$B48:M48)*programFactor -> 133.5 | N49: =IF(COUNT(Scores!$B48:M48)>0,AVERAGE(Scores!$B48:M48)*programFactor,0) -> 16.6875 | O49: =IF(COUNT(Scores!$B48:M48)>0,MEDIAN(Scores!$B48:M48)*programFactor,0) -> 15.75 | P49: =IF(getmode(Scores!$B48:M48)="","",getmode(Scores!$B48:M48)*programFactor) -> 0
A50: 48 | B50: Program | C50: =INDEX(program_table,A50,1) -> Tooth of Time | D50: =SUM(Scores!B49:M49) -> 190 | K50: 31 | M50: =SUM(Scores!$B49:M49)*programFactor -> 285 | N50: =IF(COUNT(Scores!$B49:M49)>0,AVERAGE(Scores!$B49:M49)*programFactor,0) -> 25.90909091 | O50: =IF(COUNT(Scores!$B49:M49)>0,MEDIAN(Scores!$B49:M49)*programFactor,0) -> 27 | P50: =IF(getmode(Scores!$B49:M49)="","",getmode(Scores!$B49:M49)*programFactor) -> 30
A51: 49 | B51: Program | C51: =INDEX(program_table,A51,1) -> Trail Peak | D51: =SUM(Scores!B50:M50) -> 76 | K51: 31 | M51: =SUM(Scores!$B50:M50)*programFactor -> 114 | N51: =IF(COUNT(Scores!$B50:M50)>0,AVERAGE(Scores!$B50:M50)*programFactor,0) -> 16.28571429 | O51: =IF(COUNT(Scores!$B50:M50)>0,MEDIAN(Scores!$B50:M50)*programFactor,0) -> 15 | P51: =IF(getmode(Scores!$B50:M50)="","",getmode(Scores!$B50:M50)*programFactor) -> 15
A52: 50 | B52: Program | C52: =INDEX(program_table,A52,1) -> Western Lore/Branding | D52: =SUM(Scores!B51:M51) -> 93 | K52: 31 | M52: =SUM(Scores!$B51:M51)*programFactor -> 139.5 | N52: =IF(COUNT(Scores!$B51:M51)>0,AVERAGE(Scores!$B51:M51)*programFactor,0) -> 13.95 | O52: =IF(COUNT(Scores!$B51:M51)>0,MEDIAN(Scores!$B51:M51)*programFactor,0) -> 13.5 | P52: =IF(getmode(Scores!$B51:M51)="","",getmode(Scores!$B51:M51)*programFactor) -> 12
A53: =A52+1 -> 51 | B53: Peaks | C53: Baldy Mountain | D53: 2
A54: 52 | B54: Peaks | C54: Mount Phillips | D54: 1.5
A55: 53 | B55: Peaks | C55: Tooth of Time | D55: 1.5
A56: 54 | B56: Peaks | C56: Trail Peak | D56: 1
A57: 55 | B57: Peaks | C57: Mountaineering | D57: 0.8
A58: 56 | B58: Area | C58: Rank 1 | D58: =IF(UPPER(areaImportant)="Y",INDEX(areaDefaults,Preferences!B7),0) -> 0
A59: 57 | B59: Area | C59: Rank 2 | D59: =IF(UPPER(areaImportant)="Y",INDEX(areaDefaults,Preferences!B8),0) -> 0 | I59: 1 | J59: 1000
A60: 58 | B60: Area | C60: Rank 3 | D60: =IF(UPPER(areaImportant)="Y",INDEX(areaDefaults,Preferences!B9),0) -> 0 | I60: 2 | J60: 600 | K60: =IF(areaImportant="y","Preferences setting is that area is important", "Preferences setting is that area is not important") -> Preferences setting is that area is not important
A61: 59 | B61: Area | C61: Rank 4 | D61: =IF(UPPER(areaImportant)="Y",INDEX(areaDefaults,Preferences!B10),0) -> 0 | I61: 3 | J61: 200 | K61: =IF(areaImportant="y","These are the default values — MAKE CHANGES HERE", "") -> 
A62: 60 | B62: Days Food | C62: 1 | D62: 100 | I62: 4 | J62: 150
A63: 61 | B63: Days Food | C63: 2 | D63: 90
A64: 62 | B64: Days Food | C64: 3 | D64: 80
A65: 63 | B65: Days Food | C65: 4 | D65: 70
A66: 64 | B66: Days Food | C66: 5 | D66: 60
A67: 65 | B67: Days Food | C67: 6 | D67: 50
A68: 66 | B68: Food from HQ | C68: 1 | D68: 20
A69: 67 | B69: Food from HQ | C69: 2 | D69: 30
A70: 68 | B70: Food from HQ | C70: 3 | D70: 40
A71: 69 | B71: Food from HQ | C71: 4 | D71: 50
A72: 70 | B72: Food from HQ | C72: 5 | D72: 60
A73: 71 | B73: Food from HQ | C73: 6 | D73: 70
A74: 72 | B74: Food from HQ | C74: 7 | D74: 80
A75: 73 | B75: Food from HQ | C75: 8 | D75: 90
A76: 74 | B76: Food from HQ | C76: 9 | D76: 100
A77: 75 | B77: Trail Camps | C77: 0 | D77: 250
A78: 76 | B78: Trail Camps | C78: 1 | D78: 200
A79: 77 | B79: Trail Camps | C79: 2 | D79: 175
A80: =A79+1 -> 78 | B80: Trail Camps | C80: 3 | D80: 150
A81: =A80+1 -> 79 | B81: Trail Camps | C81: 4 | D81: 125
A82: =A81+1 -> 80 | B82: Trail Camps | C82: 5 | D82: 100
A83: =A82+1 -> 81 | B83: Trail Camps | C83: 6 | D83: 75
A84: =A83+1 -> 82 | B84: Trail Camps | C84: 7 | D84: 50
A85: 83 | B85: Trail Camps | C85: 8 | D85: 25
A86: 84 | B86: Dry Camps | C86: 0 | D86: 300
A87: 85 | B87: Dry Camps | C87: 1 | D87: 250
A88: 86 | B88: Dry Camps | C88: 2 | D88: 225
A89: 87 | B89: Dry Camps | C89: 3 | D89: 200
A90: 88 | B90: Dry Camps | C90: 4 | D90: 150
A91: 89 | B91: Dry Camps | C91: 5 | D91: 100
A92: 90 | B92: Dry Camps | C92: 6 | D92: 50
A93: 91 | B93: Dry Camps | C93: 7 | D93: 20
A94: 92 | B94: Total Camps | C94: 3 | D94: 60
A95: 93 | B95: Total Camps | C95: 4 | D95: 70
A96: 94 | B96: Total Camps | C96: 5 | D96: 80
A97: 95 | B97: Total Camps | C97: 6 | D97: 90
A98: 96 | B98: Total Camps | C98: 7 | D98: 100
A99: 97 | B99: Total Camps | C99: 8 | D99: 75
A100: 98 | B100: Total Camps | C100: 9 | D100: 60
A101: 99 | B101: Total Camps | C101: 10 | D101: 50
A102: 100 | B102: Difficulty | C102: C | D102: 4000
A103: 101 | B103: Difficulty | C103: R | D103: 3166.666667 | K103: Match skill level with itinerary difficulty
A104: 102 | B104: Difficulty | C104: S | D104: 2333.333333 | K104: Skill | L104: C | M104: R | N104: S | O104: SS
A105: 103 | B105: Difficulty | C105: SS | D105: 1500 | I105: maxSkill: | J105: 4000 | K105: 1 | L105: =maxSkill+maxDifficult -> 5000 | M105: =L105-((L105-O105)/3) -> 3500 | N105: =M105-((L105-O105)/3) -> 2000 | O105: =difficultDelta -> 500
A106: 104 | B106: Max Altitude | C106: 0 | D106: 20 | I106: maxDifficult: | J106: 1000 | K106: 2 | L106: =L105-((L$105-L$114)/9) -> 4500 | M106: =L106-((L106-O106)/3) -> 3333.333333 | N106: =M106-((L106-O106)/3) -> 2166.666667 | O106: =L113 -> 1000
A107: 105 | B107: Max Altitude | C107: 9000 | D107: 30 | I107: minDifficult: | J107: 500 | K107: 3 | L107: =L106-((L$105-L$114)/9) -> 4000 | M107: 3166.666667 | N107: 2333.333333 | O107: =L112 -> 1500
A108: 106 | B108: Max Altitude | C108: 9100 | D108: 40 | K108: 4 | L108: 3500 | M108: 3000 | N108: 2500 | O108: =L111 -> 2000
A109: 107 | B109: Max Altitude | C109: 9200 | D109: 50 | K109: 5 | L109: 3000 | M109: 2833.333333 | N109: 2666.666667 | O109: =L110 -> 2500
A110: 108 | B110: Max Altitude | C110: 9800 | D110: 60 | K110: 6 | L110: 2500 | M110: 2666.666667 | N110: 2833.333333 | O110: =L109 -> 3000
A111: 109 | B111: Max Altitude | C111: 10000 | D111: 70 | I111: ="Your Crew is Level " & skillLevel -> Your Crew is Level 3 | K111: 7 | L111: 2000 | M111: 2500 | N111: 3000 | O111: =L108 -> 3500
A112: 110 | B112: Max Altitude | C112: 10500 | D112: 80 | I112: (from Preferences) | K112: 8 | L112: 1500 | M112: 2333.333333 | N112: 3166.666667 | O112: =L107 -> 4000
A113: 111 | B113: Max Altitude | C113: 10600 | D113: 90 | K113: 9 | L113: 1000 | M113: 2166.666667 | N113: 3333.333333 | O113: =L106 -> 4500
A114: 112 | B114: Max Altitude | C114: 10800 | D114: 100 | K114: 10 | L114: =difficultDelta -> 500 | M114: 2000 | N114: 3500 | O114: =L105 -> 5000
A115: 113 | B115: Max Altitude | C115: 11000 | D115: 110 | L115: Challenging | M115: Rugged | N115: Strenuous | O115: Super Strenuous
A116: 114 | B116: Max Altitude | C116: 11800 | D116: 120
A117: 115 | B117: Max Altitude | C117: 12441 | D117: 130
A118: 116 | B118: Total Gain | C118: 0 | D118: 40
A119: 117 | B119: Total Gain | C119: 1500 | D119: 50
A120: 118 | B120: Total Gain | C120: 2000 | D120: 60
A121: 119 | B121: Total Gain | C121: 2500 | D121: 70
A122: 120 | B122: Total Gain | C122: 3000 | D122: 80
A123: 121 | B123: Total Gain | C123: 3500 | D123: 90
A124: 122 | B124: Total Gain | C124: 4000 | D124: 100
A125: 123 | B125: Total Gain | C125: 4500 | D125: 90
A126: 124 | B126: Total Gain | C126: 5000 | D126: 80
A127: 125 | B127: Total Gain | C127: 5500 | D127: 70
A128: 126 | B128: Total Gain | C128: 6000 | D128: 60
A129: 127 | B129: Total Gain | C129: 6500 | D129: 50
A130: 128 | B130: Daily Change | C130: 300 | D130: 100
A131: 129 | B131: Daily Change | C131: 600 | D131: 300
A132: 130 | B132: Daily Change | C132: 900 | D132: 200
A133: 131 | B133: Daily Change | C133: 1200 | D133: 100
A134: 132 | B134: Hike Out | C134: n | D134: 0
A135: 133 | B135: Hike Out | C135: y | D135: 500
A136: 134 | B136: Hike In | C136: n | D136: 0
A137: 135 | B137: Hike In | C137: y | D137: 500
A138: 136 | B138: Distance | C138: Miles | D138: 100
A139: These are used for code lookup puposes only. | B139: Difficulty | C139: C | D139: Challenging
B140: Difficulty | C140: R | D140: Rugged
B141: Difficulty | C141: S | D141: Strenuous
B142: Difficulty | C142: SS | D142: Super Strenuous
B143: campType | C143: D | D143: Dry
B144: campType | C144: S | D144: Staffed
B145: campType | C145: T | D145: Trail
B146: campType | C146: X | D146: No Camping

Sheet Detail Informaton
A1: This sheet provides more detailed information about this spreadsheet and may be useful for anyone wishing to modify it.
A2: This spreadsheet makes extensive use of "Protected" and "Hidden" cells and "Hidden" worksheets. To "unprotect" or "unhide" any of these, put the cursor on a worksheet tab and right click it. Click "Unprotect Sheet..." and select the worksheet to display. There are no passwords locking any of the "hidden" or "protected" areas.
A3: There are buttons that may be pressed to select the scoring to be used in the calculation. These are "Total" for the total score, "Average" to select the average (or Mean) score, "Median" to select the most common score, or "Mode" (most frequently used score). These control the actual score values used in calculation Try all and see what the difference in the results is.
A5: There are a number of "tabs" or "worksheets". The use of these is as follows:
A6: Visible:
A7: Instructions | B7: General use instructions for the user that does not want to make any changes to the spreadsheet.
A8: Preferences | B8: A set of "preferences" that may be used to adjust the calculations based on information specific to the crew.
A9: Scores | B9: The "scores" for each crewmember from the program survey form. These are on the basis of 0 to 20.
A10: Results | B10: The calculated "result" from fitting the "scores" to the itinerary information.
A11: Itinerary Chart | B11: Graph of sorted itineraries — shows relative differences between selections
A12: Program Chart | B12: This is a graph showing what programs the crewmembers wish to participate in.
A13: Itinerary Details | B13: This provides a snapshot of individual itineraries. Enter the itinerary the snapship is desired for.
A14: Itinerary Xref Chart | B14: This is the same chart that's in the in the TREKS book
A15: Tables | B15: This is the set of "factors" for each of the various metrics. These may be modified by the user.
A16: Detail Information | B16: This worksheet.
A17: Hidden: (Note that there are no passwords on these, the user may "unhide" them by right-clicking in the tab area)
A18: Itinerary Camps | B18: Much information updated annually by hand from the TREKS Book. Information relating to itineraries is calculated from these entries.
A19: ItineraryPrograms | B19: Programs available at camps. This can be created automatically but must be checked & updated manually. Can verify with the Itinerary Xref Chart. This takes a lot of detailed work!
A20: Descriptions | B20: This is the textual description of each itinerary. This is manually copied from the TREKS Book each year.
A21: Calculator | B21: This brings the preferences, scores, factors from "Tables", and itinerary information together to calculate detailed preference values for each itinerary. The sum of these is the "Result" for each itinerary.
A22: Itineraries | B22: This is information relative to the current year's itineraries. All is derived from tables in other worksheets.
A23: Programs | B23: Table of Philmont's available programs. These are specific to 12-Day (all), 9-Day (subset) and 7-Day (subset) treks.
A24: Camp Programs | B24: This is a table of programs available at each staffed camp. Verified manually, used to develop basic info for ItineraryPrograms worksheet. Does not often change from year to year.
A25: Camp Elevations | B25: This is information relative to Philmont's camps. It is used in the calculations and in the Itinerary Details printout. Is a good source of camp names & UTM Coordinates/elevations.
A26: uteParkPassAlternatives | B26: Alternative plans for Ute Park Pass itineraries. Only used for 12-Day & 9-Day itineraries. Ignored for 7-Day.
A28: Information in the Visible tabs is generally either documented in the worksheet or is self-evident. Information about the worksheets that may be useful is below.
A29: Scores | B29: Clicking the "Clear Scores" button erases all scores for all 12 participants. User should enter the participant names in row 1.
A30: Results | B30: The left side shows the itineraries that best "fit" the crew's desires. On the right is a table showing the programs the crew desired in preference order. It indicates which programs are included in each of the top 6 itineraries.
A31: Itinerary Details | B31: Enter the itinerary number and expedition number to get information about the itinerary including daily information.
A32: Tables | B32: If some of the areas are more important to your crew, you can change the factors used in the calculations here. The factors are highlighted where arbitrary values were set based on the author's preferences, they may be modified to meet your crew. Only make changes in the unlocked cells in the Value column or the Green boxes for Area or Skill/Difficulty. You may navigate between these with the TAB key.
A33: Itineraries | B33: This sheet has information about the current year's itineraries. Key information is manually updated from the TREKS books (daily campsites, first food pickup day number, method of return to base, itineraries that cross US-64, peaks hiked, etc.) Row 1 has the columns that must be updated annually highlighted in red.
A34: itineraryXrefChart | B34: This conforms to the Cross Reference chart in the TREKS book showing itineraries that have programs. It is based on information in the Itinerary Programs worksheet.
A35: Calculator | B35: This calculates a preference value for each of the metrics. There is nothing to modify here — the value calculated will be based on values from other worksheets and any modification desired to any metric should be made in those underlying sheets, not in this one.
A36: Camp Elevations | B36: This worksheet is a list of all the camps with details about the camp. Note that some of the camps are not used and the information may not be complete for them. It doesn't matter because only the camps included in the current year's itineraries is ever referenced. All are shown here for completeness. It is a good source of camp names & UTM Coordinates/elevations.
A37: uteParkPassAlternatives | B37: These are the camps used for each of the alternative treks for the Ute Park Pass itineraries. It is ignored for 7-Day Itineraries.
A38: Descriptions | B38: These descriptions are copied from the TREKS Book and are displayed on the Itinerary Details display.
A39: Camp Programs | B39: This is a table of staffed camps with flags for the programs offered at each. It is used to provide much of the program inclusion information in the Itineries worksheet.

Sheet itineraryCamps (hidden)
A1: (Enter Red columns manually) Itinerary | B1: 1 | C1: =B1+1 -> 2 | D1: 3 | E1: 4 | F1: 5 | G1: =F1+1 -> 6 | H1: =G1+1 -> 7 | I1: =H1+1 -> 8 | J1: =I1+1 -> 9 | K1: 10 | L1: 11 | M1: 12 | N1: 13 | O1: 14 | P1: 15 | Q1: 16 | R1: =Q1+1 -> 17 | S1: 18 | T1: 19 | U1: 20 | V1: 21 | W1: 22 | X1: 23 | Y1: 24 | Z1: 25 | AA1: 26 | AB1: 27 | AC1: =AB1+1 -> 28 | AD1: 29 | AE1: 30 | AF1: 31 | AG1: 32 | AH1: 33 | AI1: 34 | AJ1: 35 | AK1: =X1+1 -> 24 | AL1: =AK1+1 -> 25 | AM1: 26 | AN1: 27 | AO1: 28 | AP1: 29 | AQ1: 30 | AR1: 31 | AS1: 32 | AT1: 33 | AU1: 34 | AV1: 35 | AW1: 36 | AX1: 37 | AY1: 38 | AZ1: 39 | BA1: 40 | BB1: 41 | BC1: 42 | BD1: 43 | BE1: 44 | BF1: 45 | BG1: 46 | BH1: 47 | BI1: 48 | BJ1: 49 | BK1: 50 | BL1: 51 | BM1: 52 | BN1: 53 | BO1: 54 | BP1: 55 | BQ1: 56 | BR1: 57 | BS1: 58 | BT1: 59 | BU1: 60 | BV1: 61 | BW1: 62 | BX1: 63 | BY1: 64 | BZ1: 65 | CA1: 66 | CB1: 67 | CC1: 68 | CD1: 69 | CE1: 70 | CF1: 71 | CG1: 72 | CR1: =CG1+1 -> 73 | CS1: =CR1+1 -> 74 | CT1: 75 | CU1: 76 | CV1: 77 | CW1: 78 | CX1: 79 | CY1: 80 | CZ1: 81 | DA1: 82 | DB1: 83 | DC1: 84 | DD1: 85 | DE1: 86 | DF1: 87 | DG1: 88 | DH1: 89 | DI1: 90 | DJ1: 91 | DK1: 92 | DL1: 93 | DM1: 94
B2: Itinerary Information | E2: Backcountry Camps by Itinerary Day | O2: Food Pickup's | Y2: Start/End | AB2: Cross US-64 (Enter Manually) | AF2: Peaks (Enter Manually) | AK2: Camp Elevation | AU2: Daily Elevation Change | BD2: Staffed Camp | BN2: Trail Camp | BX2: Dry Camp | CH2: Layovers | CR2: Country | DB2: Map | DL2: Food Pickup Info
B3: Itinerary Label | C3: Difficulty | D3: Distance | E3: Day 2 | F3: Day 3 | G3: Day 4 | H3: Day 5 | I3: Day 6 | J3: Day 7 | K3: Day 8 | L3: Day 9 | M3: Day 10 | N3: Day 11 | O3: 2 | P3: =O3+1 -> 3 | Q3: =P3+1 -> 4 | R3: 5 | S3: 6 | T3: 7 | U3: 8 | V3: 9 | W3: 10 | X3: 11 | Y3: Starting Trailhead | Z3: Ending Trailhead | AA3: Via Tooth | AB3: Itin:Day | AC3: Day | AD3: Cross At | AE3: Direction | AF3: Baldy | AG3: Phillips | AH3: Tooth | AI3: Trail | AJ3: Mountaineering | AK3: =O3 -> 2 | AL3: 3 | AM3: 4 | AN3: 5 | AO3: 6 | AP3: 7 | AQ3: 8 | AR3: 9 | AS3: 10 | AT3: 11 | AU3: 2 :: 3 | AV3: 3 :: 4 | AW3: 4 :: 5 | AX3: 5 :: 6 | AY3: 6 :: 7 | AZ3: 7 :: 8 | BA3: 8 :: 9 | BB3: 9 :: 10 | BC3: 10 :: 11 | BD3: 2 | BE3: 3 | BF3: 4 | BG3: 5 | BH3: 6 | BI3: 7 | BJ3: 8 | BK3: 9 | BL3: 10 | BM3: 11 | BN3: 2 | BO3: 3 | BP3: 4 | BQ3: 5 | BR3: 6 | BS3: 7 | BT3: 8 | BU3: 9 | BV3: 10 | BW3: 11 | BX3: 2 | BY3: 3 | BZ3: 4 | CA3: 5 | CB3: 6 | CC3: 7 | CD3: 8 | CE3: 9 | CF3: 10 | CG3: 11 | CH3: 2 | CI3: 3 | CJ3: 4 | CK3: 5 | CL3: 6 | CM3: 7 | CN3: 8 | CO3: 9 | CP3: 10 | CQ3: 11 | CR3: 2 | CS3: 3 | CT3: 4 | CU3: 5 | CV3: 6 | CW3: 7 | CX3: 8 | CY3: 9 | CZ3: 10 | DA3: 11 | DB3: 2 | DC3: 3 | DD3: 4 | DE3: 5 | DF3: 6 | DG3: 7 | DH3: 8 | DI3: 9 | DJ3: 10 | DK3: 11 | DL3: Days to 1st Food PU | DM3: Max Food Days
A4: =itineraryNoPrefix & ROW()-3 -> 12-1 | C4: C | D4: 50 | E4: Toothache Springs | F4: Urraca | G4: Stockade Ridge | H4: Miners Park | I4: Black Mountain | J4: Beaubien | K4: Porcupine | L4: Divide | M4: Clear Creek | N4: Tolby Headwaters | O4: Camping HQ | R4: Miners Park | U4: Phillips Junction | Y4: Zastrow | Z4: Tolby Creek | AA4: =IF(Z4="Hike In","y","") ->  | AB4: =IF(AC4="","",numericItinerary(A4) & ":" & AC4) ->  | AG4: y | AH4: y | AJ4: y | AK4: =IF(E4<>"",INDEX(Elevations,MATCH(E4,camps,0)),"") -> 7870 | AL4: =IF(F4<>"",INDEX(Elevations,MATCH(F4,camps,0)),"") -> 7968 | AM4: =IF(G4<>"",INDEX(Elevations,MATCH(G4,camps,0)),"") -> 7519 | AN4: =IF(H4<>"",INDEX(Elevations,MATCH(H4,camps,0)),"") -> 7977 | AO4: =IF(I4<>"",INDEX(Elevations,MATCH(I4,camps,0)),"") -> 8991 | AP4: =IF(J4<>"",INDEX(Elevations,MATCH(J4,camps,0)),"") -> 9330 | AQ4: =IF(K4<>"",INDEX(Elevations,MATCH(K4,camps,0)),"") -> 9152 | AR4: =IF(L4<>"",INDEX(Elevations,MATCH(L4,camps,0)),"") -> 10509 | AS4: =IF(M4<>"",INDEX(Elevations,MATCH(M4,camps,0)),"") -> 10240 | AT4: =IF(N4<>"",INDEX(Elevations,MATCH(N4,camps,0)),"") -> 9219 | AU4: =IF(AL4<>"",ABS(AK4-AL4),"") -> 98 | AV4: =IF(AM4<>"",ABS(AL4-AM4),"") -> 449 | AW4: 458 | AX4: 1014 | AY4: 339 | AZ4: 178 | BA4: 1357 | BB4: 269 | BC4: 1021 | BD4: =IF(INDEX(campsByItinerary,numericItinerary($A4),BD$3-1)="","",VLOOKUP(INDEX(campsByItinerary,numericItinerary($A4),BD$3-1),campInfo,8)) ->  | BE4: =IF(INDEX(campsByItinerary,numericItinerary($A4),BE$3-1)="","",VLOOKUP(INDEX(campsByItinerary,numericItinerary($A4),BE$3-1),campInfo,8)) -> Y | BF4: =IF(INDEX(campsByItinerary,numericItinerary($A4),BF$3-1)="","",VLOOKUP(INDEX(campsByItinerary,numericItinerary($A4),BF$3-1),campInfo,8)) ->  | BG4: =IF(INDEX(campsByItinerary,numericItinerary($A4),BG$3-1)="","",VLOOKUP(INDEX(campsByItinerary,numericItinerary($A4),BG$3-1),campInfo,8)) -> Y | BH4: =IF(INDEX(campsByItinerary,numericItinerary($A4),BH$3-1)="","",VLOOKUP(INDEX(campsByItinerary,numericItinerary($A4),BH$3-1),campInfo,8)) -> Y | BI4: =IF(INDEX(campsByItinerary,numericItinerary($A4),BI$3-1)="","",VLOOKUP(INDEX(campsByItinerary,numericItinerary($A4),BI$3-1),campInfo,8)) -> Y | BJ4: =IF(INDEX(campsByItinerary,numericItinerary($A4),BJ$3-1)="","",VLOOKUP(INDEX(campsByItinerary,numericItinerary($A4),BJ$3-1),campInfo,8)) ->  | BK4: =IF(INDEX(campsByItinerary,numericItinerary($A4),BK$3-1)="","",VLOOKUP(INDEX(campsByItinerary,numericItinerary($A4),BK$3-1),campInfo,8)) ->  | BL4: =IF(INDEX(campsByItinerary,numericItinerary($A4),BL$3-1)="","",VLOOKUP(INDEX(campsByItinerary,numericItinerary($A4),BL$3-1),campInfo,8)) -> Y | BM4: =IF(INDEX(campsByItinerary,numericItinerary($A4),BM$3-1)="","",VLOOKUP(INDEX(campsByItinerary,numericItinerary($A4),BM$3-1),campInfo,8)) ->  | BN4: =IF(BD4="Y","","Y") -> Y | BO4: =IF(BE4="Y","","Y") ->  | BP4: Y | BT4: Y | BU4: Y | BW4: Y | BX4: =IF(INDEX(campsByItinerary,numericItinerary($A4),BD$3-1)="","",VLOOKUP(INDEX(campsByItinerary,numericItinerary($A4),BD$3-1),campInfo,10)) ->  | BY4: =IF(INDEX(campsByItinerary,numericItinerary($A4),BE$3-1)="","",VLOOKUP(INDEX(campsByItinerary,numericItinerary($A4),BE$3-1),campInfo,10)) ->  | BZ4: =IF(INDEX(campsByItinerary,numericItinerary($A4),BF$3-1)="","",VLOOKUP(INDEX(campsByItinerary,numericItinerary($A4),BF$3-1),campInfo,10)) -> Y | CA4: =IF(INDEX(campsByItinerary,numericItinerary($A4),BG$3-1)="","",VLOOKUP(INDEX(campsByItinerary,numericItinerary($A4),BG$3-1),campInfo,10)) ->  | CB4: =IF(INDEX(campsByItinerary,numericItinerary($A4),BH$3-1)="","",VLOOKUP(INDEX(campsByItinerary,numericItinerary($A4),BH$3-1),campInfo,10)) ->  | CC4: =IF(INDEX(campsByItinerary,numericItinerary($A4),BI$3-1)="","",VLOOKUP(INDEX(campsByItinerary,numericItinerary($A4),BI$3-1),campInfo,10)) ->  | CD4: =IF(INDEX(campsByItinerary,numericItinerary($A4),BJ$3-1)="","",VLOOKUP(INDEX(campsByItinerary,numericItinerary($A4),BJ$3-1),campInfo,10)) ->  | CE4: =IF(INDEX(campsByItinerary,numericItinerary($A4),BK$3-1)="","",VLOOKUP(INDEX(campsByItinerary,numericItinerary($A4),BK$3-1),campInfo,10)) -> Y | CF4: =IF(INDEX(campsByItinerary,numericItinerary($A4),BL$3-1)="","",VLOOKUP(INDEX(campsByItinerary,numericItinerary($A4),BL$3-1),campInfo,10)) ->  | CG4: =IF(INDEX(campsByItinerary,numericItinerary($A4),BM$3-1)="","",VLOOKUP(INDEX(campsByItinerary,numericItinerary($A4),BM$3-1),campInfo,10)) ->  | CI4: =IF(E4=F4,"Y","") ->  | CJ4: =IF(F4=G4,"Y","") ->  | CK4: =IF(G4=H4,"Y","") ->  | CL4: =IF(H4=I4,"Y","") ->  | CM4: =IF(I4=J4,"Y","") ->  | CN4: =IF(J4=K4,"Y","") ->  | CO4: =IF(K4=L4,"Y","") ->  | CP4: =IF(L4=M4,"Y","") ->  | CQ4: =IF(M4=N4,"Y","") ->  | CR4: =INDEX(campsByItinerary,numericItinerary($A4),BD$3-1) -> Toothache Springs | CS4: =IF(INDEX(campsByItinerary,numericItinerary($A4),BE$3-1)="","",VLOOKUP(INDEX(campsByItinerary,numericItinerary($A4),BE$3-1),campInfo,2)) -> South | CT4: =IF(INDEX(campsByItinerary,numericItinerary($A4),BF$3-1)="","",VLOOKUP(INDEX(campsByItinerary,numericItinerary($A4),BF$3-1),campInfo,2)) -> South | CU4: =IF(INDEX(campsByItinerary,numericItinerary($A4),BG$3-1)="","",VLOOKUP(INDEX(campsByItinerary,numericItinerary($A4),BG$3-1),campInfo,2)) -> South | CV4: =IF(INDEX(campsByItinerary,numericItinerary($A4),BH$3-1)="","",VLOOKUP(INDEX(campsByItinerary,numericItinerary($A4),BH$3-1),campInfo,2)) -> South | CW4: =IF(INDEX(campsByItinerary,numericItinerary($A4),BI$3-1)="","",VLOOKUP(INDEX(campsByItinerary,numericItinerary($A4),BI$3-1),campInfo,2)) -> South | CX4: =IF(INDEX(campsByItinerary,numericItinerary($A4),BJ$3-1)="","",VLOOKUP(INDEX(campsByItinerary,numericItinerary($A4),BJ$3-1),campInfo,2)) -> South | CY4: =IF(INDEX(campsByItinerary,numericItinerary($A4),BK$3-1)="","",VLOOKUP(INDEX(campsByItinerary,numericItinerary($A4),BK$3-1),campInfo,2)) -> South | CZ4: =IF(INDEX(campsByItinerary,numericItinerary($A4),BL$3-1)="","",VLOOKUP(INDEX(campsByItinerary,numericItinerary($A4),BL$3-1),campInfo,2)) -> Central | DA4: =IF(INDEX(campsByItinerary,numericItinerary($A4),BM$3-1)="","",VLOOKUP(INDEX(campsByItinerary,numericItinerary($A4),BM$3-1),campInfo,2)) -> South | DB4: =IF(INDEX(campsByItinerary,numericItinerary($A4),BD$3-1)="","",VLOOKUP(INDEX(campsByItinerary,numericItinerary($A4),BD$3-1),campInfo,12)) -> South | DC4: =IF(INDEX(campsByItinerary,numericItinerary($A4),BE$3-1)="","",VLOOKUP(INDEX(campsByItinerary,numericItinerary($A4),BE$3-1),campInfo,12)) -> South | DD4: =IF(INDEX(campsByItinerary,numericItinerary($A4),BF$3-1)="","",VLOOKUP(INDEX(campsByItinerary,numericItinerary($A4),BF$3-1),campInfo,12)) -> South | DE4: =IF(INDEX(campsByItinerary,numericItinerary($A4),BG$3-1)="","",VLOOKUP(INDEX(campsByItinerary,numericItinerary($A4),BG$3-1),campInfo,12)) -> South | DF4: =IF(INDEX(campsByItinerary,numericItinerary($A4),BH$3-1)="","",VLOOKUP(INDEX(campsByItinerary,numericItinerary($A4),BH$3-1),campInfo,12)) -> South | DG4: =IF(INDEX(campsByItinerary,numericItinerary($A4),BI$3-1)="","",VLOOKUP(INDEX(campsByItinerary,numericItinerary($A4),BI$3-1),campInfo,12)) -> South | DH4: =IF(INDEX(campsByItinerary,numericItinerary($A4),BJ$3-1)="","",VLOOKUP(INDEX(campsByItinerary,numericItinerary($A4),BJ$3-1),campInfo,12)) -> South | DI4: =IF(INDEX(campsByItinerary,numericItinerary($A4),BK$3-1)="","",VLOOKUP(INDEX(campsByItinerary,numericItinerary($A4),BK$3-1),campInfo,12)) -> South | DJ4: =IF(INDEX(campsByItinerary,numericItinerary($A4),BL$3-1)="","",VLOOKUP(INDEX(campsByItinerary,numericItinerary($A4),BL$3-1),campInfo,12)) -> South | DK4: =IF(INDEX(campsByItinerary,numericItinerary($A4),BM$3-1)="","",VLOOKUP(INDEX(campsByItinerary,numericItinerary($A4),BM$3-1),campInfo,12)) -> South | DL4: =getfoodPU("First",numericItinerary($A4)) -> 3 | DM4: =getfoodPU("Max",numericItinerary($A4)) -> 3
A5: 12-2 | C5: C | D5: 52 | E5: Lovers Leap | F5: Miners Park | G5: Lower Bonito | H5: Lost Cabins | I5: Crooked Creek | J5: Wild Horse | K5: Mount Phillips | L5: Cyphers Mine | M5: Hunting Lodge | N5: Clarks Fork | O5: Camping HQ | P5: Miners Park | S5: Apache Springs | W5: Cimarroncito | Y5: Lovers Leap | Z5: Hike In | AA5: =IF(Z5="Hike In","y","") -> y | AB5: =IF(AC5="","",numericItinerary(A5) & ":" & AC5) ->  | AG5: y | AH5: y | AJ5: y | AK5: 7469 | AL5: 7977 | AM5: 8962 | AN5: 9205 | AO5: 9360 | AP5: 10420 | AQ5: 11650 | AR5: 9302 | AS5: 7776 | AT5: 7515 | AU5: =IF(AL5<>"",ABS(AK5-AL5),"") -> 508 | AV5: =IF(AM5<>"",ABS(AL5-AM5),"") -> 985 | AW5: =IF(AN5<>"",ABS(AM5-AN5),"") -> 243 | AX5: =IF(AO5<>"",ABS(AN5-AO5),"") -> 155 | AY5: =IF(AP5<>"",ABS(AO5-AP5),"") -> 1060 | AZ5: =IF(AQ5<>"",ABS(AP5-AQ5),"") -> 1230 | BA5: =IF(AR5<>"",ABS(AQ5-AR5),"") -> 2348 | BB5: =IF(AS5<>"",ABS(AR5-AS5),"") -> 1526 | BC5: =IF(AT5<>"",ABS(AS5-AT5),"") -> 261 | BD5: =IF(INDEX(campsByItinerary,numericItinerary($A5),BD$3-1)="","",VLOOKUP(INDEX(campsByItinerary,numericItinerary($A5),BD$3-1),campInfo,8)) ->  | BE5: =IF(INDEX(campsByItinerary,numericItinerary($A5),BE$3-1)="","",VLOOKUP(INDEX(campsByItinerary,numericItinerary($A5),BE$3-1),campInfo,8)) -> Y | BF5: =IF(INDEX(campsByItinerary,numericItinerary($A5),BF$3-1)="","",VLOOKUP(INDEX(campsByItinerary,numericItinerary($A5),BF$3-1),campInfo,8)) ->  | BG5: =IF(INDEX(campsByItinerary,numericItinerary($A5),BG$3-1)="","",VLOOKUP(INDEX(campsByItinerary,numericItinerary($A5),BG$3-1),campInfo,8)) ->  | BH5: =IF(INDEX(campsByItinerary,numericItinerary($A5),BH$3-1)="","",VLOOKUP(INDEX(campsByItinerary,numericItinerary($A5),BH$3-1),campInfo,8)) -> Y | BI5: =IF(INDEX(campsByItinerary,numericItinerary($A5),BI$3-1)="","",VLOOKUP(INDEX(campsByItinerary,numericItinerary($A5),BI$3-1),campInfo,8)) ->  | BJ5: =IF(INDEX(campsByItinerary,numericItinerary($A5),BJ$3-1)="","",VLOOKUP(INDEX(campsByItinerary,numericItinerary($A5),BJ$3-1),campInfo,8)) ->  | BK5: =IF(INDEX(campsByItinerary,numericItinerary($A5),BK$3-1)="","",VLOOKUP(INDEX(campsByItinerary,numericItinerary($A5),BK$3-1),campInfo,8)) -> Y | BL5: =IF(INDEX(campsByItinerary,numericItinerary($A5),BL$3-1)="","",VLOOKUP(INDEX(campsByItinerary,numericItinerary($A5),BL$3-1),campInfo,8)) -> N | BM5: =IF(INDEX(campsByItinerary,numericItinerary($A5),BM$3-1)="","",VLOOKUP(INDEX(campsByItinerary,numericItinerary($A5),BM$3-1),campInfo,8)) -> Y | BN5: =IF(BD5="Y","","Y") -> Y | BO5: =IF(BE5="Y","","Y") ->  | BP5: =IF(BF5="Y","","Y") -> Y | BQ5: =IF(BG5="Y","","Y") -> Y | BR5: =IF(BH5="Y","","Y") ->  | BS5: =IF(BI5="Y","","Y") -> Y | BT5: =IF(BJ5="Y","","Y") -> Y | BU5: =IF(BK5="Y","","Y") ->  | BV5: =IF(BL5="Y","","Y") -> Y | BW5: =IF(BM5="Y","","Y") ->  | BX5: =IF(INDEX(campsByItinerary,numericItinerary($A5),BD$3-1)="","",VLOOKUP(INDEX(campsByItinerary,numericItinerary($A5),BD$3-1),campInfo,10)) ->  | BY5: =IF(INDEX(campsByItinerary,numericItinerary($A5),BE$3-1)="","",VLOOKUP(INDEX(campsByItinerary,numericItinerary($A5),BE$3-1),campInfo,10)) ->  | BZ5: =IF(INDEX(campsByItinerary,numericItinerary($A5),BF$3-1)="","",VLOOKUP(INDEX(campsByItinerary,numericItinerary($A5),BF$3-1),campInfo,10)) ->  | CA5: =IF(INDEX(campsByItinerary,numericItinerary($A5),BG$3-1)="","",VLOOKUP(INDEX(campsByItinerary,numericItinerary($A5),BG$3-1),campInfo,10)) ->  | CB5: =IF(INDEX(campsByItinerary,numericItinerary($A5),BH$3-1)="","",VLOOKUP(INDEX(campsByItinerary,numericItinerary($A5),BH$3-1),campInfo,10)) ->  | CC5: =IF(INDEX(campsByItinerary,numericItinerary($A5),BI$3-1)="","",VLOOKUP(INDEX(campsByItinerary,numericItinerary($A5),BI$3-1),campInfo,10)) ->  | CD5: =IF(INDEX(campsByItinerary,numericItinerary($A5),BJ$3-1)="","",VLOOKUP(INDEX(campsByItinerary,numericItinerary($A5),BJ$3-1),campInfo,10)) -> Y | CE5: =IF(INDEX(campsByItinerary,numericItinerary($A5),BK$3-1)="","",VLOOKUP(INDEX(campsByItinerary,numericItinerary($A5),BK$3-1),campInfo,10)) ->  | CF5: =IF(INDEX(campsByItinerary,numericItinerary($A5),BL$3-1)="","",VLOOKUP(INDEX(campsByItinerary,numericItinerary($A5),BL$3-1),campInfo,10)) ->  | CG5: =IF(INDEX(campsByItinerary,numericItinerary($A5),BM$3-1)="","",VLOOKUP(INDEX(campsByItinerary,numericItinerary($A5),BM$3-1),campInfo,10)) ->  | CR5: =INDEX(campsByItinerary,numericItinerary($A5),BD$3-1) -> Lovers Leap | CS5: =IF(INDEX(campsByItinerary,numericItinerary($A5),BE$3-1)="","",VLOOKUP(INDEX(campsByItinerary,numericItinerary($A5),BE$3-1),campInfo,2)) -> South | CT5: =IF(INDEX(campsByItinerary,numericItinerary($A5),BF$3-1)="","",VLOOKUP(INDEX(campsByItinerary,numericItinerary($A5),BF$3-1),campInfo,2)) -> South | CU5: =IF(INDEX(campsByItinerary,numericItinerary($A5),BG$3-1)="","",VLOOKUP(INDEX(campsByItinerary,numericItinerary($A5),BG$3-1),campInfo,2)) -> South | CV5: =IF(INDEX(campsByItinerary,numericItinerary($A5),BH$3-1)="","",VLOOKUP(INDEX(campsByItinerary,numericItinerary($A5),BH$3-1),campInfo,2)) -> South | CW5: =IF(INDEX(campsByItinerary,numericItinerary($A5),BI$3-1)="","",VLOOKUP(INDEX(campsByItinerary,numericItinerary($A5),BI$3-1),campInfo,2)) -> South | CX5: =IF(INDEX(campsByItinerary,numericItinerary($A5),BJ$3-1)="","",VLOOKUP(INDEX(campsByItinerary,numericItinerary($A5),BJ$3-1),campInfo,2)) -> Central | CY5: =IF(INDEX(campsByItinerary,numericItinerary($A5),BK$3-1)="","",VLOOKUP(INDEX(campsByItinerary,numericItinerary($A5),BK$3-1),campInfo,2)) -> Central | CZ5: =IF(INDEX(campsByItinerary,numericItinerary($A5),BL$3-1)="","",VLOOKUP(INDEX(campsByItinerary,numericItinerary($A5),BL$3-1),campInfo,2)) -> Central | DA5: =IF(INDEX(campsByItinerary,numericItinerary($A5),BM$3-1)="","",VLOOKUP(INDEX(campsByItinerary,numericItinerary($A5),BM$3-1),campInfo,2)) -> Central | DB5: =IF(INDEX(campsByItinerary,numericItinerary($A5),BD$3-1)="","",VLOOKUP(INDEX(campsByItinerary,numericItinerary($A5),BD$3-1),campInfo,12)) -> South | DC5: =IF(INDEX(campsByItinerary,numericItinerary($A5),BE$3-1)="","",VLOOKUP(INDEX(campsByItinerary,numericItinerary($A5),BE$3-1),campInfo,12)) -> South | DD5: =IF(INDEX(campsByItinerary,numericItinerary($A5),BF$3-1)="","",VLOOKUP(INDEX(campsByItinerary,numericItinerary($A5),BF$3-1),campInfo,12)) -> South | DE5: =IF(INDEX(campsByItinerary,numericItinerary($A5),BG$3-1)="","",VLOOKUP(INDEX(campsByItinerary,numericItinerary($A5),BG$3-1),campInfo,12)) -> South | DF5: =IF(INDEX(campsByItinerary,numericItinerary($A5),BH$3-1)="","",VLOOKUP(INDEX(campsByItinerary,numericItinerary($A5),BH$3-1),campInfo,12)) -> South | DG5: =IF(INDEX(campsByItinerary,numericItinerary($A5),BI$3-1)="","",VLOOKUP(INDEX(campsByItinerary,numericItinerary($A5),BI$3-1),campInfo,12)) -> South | DH5: =IF(INDEX(campsByItinerary,numericItinerary($A5),BJ$3-1)="","",VLOOKUP(INDEX(campsByItinerary,numericItinerary($A5),BJ$3-1),campInfo,12)) -> South | DI5: =IF(INDEX(campsByItinerary,numericItinerary($A5),BK$3-1)="","",VLOOKUP(INDEX(campsByItinerary,numericItinerary($A5),BK$3-1),campInfo,12)) -> South | DJ5: =IF(INDEX(campsByItinerary,numericItinerary($A5),BL$3-1)="","",VLOOKUP(INDEX(campsByItinerary,numericItinerary($A5),BL$3-1),campInfo,12)) -> South | DK5: =IF(INDEX(campsByItinerary,numericItinerary($A5),BM$3-1)="","",VLOOKUP(INDEX(campsByItinerary,numericItinerary($A5),BM$3-1),campInfo,12)) -> South | DL5: =getfoodPU("First",numericItinerary($A5)) -> 1 | DM5: =getfoodPU("Max",numericItinerary($A5)) -> 3
A6: 12-3 | B6: Climbing Trek | C6: C | D6: 54 | E6: Toothache Springs | F6: Urraca | G6: Stockade Ridge | H6: Miners Park | I6: Black Mountain | J6: Divide | K6: Sawmill | L6: Lamberts Mine | M6: Cimarroncito | N6: Cimarroncito | O6: Camping HQ | R6: Miners Park | U6: Sawmill | Y6: Zastrow | Z6: Webster | AB6: =IF(AC6="","",numericItinerary(A6) & ":" & AC6) ->  | AG6: y | AH6: y | AJ6: y | AK6: 7870 | AL6: 7968 | AM6: 7519 | AN6: 7977 | AO6: 8991 | AP6: 10509 | AQ6: 9193 | AR6: 8957 | AS6: 8137 | AT6: 8137 | AU6: 98 | AV6: 449 | AW6: 458 | AX6: 1014 | AY6: 1518 | AZ6: 1316 | BA6: 236 | BB6: 820 | BC6: 0 | BD6: =IF(INDEX(campsByItinerary,numericItinerary($A6),BD$3-1)="","",VLOOKUP(INDEX(campsByItinerary,numericItinerary($A6),BD$3-1),campInfo,8)) ->  | BE6: =IF(INDEX(campsByItinerary,numericItinerary($A6),BE$3-1)="","",VLOOKUP(INDEX(campsByItinerary,numericItinerary($A6),BE$3-1),campInfo,8)) -> Y | BF6: =IF(INDEX(campsByItinerary,numericItinerary($A6),BF$3-1)="","",VLOOKUP(INDEX(campsByItinerary,numericItinerary($A6),BF$3-1),campInfo,8)) ->  | BG6: =IF(INDEX(campsByItinerary,numericItinerary($A6),BG$3-1)="","",VLOOKUP(INDEX(campsByItinerary,numericItinerary($A6),BG$3-1),campInfo,8)) -> Y | BH6: =IF(INDEX(campsByItinerary,numericItinerary($A6),BH$3-1)="","",VLOOKUP(INDEX(campsByItinerary,numericItinerary($A6),BH$3-1),campInfo,8)) -> Y | BI6: =IF(INDEX(campsByItinerary,numericItinerary($A6),BI$3-1)="","",VLOOKUP(INDEX(campsByItinerary,numericItinerary($A6),BI$3-1),campInfo,8)) ->  | BJ6: =IF(INDEX(campsByItinerary,numericItinerary($A6),BJ$3-1)="","",VLOOKUP(INDEX(campsByItinerary,numericItinerary($A6),BJ$3-1),campInfo,8)) -> Y | BK6: =IF(INDEX(campsByItinerary,numericItinerary($A6),BK$3-1)="","",VLOOKUP(INDEX(campsByItinerary,numericItinerary($A6),BK$3-1),campInfo,8)) ->  | BL6: =IF(INDEX(campsByItinerary,numericItinerary($A6),BL$3-1)="","",VLOOKUP(INDEX(campsByItinerary,numericItinerary($A6),BL$3-1),campInfo,8)) -> Y | BM6: =IF(INDEX(campsByItinerary,numericItinerary($A6),BM$3-1)="","",VLOOKUP(INDEX(campsByItinerary,numericItinerary($A6),BM$3-1),campInfo,8)) -> Y | BN6: Y | BP6: Y | BS6: Y | BU6: Y | BX6: =IF(INDEX(campsByItinerary,numericItinerary($A6),BD$3-1)="","",VLOOKUP(INDEX(campsByItinerary,numericItinerary($A6),BD$3-1),campInfo,10)) ->  | BY6: =IF(INDEX(campsByItinerary,numericItinerary($A6),BE$3-1)="","",VLOOKUP(INDEX(campsByItinerary,numericItinerary($A6),BE$3-1),campInfo,10)) ->  | BZ6: =IF(INDEX(campsByItinerary,numericItinerary($A6),BF$3-1)="","",VLOOKUP(INDEX(campsByItinerary,numericItinerary($A6),BF$3-1),campInfo,10)) -> Y | CA6: =IF(INDEX(campsByItinerary,numericItinerary($A6),BG$3-1)="","",VLOOKUP(INDEX(campsByItinerary,numericItinerary($A6),BG$3-1),campInfo,10)) ->  | CB6: =IF(INDEX(campsByItinerary,numericItinerary($A6),BH$3-1)="","",VLOOKUP(INDEX(campsByItinerary,numericItinerary($A6),BH$3-1),campInfo,10)) ->  | CC6: =IF(INDEX(campsByItinerary,numericItinerary($A6),BI$3-1)="","",VLOOKUP(INDEX(campsByItinerary,numericItinerary($A6),BI$3-1),campInfo,10)) -> Y | CD6: =IF(INDEX(campsByItinerary,numericItinerary($A6),BJ$3-1)="","",VLOOKUP(INDEX(campsByItinerary,numericItinerary($A6),BJ$3-1),campInfo,10)) ->  | CE6: =IF(INDEX(campsByItinerary,numericItinerary($A6),BK$3-1)="","",VLOOKUP(INDEX(campsByItinerary,numericItinerary($A6),BK$3-1),campInfo,10)) ->  | CF6: =IF(INDEX(campsByItinerary,numericItinerary($A6),BL$3-1)="","",VLOOKUP(INDEX(campsByItinerary,numericItinerary($A6),BL$3-1),campInfo,10)) ->  | CG6: =IF(INDEX(campsByItinerary,numericItinerary($A6),BM$3-1)="","",VLOOKUP(INDEX(campsByItinerary,numericItinerary($A6),BM$3-1),campInfo,10)) ->  | CQ6: Y | CR6: =INDEX(campsByItinerary,numericItinerary($A6),BD$3-1) -> Toothache Springs | CS6: =IF(INDEX(campsByItinerary,numericItinerary($A6),BE$3-1)="","",VLOOKUP(INDEX(campsByItinerary,numericItinerary($A6),BE$3-1),campInfo,2)) -> South | CT6: =IF(INDEX(campsByItinerary,numericItinerary($A6),BF$3-1)="","",VLOOKUP(INDEX(campsByItinerary,numericItinerary($A6),BF$3-1),campInfo,2)) -> South | CU6: =IF(INDEX(campsByItinerary,numericItinerary($A6),BG$3-1)="","",VLOOKUP(INDEX(campsByItinerary,numericItinerary($A6),BG$3-1),campInfo,2)) -> South | CV6: =IF(INDEX(campsByItinerary,numericItinerary($A6),BH$3-1)="","",VLOOKUP(INDEX(campsByItinerary,numericItinerary($A6),BH$3-1),campInfo,2)) -> South | CW6: =IF(INDEX(campsByItinerary,numericItinerary($A6),BI$3-1)="","",VLOOKUP(INDEX(campsByItinerary,numericItinerary($A6),BI$3-1),campInfo,2)) -> South | CX6: =IF(INDEX(campsByItinerary,numericItinerary($A6),BJ$3-1)="","",VLOOKUP(INDEX(campsByItinerary,numericItinerary($A6),BJ$3-1),campInfo,2)) -> Central | CY6: =IF(INDEX(campsByItinerary,numericItinerary($A6),BK$3-1)="","",VLOOKUP(INDEX(campsByItinerary,numericItinerary($A6),BK$3-1),campInfo,2)) -> Central | CZ6: =IF(INDEX(campsByItinerary,numericItinerary($A6),BL$3-1)="","",VLOOKUP(INDEX(campsByItinerary,numericItinerary($A6),BL$3-1),campInfo,2)) -> Central | DA6: =IF(INDEX(campsByItinerary,numericItinerary($A6),BM$3-1)="","",VLOOKUP(INDEX(campsByItinerary,numericItinerary($A6),BM$3-1),campInfo,2)) -> Central | DB6: =IF(INDEX(campsByItinerary,numericItinerary($A6),BD$3-1)="","",VLOOKUP(INDEX(campsByItinerary,numericItinerary($A6),BD$3-1),campInfo,12)) -> South | DC6: =IF(INDEX(campsByItinerary,numericItinerary($A6),BE$3-1)="","",VLOOKUP(INDEX(campsByItinerary,numericItinerary($A6),BE$3-1),campInfo,12)) -> South | DD6: =IF(INDEX(campsByItinerary,numericItinerary($A6),BF$3-1)="","",VLOOKUP(INDEX(campsByItinerary,numericItinerary($A6),BF$3-1),campInfo,12)) -> South | DE6: =IF(INDEX(campsByItinerary,numericItinerary($A6),BG$3-1)="","",VLOOKUP(INDEX(campsByItinerary,numericItinerary($A6),BG$3-1),campInfo,12)) -> South | DF6: =IF(INDEX(campsByItinerary,numericItinerary($A6),BH$3-1)="","",VLOOKUP(INDEX(campsByItinerary,numericItinerary($A6),BH$3-1),campInfo,12)) -> South | DG6: =IF(INDEX(campsByItinerary,numericItinerary($A6),BI$3-1)="","",VLOOKUP(INDEX(campsByItinerary,numericItinerary($A6),BI$3-1),campInfo,12)) -> South | DH6: =IF(INDEX(campsByItinerary,numericItinerary($A6),BJ$3-1)="","",VLOOKUP(INDEX(campsByItinerary,numericItinerary($A6),BJ$3-1),campInfo,12)) -> South | DI6: =IF(INDEX(campsByItinerary,numericItinerary($A6),BK$3-1)="","",VLOOKUP(INDEX(campsByItinerary,numericItinerary($A6),BK$3-1),campInfo,12)) -> South | DJ6: =IF(INDEX(campsByItinerary,numericItinerary($A6),BL$3-1)="","",VLOOKUP(INDEX(campsByItinerary,numericItinerary($A6),BL$3-1),campInfo,12)) -> South | DK6: =IF(INDEX(campsByItinerary,numericItinerary($A6),BM$3-1)="","",VLOOKUP(INDEX(campsByItinerary,numericItinerary($A6),BM$3-1),campInfo,12)) -> South | DL6: =getfoodPU("First",numericItinerary($A6)) -> 3 | DM6: =getfoodPU("Max",numericItinerary($A6)) -> 3
A7: 12-4 | C7: C | D7: 55 | E7: Lovers Leap | F7: Miners Park | G7: Beaubien | H7: Beaubien | I7: Comanche Creek | J7: Comanche Peak | K7: Sawmill | L7: Cyphers Mine | M7: Cimarroncito | N7: Shaefers Pass | O7: Camping HQ | P7: Miners Park | S7: Phillips Junction | U7: Sawmill | W7: Cimarroncito | Y7: Lovers Leap | Z7: Hike In | AA7: y | AB7: =IF(AC7="","",numericItinerary(A7) & ":" & AC7) ->  | AG7: y | AH7: y | AJ7: y | AK7: 7469 | AL7: 7977 | AM7: 9330 | AN7: 9330 | AO7: 9600 | AP7: 11070 | AQ7: 9193 | AR7: 9302 | AS7: 8137 | AT7: 8724 | AU7: 508 | AV7: 1353 | AW7: 0 | AX7: 270 | AY7: 1470 | AZ7: 1877 | BA7: 109 | BB7: 1165 | BC7: 587 | BD7: =IF(INDEX(campsByItinerary,numericItinerary($A7),BD$3-1)="","",VLOOKUP(INDEX(campsByItinerary,numericItinerary($A7),BD$3-1),campInfo,8)) ->  | BE7: =IF(INDEX(campsByItinerary,numericItinerary($A7),BE$3-1)="","",VLOOKUP(INDEX(campsByItinerary,numericItinerary($A7),BE$3-1),campInfo,8)) -> Y | BF7: =IF(INDEX(campsByItinerary,numericItinerary($A7),BF$3-1)="","",VLOOKUP(INDEX(campsByItinerary,numericItinerary($A7),BF$3-1),campInfo,8)) -> Y | BG7: =IF(INDEX(campsByItinerary,numericItinerary($A7),BG$3-1)="","",VLOOKUP(INDEX(campsByItinerary,numericItinerary($A7),BG$3-1),campInfo,8)) -> Y | BH7: =IF(INDEX(campsByItinerary,numericItinerary($A7),BH$3-1)="","",VLOOKUP(INDEX(campsByItinerary,numericItinerary($A7),BH$3-1),campInfo,8)) ->  | BI7: =IF(INDEX(campsByItinerary,numericItinerary($A7),BI$3-1)="","",VLOOKUP(INDEX(campsByItinerary,numericItinerary($A7),BI$3-1),campInfo,8)) ->  | BJ7: =IF(INDEX(campsByItinerary,numericItinerary($A7),BJ$3-1)="","",VLOOKUP(INDEX(campsByItinerary,numericItinerary($A7),BJ$3-1),campInfo,8)) -> Y | BK7: =IF(INDEX(campsByItinerary,numericItinerary($A7),BK$3-1)="","",VLOOKUP(INDEX(campsByItinerary,numericItinerary($A7),BK$3-1),campInfo,8)) -> Y | BL7: =IF(INDEX(campsByItinerary,numericItinerary($A7),BL$3-1)="","",VLOOKUP(INDEX(campsByItinerary,numericItinerary($A7),BL$3-1),campInfo,8)) -> Y | BM7: =IF(INDEX(campsByItinerary,numericItinerary($A7),BM$3-1)="","",VLOOKUP(INDEX(campsByItinerary,numericItinerary($A7),BM$3-1),campInfo,8)) ->  | BN7: Y | BR7: Y | BS7: Y | BW7: Y | BX7: =IF(INDEX(campsByItinerary,numericItinerary($A7),BD$3-1)="","",VLOOKUP(INDEX(campsByItinerary,numericItinerary($A7),BD$3-1),campInfo,10)) ->  | BY7: =IF(INDEX(campsByItinerary,numericItinerary($A7),BE$3-1)="","",VLOOKUP(INDEX(campsByItinerary,numericItinerary($A7),BE$3-1),campInfo,10)) ->  | BZ7: =IF(INDEX(campsByItinerary,numericItinerary($A7),BF$3-1)="","",VLOOKUP(INDEX(campsByItinerary,numericItinerary($A7),BF$3-1),campInfo,10)) ->  | CA7: =IF(INDEX(campsByItinerary,numericItinerary($A7),BG$3-1)="","",VLOOKUP(INDEX(campsByItinerary,numericItinerary($A7),BG$3-1),campInfo,10)) ->  | CB7: =IF(INDEX(campsByItinerary,numericItinerary($A7),BH$3-1)="","",VLOOKUP(INDEX(campsByItinerary,numericItinerary($A7),BH$3-1),campInfo,10)) ->  | CC7: =IF(INDEX(campsByItinerary,numericItinerary($A7),BI$3-1)="","",VLOOKUP(INDEX(campsByItinerary,numericItinerary($A7),BI$3-1),campInfo,10)) -> Y | CD7: =IF(INDEX(campsByItinerary,numericItinerary($A7),BJ$3-1)="","",VLOOKUP(INDEX(campsByItinerary,numericItinerary($A7),BJ$3-1),campInfo,10)) ->  | CE7: =IF(INDEX(campsByItinerary,numericItinerary($A7),BK$3-1)="","",VLOOKUP(INDEX(campsByItinerary,numericItinerary($A7),BK$3-1),campInfo,10)) ->  | CF7: =IF(INDEX(campsByItinerary,numericItinerary($A7),BL$3-1)="","",VLOOKUP(INDEX(campsByItinerary,numericItinerary($A7),BL$3-1),campInfo,10)) ->  | CG7: =IF(INDEX(campsByItinerary,numericItinerary($A7),BM$3-1)="","",VLOOKUP(INDEX(campsByItinerary,numericItinerary($A7),BM$3-1),campInfo,10)) -> Y | CK7: Y | CR7: =INDEX(campsByItinerary,numericItinerary($A7),BD$3-1) -> Lovers Leap | CS7: =IF(INDEX(campsByItinerary,numericItinerary($A7),BE$3-1)="","",VLOOKUP(INDEX(campsByItinerary,numericItinerary($A7),BE$3-1),campInfo,2)) -> South | CT7: =IF(INDEX(campsByItinerary,numericItinerary($A7),BF$3-1)="","",VLOOKUP(INDEX(campsByItinerary,numericItinerary($A7),BF$3-1),campInfo,2)) -> South | CU7: =IF(INDEX(campsByItinerary,numericItinerary($A7),BG$3-1)="","",VLOOKUP(INDEX(campsByItinerary,numericItinerary($A7),BG$3-1),campInfo,2)) -> South | CV7: =IF(INDEX(campsByItinerary,numericItinerary($A7),BH$3-1)="","",VLOOKUP(INDEX(campsByItinerary,numericItinerary($A7),BH$3-1),campInfo,2)) -> South | CW7: =IF(INDEX(campsByItinerary,numericItinerary($A7),BI$3-1)="","",VLOOKUP(INDEX(campsByItinerary,numericItinerary($A7),BI$3-1),campInfo,2)) -> Central | CX7: =IF(INDEX(campsByItinerary,numericItinerary($A7),BJ$3-1)="","",VLOOKUP(INDEX(campsByItinerary,numericItinerary($A7),BJ$3-1),campInfo,2)) -> Central | CY7: =IF(INDEX(campsByItinerary,numericItinerary($A7),BK$3-1)="","",VLOOKUP(INDEX(campsByItinerary,numericItinerary($A7),BK$3-1),campInfo,2)) -> Central | CZ7: =IF(INDEX(campsByItinerary,numericItinerary($A7),BL$3-1)="","",VLOOKUP(INDEX(campsByItinerary,numericItinerary($A7),BL$3-1),campInfo,2)) -> Central | DA7: =IF(INDEX(campsByItinerary,numericItinerary($A7),BM$3-1)="","",VLOOKUP(INDEX(campsByItinerary,numericItinerary($A7),BM$3-1),campInfo,2)) -> Central | DB7: =IF(INDEX(campsByItinerary,numericItinerary($A7),BD$3-1)="","",VLOOKUP(INDEX(campsByItinerary,numericItinerary($A7),BD$3-1),campInfo,12)) -> South | DC7: =IF(INDEX(campsByItinerary,numericItinerary($A7),BE$3-1)="","",VLOOKUP(INDEX(campsByItinerary,numericItinerary($A7),BE$3-1),campInfo,12)) -> South | DD7: =IF(INDEX(campsByItinerary,numericItinerary($A7),BF$3-1)="","",VLOOKUP(INDEX(campsByItinerary,numericItinerary($A7),BF$3-1),campInfo,12)) -> South | DE7: =IF(INDEX(campsByItinerary,numericItinerary($A7),BG$3-1)="","",VLOOKUP(INDEX(campsByItinerary,numericItinerary($A7),BG$3-1),campInfo,12)) -> South | DF7: =IF(INDEX(campsByItinerary,numericItinerary($A7),BH$3-1)="","",VLOOKUP(INDEX(campsByItinerary,numericItinerary($A7),BH$3-1),campInfo,12)) -> South | DG7: =IF(INDEX(campsByItinerary,numericItinerary($A7),BI$3-1)="","",VLOOKUP(INDEX(campsByItinerary,numericItinerary($A7),BI$3-1),campInfo,12)) -> South | DH7: =IF(INDEX(campsByItinerary,numericItinerary($A7),BJ$3-1)="","",VLOOKUP(INDEX(campsByItinerary,numericItinerary($A7),BJ$3-1),campInfo,12)) -> South | DI7: =IF(INDEX(campsByItinerary,numericItinerary($A7),BK$3-1)="","",VLOOKUP(INDEX(campsByItinerary,numericItinerary($A7),BK$3-1),campInfo,12)) -> South | DJ7: =IF(INDEX(campsByItinerary,numericItinerary($A7),BL$3-1)="","",VLOOKUP(INDEX(campsByItinerary,numericItinerary($A7),BL$3-1),campInfo,12)) -> South | DK7: =IF(INDEX(campsByItinerary,numericItinerary($A7),BM$3-1)="","",VLOOKUP(INDEX(campsByItinerary,numericItinerary($A7),BM$3-1),campInfo,12)) -> South | DL7: =getfoodPU("First",numericItinerary($A7)) -> 1 | DM7: =getfoodPU("Max",numericItinerary($A7)) -> 3
A8: 12-5 | C8: C | D8: 56 | E8: House Canyon | F8: Indian Writings | G8: Horse Canyon | H8: Ponil | I8: Pueblano | J8: Black Horse Creek | K8: Black Horse Creek | L8: Head of Dean | M8: New Dean | N8: Cimarroncita | O8: Camping HQ | R8: Ponil | U8: Baldy Town | X8: Cimarroncita | Y8: Six Mile Gate | Z8: Ute Park | AB8: =IF(AC8="","",numericItinerary(A8) & ":" & AC8) -> 5:11 | AC8: 11 | AD8: Bear Canyon | AE8: S | AF8: y | AH8: =IF(AA8="","","y") ->  | AK8: 7157 | AL8: 6979 | AM8: 8128 | AN8: 7150 | AO8: 8069 | AP8: 9619 | AQ8: 9619 | AR8: 8754 | AS8: 7724 | AT8: 7373 | AU8: 178 | AV8: 1149 | AW8: 978 | AX8: 919 | AY8: 1550 | AZ8: 0 | BA8: 865 | BB8: 1030 | BC8: 351 | BD8: =IF(INDEX(campsByItinerary,numericItinerary($A8),BD$3-1)="","",VLOOKUP(INDEX(campsByItinerary,numericItinerary($A8),BD$3-1),campInfo,8)) ->  | BE8: =IF(INDEX(campsByItinerary,numericItinerary($A8),BE$3-1)="","",VLOOKUP(INDEX(campsByItinerary,numericItinerary($A8),BE$3-1),campInfo,8)) -> Y | BF8: =IF(INDEX(campsByItinerary,numericItinerary($A8),BF$3-1)="","",VLOOKUP(INDEX(campsByItinerary,numericItinerary($A8),BF$3-1),campInfo,8)) ->  | BG8: =IF(INDEX(campsByItinerary,numericItinerary($A8),BG$3-1)="","",VLOOKUP(INDEX(campsByItinerary,numericItinerary($A8),BG$3-1),campInfo,8)) -> Y | BH8: =IF(INDEX(campsByItinerary,numericItinerary($A8),BH$3-1)="","",VLOOKUP(INDEX(campsByItinerary,numericItinerary($A8),BH$3-1),campInfo,8)) -> Y | BI8: =IF(INDEX(campsByItinerary,numericItinerary($A8),BI$3-1)="","",VLOOKUP(INDEX(campsByItinerary,numericItinerary($A8),BI$3-1),campInfo,8)) ->  | BJ8: =IF(INDEX(campsByItinerary,numericItinerary($A8),BJ$3-1)="","",VLOOKUP(INDEX(campsByItinerary,numericItinerary($A8),BJ$3-1),campInfo,8)) ->  | BK8: =IF(INDEX(campsByItinerary,numericItinerary($A8),BK$3-1)="","",VLOOKUP(INDEX(campsByItinerary,numericItinerary($A8),BK$3-1),campInfo,8)) -> Y | BL8: =IF(INDEX(campsByItinerary,numericItinerary($A8),BL$3-1)="","",VLOOKUP(INDEX(campsByItinerary,numericItinerary($A8),BL$3-1),campInfo,8)) ->  | BM8: =IF(INDEX(campsByItinerary,numericItinerary($A8),BM$3-1)="","",VLOOKUP(INDEX(campsByItinerary,numericItinerary($A8),BM$3-1),campInfo,8)) -> Y | BN8: Y | BP8: Y | BS8: Y | BT8: Y | BV8: Y | BX8: =IF(INDEX(campsByItinerary,numericItinerary($A8),BD$3-1)="","",VLOOKUP(INDEX(campsByItinerary,numericItinerary($A8),BD$3-1),campInfo,10)) ->  | BY8: =IF(INDEX(campsByItinerary,numericItinerary($A8),BE$3-1)="","",VLOOKUP(INDEX(campsByItinerary,numericItinerary($A8),BE$3-1),campInfo,10)) ->  | BZ8: =IF(INDEX(campsByItinerary,numericItinerary($A8),BF$3-1)="","",VLOOKUP(INDEX(campsByItinerary,numericItinerary($A8),BF$3-1),campInfo,10)) ->  | CA8: =IF(INDEX(campsByItinerary,numericItinerary($A8),BG$3-1)="","",VLOOKUP(INDEX(campsByItinerary,numericItinerary($A8),BG$3-1),campInfo,10)) ->  | CB8: =IF(INDEX(campsByItinerary,numericItinerary($A8),BH$3-1)="","",VLOOKUP(INDEX(campsByItinerary,numericItinerary($A8),BH$3-1),campInfo,10)) ->  | CC8: =IF(INDEX(campsByItinerary,numericItinerary($A8),BI$3-1)="","",VLOOKUP(INDEX(campsByItinerary,numericItinerary($A8),BI$3-1),campInfo,10)) ->  | CD8: =IF(INDEX(campsByItinerary,numericItinerary($A8),BJ$3-1)="","",VLOOKUP(INDEX(campsByItinerary,numericItinerary($A8),BJ$3-1),campInfo,10)) ->  | CE8: =IF(INDEX(campsByItinerary,numericItinerary($A8),BK$3-1)="","",VLOOKUP(INDEX(campsByItinerary,numericItinerary($A8),BK$3-1),campInfo,10)) ->  | CF8: =IF(INDEX(campsByItinerary,numericItinerary($A8),BL$3-1)="","",VLOOKUP(INDEX(campsByItinerary,numericItinerary($A8),BL$3-1),campInfo,10)) ->  | CG8: =IF(INDEX(campsByItinerary,numericItinerary($A8),BM$3-1)="","",VLOOKUP(INDEX(campsByItinerary,numericItinerary($A8),BM$3-1),campInfo,10)) ->  | CN8: Y | CR8: =INDEX(campsByItinerary,numericItinerary($A8),BD$3-1) -> House Canyon | CS8: =IF(INDEX(campsByItinerary,numericItinerary($A8),BE$3-1)="","",VLOOKUP(INDEX(campsByItinerary,numericItinerary($A8),BE$3-1),campInfo,2)) -> North | CT8: =IF(INDEX(campsByItinerary,numericItinerary($A8),BF$3-1)="","",VLOOKUP(INDEX(campsByItinerary,numericItinerary($A8),BF$3-1),campInfo,2)) -> North | CU8: =IF(INDEX(campsByItinerary,numericItinerary($A8),BG$3-1)="","",VLOOKUP(INDEX(campsByItinerary,numericItinerary($A8),BG$3-1),campInfo,2)) -> North | CV8: =IF(INDEX(campsByItinerary,numericItinerary($A8),BH$3-1)="","",VLOOKUP(INDEX(campsByItinerary,numericItinerary($A8),BH$3-1),campInfo,2)) -> North | CW8: =IF(INDEX(campsByItinerary,numericItinerary($A8),BI$3-1)="","",VLOOKUP(INDEX(campsByItinerary,numericItinerary($A8),BI$3-1),campInfo,2)) -> North | CX8: =IF(INDEX(campsByItinerary,numericItinerary($A8),BJ$3-1)="","",VLOOKUP(INDEX(campsByItinerary,numericItinerary($A8),BJ$3-1),campInfo,2)) -> North | CY8: =IF(INDEX(campsByItinerary,numericItinerary($A8),BK$3-1)="","",VLOOKUP(INDEX(campsByItinerary,numericItinerary($A8),BK$3-1),campInfo,2)) -> North | CZ8: =IF(INDEX(campsByItinerary,numericItinerary($A8),BL$3-1)="","",VLOOKUP(INDEX(campsByItinerary,numericItinerary($A8),BL$3-1),campInfo,2)) -> North | DA8: =IF(INDEX(campsByItinerary,numericItinerary($A8),BM$3-1)="","",VLOOKUP(INDEX(campsByItinerary,numericItinerary($A8),BM$3-1),campInfo,2)) -> Central | DB8: =IF(INDEX(campsByItinerary,numericItinerary($A8),BD$3-1)="","",VLOOKUP(INDEX(campsByItinerary,numericItinerary($A8),BD$3-1),campInfo,12)) -> North | DC8: =IF(INDEX(campsByItinerary,numericItinerary($A8),BE$3-1)="","",VLOOKUP(INDEX(campsByItinerary,numericItinerary($A8),BE$3-1),campInfo,12)) -> North | DD8: =IF(INDEX(campsByItinerary,numericItinerary($A8),BF$3-1)="","",VLOOKUP(INDEX(campsByItinerary,numericItinerary($A8),BF$3-1),campInfo,12)) -> North | DE8: =IF(INDEX(campsByItinerary,numericItinerary($A8),BG$3-1)="","",VLOOKUP(INDEX(campsByItinerary,numericItinerary($A8),BG$3-1),campInfo,12)) -> North | DF8: =IF(INDEX(campsByItinerary,numericItinerary($A8),BH$3-1)="","",VLOOKUP(INDEX(campsByItinerary,numericItinerary($A8),BH$3-1),campInfo,12)) -> North | DG8: =IF(INDEX(campsByItinerary,numericItinerary($A8),BI$3-1)="","",VLOOKUP(INDEX(campsByItinerary,numericItinerary($A8),BI$3-1),campInfo,12)) -> North | DH8: =IF(INDEX(campsByItinerary,numericItinerary($A8),BJ$3-1)="","",VLOOKUP(INDEX(campsByItinerary,numericItinerary($A8),BJ$3-1),campInfo,12)) -> North | DI8: =IF(INDEX(campsByItinerary,numericItinerary($A8),BK$3-1)="","",VLOOKUP(INDEX(campsByItinerary,numericItinerary($A8),BK$3-1),campInfo,12)) -> North | DJ8: =IF(INDEX(campsByItinerary,numericItinerary($A8),BL$3-1)="","",VLOOKUP(INDEX(campsByItinerary,numericItinerary($A8),BL$3-1),campInfo,12)) -> North | DK8: =IF(INDEX(campsByItinerary,numericItinerary($A8),BM$3-1)="","",VLOOKUP(INDEX(campsByItinerary,numericItinerary($A8),BM$3-1),campInfo,12)) -> North & South | DL8: =getfoodPU("First",numericItinerary($A8)) -> 3 | DM8: =getfoodPU("Max",numericItinerary($A8)) -> 3
A9: 12-6 | C9: C | D9: 56 | E9: Rimrock Park | F9: Crags | G9: Agua Fria | H9: Apache Springs | I9: Crooked Creek | J9: Red Hills | K9: Beaubien | L9: Beaubien | M9: Miners Park | N9: Stockade Ridge | O9: Camping HQ | R9: Apache Springs | U9: Phillips Junction | W9: Miners Park | Y9: Zastrow | Z9: Lovers Leap | AA9: y | AB9: =IF(AC9="","",numericItinerary(A9) & ":" & AC9) ->  | AG9: y | AH9: =IF(AA9="","","y") -> y | AJ9: y | AK9: 7359 | AL9: 8058 | AM9: 8726 | AN9: 9409 | AO9: 9360 | AP9: 10280 | AQ9: 9330 | AR9: 9330 | AS9: 7977 | AT9: 7519 | AU9: 699 | AV9: 668 | AW9: 683 | AX9: 49 | AY9: 920 | AZ9: 950 | BA9: 0 | BB9: 1353 | BC9: 458 | BD9: =IF(INDEX(campsByItinerary,numericItinerary($A9),BD$3-1)="","",VLOOKUP(INDEX(campsByItinerary,numericItinerary($A9),BD$3-1),campInfo,8)) ->  | BE9: =IF(INDEX(campsByItinerary,numericItinerary($A9),BE$3-1)="","",VLOOKUP(INDEX(campsByItinerary,numericItinerary($A9),BE$3-1),campInfo,8)) ->  | BF9: =IF(INDEX(campsByItinerary,numericItinerary($A9),BF$3-1)="","",VLOOKUP(INDEX(campsByItinerary,numericItinerary($A9),BF$3-1),campInfo,8)) ->  | BG9: =IF(INDEX(campsByItinerary,numericItinerary($A9),BG$3-1)="","",VLOOKUP(INDEX(campsByItinerary,numericItinerary($A9),BG$3-1),campInfo,8)) -> Y | BH9: =IF(INDEX(campsByItinerary,numericItinerary($A9),BH$3-1)="","",VLOOKUP(INDEX(campsByItinerary,numericItinerary($A9),BH$3-1),campInfo,8)) -> Y | BI9: =IF(INDEX(campsByItinerary,numericItinerary($A9),BI$3-1)="","",VLOOKUP(INDEX(campsByItinerary,numericItinerary($A9),BI$3-1),campInfo,8)) ->  | BJ9: =IF(INDEX(campsByItinerary,numericItinerary($A9),BJ$3-1)="","",VLOOKUP(INDEX(campsByItinerary,numericItinerary($A9),BJ$3-1),campInfo,8)) -> Y | BK9: =IF(INDEX(campsByItinerary,numericItinerary($A9),BK$3-1)="","",VLOOKUP(INDEX(campsByItinerary,numericItinerary($A9),BK$3-1),campInfo,8)) -> Y | BL9: =IF(INDEX(campsByItinerary,numericItinerary($A9),BL$3-1)="","",VLOOKUP(INDEX(campsByItinerary,numericItinerary($A9),BL$3-1),campInfo,8)) -> Y | BM9: =IF(INDEX(campsByItinerary,numericItinerary($A9),BM$3-1)="","",VLOOKUP(INDEX(campsByItinerary,numericItinerary($A9),BM$3-1),campInfo,8)) ->  | BN9: Y | BO9: Y | BP9: Y | BS9: Y | BW9: Y | BX9: =IF(INDEX(campsByItinerary,numericItinerary($A9),BD$3-1)="","",VLOOKUP(INDEX(campsByItinerary,numericItinerary($A9),BD$3-1),campInfo,10)) -> Y | BY9: =IF(INDEX(campsByItinerary,numericItinerary($A9),BE$3-1)="","",VLOOKUP(INDEX(campsByItinerary,numericItinerary($A9),BE$3-1),campInfo,10)) ->  | BZ9: =IF(INDEX(campsByItinerary,numericItinerary($A9),BF$3-1)="","",VLOOKUP(INDEX(campsByItinerary,numericItinerary($A9),BF$3-1),campInfo,10)) ->  | CA9: =IF(INDEX(campsByItinerary,numericItinerary($A9),BG$3-1)="","",VLOOKUP(INDEX(campsByItinerary,numericItinerary($A9),BG$3-1),campInfo,10)) ->  | CB9: =IF(INDEX(campsByItinerary,numericItinerary($A9),BH$3-1)="","",VLOOKUP(INDEX(campsByItinerary,numericItinerary($A9),BH$3-1),campInfo,10)) ->  | CC9: =IF(INDEX(campsByItinerary,numericItinerary($A9),BI$3-1)="","",VLOOKUP(INDEX(campsByItinerary,numericItinerary($A9),BI$3-1),campInfo,10)) ->  | CD9: =IF(INDEX(campsByItinerary,numericItinerary($A9),BJ$3-1)="","",VLOOKUP(INDEX(campsByItinerary,numericItinerary($A9),BJ$3-1),campInfo,10)) ->  | CE9: =IF(INDEX(campsByItinerary,numericItinerary($A9),BK$3-1)="","",VLOOKUP(INDEX(campsByItinerary,numericItinerary($A9),BK$3-1),campInfo,10)) ->  | CF9: =IF(INDEX(campsByItinerary,numericItinerary($A9),BL$3-1)="","",VLOOKUP(INDEX(campsByItinerary,numericItinerary($A9),BL$3-1),campInfo,10)) ->  | CG9: =IF(INDEX(campsByItinerary,numericItinerary($A9),BM$3-1)="","",VLOOKUP(INDEX(campsByItinerary,numericItinerary($A9),BM$3-1),campInfo,10)) -> Y | CO9: Y | CR9: =INDEX(campsByItinerary,numericItinerary($A9),BD$3-1) -> Rimrock Park | CS9: =IF(INDEX(campsByItinerary,numericItinerary($A9),BE$3-1)="","",VLOOKUP(INDEX(campsByItinerary,numericItinerary($A9),BE$3-1),campInfo,2)) -> South | CT9: =IF(INDEX(campsByItinerary,numericItinerary($A9),BF$3-1)="","",VLOOKUP(INDEX(campsByItinerary,numericItinerary($A9),BF$3-1),campInfo,2)) -> South | CU9: =IF(INDEX(campsByItinerary,numericItinerary($A9),BG$3-1)="","",VLOOKUP(INDEX(campsByItinerary,numericItinerary($A9),BG$3-1),campInfo,2)) -> South | CV9: =IF(INDEX(campsByItinerary,numericItinerary($A9),BH$3-1)="","",VLOOKUP(INDEX(campsByItinerary,numericItinerary($A9),BH$3-1),campInfo,2)) -> South | CW9: =IF(INDEX(campsByItinerary,numericItinerary($A9),BI$3-1)="","",VLOOKUP(INDEX(campsByItinerary,numericItinerary($A9),BI$3-1),campInfo,2)) -> South | CX9: =IF(INDEX(campsByItinerary,numericItinerary($A9),BJ$3-1)="","",VLOOKUP(INDEX(campsByItinerary,numericItinerary($A9),BJ$3-1),campInfo,2)) -> South | CY9: =IF(INDEX(campsByItinerary,numericItinerary($A9),BK$3-1)="","",VLOOKUP(INDEX(campsByItinerary,numericItinerary($A9),BK$3-1),campInfo,2)) -> South | CZ9: =IF(INDEX(campsByItinerary,numericItinerary($A9),BL$3-1)="","",VLOOKUP(INDEX(campsByItinerary,numericItinerary($A9),BL$3-1),campInfo,2)) -> South | DA9: =IF(INDEX(campsByItinerary,numericItinerary($A9),BM$3-1)="","",VLOOKUP(INDEX(campsByItinerary,numericItinerary($A9),BM$3-1),campInfo,2)) -> South | DB9: =IF(INDEX(campsByItinerary,numericItinerary($A9),BD$3-1)="","",VLOOKUP(INDEX(campsByItinerary,numericItinerary($A9),BD$3-1),campInfo,12)) -> South | DC9: =IF(INDEX(campsByItinerary,numericItinerary($A9),BE$3-1)="","",VLOOKUP(INDEX(campsByItinerary,numericItinerary($A9),BE$3-1),campInfo,12)) -> South | DD9: =IF(INDEX(campsByItinerary,numericItinerary($A9),BF$3-1)="","",VLOOKUP(INDEX(campsByItinerary,numericItinerary($A9),BF$3-1),campInfo,12)) -> South | DE9: =IF(INDEX(campsByItinerary,numericItinerary($A9),BG$3-1)="","",VLOOKUP(INDEX(campsByItinerary,numericItinerary($A9),BG$3-1),campInfo,12)) -> South | DF9: =IF(INDEX(campsByItinerary,numericItinerary($A9),BH$3-1)="","",VLOOKUP(INDEX(campsByItinerary,numericItinerary($A9),BH$3-1),campInfo,12)) -> South | DG9: =IF(INDEX(campsByItinerary,numericItinerary($A9),BI$3-1)="","",VLOOKUP(INDEX(campsByItinerary,numericItinerary($A9),BI$3-1),campInfo,12)) -> South | DH9: =IF(INDEX(campsByItinerary,numericItinerary($A9),BJ$3-1)="","",VLOOKUP(INDEX(campsByItinerary,numericItinerary($A9),BJ$3-1),campInfo,12)) -> South | DI9: =IF(INDEX(campsByItinerary,numericItinerary($A9),BK$3-1)="","",VLOOKUP(INDEX(campsByItinerary,numericItinerary($A9),BK$3-1),campInfo,12)) -> South | DJ9: =IF(INDEX(campsByItinerary,numericItinerary($A9),BL$3-1)="","",VLOOKUP(INDEX(campsByItinerary,numericItinerary($A9),BL$3-1),campInfo,12)) -> South | DK9: =IF(INDEX(campsByItinerary,numericItinerary($A9),BM$3-1)="","",VLOOKUP(INDEX(campsByItinerary,numericItinerary($A9),BM$3-1),campInfo,12)) -> South | DL9: =getfoodPU("First",numericItinerary($A9)) -> 3 | DM9: =getfoodPU("Max",numericItinerary($A9)) -> 3
A10: 12-7 | C10: C | D10: 59 | E10: Rimrock Park | F10: Crags | G10: Apache Springs | H10: Wild Horse | I10: Comanche Creek | J10: Beaubien | K10: Beaubien | L10: Bear Caves | M10: Miners Park | N10: Shaefers Pass | O10: Camping HQ | Q10: Apache Springs | T10: Phillips Junction | W10: Miners Park | Y10: Zastrow | Z10: Hike In | AA10: y | AB10: =IF(AC10="","",numericItinerary(A10) & ":" & AC10) ->  | AH10: y | AK10: 7359 | AL10: 8058 | AM10: 9409 | AN10: 10420 | AO10: 9600 | AP10: 9330 | AQ10: 9330 | AR10: 8423 | AS10: 7977 | AT10: 8724 | AU10: 699 | AV10: 1351 | AW10: 1011 | AX10: 820 | AY10: 270 | AZ10: 0 | BA10: 907 | BB10: 446 | BC10: 747 | BD10: =IF(INDEX(campsByItinerary,numericItinerary($A10),BD$3-1)="","",VLOOKUP(INDEX(campsByItinerary,numericItinerary($A10),BD$3-1),campInfo,8)) ->  | BE10: =IF(INDEX(campsByItinerary,numericItinerary($A10),BE$3-1)="","",VLOOKUP(INDEX(campsByItinerary,numericItinerary($A10),BE$3-1),campInfo,8)) ->  | BF10: =IF(INDEX(campsByItinerary,numericItinerary($A10),BF$3-1)="","",VLOOKUP(INDEX(campsByItinerary,numericItinerary($A10),BF$3-1),campInfo,8)) -> Y | BG10: =IF(INDEX(campsByItinerary,numericItinerary($A10),BG$3-1)="","",VLOOKUP(INDEX(campsByItinerary,numericItinerary($A10),BG$3-1),campInfo,8)) ->  | BH10: =IF(INDEX(campsByItinerary,numericItinerary($A10),BH$3-1)="","",VLOOKUP(INDEX(campsByItinerary,numericItinerary($A10),BH$3-1),campInfo,8)) ->  | BI10: =IF(INDEX(campsByItinerary,numericItinerary($A10),BI$3-1)="","",VLOOKUP(INDEX(campsByItinerary,numericItinerary($A10),BI$3-1),campInfo,8)) -> Y | BJ10: =IF(INDEX(campsByItinerary,numericItinerary($A10),BJ$3-1)="","",VLOOKUP(INDEX(campsByItinerary,numericItinerary($A10),BJ$3-1),campInfo,8)) -> Y | BK10: =IF(INDEX(campsByItinerary,numericItinerary($A10),BK$3-1)="","",VLOOKUP(INDEX(campsByItinerary,numericItinerary($A10),BK$3-1),campInfo,8)) ->  | BL10: =IF(INDEX(campsByItinerary,numericItinerary($A10),BL$3-1)="","",VLOOKUP(INDEX(campsByItinerary,numericItinerary($A10),BL$3-1),campInfo,8)) -> Y | BM10: =IF(INDEX(campsByItinerary,numericItinerary($A10),BM$3-1)="","",VLOOKUP(INDEX(campsByItinerary,numericItinerary($A10),BM$3-1),campInfo,8)) ->  | BN10: Y | BO10: Y | BQ10: Y | BR10: Y | BU10: Y | BW10: Y | BX10: =IF(INDEX(campsByItinerary,numericItinerary($A10),BD$3-1)="","",VLOOKUP(INDEX(campsByItinerary,numericItinerary($A10),BD$3-1),campInfo,10)) -> Y | BY10: =IF(INDEX(campsByItinerary,numericItinerary($A10),BE$3-1)="","",VLOOKUP(INDEX(campsByItinerary,numericItinerary($A10),BE$3-1),campInfo,10)) ->  | BZ10: =IF(INDEX(campsByItinerary,numericItinerary($A10),BF$3-1)="","",VLOOKUP(INDEX(campsByItinerary,numericItinerary($A10),BF$3-1),campInfo,10)) ->  | CA10: =IF(INDEX(campsByItinerary,numericItinerary($A10),BG$3-1)="","",VLOOKUP(INDEX(campsByItinerary,numericItinerary($A10),BG$3-1),campInfo,10)) ->  | CB10: =IF(INDEX(campsByItinerary,numericItinerary($A10),BH$3-1)="","",VLOOKUP(INDEX(campsByItinerary,numericItinerary($A10),BH$3-1),campInfo,10)) ->  | CC10: =IF(INDEX(campsByItinerary,numericItinerary($A10),BI$3-1)="","",VLOOKUP(INDEX(campsByItinerary,numericItinerary($A10),BI$3-1),campInfo,10)) ->  | CD10: =IF(INDEX(campsByItinerary,numericItinerary($A10),BJ$3-1)="","",VLOOKUP(INDEX(campsByItinerary,numericItinerary($A10),BJ$3-1),campInfo,10)) ->  | CE10: =IF(INDEX(campsByItinerary,numericItinerary($A10),BK$3-1)="","",VLOOKUP(INDEX(campsByItinerary,numericItinerary($A10),BK$3-1),campInfo,10)) ->  | CF10: =IF(INDEX(campsByItinerary,numericItinerary($A10),BL$3-1)="","",VLOOKUP(INDEX(campsByItinerary,numericItinerary($A10),BL$3-1),campInfo,10)) ->  | CG10: =IF(INDEX(campsByItinerary,numericItinerary($A10),BM$3-1)="","",VLOOKUP(INDEX(campsByItinerary,numericItinerary($A10),BM$3-1),campInfo,10)) -> Y | CN10: Y | CR10: =INDEX(campsByItinerary,numericItinerary($A10),BD$3-1) -> Rimrock Park | CS10: =IF(INDEX(campsByItinerary,numericItinerary($A10),BE$3-1)="","",VLOOKUP(INDEX(campsByItinerary,numericItinerary($A10),BE$3-1),campInfo,2)) -> South | CT10: =IF(INDEX(campsByItinerary,numericItinerary($A10),BF$3-1)="","",VLOOKUP(INDEX(campsByItinerary,numericItinerary($A10),BF$3-1),campInfo,2)) -> South | CU10: =IF(INDEX(campsByItinerary,numericItinerary($A10),BG$3-1)="","",VLOOKUP(INDEX(campsByItinerary,numericItinerary($A10),BG$3-1),campInfo,2)) -> South | CV10: =IF(INDEX(campsByItinerary,numericItinerary($A10),BH$3-1)="","",VLOOKUP(INDEX(campsByItinerary,numericItinerary($A10),BH$3-1),campInfo,2)) -> South | CW10: =IF(INDEX(campsByItinerary,numericItinerary($A10),BI$3-1)="","",VLOOKUP(INDEX(campsByItinerary,numericItinerary($A10),BI$3-1),campInfo,2)) -> South | CX10: =IF(INDEX(campsByItinerary,numericItinerary($A10),BJ$3-1)="","",VLOOKUP(INDEX(campsByItinerary,numericItinerary($A10),BJ$3-1),campInfo,2)) -> South | CY10: =IF(INDEX(campsByItinerary,numericItinerary($A10),BK$3-1)="","",VLOOKUP(INDEX(campsByItinerary,numericItinerary($A10),BK$3-1),campInfo,2)) -> South | CZ10: =IF(INDEX(campsByItinerary,numericItinerary($A10),BL$3-1)="","",VLOOKUP(INDEX(campsByItinerary,numericItinerary($A10),BL$3-1),campInfo,2)) -> South | DA10: =IF(INDEX(campsByItinerary,numericItinerary($A10),BM$3-1)="","",VLOOKUP(INDEX(campsByItinerary,numericItinerary($A10),BM$3-1),campInfo,2)) -> Central | DB10: =IF(INDEX(campsByItinerary,numericItinerary($A10),BD$3-1)="","",VLOOKUP(INDEX(campsByItinerary,numericItinerary($A10),BD$3-1),campInfo,12)) -> South | DC10: =IF(INDEX(campsByItinerary,numericItinerary($A10),BE$3-1)="","",VLOOKUP(INDEX(campsByItinerary,numericItinerary($A10),BE$3-1),campInfo,12)) -> South | DD10: =IF(INDEX(campsByItinerary,numericItinerary($A10),BF$3-1)="","",VLOOKUP(INDEX(campsByItinerary,numericItinerary($A10),BF$3-1),campInfo,12)) -> South | DE10: =IF(INDEX(campsByItinerary,numericItinerary($A10),BG$3-1)="","",VLOOKUP(INDEX(campsByItinerary,numericItinerary($A10),BG$3-1),campInfo,12)) -> South | DF10: =IF(INDEX(campsByItinerary,numericItinerary($A10),BH$3-1)="","",VLOOKUP(INDEX(campsByItinerary,numericItinerary($A10),BH$3-1),campInfo,12)) -> South | DG10: =IF(INDEX(campsByItinerary,numericItinerary($A10),BI$3-1)="","",VLOOKUP(INDEX(campsByItinerary,numericItinerary($A10),BI$3-1),campInfo,12)) -> South | DH10: =IF(INDEX(campsByItinerary,numericItinerary($A10),BJ$3-1)="","",VLOOKUP(INDEX(campsByItinerary,numericItinerary($A10),BJ$3-1),campInfo,12)) -> South | DI10: =IF(INDEX(campsByItinerary,numericItinerary($A10),BK$3-1)="","",VLOOKUP(INDEX(campsByItinerary,numericItinerary($A10),BK$3-1),campInfo,12)) -> South | DJ10: =IF(INDEX(campsByItinerary,numericItinerary($A10),BL$3-1)="","",VLOOKUP(INDEX(campsByItinerary,numericItinerary($A10),BL$3-1),campInfo,12)) -> South | DK10: =IF(INDEX(campsByItinerary,numericItinerary($A10),BM$3-1)="","",VLOOKUP(INDEX(campsByItinerary,numericItinerary($A10),BM$3-1),campInfo,12)) -> South | DL10: =getfoodPU("First",numericItinerary($A10)) -> 2 | DM10: =getfoodPU("Max",numericItinerary($A10)) -> 2
A11: 12-8 | C11: C | D11: 59 | E11: Heck Meadow | F11: Cimarroncito | G11: Thunder Ridge | H11: Clear Creek | I11: Porcupine | J11: Beaubien | K11: Beaubien | L11: Bear Caves | M11: Urraca | N11: Tooth Ridge | O11: Camping HQ | P11: Cimarroncito | T11: Phillips Junction | Y11: Hile Out | Z11: Hike In | AA11: y | AB11: =IF(AC11="","",numericItinerary(A11) & ":" & AC11) ->  | AG11: y | AH11: y | AI11: y | AK11: 7085 | AL11: 8137 | AM11: 10490 | AN11: 10240 | AO11: 9152 | AP11: 9330 | AQ11: 9330 | AR11: 8423 | AS11: 7968 | AT11: 8240 | AU11: 1052 | AV11: 2353 | AW11: 250 | AX11: 1088 | AY11: 178 | AZ11: 0 | BA11: 907 | BB11: 455 | BC11: 272 | BD11: =IF(INDEX(campsByItinerary,numericItinerary($A11),BD$3-1)="","",VLOOKUP(INDEX(campsByItinerary,numericItinerary($A11),BD$3-1),campInfo,8)) ->  | BE11: =IF(INDEX(campsByItinerary,numericItinerary($A11),BE$3-1)="","",VLOOKUP(INDEX(campsByItinerary,numericItinerary($A11),BE$3-1),campInfo,8)) -> Y | BF11: =IF(INDEX(campsByItinerary,numericItinerary($A11),BF$3-1)="","",VLOOKUP(INDEX(campsByItinerary,numericItinerary($A11),BF$3-1),campInfo,8)) ->  | BG11: =IF(INDEX(campsByItinerary,numericItinerary($A11),BG$3-1)="","",VLOOKUP(INDEX(campsByItinerary,numericItinerary($A11),BG$3-1),campInfo,8)) -> Y | BH11: =IF(INDEX(campsByItinerary,numericItinerary($A11),BH$3-1)="","",VLOOKUP(INDEX(campsByItinerary,numericItinerary($A11),BH$3-1),campInfo,8)) ->  | BI11: =IF(INDEX(campsByItinerary,numericItinerary($A11),BI$3-1)="","",VLOOKUP(INDEX(campsByItinerary,numericItinerary($A11),BI$3-1),campInfo,8)) -> Y | BJ11: =IF(INDEX(campsByItinerary,numericItinerary($A11),BJ$3-1)="","",VLOOKUP(INDEX(campsByItinerary,numericItinerary($A11),BJ$3-1),campInfo,8)) -> Y | BK11: =IF(INDEX(campsByItinerary,numericItinerary($A11),BK$3-1)="","",VLOOKUP(INDEX(campsByItinerary,numericItinerary($A11),BK$3-1),campInfo,8)) ->  | BL11: =IF(INDEX(campsByItinerary,numericItinerary($A11),BL$3-1)="","",VLOOKUP(INDEX(campsByItinerary,numericItinerary($A11),BL$3-1),campInfo,8)) -> Y | BM11: =IF(INDEX(campsByItinerary,numericItinerary($A11),BM$3-1)="","",VLOOKUP(INDEX(campsByItinerary,numericItinerary($A11),BM$3-1),campInfo,8)) ->  | BN11: Y | BP11: Y | BR11: Y | BU11: Y | BW11: Y | BX11: =IF(INDEX(campsByItinerary,numericItinerary($A11),BD$3-1)="","",VLOOKUP(INDEX(campsByItinerary,numericItinerary($A11),BD$3-1),campInfo,10)) -> Y | BY11: =IF(INDEX(campsByItinerary,numericItinerary($A11),BE$3-1)="","",VLOOKUP(INDEX(campsByItinerary,numericItinerary($A11),BE$3-1),campInfo,10)) ->  | BZ11: =IF(INDEX(campsByItinerary,numericItinerary($A11),BF$3-1)="","",VLOOKUP(INDEX(campsByItinerary,numericItinerary($A11),BF$3-1),campInfo,10)) -> Y | CA11: =IF(INDEX(campsByItinerary,numericItinerary($A11),BG$3-1)="","",VLOOKUP(INDEX(campsByItinerary,numericItinerary($A11),BG$3-1),campInfo,10)) ->  | CB11: =IF(INDEX(campsByItinerary,numericItinerary($A11),BH$3-1)="","",VLOOKUP(INDEX(campsByItinerary,numericItinerary($A11),BH$3-1),campInfo,10)) ->  | CC11: =IF(INDEX(campsByItinerary,numericItinerary($A11),BI$3-1)="","",VLOOKUP(INDEX(campsByItinerary,numericItinerary($A11),BI$3-1),campInfo,10)) ->  | CD11: =IF(INDEX(campsByItinerary,numericItinerary($A11),BJ$3-1)="","",VLOOKUP(INDEX(campsByItinerary,numericItinerary($A11),BJ$3-1),campInfo,10)) ->  | CE11: =IF(INDEX(campsByItinerary,numericItinerary($A11),BK$3-1)="","",VLOOKUP(INDEX(campsByItinerary,numericItinerary($A11),BK$3-1),campInfo,10)) ->  | CF11: =IF(INDEX(campsByItinerary,numericItinerary($A11),BL$3-1)="","",VLOOKUP(INDEX(campsByItinerary,numericItinerary($A11),BL$3-1),campInfo,10)) ->  | CG11: =IF(INDEX(campsByItinerary,numericItinerary($A11),BM$3-1)="","",VLOOKUP(INDEX(campsByItinerary,numericItinerary($A11),BM$3-1),campInfo,10)) -> Y | CN11: Y | CR11: =INDEX(campsByItinerary,numericItinerary($A11),BD$3-1) -> Heck Meadow | CS11: =IF(INDEX(campsByItinerary,numericItinerary($A11),BE$3-1)="","",VLOOKUP(INDEX(campsByItinerary,numericItinerary($A11),BE$3-1),campInfo,2)) -> Central | CT11: =IF(INDEX(campsByItinerary,numericItinerary($A11),BF$3-1)="","",VLOOKUP(INDEX(campsByItinerary,numericItinerary($A11),BF$3-1),campInfo,2)) -> Central | CU11: =IF(INDEX(campsByItinerary,numericItinerary($A11),BG$3-1)="","",VLOOKUP(INDEX(campsByItinerary,numericItinerary($A11),BG$3-1),campInfo,2)) -> Central | CV11: =IF(INDEX(campsByItinerary,numericItinerary($A11),BH$3-1)="","",VLOOKUP(INDEX(campsByItinerary,numericItinerary($A11),BH$3-1),campInfo,2)) -> South | CW11: =IF(INDEX(campsByItinerary,numericItinerary($A11),BI$3-1)="","",VLOOKUP(INDEX(campsByItinerary,numericItinerary($A11),BI$3-1),campInfo,2)) -> South | CX11: =IF(INDEX(campsByItinerary,numericItinerary($A11),BJ$3-1)="","",VLOOKUP(INDEX(campsByItinerary,numericItinerary($A11),BJ$3-1),campInfo,2)) -> South | CY11: =IF(INDEX(campsByItinerary,numericItinerary($A11),BK$3-1)="","",VLOOKUP(INDEX(campsByItinerary,numericItinerary($A11),BK$3-1),campInfo,2)) -> South | CZ11: =IF(INDEX(campsByItinerary,numericItinerary($A11),BL$3-1)="","",VLOOKUP(INDEX(campsByItinerary,numericItinerary($A11),BL$3-1),campInfo,2)) -> South | DA11: =IF(INDEX(campsByItinerary,numericItinerary($A11),BM$3-1)="","",VLOOKUP(INDEX(campsByItinerary,numericItinerary($A11),BM$3-1),campInfo,2)) -> Central | DB11: =IF(INDEX(campsByItinerary,numericItinerary($A11),BD$3-1)="","",VLOOKUP(INDEX(campsByItinerary,numericItinerary($A11),BD$3-1),campInfo,12)) -> South | DC11: =IF(INDEX(campsByItinerary,numericItinerary($A11),BE$3-1)="","",VLOOKUP(INDEX(campsByItinerary,numericItinerary($A11),BE$3-1),campInfo,12)) -> South | DD11: =IF(INDEX(campsByItinerary,numericItinerary($A11),BF$3-1)="","",VLOOKUP(INDEX(campsByItinerary,numericItinerary($A11),BF$3-1),campInfo,12)) -> South | DE11: =IF(INDEX(campsByItinerary,numericItinerary($A11),BG$3-1)="","",VLOOKUP(INDEX(campsByItinerary,numericItinerary($A11),BG$3-1),campInfo,12)) -> South | DF11: =IF(INDEX(campsByItinerary,numericItinerary($A11),BH$3-1)="","",VLOOKUP(INDEX(campsByItinerary,numericItinerary($A11),BH$3-1),campInfo,12)) -> South | DG11: =IF(INDEX(campsByItinerary,numericItinerary($A11),BI$3-1)="","",VLOOKUP(INDEX(campsByItinerary,numericItinerary($A11),BI$3-1),campInfo,12)) -> South | DH11: =IF(INDEX(campsByItinerary,numericItinerary($A11),BJ$3-1)="","",VLOOKUP(INDEX(campsByItinerary,numericItinerary($A11),BJ$3-1),campInfo,12)) -> South | DI11: =IF(INDEX(campsByItinerary,numericItinerary($A11),BK$3-1)="","",VLOOKUP(INDEX(campsByItinerary,numericItinerary($A11),BK$3-1),campInfo,12)) -> South | DJ11: =IF(INDEX(campsByItinerary,numericItinerary($A11),BL$3-1)="","",VLOOKUP(INDEX(campsByItinerary,numericItinerary($A11),BL$3-1),campInfo,12)) -> South | DK11: =IF(INDEX(campsByItinerary,numericItinerary($A11),BM$3-1)="","",VLOOKUP(INDEX(campsByItinerary,numericItinerary($A11),BM$3-1),campInfo,12)) -> South | DL11: =getfoodPU("First",numericItinerary($A11)) -> 1 | DM11: =getfoodPU("Max",numericItinerary($A11)) -> 4
A12: 12-9 | C12: C | D12: 59 | E12: Cimarron River | F12: Black Jacks | G12: Elkhorn | H12: Ponil | I12: Metcalf Station | J12: Dan Beard | K12: Pueblano Ruins | L12: Copper Park | M12: Copper Park | N12: Miranda | O12: Camping HQ | R12: Ponil | V12: Baldy Town | Y12: Ute Park | Z12: Maxwell | AB12: =IF(AC12="","",numericItinerary(A12) & ":" & AC12) -> 9:3 | AC12: 3 | AD12: Bear Canyon | AE12: N | AF12: y | AK12: 7282 | AL12: 8211 | AM12: 8496 | AN12: 7150 | AO12: 7220 | AP12: 7896 | AQ12: 8359 | AR12: 10530 | AS12: 10530 | AT12: 8898 | AU12: 929 | AV12: 285 | AW12: 1346 | AX12: 70 | AY12: 676 | AZ12: 463 | BA12: 2171 | BB12: 0 | BC12: 1632 | BD12: =IF(INDEX(campsByItinerary,numericItinerary($A12),BD$3-1)="","",VLOOKUP(INDEX(campsByItinerary,numericItinerary($A12),BD$3-1),campInfo,8)) ->  | BE12: =IF(INDEX(campsByItinerary,numericItinerary($A12),BE$3-1)="","",VLOOKUP(INDEX(campsByItinerary,numericItinerary($A12),BE$3-1),campInfo,8)) ->  | BF12: =IF(INDEX(campsByItinerary,numericItinerary($A12),BF$3-1)="","",VLOOKUP(INDEX(campsByItinerary,numericItinerary($A12),BF$3-1),campInfo,8)) ->  | BG12: =IF(INDEX(campsByItinerary,numericItinerary($A12),BG$3-1)="","",VLOOKUP(INDEX(campsByItinerary,numericItinerary($A12),BG$3-1),campInfo,8)) -> Y | BH12: =IF(INDEX(campsByItinerary,numericItinerary($A12),BH$3-1)="","",VLOOKUP(INDEX(campsByItinerary,numericItinerary($A12),BH$3-1),campInfo,8)) -> Y | BI12: =IF(INDEX(campsByItinerary,numericItinerary($A12),BI$3-1)="","",VLOOKUP(INDEX(campsByItinerary,numericItinerary($A12),BI$3-1),campInfo,8)) -> Y | BJ12: =IF(INDEX(campsByItinerary,numericItinerary($A12),BJ$3-1)="","",VLOOKUP(INDEX(campsByItinerary,numericItinerary($A12),BJ$3-1),campInfo,8)) ->  | BK12: =IF(INDEX(campsByItinerary,numericItinerary($A12),BK$3-1)="","",VLOOKUP(INDEX(campsByItinerary,numericItinerary($A12),BK$3-1),campInfo,8)) ->  | BL12: =IF(INDEX(campsByItinerary,numericItinerary($A12),BL$3-1)="","",VLOOKUP(INDEX(campsByItinerary,numericItinerary($A12),BL$3-1),campInfo,8)) ->  | BM12: =IF(INDEX(campsByItinerary,numericItinerary($A12),BM$3-1)="","",VLOOKUP(INDEX(campsByItinerary,numericItinerary($A12),BM$3-1),campInfo,8)) -> Y | BN12: Y | BO12: Y | BP12: Y | BT12: Y | BU12: Y | BV12: Y | BX12: =IF(INDEX(campsByItinerary,numericItinerary($A12),BD$3-1)="","",VLOOKUP(INDEX(campsByItinerary,numericItinerary($A12),BD$3-1),campInfo,10)) ->  | BY12: =IF(INDEX(campsByItinerary,numericItinerary($A12),BE$3-1)="","",VLOOKUP(INDEX(campsByItinerary,numericItinerary($A12),BE$3-1),campInfo,10)) ->  | BZ12: =IF(INDEX(campsByItinerary,numericItinerary($A12),BF$3-1)="","",VLOOKUP(INDEX(campsByItinerary,numericItinerary($A12),BF$3-1),campInfo,10)) ->  | CA12: =IF(INDEX(campsByItinerary,numericItinerary($A12),BG$3-1)="","",VLOOKUP(INDEX(campsByItinerary,numericItinerary($A12),BG$3-1),campInfo,10)) ->  | CB12: =IF(INDEX(campsByItinerary,numericItinerary($A12),BH$3-1)="","",VLOOKUP(INDEX(campsByItinerary,numericItinerary($A12),BH$3-1),campInfo,10)) ->  | CC12: =IF(INDEX(campsByItinerary,numericItinerary($A12),BI$3-1)="","",VLOOKUP(INDEX(campsByItinerary,numericItinerary($A12),BI$3-1),campInfo,10)) ->  | CD12: =IF(INDEX(campsByItinerary,numericItinerary($A12),BJ$3-1)="","",VLOOKUP(INDEX(campsByItinerary,numericItinerary($A12),BJ$3-1),campInfo,10)) ->  | CE12: =IF(INDEX(campsByItinerary,numericItinerary($A12),BK$3-1)="","",VLOOKUP(INDEX(campsByItinerary,numericItinerary($A12),BK$3-1),campInfo,10)) ->  | CF12: =IF(INDEX(campsByItinerary,numericItinerary($A12),BL$3-1)="","",VLOOKUP(INDEX(campsByItinerary,numericItinerary($A12),BL$3-1),campInfo,10)) ->  | CG12: =IF(INDEX(campsByItinerary,numericItinerary($A12),BM$3-1)="","",VLOOKUP(INDEX(campsByItinerary,numericItinerary($A12),BM$3-1),campInfo,10)) ->  | CP12: Y | CR12: =INDEX(campsByItinerary,numericItinerary($A12),BD$3-1) -> Cimarron River | CS12: =IF(INDEX(campsByItinerary,numericItinerary($A12),BE$3-1)="","",VLOOKUP(INDEX(campsByItinerary,numericItinerary($A12),BE$3-1),campInfo,2)) -> North | CT12: =IF(INDEX(campsByItinerary,numericItinerary($A12),BF$3-1)="","",VLOOKUP(INDEX(campsByItinerary,numericItinerary($A12),BF$3-1),campInfo,2)) -> North | CU12: =IF(INDEX(campsByItinerary,numericItinerary($A12),BG$3-1)="","",VLOOKUP(INDEX(campsByItinerary,numericItinerary($A12),BG$3-1),campInfo,2)) -> North | CV12: =IF(INDEX(campsByItinerary,numericItinerary($A12),BH$3-1)="","",VLOOKUP(INDEX(campsByItinerary,numericItinerary($A12),BH$3-1),campInfo,2)) -> North | CW12: =IF(INDEX(campsByItinerary,numericItinerary($A12),BI$3-1)="","",VLOOKUP(INDEX(campsByItinerary,numericItinerary($A12),BI$3-1),campInfo,2)) -> North | CX12: =IF(INDEX(campsByItinerary,numericItinerary($A12),BJ$3-1)="","",VLOOKUP(INDEX(campsByItinerary,numericItinerary($A12),BJ$3-1),campInfo,2)) -> North | CY12: =IF(INDEX(campsByItinerary,numericItinerary($A12),BK$3-1)="","",VLOOKUP(INDEX(campsByItinerary,numericItinerary($A12),BK$3-1),campInfo,2)) -> North | CZ12: =IF(INDEX(campsByItinerary,numericItinerary($A12),BL$3-1)="","",VLOOKUP(INDEX(campsByItinerary,numericItinerary($A12),BL$3-1),campInfo,2)) -> North | DA12: =IF(INDEX(campsByItinerary,numericItinerary($A12),BM$3-1)="","",VLOOKUP(INDEX(campsByItinerary,numericItinerary($A12),BM$3-1),campInfo,2)) -> North | DB12: =IF(INDEX(campsByItinerary,numericItinerary($A12),BD$3-1)="","",VLOOKUP(INDEX(campsByItinerary,numericItinerary($A12),BD$3-1),campInfo,12)) -> South | DC12: =IF(INDEX(campsByItinerary,numericItinerary($A12),BE$3-1)="","",VLOOKUP(INDEX(campsByItinerary,numericItinerary($A12),BE$3-1),campInfo,12)) -> North | DD12: =IF(INDEX(campsByItinerary,numericItinerary($A12),BF$3-1)="","",VLOOKUP(INDEX(campsByItinerary,numericItinerary($A12),BF$3-1),campInfo,12)) -> North | DE12: =IF(INDEX(campsByItinerary,numericItinerary($A12),BG$3-1)="","",VLOOKUP(INDEX(campsByItinerary,numericItinerary($A12),BG$3-1),campInfo,12)) -> North | DF12: =IF(INDEX(campsByItinerary,numericItinerary($A12),BH$3-1)="","",VLOOKUP(INDEX(campsByItinerary,numericItinerary($A12),BH$3-1),campInfo,12)) -> North | DG12: =IF(INDEX(campsByItinerary,numericItinerary($A12),BI$3-1)="","",VLOOKUP(INDEX(campsByItinerary,numericItinerary($A12),BI$3-1),campInfo,12)) -> North | DH12: =IF(INDEX(campsByItinerary,numericItinerary($A12),BJ$3-1)="","",VLOOKUP(INDEX(campsByItinerary,numericItinerary($A12),BJ$3-1),campInfo,12)) -> North | DI12: =IF(INDEX(campsByItinerary,numericItinerary($A12),BK$3-1)="","",VLOOKUP(INDEX(campsByItinerary,numericItinerary($A12),BK$3-1),campInfo,12)) -> North | DJ12: =IF(INDEX(campsByItinerary,numericItinerary($A12),BL$3-1)="","",VLOOKUP(INDEX(campsByItinerary,numericItinerary($A12),BL$3-1),campInfo,12)) -> North | DK12: =IF(INDEX(campsByItinerary,numericItinerary($A12),BM$3-1)="","",VLOOKUP(INDEX(campsByItinerary,numericItinerary($A12),BM$3-1),campInfo,12)) -> North | DL12: =getfoodPU("First",numericItinerary($A12)) -> 3 | DM12: =getfoodPU("Max",numericItinerary($A12)) -> 3
A13: 12-10 | C13: R | D13: 60 | E13: Flume Canyon | F13: Pueblano Ruins | G13: Baldy Town | H13: Baldy Town | I13: Ringtail | J13: Elkhorn | K13: Ponil | L13: Indian Writings | M13: House Canyon | N13: Chase Cow | O13: Camping HQ | R13: Baldy Town | U13: Ponil | Y13: Ponil | Z13: Chase | AB13: =IF(AC13="","",numericItinerary(A13) & ":" & AC13) ->  | AF13: y | AJ13: y | AK13: 7715 | AL13: 8359 | AM13: 9851 | AN13: 9851 | AO13: 8600 | AP13: 8496 | AQ13: 7150 | AR13: 6979 | AS13: 7157 | AT13: 7177 | AU13: 644 | AV13: 1492 | AW13: 0 | AX13: 1251 | AY13: 104 | AZ13: 1346 | BA13: 171 | BB13: 178 | BC13: 20 | BD13: =IF(INDEX(campsByItinerary,numericItinerary($A13),BD$3-1)="","",VLOOKUP(INDEX(campsByItinerary,numericItinerary($A13),BD$3-1),campInfo,8)) ->  | BE13: =IF(INDEX(campsByItinerary,numericItinerary($A13),BE$3-1)="","",VLOOKUP(INDEX(campsByItinerary,numericItinerary($A13),BE$3-1),campInfo,8)) ->  | BF13: =IF(INDEX(campsByItinerary,numericItinerary($A13),BF$3-1)="","",VLOOKUP(INDEX(campsByItinerary,numericItinerary($A13),BF$3-1),campInfo,8)) -> Y | BG13: =IF(INDEX(campsByItinerary,numericItinerary($A13),BG$3-1)="","",VLOOKUP(INDEX(campsByItinerary,numericItinerary($A13),BG$3-1),campInfo,8)) -> Y | BH13: =IF(INDEX(campsByItinerary,numericItinerary($A13),BH$3-1)="","",VLOOKUP(INDEX(campsByItinerary,numericItinerary($A13),BH$3-1),campInfo,8)) ->  | BI13: =IF(INDEX(campsByItinerary,numericItinerary($A13),BI$3-1)="","",VLOOKUP(INDEX(campsByItinerary,numericItinerary($A13),BI$3-1),campInfo,8)) ->  | BJ13: =IF(INDEX(campsByItinerary,numericItinerary($A13),BJ$3-1)="","",VLOOKUP(INDEX(campsByItinerary,numericItinerary($A13),BJ$3-1),campInfo,8)) -> Y | BK13: =IF(INDEX(campsByItinerary,numericItinerary($A13),BK$3-1)="","",VLOOKUP(INDEX(campsByItinerary,numericItinerary($A13),BK$3-1),campInfo,8)) -> Y | BL13: =IF(INDEX(campsByItinerary,numericItinerary($A13),BL$3-1)="","",VLOOKUP(INDEX(campsByItinerary,numericItinerary($A13),BL$3-1),campInfo,8)) ->  | BM13: =IF(INDEX(campsByItinerary,numericItinerary($A13),BM$3-1)="","",VLOOKUP(INDEX(campsByItinerary,numericItinerary($A13),BM$3-1),campInfo,8)) -> Y | BN13: Y | BO13: Y | BR13: Y | BS13: Y | BV13: Y | BX13: =IF(INDEX(campsByItinerary,numericItinerary($A13),BD$3-1)="","",VLOOKUP(INDEX(campsByItinerary,numericItinerary($A13),BD$3-1),campInfo,10)) ->  | BY13: =IF(INDEX(campsByItinerary,numericItinerary($A13),BE$3-1)="","",VLOOKUP(INDEX(campsByItinerary,numericItinerary($A13),BE$3-1),campInfo,10)) ->  | BZ13: =IF(INDEX(campsByItinerary,numericItinerary($A13),BF$3-1)="","",VLOOKUP(INDEX(campsByItinerary,numericItinerary($A13),BF$3-1),campInfo,10)) ->  | CA13: =IF(INDEX(campsByItinerary,numericItinerary($A13),BG$3-1)="","",VLOOKUP(INDEX(campsByItinerary,numericItinerary($A13),BG$3-1),campInfo,10)) ->  | CB13: =IF(INDEX(campsByItinerary,numericItinerary($A13),BH$3-1)="","",VLOOKUP(INDEX(campsByItinerary,numericItinerary($A13),BH$3-1),campInfo,10)) -> Y | CC13: =IF(INDEX(campsByItinerary,numericItinerary($A13),BI$3-1)="","",VLOOKUP(INDEX(campsByItinerary,numericItinerary($A13),BI$3-1),campInfo,10)) ->  | CD13: =IF(INDEX(campsByItinerary,numericItinerary($A13),BJ$3-1)="","",VLOOKUP(INDEX(campsByItinerary,numericItinerary($A13),BJ$3-1),campInfo,10)) ->  | CE13: =IF(INDEX(campsByItinerary,numericItinerary($A13),BK$3-1)="","",VLOOKUP(INDEX(campsByItinerary,numericItinerary($A13),BK$3-1),campInfo,10)) ->  | CF13: =IF(INDEX(campsByItinerary,numericItinerary($A13),BL$3-1)="","",VLOOKUP(INDEX(campsByItinerary,numericItinerary($A13),BL$3-1),campInfo,10)) ->  | CG13: =IF(INDEX(campsByItinerary,numericItinerary($A13),BM$3-1)="","",VLOOKUP(INDEX(campsByItinerary,numericItinerary($A13),BM$3-1),campInfo,10)) ->  | CK13: Y | CR13: =INDEX(campsByItinerary,numericItinerary($A13),BD$3-1) -> Flume Canyon | CS13: =IF(INDEX(campsByItinerary,numericItinerary($A13),BE$3-1)="","",VLOOKUP(INDEX(campsByItinerary,numericItinerary($A13),BE$3-1),campInfo,2)) -> North | CT13: =IF(INDEX(campsByItinerary,numericItinerary($A13),BF$3-1)="","",VLOOKUP(INDEX(campsByItinerary,numericItinerary($A13),BF$3-1),campInfo,2)) -> North | CU13: =IF(INDEX(campsByItinerary,numericItinerary($A13),BG$3-1)="","",VLOOKUP(INDEX(campsByItinerary,numericItinerary($A13),BG$3-1),campInfo,2)) -> North | CV13: =IF(INDEX(campsByItinerary,numericItinerary($A13),BH$3-1)="","",VLOOKUP(INDEX(campsByItinerary,numericItinerary($A13),BH$3-1),campInfo,2)) -> North | CW13: =IF(INDEX(campsByItinerary,numericItinerary($A13),BI$3-1)="","",VLOOKUP(INDEX(campsByItinerary,numericItinerary($A13),BI$3-1),campInfo,2)) -> North | CX13: =IF(INDEX(campsByItinerary,numericItinerary($A13),BJ$3-1)="","",VLOOKUP(INDEX(campsByItinerary,numericItinerary($A13),BJ$3-1),campInfo,2)) -> North | CY13: =IF(INDEX(campsByItinerary,numericItinerary($A13),BK$3-1)="","",VLOOKUP(INDEX(campsByItinerary,numericItinerary($A13),BK$3-1),campInfo,2)) -> North | CZ13: =IF(INDEX(campsByItinerary,numericItinerary($A13),BL$3-1)="","",VLOOKUP(INDEX(campsByItinerary,numericItinerary($A13),BL$3-1),campInfo,2)) -> North | DA13: =IF(INDEX(campsByItinerary,numericItinerary($A13),BM$3-1)="","",VLOOKUP(INDEX(campsByItinerary,numericItinerary($A13),BM$3-1),campInfo,2)) -> North | DB13: =IF(INDEX(campsByItinerary,numericItinerary($A13),BD$3-1)="","",VLOOKUP(INDEX(campsByItinerary,numericItinerary($A13),BD$3-1),campInfo,12)) -> North | DC13: =IF(INDEX(campsByItinerary,numericItinerary($A13),BE$3-1)="","",VLOOKUP(INDEX(campsByItinerary,numericItinerary($A13),BE$3-1),campInfo,12)) -> North | DD13: =IF(INDEX(campsByItinerary,numericItinerary($A13),BF$3-1)="","",VLOOKUP(INDEX(campsByItinerary,numericItinerary($A13),BF$3-1),campInfo,12)) -> North | DE13: =IF(INDEX(campsByItinerary,numericItinerary($A13),BG$3-1)="","",VLOOKUP(INDEX(campsByItinerary,numericItinerary($A13),BG$3-1),campInfo,12)) -> North | DF13: =IF(INDEX(campsByItinerary,numericItinerary($A13),BH$3-1)="","",VLOOKUP(INDEX(campsByItinerary,numericItinerary($A13),BH$3-1),campInfo,12)) -> North | DG13: =IF(INDEX(campsByItinerary,numericItinerary($A13),BI$3-1)="","",VLOOKUP(INDEX(campsByItinerary,numericItinerary($A13),BI$3-1),campInfo,12)) -> North | DH13: =IF(INDEX(campsByItinerary,numericItinerary($A13),BJ$3-1)="","",VLOOKUP(INDEX(campsByItinerary,numericItinerary($A13),BJ$3-1),campInfo,12)) -> North | DI13: =IF(INDEX(campsByItinerary,numericItinerary($A13),BK$3-1)="","",VLOOKUP(INDEX(campsByItinerary,numericItinerary($A13),BK$3-1),campInfo,12)) -> North | DJ13: =IF(INDEX(campsByItinerary,numericItinerary($A13),BL$3-1)="","",VLOOKUP(INDEX(campsByItinerary,numericItinerary($A13),BL$3-1),campInfo,12)) -> North | DK13: =IF(INDEX(campsByItinerary,numericItinerary($A13),BM$3-1)="","",VLOOKUP(INDEX(campsByItinerary,numericItinerary($A13),BM$3-1),campInfo,12)) -> North | DL13: =getfoodPU("First",numericItinerary($A13)) -> 3 | DM13: =getfoodPU("Max",numericItinerary($A13)) -> 3
A14: 12-11 | B14: 50 Miler South | C14: R | D14: 60 | E14: Arrowhead | F14: Hunting Lodge | G14: Cyphers Mine | H14: Clear Creek | I14: Beaubien | J14: Lower Bonito | K14: Abreu | L14: Bear Caves | M14: Miners Park | N14: Tooth Ridge | O14: Camping HQ | Q14: Cimarroncito | S14: Phillips Junction | W14: Miners Park | Y14: Webster | Z14: Hike in | AA14: y | AB14: =IF(AC14="","",numericItinerary(A14) & ":" & AC14) ->  | AG14: y | AH14: y | AI14: y | AJ14: y | AK14: 7644 | AL14: 7776 | AM14: 9302 | AN14: 10240 | AO14: 9330 | AP14: 8962 | AQ14: 7217 | AR14: 8423 | AS14: 7977 | AT14: 8240 | AU14: 132 | AV14: 1526 | AW14: 938 | AX14: 910 | AY14: 368 | AZ14: 1745 | BA14: 1206 | BB14: 446 | BC14: 263 | BD14: =IF(INDEX(campsByItinerary,numericItinerary($A14),BD$3-1)="","",VLOOKUP(INDEX(campsByItinerary,numericItinerary($A14),BD$3-1),campInfo,8)) ->  | BE14: =IF(INDEX(campsByItinerary,numericItinerary($A14),BE$3-1)="","",VLOOKUP(INDEX(campsByItinerary,numericItinerary($A14),BE$3-1),campInfo,8)) -> N | BF14: =IF(INDEX(campsByItinerary,numericItinerary($A14),BF$3-1)="","",VLOOKUP(INDEX(campsByItinerary,numericItinerary($A14),BF$3-1),campInfo,8)) -> Y | BG14: =IF(INDEX(campsByItinerary,numericItinerary($A14),BG$3-1)="","",VLOOKUP(INDEX(campsByItinerary,numericItinerary($A14),BG$3-1),campInfo,8)) -> Y | BH14: =IF(INDEX(campsByItinerary,numericItinerary($A14),BH$3-1)="","",VLOOKUP(INDEX(campsByItinerary,numericItinerary($A14),BH$3-1),campInfo,8)) -> Y | BI14: =IF(INDEX(campsByItinerary,numericItinerary($A14),BI$3-1)="","",VLOOKUP(INDEX(campsByItinerary,numericItinerary($A14),BI$3-1),campInfo,8)) ->  | BJ14: =IF(INDEX(campsByItinerary,numericItinerary($A14),BJ$3-1)="","",VLOOKUP(INDEX(campsByItinerary,numericItinerary($A14),BJ$3-1),campInfo,8)) -> Y | BK14: =IF(INDEX(campsByItinerary,numericItinerary($A14),BK$3-1)="","",VLOOKUP(INDEX(campsByItinerary,numericItinerary($A14),BK$3-1),campInfo,8)) ->  | BL14: =IF(INDEX(campsByItinerary,numericItinerary($A14),BL$3-1)="","",VLOOKUP(INDEX(campsByItinerary,numericItinerary($A14),BL$3-1),campInfo,8)) -> Y | BM14: =IF(INDEX(campsByItinerary,numericItinerary($A14),BM$3-1)="","",VLOOKUP(INDEX(campsByItinerary,numericItinerary($A14),BM$3-1),campInfo,8)) ->  | BN14: Y | BO14: Y | BS14: Y | BU14: Y | BW14: Y | BX14: =IF(INDEX(campsByItinerary,numericItinerary($A14),BD$3-1)="","",VLOOKUP(INDEX(campsByItinerary,numericItinerary($A14),BD$3-1),campInfo,10)) -> Y | BY14: =IF(INDEX(campsByItinerary,numericItinerary($A14),BE$3-1)="","",VLOOKUP(INDEX(campsByItinerary,numericItinerary($A14),BE$3-1),campInfo,10)) ->  | BZ14: =IF(INDEX(campsByItinerary,numericItinerary($A14),BF$3-1)="","",VLOOKUP(INDEX(campsByItinerary,numericItinerary($A14),BF$3-1),campInfo,10)) ->  | CA14: =IF(INDEX(campsByItinerary,numericItinerary($A14),BG$3-1)="","",VLOOKUP(INDEX(campsByItinerary,numericItinerary($A14),BG$3-1),campInfo,10)) ->  | CB14: =IF(INDEX(campsByItinerary,numericItinerary($A14),BH$3-1)="","",VLOOKUP(INDEX(campsByItinerary,numericItinerary($A14),BH$3-1),campInfo,10)) ->  | CC14: =IF(INDEX(campsByItinerary,numericItinerary($A14),BI$3-1)="","",VLOOKUP(INDEX(campsByItinerary,numericItinerary($A14),BI$3-1),campInfo,10)) ->  | CD14: =IF(INDEX(campsByItinerary,numericItinerary($A14),BJ$3-1)="","",VLOOKUP(INDEX(campsByItinerary,numericItinerary($A14),BJ$3-1),campInfo,10)) ->  | CE14: =IF(INDEX(campsByItinerary,numericItinerary($A14),BK$3-1)="","",VLOOKUP(INDEX(campsByItinerary,numericItinerary($A14),BK$3-1),campInfo,10)) ->  | CF14: =IF(INDEX(campsByItinerary,numericItinerary($A14),BL$3-1)="","",VLOOKUP(INDEX(campsByItinerary,numericItinerary($A14),BL$3-1),campInfo,10)) ->  | CG14: =IF(INDEX(campsByItinerary,numericItinerary($A14),BM$3-1)="","",VLOOKUP(INDEX(campsByItinerary,numericItinerary($A14),BM$3-1),campInfo,10)) -> Y | CR14: =INDEX(campsByItinerary,numericItinerary($A14),BD$3-1) -> Arrowhead | CS14: =IF(INDEX(campsByItinerary,numericItinerary($A14),BE$3-1)="","",VLOOKUP(INDEX(campsByItinerary,numericItinerary($A14),BE$3-1),campInfo,2)) -> Central | CT14: =IF(INDEX(campsByItinerary,numericItinerary($A14),BF$3-1)="","",VLOOKUP(INDEX(campsByItinerary,numericItinerary($A14),BF$3-1),campInfo,2)) -> Central | CU14: =IF(INDEX(campsByItinerary,numericItinerary($A14),BG$3-1)="","",VLOOKUP(INDEX(campsByItinerary,numericItinerary($A14),BG$3-1),campInfo,2)) -> Central | CV14: =IF(INDEX(campsByItinerary,numericItinerary($A14),BH$3-1)="","",VLOOKUP(INDEX(campsByItinerary,numericItinerary($A14),BH$3-1),campInfo,2)) -> South | CW14: =IF(INDEX(campsByItinerary,numericItinerary($A14),BI$3-1)="","",VLOOKUP(INDEX(campsByItinerary,numericItinerary($A14),BI$3-1),campInfo,2)) -> South | CX14: =IF(INDEX(campsByItinerary,numericItinerary($A14),BJ$3-1)="","",VLOOKUP(INDEX(campsByItinerary,numericItinerary($A14),BJ$3-1),campInfo,2)) -> South | CY14: =IF(INDEX(campsByItinerary,numericItinerary($A14),BK$3-1)="","",VLOOKUP(INDEX(campsByItinerary,numericItinerary($A14),BK$3-1),campInfo,2)) -> South | CZ14: =IF(INDEX(campsByItinerary,numericItinerary($A14),BL$3-1)="","",VLOOKUP(INDEX(campsByItinerary,numericItinerary($A14),BL$3-1),campInfo,2)) -> South | DA14: =IF(INDEX(campsByItinerary,numericItinerary($A14),BM$3-1)="","",VLOOKUP(INDEX(campsByItinerary,numericItinerary($A14),BM$3-1),campInfo,2)) -> Central | DB14: =IF(INDEX(campsByItinerary,numericItinerary($A14),BD$3-1)="","",VLOOKUP(INDEX(campsByItinerary,numericItinerary($A14),BD$3-1),campInfo,12)) -> South | DC14: =IF(INDEX(campsByItinerary,numericItinerary($A14),BE$3-1)="","",VLOOKUP(INDEX(campsByItinerary,numericItinerary($A14),BE$3-1),campInfo,12)) -> South | DD14: =IF(INDEX(campsByItinerary,numericItinerary($A14),BF$3-1)="","",VLOOKUP(INDEX(campsByItinerary,numericItinerary($A14),BF$3-1),campInfo,12)) -> South | DE14: =IF(INDEX(campsByItinerary,numericItinerary($A14),BG$3-1)="","",VLOOKUP(INDEX(campsByItinerary,numericItinerary($A14),BG$3-1),campInfo,12)) -> South | DF14: =IF(INDEX(campsByItinerary,numericItinerary($A14),BH$3-1)="","",VLOOKUP(INDEX(campsByItinerary,numericItinerary($A14),BH$3-1),campInfo,12)) -> South | DG14: =IF(INDEX(campsByItinerary,numericItinerary($A14),BI$3-1)="","",VLOOKUP(INDEX(campsByItinerary,numericItinerary($A14),BI$3-1),campInfo,12)) -> South | DH14: =IF(INDEX(campsByItinerary,numericItinerary($A14),BJ$3-1)="","",VLOOKUP(INDEX(campsByItinerary,numericItinerary($A14),BJ$3-1),campInfo,12)) -> South | DI14: =IF(INDEX(campsByItinerary,numericItinerary($A14),BK$3-1)="","",VLOOKUP(INDEX(campsByItinerary,numericItinerary($A14),BK$3-1),campInfo,12)) -> South | DJ14: =IF(INDEX(campsByItinerary,numericItinerary($A14),BL$3-1)="","",VLOOKUP(INDEX(campsByItinerary,numericItinerary($A14),BL$3-1),campInfo,12)) -> South | DK14: =IF(INDEX(campsByItinerary,numericItinerary($A14),BM$3-1)="","",VLOOKUP(INDEX(campsByItinerary,numericItinerary($A14),BM$3-1),campInfo,12)) -> South | DL14: =getfoodPU("First",numericItinerary($A14)) -> 2 | DM14: =getfoodPU("Max",numericItinerary($A14)) -> 4
A15: 12-12 | C15: R | D15: 60 | E15: Line | F15: Lower Bonito | G15: Fish Camp | H15: Apache Springs | I15: Comanche Creek | J15: Red Hills | K15: Beaubien | L15: Beaubien | M15: Miners Park | N15: Tooth Ridge | O15: Camping HQ | R15: Apache Springs | U15: Phillips Junction | W15: Miners Park | Y15: Zastrow | Z15: Hike In | AA15: y | AB15: =IF(AC15="","",numericItinerary(A15) & ":" & AC15) ->  | AG15: y | AH15: y | AJ15: y | AK15: 8125 | AL15: 8962 | AM15: 8564 | AN15: 9409 | AO15: 9600 | AP15: 10280 | AQ15: 9330 | AR15: 9330 | AS15: 7977 | AT15: 8240 | AU15: 837 | AV15: 398 | AW15: 845 | AX15: 191 | AY15: 680 | AZ15: 950 | BA15: 0 | BB15: 1353 | BC15: 263 | BD15: =IF(INDEX(campsByItinerary,numericItinerary($A15),BD$3-1)="","",VLOOKUP(INDEX(campsByItinerary,numericItinerary($A15),BD$3-1),campInfo,8)) ->  | BE15: =IF(INDEX(campsByItinerary,numericItinerary($A15),BE$3-1)="","",VLOOKUP(INDEX(campsByItinerary,numericItinerary($A15),BE$3-1),campInfo,8)) ->  | BF15: =IF(INDEX(campsByItinerary,numericItinerary($A15),BF$3-1)="","",VLOOKUP(INDEX(campsByItinerary,numericItinerary($A15),BF$3-1),campInfo,8)) -> Y | BG15: =IF(INDEX(campsByItinerary,numericItinerary($A15),BG$3-1)="","",VLOOKUP(INDEX(campsByItinerary,numericItinerary($A15),BG$3-1),campInfo,8)) -> Y | BH15: =IF(INDEX(campsByItinerary,numericItinerary($A15),BH$3-1)="","",VLOOKUP(INDEX(campsByItinerary,numericItinerary($A15),BH$3-1),campInfo,8)) ->  | BI15: =IF(INDEX(campsByItinerary,numericItinerary($A15),BI$3-1)="","",VLOOKUP(INDEX(campsByItinerary,numericItinerary($A15),BI$3-1),campInfo,8)) ->  | BJ15: =IF(INDEX(campsByItinerary,numericItinerary($A15),BJ$3-1)="","",VLOOKUP(INDEX(campsByItinerary,numericItinerary($A15),BJ$3-1),campInfo,8)) -> Y | BK15: =IF(INDEX(campsByItinerary,numericItinerary($A15),BK$3-1)="","",VLOOKUP(INDEX(campsByItinerary,numericItinerary($A15),BK$3-1),campInfo,8)) -> Y | BL15: =IF(INDEX(campsByItinerary,numericItinerary($A15),BL$3-1)="","",VLOOKUP(INDEX(campsByItinerary,numericItinerary($A15),BL$3-1),campInfo,8)) -> Y | BM15: =IF(INDEX(campsByItinerary,numericItinerary($A15),BM$3-1)="","",VLOOKUP(INDEX(campsByItinerary,numericItinerary($A15),BM$3-1),campInfo,8)) ->  | BN15: Y | BO15: Y | BR15: Y | BS15: Y | BW15: Y | BX15: =IF(INDEX(campsByItinerary,numericItinerary($A15),BD$3-1)="","",VLOOKUP(INDEX(campsByItinerary,numericItinerary($A15),BD$3-1),campInfo,10)) ->  | BY15: =IF(INDEX(campsByItinerary,numericItinerary($A15),BE$3-1)="","",VLOOKUP(INDEX(campsByItinerary,numericItinerary($A15),BE$3-1),campInfo,10)) ->  | BZ15: =IF(INDEX(campsByItinerary,numericItinerary($A15),BF$3-1)="","",VLOOKUP(INDEX(campsByItinerary,numericItinerary($A15),BF$3-1),campInfo,10)) ->  | CA15: =IF(INDEX(campsByItinerary,numericItinerary($A15),BG$3-1)="","",VLOOKUP(INDEX(campsByItinerary,numericItinerary($A15),BG$3-1),campInfo,10)) ->  | CB15: =IF(INDEX(campsByItinerary,numericItinerary($A15),BH$3-1)="","",VLOOKUP(INDEX(campsByItinerary,numericItinerary($A15),BH$3-1),campInfo,10)) ->  | CC15: =IF(INDEX(campsByItinerary,numericItinerary($A15),BI$3-1)="","",VLOOKUP(INDEX(campsByItinerary,numericItinerary($A15),BI$3-1),campInfo,10)) ->  | CD15: =IF(INDEX(campsByItinerary,numericItinerary($A15),BJ$3-1)="","",VLOOKUP(INDEX(campsByItinerary,numericItinerary($A15),BJ$3-1),campInfo,10)) ->  | CE15: =IF(INDEX(campsByItinerary,numericItinerary($A15),BK$3-1)="","",VLOOKUP(INDEX(campsByItinerary,numericItinerary($A15),BK$3-1),campInfo,10)) ->  | CF15: =IF(INDEX(campsByItinerary,numericItinerary($A15),BL$3-1)="","",VLOOKUP(INDEX(campsByItinerary,numericItinerary($A15),BL$3-1),campInfo,10)) ->  | CG15: =IF(INDEX(campsByItinerary,numericItinerary($A15),BM$3-1)="","",VLOOKUP(INDEX(campsByItinerary,numericItinerary($A15),BM$3-1),campInfo,10)) -> Y | CO15: Y | CR15: =INDEX(campsByItinerary,numericItinerary($A15),BD$3-1) -> Line | CS15: =IF(INDEX(campsByItinerary,numericItinerary($A15),BE$3-1)="","",VLOOKUP(INDEX(campsByItinerary,numericItinerary($A15),BE$3-1),campInfo,2)) -> South | CT15: =IF(INDEX(campsByItinerary,numericItinerary($A15),BF$3-1)="","",VLOOKUP(INDEX(campsByItinerary,numericItinerary($A15),BF$3-1),campInfo,2)) -> South | CU15: =IF(INDEX(campsByItinerary,numericItinerary($A15),BG$3-1)="","",VLOOKUP(INDEX(campsByItinerary,numericItinerary($A15),BG$3-1),campInfo,2)) -> South | CV15: =IF(INDEX(campsByItinerary,numericItinerary($A15),BH$3-1)="","",VLOOKUP(INDEX(campsByItinerary,numericItinerary($A15),BH$3-1),campInfo,2)) -> South | CW15: =IF(INDEX(campsByItinerary,numericItinerary($A15),BI$3-1)="","",VLOOKUP(INDEX(campsByItinerary,numericItinerary($A15),BI$3-1),campInfo,2)) -> South | CX15: =IF(INDEX(campsByItinerary,numericItinerary($A15),BJ$3-1)="","",VLOOKUP(INDEX(campsByItinerary,numericItinerary($A15),BJ$3-1),campInfo,2)) -> South | CY15: =IF(INDEX(campsByItinerary,numericItinerary($A15),BK$3-1)="","",VLOOKUP(INDEX(campsByItinerary,numericItinerary($A15),BK$3-1),campInfo,2)) -> South | CZ15: =IF(INDEX(campsByItinerary,numericItinerary($A15),BL$3-1)="","",VLOOKUP(INDEX(campsByItinerary,numericItinerary($A15),BL$3-1),campInfo,2)) -> South | DA15: =IF(INDEX(campsByItinerary,numericItinerary($A15),BM$3-1)="","",VLOOKUP(INDEX(campsByItinerary,numericItinerary($A15),BM$3-1),campInfo,2)) -> Central | DB15: =IF(INDEX(campsByItinerary,numericItinerary($A15),BD$3-1)="","",VLOOKUP(INDEX(campsByItinerary,numericItinerary($A15),BD$3-1),campInfo,12)) -> South | DC15: =IF(INDEX(campsByItinerary,numericItinerary($A15),BE$3-1)="","",VLOOKUP(INDEX(campsByItinerary,numericItinerary($A15),BE$3-1),campInfo,12)) -> South | DD15: =IF(INDEX(campsByItinerary,numericItinerary($A15),BF$3-1)="","",VLOOKUP(INDEX(campsByItinerary,numericItinerary($A15),BF$3-1),campInfo,12)) -> South | DE15: =IF(INDEX(campsByItinerary,numericItinerary($A15),BG$3-1)="","",VLOOKUP(INDEX(campsByItinerary,numericItinerary($A15),BG$3-1),campInfo,12)) -> South | DF15: =IF(INDEX(campsByItinerary,numericItinerary($A15),BH$3-1)="","",VLOOKUP(INDEX(campsByItinerary,numericItinerary($A15),BH$3-1),campInfo,12)) -> South | DG15: =IF(INDEX(campsByItinerary,numericItinerary($A15),BI$3-1)="","",VLOOKUP(INDEX(campsByItinerary,numericItinerary($A15),BI$3-1),campInfo,12)) -> South | DH15: =IF(INDEX(campsByItinerary,numericItinerary($A15),BJ$3-1)="","",VLOOKUP(INDEX(campsByItinerary,numericItinerary($A15),BJ$3-1),campInfo,12)) -> South | DI15: =IF(INDEX(campsByItinerary,numericItinerary($A15),BK$3-1)="","",VLOOKUP(INDEX(campsByItinerary,numericItinerary($A15),BK$3-1),campInfo,12)) -> South | DJ15: =IF(INDEX(campsByItinerary,numericItinerary($A15),BL$3-1)="","",VLOOKUP(INDEX(campsByItinerary,numericItinerary($A15),BL$3-1),campInfo,12)) -> South | DK15: =IF(INDEX(campsByItinerary,numericItinerary($A15),BM$3-1)="","",VLOOKUP(INDEX(campsByItinerary,numericItinerary($A15),BM$3-1),campInfo,12)) -> South | DL15: =getfoodPU("First",numericItinerary($A15)) -> 3 | DM15: =getfoodPU("Max",numericItinerary($A15)) -> 3
A16: 12-13 | C16: R | D16: 63 | E16: Backache Springs | F16: Line | G16: Agua Fria | H16: Apache Springs | I16: Porcupine | J16: Beaubien | K16: Divide | L16: Black Mountain | M16: Miners Park | N16: Stockade Ridge | O16: Camping HQ | R16: Apache Springs | T16: Phillips Junction | W16: Miners Park | Y16: Zastrow | Z16: Hike In | AA16: y | AB16: =IF(AC16="","",numericItinerary(A16) & ":" & AC16) ->  | AG16: y | AH16: y | AJ16: y | AK16: 7688 | AL16: 8125 | AM16: 8726 | AN16: 9409 | AO16: 9152 | AP16: 9330 | AQ16: 10509 | AR16: 8991 | AS16: 7977 | AT16: 7519 | AU16: 437 | AV16: 601 | AW16: 683 | AX16: 257 | AY16: 178 | AZ16: 1179 | BA16: 1518 | BB16: 1014 | BC16: 458 | BD16: =IF(INDEX(campsByItinerary,numericItinerary($A16),BD$3-1)="","",VLOOKUP(INDEX(campsByItinerary,numericItinerary($A16),BD$3-1),campInfo,8)) ->  | BE16: =IF(INDEX(campsByItinerary,numericItinerary($A16),BE$3-1)="","",VLOOKUP(INDEX(campsByItinerary,numericItinerary($A16),BE$3-1),campInfo,8)) ->  | BF16: =IF(INDEX(campsByItinerary,numericItinerary($A16),BF$3-1)="","",VLOOKUP(INDEX(campsByItinerary,numericItinerary($A16),BF$3-1),campInfo,8)) ->  | BG16: =IF(INDEX(campsByItinerary,numericItinerary($A16),BG$3-1)="","",VLOOKUP(INDEX(campsByItinerary,numericItinerary($A16),BG$3-1),campInfo,8)) -> Y | BH16: =IF(INDEX(campsByItinerary,numericItinerary($A16),BH$3-1)="","",VLOOKUP(INDEX(campsByItinerary,numericItinerary($A16),BH$3-1),campInfo,8)) ->  | BI16: =IF(INDEX(campsByItinerary,numericItinerary($A16),BI$3-1)="","",VLOOKUP(INDEX(campsByItinerary,numericItinerary($A16),BI$3-1),campInfo,8)) -> Y | BJ16: =IF(INDEX(campsByItinerary,numericItinerary($A16),BJ$3-1)="","",VLOOKUP(INDEX(campsByItinerary,numericItinerary($A16),BJ$3-1),campInfo,8)) ->  | BK16: =IF(INDEX(campsByItinerary,numericItinerary($A16),BK$3-1)="","",VLOOKUP(INDEX(campsByItinerary,numericItinerary($A16),BK$3-1),campInfo,8)) -> Y | BL16: =IF(INDEX(campsByItinerary,numericItinerary($A16),BL$3-1)="","",VLOOKUP(INDEX(campsByItinerary,numericItinerary($A16),BL$3-1),campInfo,8)) -> Y | BM16: =IF(INDEX(campsByItinerary,numericItinerary($A16),BM$3-1)="","",VLOOKUP(INDEX(campsByItinerary,numericItinerary($A16),BM$3-1),campInfo,8)) ->  | BN16: Y | BO16: Y | BP16: Y | BR16: Y | BT16: Y | BW16: Y | BX16: =IF(INDEX(campsByItinerary,numericItinerary($A16),BD$3-1)="","",VLOOKUP(INDEX(campsByItinerary,numericItinerary($A16),BD$3-1),campInfo,10)) ->  | BY16: =IF(INDEX(campsByItinerary,numericItinerary($A16),BE$3-1)="","",VLOOKUP(INDEX(campsByItinerary,numericItinerary($A16),BE$3-1),campInfo,10)) ->  | BZ16: =IF(INDEX(campsByItinerary,numericItinerary($A16),BF$3-1)="","",VLOOKUP(INDEX(campsByItinerary,numericItinerary($A16),BF$3-1),campInfo,10)) ->  | CA16: =IF(INDEX(campsByItinerary,numericItinerary($A16),BG$3-1)="","",VLOOKUP(INDEX(campsByItinerary,numericItinerary($A16),BG$3-1),campInfo,10)) ->  | CB16: =IF(INDEX(campsByItinerary,numericItinerary($A16),BH$3-1)="","",VLOOKUP(INDEX(campsByItinerary,numericItinerary($A16),BH$3-1),campInfo,10)) ->  | CC16: =IF(INDEX(campsByItinerary,numericItinerary($A16),BI$3-1)="","",VLOOKUP(INDEX(campsByItinerary,numericItinerary($A16),BI$3-1),campInfo,10)) ->  | CD16: =IF(INDEX(campsByItinerary,numericItinerary($A16),BJ$3-1)="","",VLOOKUP(INDEX(campsByItinerary,numericItinerary($A16),BJ$3-1),campInfo,10)) -> Y | CE16: =IF(INDEX(campsByItinerary,numericItinerary($A16),BK$3-1)="","",VLOOKUP(INDEX(campsByItinerary,numericItinerary($A16),BK$3-1),campInfo,10)) ->  | CF16: =IF(INDEX(campsByItinerary,numericItinerary($A16),BL$3-1)="","",VLOOKUP(INDEX(campsByItinerary,numericItinerary($A16),BL$3-1),campInfo,10)) ->  | CG16: =IF(INDEX(campsByItinerary,numericItinerary($A16),BM$3-1)="","",VLOOKUP(INDEX(campsByItinerary,numericItinerary($A16),BM$3-1),campInfo,10)) -> Y | CR16: =INDEX(campsByItinerary,numericItinerary($A16),BD$3-1) -> Backache Springs | CS16: =IF(INDEX(campsByItinerary,numericItinerary($A16),BE$3-1)="","",VLOOKUP(INDEX(campsByItinerary,numericItinerary($A16),BE$3-1),campInfo,2)) -> South | CT16: =IF(INDEX(campsByItinerary,numericItinerary($A16),BF$3-1)="","",VLOOKUP(INDEX(campsByItinerary,numericItinerary($A16),BF$3-1),campInfo,2)) -> South | CU16: =IF(INDEX(campsByItinerary,numericItinerary($A16),BG$3-1)="","",VLOOKUP(INDEX(campsByItinerary,numericItinerary($A16),BG$3-1),campInfo,2)) -> South | CV16: =IF(INDEX(campsByItinerary,numericItinerary($A16),BH$3-1)="","",VLOOKUP(INDEX(campsByItinerary,numericItinerary($A16),BH$3-1),campInfo,2)) -> South | CW16: =IF(INDEX(campsByItinerary,numericItinerary($A16),BI$3-1)="","",VLOOKUP(INDEX(campsByItinerary,numericItinerary($A16),BI$3-1),campInfo,2)) -> South | CX16: =IF(INDEX(campsByItinerary,numericItinerary($A16),BJ$3-1)="","",VLOOKUP(INDEX(campsByItinerary,numericItinerary($A16),BJ$3-1),campInfo,2)) -> South | CY16: =IF(INDEX(campsByItinerary,numericItinerary($A16),BK$3-1)="","",VLOOKUP(INDEX(campsByItinerary,numericItinerary($A16),BK$3-1),campInfo,2)) -> South | CZ16: =IF(INDEX(campsByItinerary,numericItinerary($A16),BL$3-1)="","",VLOOKUP(INDEX(campsByItinerary,numericItinerary($A16),BL$3-1),campInfo,2)) -> South | DA16: =IF(INDEX(campsByItinerary,numericItinerary($A16),BM$3-1)="","",VLOOKUP(INDEX(campsByItinerary,numericItinerary($A16),BM$3-1),campInfo,2)) -> South | DB16: =IF(INDEX(campsByItinerary,numericItinerary($A16),BD$3-1)="","",VLOOKUP(INDEX(campsByItinerary,numericItinerary($A16),BD$3-1),campInfo,12)) -> South | DC16: =IF(INDEX(campsByItinerary,numericItinerary($A16),BE$3-1)="","",VLOOKUP(INDEX(campsByItinerary,numericItinerary($A16),BE$3-1),campInfo,12)) -> South | DD16: =IF(INDEX(campsByItinerary,numericItinerary($A16),BF$3-1)="","",VLOOKUP(INDEX(campsByItinerary,numericItinerary($A16),BF$3-1),campInfo,12)) -> South | DE16: =IF(INDEX(campsByItinerary,numericItinerary($A16),BG$3-1)="","",VLOOKUP(INDEX(campsByItinerary,numericItinerary($A16),BG$3-1),campInfo,12)) -> South | DF16: =IF(INDEX(campsByItinerary,numericItinerary($A16),BH$3-1)="","",VLOOKUP(INDEX(campsByItinerary,numericItinerary($A16),BH$3-1),campInfo,12)) -> South | DG16: =IF(INDEX(campsByItinerary,numericItinerary($A16),BI$3-1)="","",VLOOKUP(INDEX(campsByItinerary,numericItinerary($A16),BI$3-1),campInfo,12)) -> South | DH16: =IF(INDEX(campsByItinerary,numericItinerary($A16),BJ$3-1)="","",VLOOKUP(INDEX(campsByItinerary,numericItinerary($A16),BJ$3-1),campInfo,12)) -> South | DI16: =IF(INDEX(campsByItinerary,numericItinerary($A16),BK$3-1)="","",VLOOKUP(INDEX(campsByItinerary,numericItinerary($A16),BK$3-1),campInfo,12)) -> South | DJ16: =IF(INDEX(campsByItinerary,numericItinerary($A16),BL$3-1)="","",VLOOKUP(INDEX(campsByItinerary,numericItinerary($A16),BL$3-1),campInfo,12)) -> South | DK16: =IF(INDEX(campsByItinerary,numericItinerary($A16),BM$3-1)="","",VLOOKUP(INDEX(campsByItinerary,numericItinerary($A16),BM$3-1),campInfo,12)) -> South | DL16: =getfoodPU("First",numericItinerary($A16)) -> 3 | DM16: =getfoodPU("Max",numericItinerary($A16)) -> 3
A17: 12-14 | C17: R | D17: 63 | E17: Abreu | F17: Crater Lake | G17: Beaubien | H17: Beaubien | I17: Bear Creek | J17: Crooked Creek | K17: Red Hills | L17: Hunting Lodge | M17: Clarks Fork | N17: Tooth Ridge | O17: Camping HQ | S17: Phillips Junction | W17: Cimarroncito | Y17: Zastrow | Z17: Hike In | AA17: y | AB17: =IF(AC17="","",numericItinerary(A17) & ":" & AC17) ->  | AG17: y | AH17: y | AI17: y | AJ17: y | AK17: 7217 | AL17: 8398 | AM17: 9330 | AN17: 9330 | AO17: 9288 | AP17: 9360 | AQ17: 10280 | AR17: 7776 | AS17: 7515 | AT17: 8240 | AU17: 1181 | AV17: 932 | AW17: 0 | AX17: 42 | AY17: 72 | AZ17: 920 | BA17: 2504 | BB17: 261 | BC17: 725 | BD17: =IF(INDEX(campsByItinerary,numericItinerary($A17),BD$3-1)="","",VLOOKUP(INDEX(campsByItinerary,numericItinerary($A17),BD$3-1),campInfo,8)) -> Y | BE17: =IF(INDEX(campsByItinerary,numericItinerary($A17),BE$3-1)="","",VLOOKUP(INDEX(campsByItinerary,numericItinerary($A17),BE$3-1),campInfo,8)) -> Y | BF17: =IF(INDEX(campsByItinerary,numericItinerary($A17),BF$3-1)="","",VLOOKUP(INDEX(campsByItinerary,numericItinerary($A17),BF$3-1),campInfo,8)) -> Y | BG17: =IF(INDEX(campsByItinerary,numericItinerary($A17),BG$3-1)="","",VLOOKUP(INDEX(campsByItinerary,numericItinerary($A17),BG$3-1),campInfo,8)) -> Y | BH17: =IF(INDEX(campsByItinerary,numericItinerary($A17),BH$3-1)="","",VLOOKUP(INDEX(campsByItinerary,numericItinerary($A17),BH$3-1),campInfo,8)) ->  | BI17: =IF(INDEX(campsByItinerary,numericItinerary($A17),BI$3-1)="","",VLOOKUP(INDEX(campsByItinerary,numericItinerary($A17),BI$3-1),campInfo,8)) -> Y | BJ17: =IF(INDEX(campsByItinerary,numericItinerary($A17),BJ$3-1)="","",VLOOKUP(INDEX(campsByItinerary,numericItinerary($A17),BJ$3-1),campInfo,8)) ->  | BK17: =IF(INDEX(campsByItinerary,numericItinerary($A17),BK$3-1)="","",VLOOKUP(INDEX(campsByItinerary,numericItinerary($A17),BK$3-1),campInfo,8)) -> N | BL17: =IF(INDEX(campsByItinerary,numericItinerary($A17),BL$3-1)="","",VLOOKUP(INDEX(campsByItinerary,numericItinerary($A17),BL$3-1),campInfo,8)) -> Y | BM17: =IF(INDEX(campsByItinerary,numericItinerary($A17),BM$3-1)="","",VLOOKUP(INDEX(campsByItinerary,numericItinerary($A17),BM$3-1),campInfo,8)) ->  | BR17: Y | BT17: Y | BU17: Y | BW17: Y | BX17: =IF(INDEX(campsByItinerary,numericItinerary($A17),BD$3-1)="","",VLOOKUP(INDEX(campsByItinerary,numericItinerary($A17),BD$3-1),campInfo,10)) ->  | BY17: =IF(INDEX(campsByItinerary,numericItinerary($A17),BE$3-1)="","",VLOOKUP(INDEX(campsByItinerary,numericItinerary($A17),BE$3-1),campInfo,10)) ->  | BZ17: =IF(INDEX(campsByItinerary,numericItinerary($A17),BF$3-1)="","",VLOOKUP(INDEX(campsByItinerary,numericItinerary($A17),BF$3-1),campInfo,10)) ->  | CA17: =IF(INDEX(campsByItinerary,numericItinerary($A17),BG$3-1)="","",VLOOKUP(INDEX(campsByItinerary,numericItinerary($A17),BG$3-1),campInfo,10)) ->  | CB17: =IF(INDEX(campsByItinerary,numericItinerary($A17),BH$3-1)="","",VLOOKUP(INDEX(campsByItinerary,numericItinerary($A17),BH$3-1),campInfo,10)) ->  | CC17: =IF(INDEX(campsByItinerary,numericItinerary($A17),BI$3-1)="","",VLOOKUP(INDEX(campsByItinerary,numericItinerary($A17),BI$3-1),campInfo,10)) ->  | CD17: =IF(INDEX(campsByItinerary,numericItinerary($A17),BJ$3-1)="","",VLOOKUP(INDEX(campsByItinerary,numericItinerary($A17),BJ$3-1),campInfo,10)) ->  | CE17: =IF(INDEX(campsByItinerary,numericItinerary($A17),BK$3-1)="","",VLOOKUP(INDEX(campsByItinerary,numericItinerary($A17),BK$3-1),campInfo,10)) ->  | CF17: =IF(INDEX(campsByItinerary,numericItinerary($A17),BL$3-1)="","",VLOOKUP(INDEX(campsByItinerary,numericItinerary($A17),BL$3-1),campInfo,10)) ->  | CG17: =IF(INDEX(campsByItinerary,numericItinerary($A17),BM$3-1)="","",VLOOKUP(INDEX(campsByItinerary,numericItinerary($A17),BM$3-1),campInfo,10)) -> Y | CK17: Y | CR17: =INDEX(campsByItinerary,numericItinerary($A17),BD$3-1) -> Abreu | CS17: =IF(INDEX(campsByItinerary,numericItinerary($A17),BE$3-1)="","",VLOOKUP(INDEX(campsByItinerary,numericItinerary($A17),BE$3-1),campInfo,2)) -> South | CT17: =IF(INDEX(campsByItinerary,numericItinerary($A17),BF$3-1)="","",VLOOKUP(INDEX(campsByItinerary,numericItinerary($A17),BF$3-1),campInfo,2)) -> South | CU17: =IF(INDEX(campsByItinerary,numericItinerary($A17),BG$3-1)="","",VLOOKUP(INDEX(campsByItinerary,numericItinerary($A17),BG$3-1),campInfo,2)) -> South | CV17: =IF(INDEX(campsByItinerary,numericItinerary($A17),BH$3-1)="","",VLOOKUP(INDEX(campsByItinerary,numericItinerary($A17),BH$3-1),campInfo,2)) -> South | CW17: =IF(INDEX(campsByItinerary,numericItinerary($A17),BI$3-1)="","",VLOOKUP(INDEX(campsByItinerary,numericItinerary($A17),BI$3-1),campInfo,2)) -> South | CX17: =IF(INDEX(campsByItinerary,numericItinerary($A17),BJ$3-1)="","",VLOOKUP(INDEX(campsByItinerary,numericItinerary($A17),BJ$3-1),campInfo,2)) -> South | CY17: =IF(INDEX(campsByItinerary,numericItinerary($A17),BK$3-1)="","",VLOOKUP(INDEX(campsByItinerary,numericItinerary($A17),BK$3-1),campInfo,2)) -> Central | CZ17: =IF(INDEX(campsByItinerary,numericItinerary($A17),BL$3-1)="","",VLOOKUP(INDEX(campsByItinerary,numericItinerary($A17),BL$3-1),campInfo,2)) -> Central | DA17: =IF(INDEX(campsByItinerary,numericItinerary($A17),BM$3-1)="","",VLOOKUP(INDEX(campsByItinerary,numericItinerary($A17),BM$3-1),campInfo,2)) -> Central | DB17: =IF(INDEX(campsByItinerary,numericItinerary($A17),BD$3-1)="","",VLOOKUP(INDEX(campsByItinerary,numericItinerary($A17),BD$3-1),campInfo,12)) -> South | DC17: =IF(INDEX(campsByItinerary,numericItinerary($A17),BE$3-1)="","",VLOOKUP(INDEX(campsByItinerary,numericItinerary($A17),BE$3-1),campInfo,12)) -> South | DD17: =IF(INDEX(campsByItinerary,numericItinerary($A17),BF$3-1)="","",VLOOKUP(INDEX(campsByItinerary,numericItinerary($A17),BF$3-1),campInfo,12)) -> South | DE17: =IF(INDEX(campsByItinerary,numericItinerary($A17),BG$3-1)="","",VLOOKUP(INDEX(campsByItinerary,numericItinerary($A17),BG$3-1),campInfo,12)) -> South | DF17: =IF(INDEX(campsByItinerary,numericItinerary($A17),BH$3-1)="","",VLOOKUP(INDEX(campsByItinerary,numericItinerary($A17),BH$3-1),campInfo,12)) -> South | DG17: =IF(INDEX(campsByItinerary,numericItinerary($A17),BI$3-1)="","",VLOOKUP(INDEX(campsByItinerary,numericItinerary($A17),BI$3-1),campInfo,12)) -> South | DH17: =IF(INDEX(campsByItinerary,numericItinerary($A17),BJ$3-1)="","",VLOOKUP(INDEX(campsByItinerary,numericItinerary($A17),BJ$3-1),campInfo,12)) -> South | DI17: =IF(INDEX(campsByItinerary,numericItinerary($A17),BK$3-1)="","",VLOOKUP(INDEX(campsByItinerary,numericItinerary($A17),BK$3-1),campInfo,12)) -> South | DJ17: =IF(INDEX(campsByItinerary,numericItinerary($A17),BL$3-1)="","",VLOOKUP(INDEX(campsByItinerary,numericItinerary($A17),BL$3-1),campInfo,12)) -> South | DK17: =IF(INDEX(campsByItinerary,numericItinerary($A17),BM$3-1)="","",VLOOKUP(INDEX(campsByItinerary,numericItinerary($A17),BM$3-1),campInfo,12)) -> South | DL17: =getfoodPU("First",numericItinerary($A17)) -> 4 | DM17: =getfoodPU("Max",numericItinerary($A17)) -> 4
